Workbook

Sheet Kuntakortti
A1: VM/KAO, 1.9.2025 | L1: Huom! Puuttuu Kemijärvi ja Tervola tp2024
A2: KUNTAKONSERNIN KESKEISIÄ TILINPÄÄTÖSTIETOJA | E2: Valitse kunta valikosta:
A4: =INDEX(Luvut!$B$3:'Luvut'!$B$296,$A$7) -> Koko maa (Manner-Suomi) | B4: 2022 | E4: 2023 | H4: 2024
A6: Asukasluku | B6: =VLOOKUP($A$4,Luvut!$B$3:$DU$296,2) -> 5533611 | E6: =VLOOKUP($A$4,Luvut!$B$3:$DU$296,43) -> 5573310 | G6: =((E6/B6)-1)*100 -> 0.7174158068 | H6: =VLOOKUP($A$4,Luvut!$B$3:$DU$296,84) -> 5605317 | J6: =((H6/E6)-1)*100 -> 0.5742906818
A7: 95
A8: Tunnuslukuja
A10: Tuloveroprosentti | B10: =VLOOKUP($A$4,Luvut!$B$3:$DU$296,3) -> 20.01 | E10: =VLOOKUP($A$4,Luvut!$B$3:$DU$296,44) -> 7.32 | H10: =VLOOKUP($A$4,Luvut!$B$3:$DU$296,85) -> 7.47
A11: Vuosikate/poistot, % | B11: =B37/B39 -> 1.288588122 | E11: =E37/E39 -> 1.459931148 | H11: =H37/H39 -> 1.267627555
A12: Vuosikate/poistot, % pl. Hark.var. | B12: =(B37-B31)/B39 -> 1.286562786 | E12: =(E37-E31)/E39 -> 1.457751064 | H12: =(H37-H31)/H39 -> 1.26546417
A13: Lainakanta, 1000 € ja €/as | B13: =B66 -> 43538239 | C13: =C66 -> 7867.961626 | E13: =E66 -> 38834865.93 | F13: =F66 -> 6968.007509 | H13: =H66 -> 40661813.98 | I13: =I66 -> 7254.150654
A14: Lainat ja vuokravastuut, 1000 € ja €/as | B14: =B66+B70 -> 51961029.19 | C14: =(1000*B14)/B6 -> 9390.076244 | E14: =E66+E70 -> 44954064.86 | F14: =(E14*1000)/E6 -> 8065.954497 | H14: =H66+H70 -> 47918899.77 | I14: =(H14*1000)/H6 -> 8548.829578
A15: Laskennallinen lainanhoitokate | B15: =(B37+B35)/(B35+(B66/8)) -> 1.156736626 | E15: =(E37+E35)/(E35+(E66/8)) -> 1.324223253 | H15: =(H37+H35)/(H35+(H66/8)) -> 1.127823722
A16: Lainanhoitokate* | B16: =VLOOKUP($A$4,Luvut!$B$3:$DU$296,4) -> 1.7 | E16: =VLOOKUP($A$4,Luvut!$B$3:$DU$296,45) -> 1.853392115 | H16: =VLOOKUP($A$4,Luvut!$B$3:$DU$296,86) -> 1.634878925
A17: Suhteellinen velkaantuneisuus, % | B17: =VLOOKUP($A$4,Luvut!$B$3:$DU$296,5) -> 82 | E17: =VLOOKUP($A$4,Luvut!$B$3:$DU$296,46) -> 130.8701987 | H17: =VLOOKUP($A$4,Luvut!$B$3:$DU$296,87) -> 138.2648676
A18: Omavaraisuusaste, % | B18: =VLOOKUP($A$4,Luvut!$B$3:$DU$296,6) -> 41 | E18: =VLOOKUP($A$4,Luvut!$B$3:$DU$296,47) -> 46.07791671 | H18: =VLOOKUP($A$4,Luvut!$B$3:$DU$296,88) -> 47.16114228
A19: Rahavarat, 1000 € ja €/as | B19: =VLOOKUP($A$4,Luvut!$B$3:$DU$296,7) -> 10630066.73 | C19: =(B19*1000)/B6 -> 1921 | E19: =VLOOKUP($A$4,Luvut!$B$3:$DU$296,48) -> 8188603.326 | F19: =(E19*1000)/E6 -> 1469.253159 | H19: =VLOOKUP($A$4,Luvut!$B$3:$DU$296,89) -> 7947855.589 | I19: =(H19*1000)/H6 -> 1417.913668
A20: Kassan riittävyys, pv | B20: =VLOOKUP($A$4,Luvut!$B$3:$DU$296,8) -> 50 | E20: =VLOOKUP($A$4,Luvut!$B$3:$DU$296,49) -> 71.87929967 | H20: =VLOOKUP($A$4,Luvut!$B$3:$DU$296,90) -> 68.93222083
A22: Tuloslaskelma | B22: 1000 | C22: €/as | E22: 1000 | F22: €/as | G22: muut. % | H22: 1000 | I22: €/as | J22: muut. %
A24: Toimintatuotot | B24: =VLOOKUP($A$4,Luvut!$B$3:$DU$296,9) -> 31512266 | C24: =B24*1000/$B$6 -> 5694.702067 | E24: =VLOOKUP($A$4,Luvut!$B$3:$DU$296,50) -> 16919176.56 | F24: =E24*1000/$E$6 -> 3035.750131 | G24: =((E24/B24)-1)*100 -> -46.30923539 | H24: =VLOOKUP($A$4,Luvut!$B$3:$DU$296,91) -> 16601235.46 | I24: =H24*1000/$H$6 -> 2961.694309 | J24: =((H24/E24)-1)*100 -> -1.879176003
A25: Toimintakulut | B25: =VLOOKUP($A$4,Luvut!$B$3:$DU$296,10) -> 63470265 | C25: =B25*1000/$B$6 -> 11469.95425 | E25: =VLOOKUP($A$4,Luvut!$B$3:$DU$296,51) -> 29260015.11 | F25: =E25*1000/$E$6 -> 5250.024692 | G25: -53.89964873 | H25: =VLOOKUP($A$4,Luvut!$B$3:$DU$296,92) -> 29026603.9 | I25: =H25*1000/$H$6 -> 5178.405414 | J25: -0.7977139145
A26: Osuus osakkuusyhteisöjen voitosta/tappiosta | B26: =VLOOKUP($A$4,Luvut!$B$3:$DU$296,11) -> 40474 | C26: 7.314211281 | E26: =VLOOKUP($A$4,Luvut!$B$3:$DU$296,52) -> 66903.97212 | F26: 12.00435148 | H26: =VLOOKUP($A$4,Luvut!$B$3:$DU$296,93) -> 90620.79527 | I26: =H26*1000/$H$6 -> 16.16693494
A27: Toimintakate | B27: =VLOOKUP($A$4,Luvut!$B$3:$DU$296,12) -> -31917405 | C27: -5767.916285 | E27: =VLOOKUP($A$4,Luvut!$B$3:$DU$296,53) -> -12273934.58 | F27: -2202.270209 | G27: -61.5446977 | H27: =VLOOKUP($A$4,Luvut!$B$3:$DU$296,94) -> -12334747.65 | I27: =H27*1000/$H$6 -> -2200.544171 | J27: 0.4954651697
A29: Verotulot | B29: =VLOOKUP($A$4,Luvut!$B$3:$DU$296,13) -> 26707861 | C29: 4826.479671 | E29: =VLOOKUP($A$4,Luvut!$B$3:$DU$296,54) -> 14382225.78 | F29: 2580.553707 | G29: -46.14984038 | H29: =VLOOKUP($A$4,Luvut!$B$3:$DU$296,95) -> 13857804.9 | I29: =H29*1000/$H$6 -> 2472.260694 | J29: -3.646312388
A30: Valtionosuudet, | B30: =VLOOKUP($A$4,Luvut!$B$3:$DU$296,14) -> 11976772 | C30: 2164.368258 | E30: =VLOOKUP($A$4,Luvut!$B$3:$DU$296,55) -> 4916190.831 | F30: 882.0953492 | G30: -58.95228839 | H30: =VLOOKUP($A$4,Luvut!$B$3:$DU$296,96) -> 4761715.409 | I30: =H30*1000/$H$6 -> 849.4997534 | J30: -3.14217708
A31: , josta hark.var. korotus | B31: =VLOOKUP($A$4,Luvut!$B$3:$EC$296,130) -> 10000 | E31: =VLOOKUP($A$4,Luvut!$B$3:$EC$296,131) -> 10000 | F31: 1.794265885 | H31: =VLOOKUP($A$4,Luvut!$B$3:$EC$296,132) -> 10000 | I31: =H31*1000/$H$6 -> 1.784020422
A32: Verorahoitus yht. | B32: =SUM(B29:B30) -> 38684633 | C32: =B32*1000/$B$6 -> 6990.847929 | E32: =SUM(E29:E30) -> 19298416.61 | F32: =E32*1000/$E$6 -> 3462.649056 | G32: =((E32/B32)-1)*100 -> -50.11348147 | H32: =SUM(H29:H30) -> 18619520.31 | I32: =H32*1000/$H$6 -> 3321.760448 | J32: =((H32/E32)-1)*100 -> -3.517886029
A34: Korkotuotot | B34: =VLOOKUP($A$4,Luvut!$B$3:$DU$296,15) -> 78764.06132 | C34: 14.23375465 | E34: =VLOOKUP($A$4,Luvut!$B$3:$DU$296,56) -> 195304.223 | F34: 35.04277046 | G34: =((E34/B34)-1)*100 -> 147.9610875 | H34: =VLOOKUP($A$4,Luvut!$B$3:$DU$296,97) -> 261124.4381 | I34: =H34*1000/$H$6 -> 46.58513303 | J34: =((H34/E34)-1)*100 -> 33.70137832
A35: Korkokulut | B35: =VLOOKUP($A$4,Luvut!$B$3:$DU$296,16) -> 427835.8063 | C35: 77.31584426 | E35: =VLOOKUP($A$4,Luvut!$B$3:$DU$296,57) -> 827885.8903 | F35: 148.544741 | G35: 93.50551734 | H35: =VLOOKUP($A$4,Luvut!$B$3:$DU$296,98) -> 993890.558 | I35: 177.3121053 | J35: 20.05163631
A36: Muut rahoituskulut/-tuotot, netto | B36: =VLOOKUP($A$4,Luvut!$B$3:$DU$296,17) -> -55813 | C36: -10.08618062 | E36: =VLOOKUP($A$4,Luvut!$B$3:$DU$296,58) -> 304773.5542 | F36: 54.68447909 | G36: -646.0619464 | H36: =VLOOKUP($A$4,Luvut!$B$3:$DU$296,99) -> 307456.0521 | I36: =H36*1000/$H$6 -> 54.85078757 | J36: 0.8801609764
A37: Vuosikate | B37: =VLOOKUP($A$4,Luvut!$B$3:$DU$296,18) -> 6362342 | C37: 1149.763147 | E37: =VLOOKUP($A$4,Luvut!$B$3:$DU$296,59) -> 6696673.917 | F37: 1201.561355 | G37: 5.254856098 | H37: =VLOOKUP($A$4,Luvut!$B$3:$DU$296,100) -> 5859462.59 | I37: =H37*1000/$H$6 -> 1045.340092 | J37: -12.50189776
A39: Suunnitelman mukaiset poistot ja arvonalen. | B39: =VLOOKUP($A$4,Luvut!$B$3:$DU$296,19) -> 4937452 | C39: 892.2658279 | E39: =VLOOKUP($A$4,Luvut!$B$3:$DU$296,60) -> 4586979.275 | F39: 823.0260428 | G39: -7.098250782 | H39: =VLOOKUP($A$4,Luvut!$B$3:$DU$296,101) -> 4622384.996 | I39: =H39*1000/$H$6 -> 824.6429232 | J39: 0.7718744574
A40: Satunnaiset erät | B40: =VLOOKUP($A$4,Luvut!$B$3:$DU$296,20) -> 207757 | C40: 37.54456177 | E40: =VLOOKUP($A$4,Luvut!$B$3:$DU$296,61) -> -3875.05721 | F40: -0.6952882955 | H40: =VLOOKUP($A$4,Luvut!$B$3:$DU$296,102) -> 261761.3807 | I40: =H40*1000/$H$6 -> 46.69876489
A41: Tilikauden tulos | B41: =VLOOKUP($A$4,Luvut!$B$3:$DU$296,21) -> 1627855 | C41: =B41*1000/$B$6 -> 294.1759007 | E41: =VLOOKUP($A$4,Luvut!$B$3:$DU$296,62) -> 2105819.585 | F41: =E41*1000/$E$6 -> 377.8400241 | G41: 29.3616191 | H41: =VLOOKUP($A$4,Luvut!$B$3:$DU$296,103) -> 1367975.077 | I41: =H41*1000/$H$6 -> 244.0495474 | J41: -35.03835338
A43: Tilinpäätössiirrot | B43: =VLOOKUP($A$4,Luvut!$B$3:$DU$296,22) -> -21823 | C43: =B43*1000/$B$6 -> -3.943717764 | E43: =VLOOKUP($A$4,Luvut!$B$3:$DU$296,63) -> -36090.31982 | F43: -6.475562963 | H43: =VLOOKUP($A$4,Luvut!$B$3:$DU$296,104) -> -24637.52629 | I43: =H43*1000/$H$6 -> -4.395385005
A44: Tilikauden verot | B44: =VLOOKUP($A$4,Luvut!$B$3:$DU$296,23) -> 127840 | C44: 23.10245516 | E44: =VLOOKUP($A$4,Luvut!$B$3:$DU$296,64) -> 107491.2585 | F44: 19.2867898 | H44: =VLOOKUP($A$4,Luvut!$B$3:$DU$296,105) -> 186496.0189 | I44: =H44*1000/$H$6 -> 33.27127063
A45: Laskennalliset verot | B45: =VLOOKUP($A$4,Luvut!$B$3:$DU$296,24) -> -49906 | C45: -9.018704061 | E45: =VLOOKUP($A$4,Luvut!$B$3:$DU$296,65) -> -38025.8439 | F45: -6.822847446 | H45: =VLOOKUP($A$4,Luvut!$B$3:$DU$296,106) -> -32300.44856 | I45: =H45*1000/$H$6 -> -5.762465987
A46: Vähemmistöosuudet | B46: =VLOOKUP($A$4,Luvut!$B$3:$DU$296,25) -> -5663 | C46: =B46*1000/$B$6 -> -1.023382381 | E46: =VLOOKUP($A$4,Luvut!$B$3:$DU$296,66) -> -12460.72113 | F46: =E46*1000/$E$6 -> -2.235784683 | H46: =VLOOKUP($A$4,Luvut!$B$3:$DU$296,107) -> -25863.71638 | I46: -4.614139821
A47: Tilikauden yli-/alijäämä | B47: =VLOOKUP($A$4,Luvut!$B$3:$DU$296,26) -> 1422621 | C47: 257.0872799 | E47: =VLOOKUP($A$4,Luvut!$B$3:$DU$296,67) -> 1911786.441 | F47: 343.0253191 | G47: 34.3848039 | H47: =VLOOKUP($A$4,Luvut!$B$3:$DU$296,108) -> 1191925.376 | I47: =H47*1000/$H$6 -> 212.6419213 | J47: -37.65384298
A49: Taseen kertynyt yli-/alijäämä | B49: =VLOOKUP($A$4,Luvut!$B$3:$DU$296,27) -> 17791840 | C49: 3215.231428 | E49: =VLOOKUP($A$4,Luvut!$B$3:$DU$296,68) -> 19702940.47 | F49: 3535.231392 | G49: 10.74144366 | H49: =VLOOKUP($A$4,Luvut!$B$3:$DU$296,109) -> 20814859.09 | I49: =H49*1000/$H$6 -> 3713.413369 | J49: 5.643414597
A50: Muut omat rahastot | B50: =VLOOKUP($A$4,Luvut!$B$3:$EG$296,126) -> 3738934.197 | C50: 675.6770935 | E50: =VLOOKUP($A$4,Luvut!$B$3:$EG$296,127) -> 3724815.673 | F50: =E50*1000/$E$6 -> 668.330969 | G50: -0.3776082684 | H50: =VLOOKUP($A$4,Luvut!$B$3:$EG$296,128) -> 3746376.355 | I50: =H50*1000/$H$6 -> 668.3611927 | J50: 0.57883892
A51: Taseen kert. yli-/alij. ml. muut omat rahastot | B51: =SUM(B49:B50) -> 21530774.2 | C51: 3890.908522 | E51: =SUM(E49:E50) -> 23427756.14 | F51: 4203.562361 | G51: 8.810560768 | H51: =SUM(H49:H50) -> 24561235.44 | I51: =H51*1000/$H$6 -> 4381.774562 | J51: 4.838189772
A53: Rahoituslaskelma ja tase | B53: 1000 | C53: €/as | E53: 1000 | F53: €/as | H53: 1000 | I53: €/as
A55: Toiminnan rahavirta | B55: =VLOOKUP($A$4,Luvut!$B$3:$DU$296,28) -> 5569402 | C55: 1006.467928 | E55: =VLOOKUP($A$4,Luvut!$B$3:$DU$296,69) -> 6205283.803 | F55: =E55*1000/$E$6 -> 1113.392903 | G55: 11.41741613 | H55: =VLOOKUP($A$4,Luvut!$B$3:$DU$296,110) -> 5416949.624 | I55: =H55*1000/$H$6 -> 966.3948755 | J55: -12.7042405
A56: Investoinnit, netto | B56: =B57+B58+B59 -> -6926443 | C56: -1251.703996 | E56: =E57+E58+E59 -> -6701450.031 | F56: -1202.418317 | G56: -3.248319076 | H56: =H57+H58+H59 -> -7413723.596 | I56: -1322.62343 | J56: 10.62864846
A57: - Investointimenot | B57: =VLOOKUP($A$4,Luvut!$B$3:$DU$296,29) -> -9681016 | C57: -1749.493414 | E57: =-VLOOKUP($A$4,Luvut!$B$3:$DU$296,70) -> -7896284.909 | F57: -1416.803463 | G57: -18.4353697 | H57: =-VLOOKUP($A$4,Luvut!$B$3:$DU$296,111) -> -8514544.863 | I57: -1519.012192 | J57: 7.829757421
A58: + Rahoitusosuudet investointimenoihin | B58: =VLOOKUP($A$4,Luvut!$B$3:$DU$296,30) -> 216944 | C58: 39.20477966 | E58: =VLOOKUP($A$4,Luvut!$B$3:$DU$296,71) -> 161977.6939 | F58: 29.06310503 | G58: =((E58/B58)-1)*100 -> -25.33663347 | H58: =VLOOKUP($A$4,Luvut!$B$3:$DU$296,112) -> 152263.6017 | I58: 27.1641375 | J58: -5.997178962
A59: + Investointihyödykkeiden luovutustulot | B59: =VLOOKUP($A$4,Luvut!$B$3:$DU$296,31) -> 2537629 | C59: 458.5846385 | E59: =VLOOKUP($A$4,Luvut!$B$3:$DU$296,72) -> 1032857.185 | F59: 185.3220411 | G59: =((E59/B59)-1)*100 -> -59.29833775 | H59: =VLOOKUP($A$4,Luvut!$B$3:$DU$296,113) -> 948557.6652 | I59: 169.2246246 | J59: -8.161778872
A60: Antolainauksen muutokset (lisäys -, vähennys +) | B60: =VLOOKUP($A$4,Luvut!$B$3:$DU$296,32) -> -35163.22039 | C60: -6.354479993 | E60: =VLOOKUP($A$4,Luvut!$B$3:$DU$296,73) -> 26766.09815 | F60: 4.802549679 | H60: =VLOOKUP($A$4,Luvut!$B$3:$DU$296,114) -> 17891.33671 | I60: 3.191851007
A61: Pitkäaikaisten lainojen vähennys | B61: =-VLOOKUP($A$4,Luvut!$B$3:$DU$296,33) -> 3611853 | C61: 652.7117645 | E61: =-VLOOKUP($A$4,Luvut!$B$3:$DU$296,74) -> 3231999.629 | F61: 579.9066674 | H61: =VLOOKUP($A$4,Luvut!$B$3:$DU$296,115) -> 3198073.168 | I61: 570.5427842
A62: Pitkäaikaisten lainojen lisäys | B62: =VLOOKUP($A$4,Luvut!$B$3:$DU$296,34) -> 4919801 | C62: 889.0760482 | E62: =VLOOKUP($A$4,Luvut!$B$3:$DU$296,75) -> 4371507.12 | F62: 784.3646091 | H62: =VLOOKUP($A$4,Luvut!$B$3:$DU$296,116) -> 5483080.286 | I62: 978.1927207
A63: ± Lyhytaikaisten lainojen muutos | B63: =VLOOKUP($A$4,Luvut!$B$3:$DU$296,35) -> -21878 | C63: -3.953657024 | E63: =VLOOKUP($A$4,Luvut!$B$3:$DU$296,76) -> -269435.8794 | F63: -48.34396067 | H63: =VLOOKUP($A$4,Luvut!$B$3:$DU$296,117) -> -366049.6662 | I63: -65.30400799
A64: Toiminnan ja investointien rahavirta | B64: =VLOOKUP($A$4,Luvut!$B$3:$DU$296,36) -> -1206512 | C64: -218.0333963 | E64: =VLOOKUP($A$4,Luvut!$B$3:$DU$296,77) -> -496169.2283 | F64: -89.02595195 | H64: =VLOOKUP($A$4,Luvut!$B$3:$DU$296,118) -> -1996773.972 | I64: -356.2285544
A66: Lainakanta, | B66: =VLOOKUP($A$4,Luvut!$B$3:$DU$296,37) -> 43538239 | C66: 7867.961626 | E66: =VLOOKUP($A$4,Luvut!$B$3:$DU$296,78) -> 38834865.93 | F66: 6968.007509 | G66: =((E66/B66)-1)*100 -> -10.80285556 | H66: =VLOOKUP($A$4,Luvut!$B$3:$DU$296,119) -> 40661813.98 | I66: =H66*1000/$H$6 -> 7254.150654 | J66: =((H66/E66)-1)*100 -> 4.70440159
A67: josta pitkäaikainen laina | B67: =VLOOKUP($A$4,Luvut!$B$3:$DU$296,38) -> 37118290 | C67: 6707.788097 | E67: =VLOOKUP($A$4,Luvut!$B$3:$DU$296,79) -> 33266324.19 | F67: =E67*1000/$E$6 -> 5968.863061 | G67: =((E67/B67)-1)*100 -> -10.37754113 | H67: =VLOOKUP($A$4,Luvut!$B$3:$DU$296,120) -> 35028570.32 | I67: =H67*1000/$H$6 -> 6249.168481 | J67: 5.297387617
A68: josta lyhytaikainen laina | B68: =VLOOKUP($A$4,Luvut!$B$3:$DU$296,39) -> 6419949 | C68: 1160.173529 | E68: =VLOOKUP($A$4,Luvut!$B$3:$DU$296,80) -> 5568541.742 | F68: 999.1444478 | G68: -13.26190064 | H68: =VLOOKUP($A$4,Luvut!$B$3:$DU$296,121) -> 5633243.655 | I68: 1004.982172 | J68: 1.161918421
A69: Lainasaamiset | B69: =VLOOKUP($A$4,Luvut!$B$3:$DU$296,40) -> 1130168 | C69: 204.2369802 | E69: =VLOOKUP($A$4,Luvut!$B$3:$DU$296,81) -> 1090030.177 | F69: 195.5803961 | G69: -3.551491682 | H69: =VLOOKUP($A$4,Luvut!$B$3:$DU$296,122) -> 1074089.859 | I69: 191.6198243 | J69: -1.462374096
A70: Vuokravastuut | B70: =VLOOKUP($A$4,Luvut!$B$3:$DU$296,41) -> 8422790.194 | C70: 1522.114618 | E70: =VLOOKUP($A$4,Luvut!$B$3:$DU$296,82) -> 6119198.929 | F70: 1097.946988 | G70: -27.3495031 | H70: =VLOOKUP($A$4,Luvut!$B$3:$DU$296,123) -> 7257085.786 | I70: 1294.678925 | J70: 18.59535652
A72: Sijoitus vuosikatteen (euro/as) mukaan | B72: =VLOOKUP($A$4,Luvut!$B$3:$DU$296,42) -> - | E72: =VLOOKUP($A$4,Luvut!$B$3:$DU$296,83) -> - | H72: =VLOOKUP($A$4,Luvut!$B$3:$DU$296,124) -> -
A73: * Ei tietoa kertalyhenteisistä lainoista
A74: Lähde: Tilastokeskus ja Valtiokonttori

Sheet Luvut
C1: 2022 | D1: 3 | E1: 4 | F1: 5 | G1: 6 | H1: 7 | I1: 8 | J1: 9 | K1: 10 | L1: 11 | M1: 12 | N1: 13 | O1: 14 | P1: 15 | Q1: 16 | R1: 17 | S1: 18 | T1: 19 | U1: 20 | V1: 21 | W1: 22 | X1: 23 | Y1: 24 | Z1: 25 | AA1: 26 | AB1: 27 | AC1: 28 | AD1: 29 | AE1: 30 | AF1: 31 | AG1: 32 | AH1: 33 | AI1: 34 | AJ1: 35 | AK1: 36 | AL1: 37 | AM1: 38 | AN1: 39 | AO1: 40 | AP1: 41 | AQ1: 42 | AR1: 2023 | AS1: 44 | AT1: 45 | AU1: 46 | AV1: 47 | AW1: 48 | AX1: 49 | AY1: 50 | AZ1: 51 | BA1: 52 | BB1: 53 | BC1: 54 | BD1: 55 | BE1: 56 | BF1: 57 | BG1: 58 | BH1: 59 | BI1: 60 | BJ1: 61 | BK1: 62 | BL1: 63 | BM1: 64 | BN1: 65 | BO1: 66 | BP1: 67 | BQ1: 68 | BR1: 69 | BS1: 70 | BT1: 71 | BU1: 72 | BV1: 73 | BW1: 74 | BX1: 75 | BY1: 76 | BZ1: 77 | CA1: 78 | CB1: 79 | CC1: 80 | CD1: 81 | CE1: 82 | CF1: 83 | CG1: 2024 | CH1: 85 | CI1: 86 | CJ1: 87 | CK1: 88 | CL1: 89 | CM1: 90 | CN1: 91 | CO1: 92 | CP1: 93 | CQ1: 94 | CR1: 95 | CS1: 96 | CT1: 97 | CU1: 98 | CV1: 99 | CW1: 100 | CX1: 101 | CY1: 102 | CZ1: 103 | DA1: 104 | DB1: 105 | DC1: 106 | DD1: 107 | DE1: 108 | DF1: 109 | DG1: 110 | DH1: 111 | DI1: 112 | DJ1: 113 | DK1: 114 | DL1: 115 | DM1: 116 | DN1: 117 | DO1: 118 | DP1: 119 | DQ1: 120 | DR1: 121 | DS1: 122 | DT1: 123 | DU1: 124 | DV1: Erillistiedot | DW1: 2022 | DX1: 2023 | DY1: 2024 | DZ1: 129 | EA1: 2022 | EB1: 2023 | EC1: 2024 | EE1: 2020 | EF1: 2021 | EG1: 2022
A2: Kunta nro | B2: Kunta | C2: Asukasluku | D2: Tuloveroprosentti 2015 | E2: Lainanhoitokate | F2: Suhteellinen velkaantuneisuus-% | G2: Omavaraisuusaste, % | H2: Rahavarat | I2: Kassan riittävyys, pv | J2: Toimintatuotot | K2: Toimintakulut | L2: Osuus osakkuusyhteisojen voitosta/tappiosta | M2: Toimintakate | N2: Verotulot | O2: Valtionosuudet | P2: Korkotuotot | Q2: Korkokulut | R2: Muut rahoitustuotot/-menot, netto (sis Osinkotuotot) | S2: Vuosikate | T2: Suunnitelman mukaiset poistot ja arvonalet | U2: Satu. erät, netto | V2: Tilikauden tulos | W2: Tilinpäätössiirrot | X2: Tilikauden verot | Y2: Lask. Verot | Z2: Vähemmistöosuudet | AA2: Tilikauden yli- tai alijäämä | AB2: Kumulat yli/alij | AC2: Toiminnan rahavirta | AD2: - Investointimenot | AE2: + Rahoitusos. investointimenoihin | AF2: + Investointihyödykk. luovutustulot | AG2: Antolainauksen muutokset (lisäys -, vähennys +) | AH2: Pitkäaikaisten lainojen vähennys | AI2: Pitkäaikaisten lainojen lisäys | AJ2: ± Lyhytaikaisten lainojen muutos | AK2: Toim ja inv rahavirta | AL2: Lainakanta | AM2: josta pitkäaik | AN2: josta lyhytaik | AO2: Lainasaamiset | AP2: Vuokravastuut | AQ2: Sijoitus vuosikatteen mukaan | AR2: Asukasluku | AS2: Tuloveroprosentti 2019 | AT2: Lainanhoitokate | AU2: Suhteellinen velkaantuneisuus-% | AV2: Omavaraisuusaste, % | AW2: Rahavarat | AX2: Kassan riittävyys, pv | AY2: Toimintatuotot | AZ2: Toimintakulut | BA2: Osuus osakkuusyhteisojen voitosta/tappiosta | BB2: Toimintakate | BC2: Verotulot | BD2: Valtionosuudet | BE2: Korkotuotot | BF2: Korkokulut | BG2: Muut rahoitustuotot/-menot, netto (sis Osinkotuotot) | BH2: Vuosikate | BI2: Suunnitelman mukaiset poistot ja arvonalet | BJ2: Satu. erät, netto | BK2: Tilikauden tulos | BL2: Tilinpäätössiirrot | BM2: Tilikauden verot | BN2: Lask. verot | BO2: Vähemmistöosuudet | BP2: Tilikauden yli- tai alij. | BQ2: Kumulat yli/alij | BR2: Toiminnan rahavirta | BS2: - Investointimenot | BT2: + Rahoitusosuudet investointimenoihin | BU2: + Investointihyödykkeiden luovutustulot | BV2: Antolainauksen muutokset (lisäys -, vähennys +) | BW2: Pitkäaikaisten lainojen vähennys | BX2: Pitkäaikaisten lainojen lisäys | BY2: ± Lyhytaikaisten lainojen muutos | BZ2: Toim ja inv rahavirta | CA2: Lainakanta | CB2: josta pitkäaik | CC2: josta lyhytaik | CD2: Lainasaamiset | CE2: Vuokravastuut | CF2: Sijoitus vuosikatteen mukaan | CG2: Asukasluku | CH2: Tuloveroprosentti 2020 | CI2: Lainanhoitokate | CJ2: Suhteellinen velkaantuneisuus-% | CK2: Omavaraisuusaste, % | CL2: Rahavarat | CM2: Kassan riittävyys, pv | CN2: Toimintatuotot | CO2: Toimintakulut | CP2: Osuus osakkuusyhteisojen voitosta/tappiosta | CQ2: Toimintakate | CR2: Verotulot | CS2: Valtionosuudet | CT2: Korkotuotot | CU2: Korkokulut | CV2: Muut rahoitustuotot/-menot, netto (sis Osinkotuotot) | CW2: Vuosikate | CX2: Suunnitelman mukaiset poistot ja arvonalet | CY2: Satu. erät | CZ2: Tilikauden tulos | DA2: Tilinpäätössiirrot | DB2: Tilikauden verot | DC2: Lask. verot | DD2: Vähemmistöosuudet | DE2: Tilikauden yli- tai alijäämä | DF2: Kumulat yli/alij | DG2: Toiminnan rahavirta | DH2: - Investointimenot | DI2: + Rahoitusosuudet investointimenoihin | DJ2: + Investointihyödykkeiden luovutustulot | DK2: Antolainauksen muutokset (lisäys -, vähennys +) | DL2: Pitkäaikaisten lainojen vähennys | DM2: Pitkäaikaisten lainojen lisäys | DN2: ± Lyhytaikaisten lainojen muutos | DO2: Toim ja inv rahavirta | DP2: Lainakanta | DQ2: josta pitkäaik | DR2: josta lyhytaik | DS2: Lainasaamiset | DT2: Vuokravastuut | DU2: Sijoitus vuosikatteen mukaan | DW2: Muut omat rahastot | DX2: Muut omat rahastot | DY2: Muut omat rahastot | EA2: Hark.var.korotus | EB2: Hark.var.korotus | EC2: Hark.var.korotus | EE2: Takaukset muiden puolesta (jäljellä oleva pääoma) | EF2: Takaukset muiden puolesta (jäljellä oleva pääoma) | EG2: Takaukset muiden puolesta (jäljellä oleva pääoma)
A3: 20 | B3: Akaa | C3: 16473 | D3: 22 | E3: 0.9311909162 | F3: 77.14261106 | G3: 18.49371927 | H3: 9344.30981 | I3: 16.29089547 | J3: 71683.58126 | K3: 173187.9001 | L3: 667.14195 | M3: -100837.1769 | N3: 69399.14897 | O3: 38886.7802 | P3: 377.10453 | Q3: 1041.50835 | R3: 379.58957 | S3: 7163.93805 | T3: 7608.38151 | U3: 24.89267 | V3: -419.55079 | W3: 1.2756 | X3: 142.22543 | Y3: -33.4082 | Z3: -252.44684 | AA3: -846.35566 | AB3: -580.21133 | AC3: 6235.29624 | AD3: -27184.6468 | AE3: 528.25934 | AF3: 1691.01757 | AG3: 4.74867 | AH3: -7770.26833 | AI3: 35302.81045 | AJ3: -14372.78015 | AK3: -18730.07365 | AL3: 109151.7198 | AM3: 82725.23158 | AN3: 26426.48825 | AO3: 7670.53195 | AP3: 11597.0892 | AQ3: 253 | AR3: 16405 | AS3: 9.36 | AT3: 3.508065341 | AU3: 175.0778399 | AV3: 19.4231672 | AW3: 179.45281 | AX3: 0.9461394604 | AY3: 9398.52146 | AZ3: 52115.26068 | BA3: 123.40158 | BB3: -42593.33764 | BC3: 38946.10261 | BD3: 12622.80838 | BE3: 519.646 | BF3: 2288.60752 | BG3: 266.52463 | BH3: 7473.13646 | BI3: 6919.10133 | BJ3: 0 | BK3: 554.03513 | BL3: 0.2212 | BM3: 0.40961 | BN3: -3.94 | BO3: 28.33539 | BP3: 578.24211 | BQ3: -3425.12198 | BR3: 7352.93108 | BS3: 14064.54349 | BT3: 13.2425 | BU3: 164.53006 | BV3: 420 | BW3: -494.04988 | BX3: 13000 | BY3: -3412.49959 | BZ3: -6533.83985 | CA3: 97654.05581 | CB3: 73070.52072 | CC3: 24583.53509 | CD3: 7227.23807 | CE3: 4489.6441 | CF3: 244 | CG3: 16387 | CH3: 9.9 | CI3: 1.011513035 | CJ3: 190.8217044 | CK3: 18.07747925 | CL3: 9554.09375 | CM3: 53.4707363 | CN3: 10099.19094 | CO3: 50274.35952 | CP3: 172.57348 | CQ3: -40002.5951 | CR3: 40347.03206 | CS3: 8990.36926 | CT3: 614.70398 | CU3: 3075.82985 | CV3: 278.45953 | CW3: 7152.13988 | CX3: 8138.98039 | CY3: 0 | CZ3: -986.84051 | DA3: 0.2212 | DB3: 0.33514 | DC3: -33.228 | DD3: -5.80562 | DE3: -1025.8205 | DF3: -4185.26393 | DG3: 6766.28144 | DH3: 4553.434 | DI3: 166.06842 | DJ3: 469.97508 | DK3: 0 | DL3: 7035.72519 | DM3: 19897.65 | DN3: -5525.48607 | DO3: 2848.89094 | DP3: 104990.4946 | DQ3: 60989.79227 | DR3: 44000.70228 | DS3: 7235.23807 | DT3: 7425.35518 | DU3: 245 | DW3: 9.43022 | DX3: 8.8227 | DY3: 8.60151 | EB3: 410 | EE3: 14631
A4: 5 | B4: Alajärvi | C4: 9183 | D4: 21.75 | E4: 1.041516178 | F4: 45.79307736 | G4: 33.30222262 | H4: 9129.52837 | I4: 21.54850924 | J4: 73503.04272 | K4: 140554.4045 | L4: 196.04212 | M4: -66855.31961 | N4: 32479.35372 | O4: 41621.53866 | P4: 12.63185 | Q4: 260.45882 | R4: 61.47333 | S4: 7059.21913 | T4: 6370.98372 | U4: 0 | V4: 688.23541 | W4: 0 | X4: 25.31191 | Y4: -2.81011 | Z4: 16.02949 | AA4: 676.14288 | AB4: 9487.72156 | AC4: 6612.2325 | AD4: -5728.46275 | AE4: 401.59067 | AF4: 473.38397 | AG4: 9.45257 | AH4: -6767.44733 | AI4: 1473.67144 | AJ4: 74.83825 | AK4: 1758.74439 | AL4: 45229.48673 | AM4: 33421.31939 | AN4: 11808.16734 | AO4: 92.8705 | AP4: 484.10521 | AQ4: 144 | AR4: 9113 | AS4: 9.11 | AT4: 1.76904256 | AU4: 69.66034769 | AV4: 47.71814006 | AW4: 8314.08886 | AX4: 54.43698102 | AY4: 20092.25541 | AZ4: 47311.96146 | BA4: 132.46234 | BB4: -27087.24371 | BC4: 18620.64176 | BD4: 17437.39241 | BE4: 45.40315 | BF4: 524.75119 | BG4: 183.00004 | BH4: 8674.44246 | BI4: 5022.6077 | BJ4: 0 | BK4: 3651.83476 | BL4: 0 | BM4: 33.71389 | BN4: 2.8704 | BO4: 8.8975 | BP4: 3629.88877 | BQ4: 13315.98142 | BR4: 8446.98695 | BS4: 3050.91334 | BT4: 7.85639 | BU4: 110.55451 | BV4: 48.2172 | BW4: -4675.34623 | BX4: 3362.23911 | BY4: 0 | BZ4: 5514.48451 | CA4: 30309.26426 | CB4: 20347.66579 | CC4: 9961.59847 | CD4: 41.32151 | CE4: 193.71906 | CF4: 89 | CG4: 9078 | CH4: 9.1 | CI4: 1.932424811 | CJ4: 63.32947147 | CK4: 54.47226529 | CL4: 8734.65144 | CM4: 56.40357719 | CN4: 20550.88577 | CO4: 47574.34508 | CP4: 139.81838 | CQ4: -26883.64093 | CR4: 19597.62438 | CS4: 16159.89157 | CT4: 60.44818 | CU4: 679.12434 | CV4: 128.88905 | CW4: 8384.08791 | CX4: 5123.07613 | CY4: 0 | CZ4: 3261.01178 | DA4: 0 | DB4: 93.26646 | DC4: 3.13473 | DD4: -8.39972 | DE4: 3209.11356 | DF4: 16957.82328 | DG4: 7955.69095 | DH4: 4130.55126 | DI4: 121.19658 | DJ4: 9.55311 | DK4: 6.8957 | DL4: 4010.94805 | DM4: 72.85466 | DN4: 0 | DO4: 3955.88938 | DP4: 26146.76879 | DQ4: 16598.51481 | DR4: 9548.25398 | DS4: 34.42581 | DT4: 45.15189 | DU4: 85 | DW4: 37.11574 | DX4: 40.36511 | DY4: 40.36511 | EE4: 498
A5: 9 | B5: Alavieska | C5: 2447 | D5: 22 | E5: 29.08223995 | F5: 44.42583121 | G5: 42.88607395 | H5: 7551.13969 | I5: 71.87193602 | J5: 17797.69385 | K5: 35441.33862 | L5: 3.83939 | M5: -17639.80538 | N5: 9070.38666 | O5: 11441.82046 | P5: 362.04586 | Q5: 49.85654 | R5: -187.12994 | S5: 2997.46112 | T5: 1173.77602 | U5: 0 | V5: 1823.6851 | W5: -2.43979 | X5: 1.08357 | Y5: -0.0266 | Z5: -0.61714 | AA5: 1819.518 | AB5: 5512.28185 | AC5: 3028.84762 | AD5: -2380.21517 | AE5: 6.83736 | AF5: 66.48421 | AG5: -181.2 | AH5: -54.92623 | AI5: 963.8 | AJ5: -0.99478 | AK5: 721.95402 | AL5: 13563.9188 | AM5: 2458.34587 | AN5: 11105.57293 | AO5: 231.29587 | AP5: 29.53908 | AQ5: 47 | AR5: 2437 | AS5: 9.36 | AT5: 6.76928843 | AU5: 77.96195009 | AV5: 55.38365133 | AW5: 5316.22705 | AX5: 136.6523848 | AY5: 3988.91765 | AZ5: 11747.9106 | BA5: 12.06624 | BB5: -7746.92671 | BC5: 4923.71956 | BD5: 4520.22015 | BE5: 30.93572 | BF5: 243.79505 | BG5: 186.37254 | BH5: 1670.52621 | BI5: 1247.41443 | BJ5: -10.54 | BK5: 412.57178 | BL5: 1.29386 | BM5: 3.58458 | BN5: 0 | BO5: 0 | BP5: 410.28106 | BQ5: 5893.37953 | BR5: 1643.98483 | BS5: 1982.62184 | BT5: 25.14774 | BU5: 47.23636 | BV5: 6.3 | BW5: -39 | BX5: 0 | BY5: -1998.88193 | BZ5: -266.25291 | CA5: 9042.18649 | CB5: 15.5 | CC5: 9026.68649 | CD5: 237.9 | CE5: 58.325 | CF5: 184 | CG5: 2410 | CH5: 9.3 | CI5: 6.299359203 | CJ5: 99.24231972 | CK5: 53.31873414 | CL5: 6205.32199 | CM5: 177.5760637 | CN5: 2908.76997 | CO5: 10510.11701 | CP5: 8.98973 | CQ5: -7592.35731 | CR5: 4857.36064 | CS5: 4529.96615 | CT5: 59.01354 | CU5: 332.95154 | CV5: 288.59623 | CW5: 1809.62771 | CX5: 1094.72009 | CY5: 0 | CZ5: 714.90762 | DA5: -1.79548 | DB5: 0.777 | DC5: 0 | DD5: 0 | DE5: 712.72364 | DF5: 6793.61774 | DG5: 1797.02287 | DH5: 2682.50903 | DI5: 423.64403 | DJ5: 63.78657 | DK5: 1071.3 | DL5: 7.175 | DM5: -1366.575 | DN5: 1775.19588 | DO5: -398.05556 | DP5: 10887.28237 | DQ5: 0 | DR5: 10887.28237 | DS5: 548.6 | DT5: 92.297 | DU5: 141 | DW5: 121.17481 | DX5: 81.30789 | DY5: 80.2035 | EE5: 2732
A6: 10 | B6: Alavus | C6: 11102 | D6: 21.25 | E6: 0.8515586745 | F6: 65.55525544 | G6: 34.03376803 | H6: 30658.56205 | I6: 61.99190321 | J6: 83034.93994 | K6: 158446.1222 | L6: 578.37411 | M6: -74832.80814 | N6: 37647.46322 | O6: 45138.767 | P6: 35.01456 | Q6: 534.14822 | R6: -844.76071 | S6: 6609.52771 | T6: 8271.55079 | U6: 0 | V6: -1662.02308 | W6: 19.38 | X6: 14.48464 | Y6: -34.45506 | Z6: 28.14287 | AA6: -1663.43991 | AB6: 23149.48238 | AC6: 5787.06869 | AD6: -11838.00359 | AE6: 463.78229 | AF6: 468.60924 | AG6: 251.50909 | AH6: -7854.79331 | AI6: 11399.4247 | AJ6: -1212.14319 | AK6: -5118.54337 | AL6: 89987.11078 | AM6: 81178.58726 | AN6: 8808.52352 | AO6: 1737.18935 | AP6: 2013.722 | AQ6: 206 | AR6: 10933 | AS6: 8.61 | AT6: 0.830388928 | AU6: 177.6620808 | AV6: 36.25274496 | AW6: 30138.60622 | AX6: 160.2081371 | AY6: 18086.03492 | AZ6: 44951.00135 | BA6: 661.18295 | BB6: -26203.78348 | BC6: 20754.29066 | BD6: 12378.599 | BE6: 58.17233 | BF6: 1617.72367 | BG6: 1447.02037 | BH6: 6816.57521 | BI6: 7360.66967 | BJ6: -221.17342 | BK6: -765.26788 | BL6: 10 | BM6: 13.1194 | BN6: -13.438 | BO6: 2.98532 | BP6: -778.83996 | BQ6: 23125.21512 | BR6: 5340.00005 | BS6: 11953.5674 | BT6: 884.25894 | BU6: 2762.90714 | BV6: 102.04414 | BW6: -8539.32274 | BX6: 13317.0988 | BY6: -421.94793 | BZ6: -2966.40127 | CA6: 79302.65598 | CB6: 72305.71761 | CC6: 6996.93837 | CD6: 1659.42162 | CE6: 1450.861 | CF6: 199 | CG6: 10780 | CH6: 9.6 | CI6: 1.143803479 | CJ6: 163.2176466 | CK6: 38.31370503 | CL6: 25707.29834 | CM6: 153.7388237 | CN6: 17134.90929 | CO6: 43607.42176 | CP6: 95.14008 | CQ6: -26377.37239 | CR6: 22573.23774 | CS6: 12813.03094 | CT6: 45.81911 | CU6: 1859.23712 | CV6: 989.8352 | CW6: 8185.31348 | CX6: 6806.70056 | CY6: 0 | CZ6: 1378.61292 | DA6: 0 | DB6: 11.13602 | DC6: -20.72 | DD6: 11.10548 | DE6: 1363.43039 | DF6: 24599.67746 | DG6: 7850.57187 | DH6: 7594.12391 | DI6: 316.01853 | DJ6: 856.53048 | DK6: 129.94927 | DL6: 6922.47301 | DM6: 217.6 | DN6: 2434.28406 | DO6: 1428.99697 | DP6: 75246.87841 | DQ6: 65800.71822 | DR6: 9446.16019 | DS6: 1648.30679 | DT6: 1332.73 | DU6: 137 | DW6: 410.82267 | DX6: 278.02803 | DY6: 278.02813 | EC6: 545 | EE6: 1299
A7: 16 | B7: Asikkala | C7: 8014 | D7: 20.75 | E7: 19.17920393 | F7: 33.1639151 | G7: 53.9558952 | H7: 5604.30598 | I7: 16.99269066 | J7: 48764.51106 | K7: 102135.3152 | L7: -16.53305 | M7: -53387.33715 | N7: 33560.07223 | O7: 25532.79372 | P7: -19.52248 | Q7: 58.84365 | R7: 495.80899 | S7: 6122.97166 | T7: 3580.57043 | U7: -13.67212 | V7: 2528.72911 | W7: -0.52194 | X7: -0.00028 | Y7: -4.43509 | Z7: 0.69516 | AA7: 2524.46752 | AB7: 23193.11922 | AC7: 6780.35463 | AD7: -17787.58663 | AE7: 83.22597 | AF7: 121.61186 | AG7: 14.3745 | AH7: -263.47501 | AI7: 1598.4 | AJ7: 5076.28717 | AK7: -10802.39416 | AL7: 20242.09446 | AM7: 10208.17641 | AN7: 10033.91805 | AO7: 68.60202 | AP7: 16438.07727 | AQ7: 146 | AR7: 7968 | AS7: 8.11 | AT7: 9.125060223 | AU7: 57.64572061 | AV7: 66.19909761 | AW7: 2557.03325 | AX7: 20.51228522 | AY7: 8786.03143 | AZ7: 31668.3443 | BA7: 4.28627 | BB7: -22878.0266 | BC7: 18088.48884 | BD7: 12731.76812 | BE7: 243.69968 | BF7: 355.02101 | BG7: -6.31393 | BH7: 7824.5951 | BI7: 3728.28354 | BJ7: -2.24735 | BK7: 4094.06421 | BL7: -1.04226 | BM7: 0 | BN7: -52.9306 | BO7: 0 | BP7: 4040.09135 | BQ7: 27444.24481 | BR7: 8510.09003 | BS7: 12941.977 | BT7: 480.54324 | BU7: 4725.95398 | BV7: 0 | BW7: -541.36936 | BX7: 0 | BY7: 685.26984 | BZ7: 774.61025 | CA7: 14864.74202 | CB7: 2048.34551 | CC7: 12816.39651 | CD7: 60.16602 | CE7: 762.78575 | CF7: 82 | CG7: 7889 | CH7: 8.1 | CI7: 5.530754659 | CJ7: 76.3967006 | CK7: 61.39794873 | CL7: 2785.24918 | CM7: 23.20597593 | CN7: 8829.36466 | CO7: 31785.78685 | CP7: 3.72051 | CQ7: -22952.70169 | CR7: 17755.13328 | CS7: 10340.96656 | CT7: 44.81221 | CU7: 501.58151 | CV7: 93.73504 | CW7: 4780.36391 | CX7: 4506.1731 | CY7: -3.0708 | CZ7: 272.65541 | DA7: -0.9869 | DB7: 0 | DC7: -27.90105 | DD7: 0 | DE7: 243.76746 | DF7: 27688.01227 | DG7: 4885.79713 | DH7: 10973.83335 | DI7: 67.79464 | DJ7: 159.73737 | DK7: 0 | DL7: 453.432 | DM7: 39.9 | DN7: 5377.03549 | DO7: -5860.5042 | DP7: 19828.24551 | DQ7: 1634.81351 | DR7: 18193.432 | DS7: 60.16602 | DT7: 826.70562 | DU7: 191 | DW7: 0 | DX7: 0 | DY7: 0 | EE7: 0
A8: 18 | B8: Askola | C8: 4763 | D8: 21.5 | E8: 1.408331794 | F8: 68.78227253 | G8: 34.34340921 | H8: 10351.80898 | I8: 72.26928872 | J8: 19409.22655 | K8: 47234.52904 | L8: -175.72784 | M8: -28001.03033 | N8: 22920.38747 | O8: 8769.343 | P8: 19.84095 | Q8: 233.04207 | R8: -252.34681 | S8: 3223.15221 | T8: 2154.83716 | U8: 0 | V8: 1068.31505 | W8: -128.66481 | X8: 11.68155 | Y8: 0 | Z8: 0.57531 | AA8: 928.544 | AB8: 7338.88599 | AC8: 3029.1271 | AD8: -1902.26423 | AE8: 5.18036 | AF8: 208.99599 | AG8: 2.35828 | AH8: -2221.06306 | AI8: 462.17065 | AJ8: -1010.21446 | AK8: 1341.03922 | AL8: 28251.46913 | AM8: 21556.78078 | AN8: 6694.68835 | AO8: 0 | AP8: 2779.01591 | AQ8: 180 | AR8: 4700 | AS8: 8.86 | AT8: 1.259786264 | AU8: 110.4652062 | AV8: 47.23202917 | AW8: 8489.0091 | AX8: 123.4041309 | AY8: 8450.64538 | AZ8: 21191.74986 | BA8: -73.28383 | BB8: -12814.38831 | BC8: 11859.32551 | BD8: 3522.418 | BE8: 62.03779 | BF8: 599.36077 | BG8: 330.85979 | BH8: 2360.89201 | BI8: 1905.62114 | BJ8: 0 | BK8: 455.27087 | BL8: -4.96424 | BM8: 18.41584 | BN8: 0 | BO8: 0 | BP8: 431.89079 | BQ8: 13359.79889 | BR8: 2285.65732 | BS8: 1236.04994 | BT8: -0.9936 | BU8: 96.3966 | BV8: 0 | BW8: -1750.4448 | BX8: 0 | BY8: -592.21504 | BZ8: 1145.01038 | CA8: 22892.62717 | CB8: 16937.80932 | CC8: 5954.81785 | CD8: 0 | CE8: 1008.55607 | CF8: 232 | CG8: 4651 | CH8: 8.9 | CI8: 1.284958094 | CJ8: 130.445961 | CK8: 41.86572558 | CL8: 9747.52905 | CM8: 120.5143252 | CN8: 8646.57405 | CO8: 21763.06362 | CP8: 111.79099 | CQ8: -13004.69858 | CR8: 11940.99276 | CS8: 3110.159 | CT8: 17.19843 | CU8: 665.92851 | CV8: 701.76071 | CW8: 2099.48381 | CX8: 2509.00245 | CY8: 0 | CZ8: -409.51864 | DA8: 0.43931 | DB8: 48.46422 | DC8: 0 | DD8: 0 | DE8: -433.31144 | DF8: 12804.81307 | DG8: 2094.2089 | DH8: 4905.23439 | DI8: 0 | DJ8: 56.1221 | DK8: 0 | DL8: 1486.21352 | DM8: 6000 | DN8: -497.22955 | DO8: -2754.90339 | DP8: 26861.43582 | DQ8: 21251.7843 | DR8: 5609.65152 | DS8: 310.27365 | DT8: 1053.5093 | DU8: 242 | DW8: 1921.8169 | DX8: 0 | DY8: 1754.34006 | EE8: 2000
A9: 19 | B9: Aura | C9: 3965 | D9: 21.5 | E9: 1.53546982 | F9: 46.59995457 | G9: 35.09749691 | H9: 3672.933 | I9: 32.77154779 | J9: 13741.87658 | K9: 36512.07054 | L9: -5.25918 | M9: -22775.45314 | N9: 16693.9332 | O9: 7963.96557 | P9: 6.37926 | Q9: 94.00658 | R9: 48.15696 | S9: 1842.97527 | T9: 1429.92283 | U9: 0 | V9: 413.05244 | W9: -83.82663 | X9: 0.14141 | Y9: -20.3234 | Z9: -38.76815 | AA9: 269.99285 | AB9: 5776.96694 | AC9: 1824.21921 | AD9: -3111.08098 | AE9: 67.2314 | AF9: 43.88791 | AG9: 0 | AH9: -1167.48474 | AI9: 3976.33722 | AJ9: -2237.57675 | AK9: -1175.74246 | AL9: 11852.53199 | AM9: 7520.60757 | AN9: 4331.92442 | AO9: 0 | AP9: 10436.17443 | AQ9: 244 | AR9: 3961 | AS9: 8.86 | AT9: 1.325594632 | AU9: 67.99755485 | AV9: 46.0832971 | AW9: 1156.865 | AX9: 24.65706948 | AY9: 3715.41811 | AZ9: 14438.43444 | BA9: -0.27964 | BB9: -10723.29597 | BC9: 8905.64087 | BD9: 3574.93694 | BE9: 4.66631 | BF9: 128.72055 | BG9: 13.78337 | BH9: 1647.01097 | BI9: 1015.92416 | BJ9: 85.93582 | BK9: 717.02263 | BL9: -94.23782 | BM9: 0.02199 | BN9: -21.398 | BO9: -43.0252 | BP9: 558.33962 | BQ9: 6345.96926 | BR9: 1638.90201 | BS9: 1332.75368 | BT9: 38.19 | BU9: 567.03695 | BV9: -0.59325 | BW9: -1210.85301 | BX9: 0 | BY9: 431.21996 | BZ9: 911.37528 | CA9: 8378.33714 | CB9: 5287.41127 | CC9: 3090.92587 | CD9: 0 | CE9: 9518.752 | CF9: 254 | CG9: 3966 | CH9: 8.9 | CI9: 0.5889832746 | CJ9: 81.69638095 | CK9: 42.44401787 | CL9: 1239.57239 | CM9: 27.90470566 | CN9: 3149.63076 | CO9: 13822.19631 | CP9: 0.34555 | CQ9: -10672.22 | CR9: 8821.37015 | CS9: 2547.85289 | CT9: 3.27289 | CU9: 177.10189 | CV9: 43.7189 | CW9: 566.89293 | CX9: 1166.08202 | CY9: 0.452 | CZ9: -582.17147 | DA9: -93.98 | DB9: 0.62546 | DC9: -17.144 | DD9: -32.88979 | DE9: -726.49799 | DF9: 4601.22723 | DG9: 503.2007 | DH9: 1084.7932 | DI9: 54.615 | DJ9: 169.18135 | DK9: 0 | DL9: 1086.08308 | DM9: 2000 | DN9: -2.46486 | DO9: -357.79615 | DP9: 9289.78922 | DQ9: 4756.88375 | DR9: 4532.90547 | DS9: 0 | DT9: 8919.131 | DU9: 279 | DW9: 14.42187 | DX9: 10.02498 | DY9: 10.02498 | EE9: 773
A10: 46 | B10: Enonkoski | C10: 1341 | D10: 21 | E10: 56.48350054 | F10: 20.67083847 | G10: 71.05868724 | H10: 7132.81911 | I10: 111.4671567 | J10: 11315.89449 | K10: 21512.98008 | L10: 0 | M10: -10197.08559 | N10: 5157.24292 | O10: 6663.57336 | P10: 14.00954 | Q10: 29.10582 | R10: 66.64488 | S10: 1675.27929 | T10: 811.87176 | U10: 26.98231 | V10: 890.38984 | W10: 0 | X10: 0 | Y10: 0.79634 | Z10: 0 | AA10: 891.18618 | AB10: 10315.152 | AC10: 1679.94893 | AD10: -1768.98341 | AE10: 1.04718 | AF10: 4.44038 | AG10: -1.66763 | AH10: -1.0691 | AI10: 228.52073 | AJ10: 177.61217 | AK10: -83.54692 | AL10: 1865.18342 | AM10: 1311.37984 | AN10: 553.80358 | AO10: 7 | AP10: 396.45865 | AQ10: 44 | AR10: 1320 | AS10: 8.36 | AT10: 14.70872217 | AU10: 14.48672354 | AV10: 85.87712108 | AW10: 6749.12039 | AX10: 337.0839541 | AY10: 2025.14524 | AZ10: 6369.86215 | BA10: 0 | BB10: -4344.71691 | BC10: 2873.99038 | BD10: 2543.76634 | BE10: 112.42671 | BF10: 1.49925 | BG10: 129.35145 | BH10: 1313.31872 | BI10: 659.04063 | BJ10: 11.1041 | BK10: 665.38219 | BL10: 0 | BM10: 0.43996 | BN10: 13.4792 | BO10: 0 | BP10: 678.42143 | BQ10: 10714.96054 | BR10: 1306.82254 | BS10: 654.6607 | BT10: 0 | BU10: 14.56395 | BV10: -64.79291 | BW10: -87.89111 | BX10: 30.75033 | BY10: 0 | BZ10: 666.72579 | CA10: 90.58827 | CB10: 74.46786 | CC10: 16.12041 | CD10: 71.79291 | CE10: 75.35176 | CF10: 80 | CG10: 1288 | CH10: 8.4 | CI10: 132.309553 | CJ10: 14.52577957 | CK10: 86.18915951 | CL10: 7589.88405 | CM10: 372.4671195 | CN10: 2213.15124 | CO10: 6790.17991 | CP10: 0 | CQ10: -4577.02867 | CR10: 2934.26801 | CS10: 2589.77547 | CT10: 136.50432 | CU10: 1.83152 | CV10: 151.54027 | CW10: 1233.22788 | CX10: 777.6965 | CY10: 0 | CZ10: 455.53138 | DA10: -1.01028 | DB10: 2.34828 | DC10: 22.84152 | DD10: 0 | DE10: 476.18848 | DF10: 11191.14901 | DG10: 1225.32635 | DH10: 484.30837 | DI10: 0 | DJ10: 49.05847 | DK10: 71.79291 | DL10: 7.5031 | DM10: -19.43664 | DN10: 0 | DO10: 790.07645 | DP10: 63.64853 | DQ10: 54.92163 | DR10: 8.7269 | DS10: 0 | DT10: 82.3795 | DU10: 72 | DW10: 18.52215 | DX10: 8.98972 | DY10: 10 | EE10: 108
A11: 47 | B11: Enontekiö | C11: 1811 | D11: 21.25 | E11: 5.229248247 | F11: 49.66962843 | G11: 61.49483504 | H11: 10625.58972 | I11: 130.9661577 | J11: 9062.66857 | K11: 25408.87779 | L11: -13.68226 | M11: -16359.89148 | N11: 7179.49726 | O11: 9856.307 | P11: 5.22212 | Q11: 49.65224 | R11: 2506.0872 | S11: 3137.56986 | T11: 1419.12894 | U11: 0.13033 | V11: 1718.57125 | W11: 0.47181 | X11: 0.07649 | Y11: 1e-05 | Z11: 0.92753 | AA11: 1719.89411 | AB11: 12766.42233 | AC11: 2691.0459 | AD11: -3215.1745 | AE11: 159.71143 | AF11: 434.24691 | AG11: 0 | AH11: -559.84686 | AI11: 1041.66942 | AJ11: -135 | AK11: 69.82974 | AL11: 8982.44876 | AM11: 5139.10408 | AN11: 3843.34468 | AO11: 31.70778 | AP11: 310.365 | AQ11: 13 | AR11: 1771 | AS11: 8.61 | AT11: 3.556214434 | AU11: 45.5161641 | AV11: 77.22885099 | AW11: 7114.47797 | AX11: 166.6968172 | AY11: 5092.24692 | AZ11: 12442.47296 | BA11: -3.82343 | BB11: -7354.04947 | BC11: 4629.75559 | BD11: 3700.08894 | BE11: 5.75618 | BF11: 24.97868 | BG11: 680.84629 | BH11: 1637.41885 | BI11: 854.71648 | BJ11: -0.00955 | BK11: 782.69282 | BL11: 0 | BM11: 2.36145 | BN11: 1e-05 | BO11: 0 | BP11: 780.33138 | BQ11: 13670.5569 | BR11: 1431.11004 | BS11: 1987.10673 | BT11: 258.64133 | BU11: 209.3875 | BV11: 1.70778 | BW11: -442.484 | BX11: 300 | BY11: -3400 | BZ11: -87.96786 | CA11: 3059.09585 | CB11: 2560.42219 | CC11: 498.67366 | CD11: 30 | CE11: 29.75993 | CF11: 99 | CG11: 1762 | CH11: 8.6 | CI11: 0.9934302258 | CJ11: 64.74066709 | CK11: 71.98939828 | CL11: 3650.70758 | CM11: 51.82274477 | CN11: 4385.69419 | CO11: 12647.16635 | CP11: -9.37448 | CQ11: -8270.84664 | CR11: 4489.13344 | CS11: 3438.565 | CT11: 148.09149 | CU11: 94.97276 | CV11: 644.6757 | CW11: 354.64623 | CX11: 833.38226 | CY11: 0 | CZ11: -478.73603 | DA11: -1.74 | DB11: 17.5825 | DC11: 1e-05 | DD11: 0 | DE11: -489.26727 | DF11: 12891.94227 | DG11: 141.5633 | DH11: 11966.89515 | DI11: 5148.94493 | DJ11: 152.8168 | DK11: -1.478 | DL11: 357.61966 | DM11: 2715.612 | DN11: -141.054 | DO11: -6523.57012 | DP11: 5276.03419 | DQ11: 4918.27453 | DR11: 357.75966 | DS11: 30 | DT11: 60.41413 | DU11: 275 | DW11: 1739.56274 | DX11: 1505.46453 | DY11: 1507.20453 | EE11: 312
A12: 49 | B12: Espoo | C12: 305274 | D12: 18 | E12: 1.476764144 | F12: 145.4899909 | G12: 38.41856225 | H12: 1660271.556 | I12: 159.2879913 | J12: 1302140.217 | K12: 2890664.264 | L12: -5194.73493 | M12: -1593718.782 | N12: 1850145.547 | O12: 233835.4213 | P12: 11102.23983 | Q12: 43976.16381 | R12: -19692.32119 | S12: 437695.9419 | T12: 348501.3781 | U12: 136732.26 | V12: 225926.8238 | W12: 2169.8645 | X12: 1498.04365 | Y12: -3253.98959 | Z12: 4741.82962 | AA12: 228086.4847 | AB12: 1001713.687 | AC12: 377990.4103 | AD12: -536892.7867 | AE12: 14994.35678 | AF12: 201209.0085 | AG12: 2849.8689 | AH12: -282191.0903 | AI12: 232970.349 | AJ12: 55308.02833 | AK12: 57300.98885 | AL12: 4396400.935 | AM12: 3887934.151 | AN12: 508466.7837 | AO12: 197142.3653 | AP12: 964977.6372 | AQ12: 26 | AR12: 314024 | AS12: 5.36 | AT12: 2.439833441 | AU12: 193.6958508 | AV12: 43.95380209 | AW12: 1403823.862 | AX12: 225.6933112 | AY12: 800948.2054 | AZ12: 1579872.61 | BA12: 3184.20426 | BB12: -775740.2006 | BC12: 911387.4903 | BD12: 427492.3196 | BE12: 16240.95743 | BF12: 78310.5905 | BG12: 55118.77021 | BH12: 556188.7464 | BI12: 361111.0272 | BJ12: 0 | BK12: 195077.7192 | BL12: 48.34913 | BM12: -1341.84703 | BN12: 1234.65939 | BO12: 7985.00488 | BP12: 205687.5796 | BQ12: 1215298.339 | BR12: 479727.5353 | BS12: 375188.3392 | BT12: 6333.06183 | BU12: 77793.04982 | BV12: 2442.98892 | BW12: -181747.8735 | BX12: 114643.8831 | BY12: -3876.19672 | BZ12: 188665.3078 | CA12: 3854006.55 | CB12: 3658598.793 | CC12: 195407.7566 | CD12: 194724.0641 | CE12: 917413.847 | CF12: 6 | CG12: 320931 | CH12: 5.3 | CI12: 1.779103295 | CJ12: 197.9129486 | CK12: 44.83440773 | CL12: 1331735.941 | CM12: 201.8619131 | CN12: 762431.8762 | CO12: 1644165.749 | CP12: 2269.90928 | CQ12: -879463.9632 | CR12: 829073.4525 | CS12: 466234.3625 | CT12: 14817.62541 | CU12: 84190.6026 | CV12: 65977.1232 | CW12: 412447.9978 | CX12: 377110.0123 | CY12: 0 | CZ12: 35337.98553 | DA12: 24.0948 | DB12: -1463.56158 | DC12: -32.44 | DD12: 8910.41234 | DE12: 44971.83346 | DF12: 1250643.586 | DG12: 402100.9962 | DH12: 418462.2669 | DI12: 9262.54262 | DJ12: 10856.24687 | DK12: 5531.5826 | DL12: 194960.4741 | DM12: 137397.94 | DN12: -13880.96388 | DO12: 3757.51884 | DP12: 3782563.052 | DQ12: 3585241.171 | DR12: 197321.8802 | DS12: 189201.012 | DT12: 955917.3741 | DU12: 21 | DW12: 647247.3583 | DX12: 665956.7428 | DY12: 671188.0846 | EE12: 96757
A13: 50 | B13: Eura | C13: 11276 | D13: 21 | E13: 1.180786911 | F13: 65.61158616 | G13: 29.39616163 | H13: 4862.43491 | I13: 14.01289029 | J13: 41041.61849 | K13: 116085.2883 | L13: 0 | M13: -75043.66982 | N13: 48201.62489 | O13: 30662.84087 | P13: 6.01826 | Q13: 410.24447 | R13: 99.61448 | S13: 3516.18421 | T13: 6346.81789 | U13: 0 | V13: -2830.63368 | W13: -26.80568 | X13: 19.91529 | Y13: -30.84293 | Z13: -7.62642 | AA13: -2915.824 | AB13: 617.60348 | AC13: 3548.05107 | AD13: -6999.50058 | AE13: 42.46127 | AF13: 277.91459 | AG13: -112.71462 | AH13: -2915.01993 | AI13: 699.75083 | AJ13: -118.15645 | AK13: -3131.07365 | AL13: 56441.63377 | AM13: 38944.4092 | AN13: 17497.22457 | AO13: 122.95413 | AP13: 1141.395 | AQ13: 273 | AR13: 11184 | AS13: 8.36 | AT13: 1.996477964 | AU13: 128.5412751 | AV13: 31.95657639 | AW13: 3405.0881 | AX13: 23.28448386 | AY13: 13423.13444 | AZ13: 42867.32276 | BA13: 0 | BB13: -29444.18832 | BC13: 26143.10326 | BD13: 10603.65333 | BE13: 25.6955 | BF13: 1150.3295 | BG13: 218.46991 | BH13: 6396.40418 | BI13: 5907.7361 | BJ13: 0 | BK13: 488.66808 | BL13: -32.97673 | BM13: 15.73125 | BN13: 40.35838 | BO13: 11.13193 | BP13: 491.45041 | BQ13: 1558.30181 | BR13: 6325.04161 | BS13: 6485.23019 | BT13: 0 | BU13: 306.72009 | BV13: 55.94634 | BW13: -2629.69403 | BX13: 919.62117 | BY13: 4175.45628 | BZ13: 146.53151 | CA13: 54034.35541 | CB13: 32688.3172 | CC13: 21346.03821 | CD13: 50 | CE13: 3857.528 | CF13: 217 | CG13: 11084 | CH13: 9 | CI13: 1.419019368 | CJ13: 143.449038 | CK13: 29.98982335 | CL13: 3760.17546 | CM13: 23.47442015 | CN13: 13072.32151 | CO13: 42667.1858 | CP13: 0 | CQ13: -29594.86429 | CR13: 27288.10517 | CS13: 8631.22091 | CT13: 46.93421 | CU13: 1539.9062 | CV13: -92.67549 | CW13: 4738.81431 | CX13: 5861.15779 | CY13: 0 | CZ13: -1122.34348 | DA13: 124.58333 | DB13: 9.26064 | DC13: 14.41525 | DD13: -14.06851 | DE13: -1002.04373 | DF13: 434.04626 | DG13: 4429.56969 | DH13: 11030.45729 | DI13: 0 | DJ13: 175.67027 | DK13: -104.07135 | DL13: 2884.78359 | DM13: 7500.89952 | DN13: 2895.073 | DO13: -6425.21733 | DP13: 60958.82026 | DQ13: 36944.59409 | DR13: 24014.22617 | DS13: 65 | DT13: 1871.62903 | DU13: 249 | DW13: 2648.10999 | DX13: 2648.10999 | DY13: 2648.11083 | EE13: 854
A14: 51 | B14: Eurajoki | C14: 9211 | D14: 18 | E14: 2.922726301 | F14: 26.74206907 | G14: 74.53709738 | H14: 31590.74409 | I14: 94.37209587 | J14: 48592.5225 | K14: 116093.0116 | L14: 0 | M14: -67500.4891 | N14: 59477.31155 | O14: 14126.654 | P14: 33.43707 | Q14: 127.8112 | R14: -69.28374 | S14: 5939.81858 | T14: 5074.45642 | U14: 0 | V14: 865.36216 | W14: 0.511 | X14: 2.19467 | Y14: 2.52768 | Z14: 0.21759 | AA14: 866.42376 | AB14: 78148.11548 | AC14: 6214.98461 | AD14: -3654.19873 | AE14: 66.6185 | AF14: 71.79942 | AG14: 0 | AH14: -1948.2059 | AI14: 909.37667 | AJ14: -3.1119 | AK14: 2699.2038 | AL14: 13757.90134 | AM14: 12160.93086 | AN14: 1596.97048 | AO14: 0 | AP14: 3295.81542 | AQ14: 196 | AR14: 9143 | AS14: 5.36 | AT14: 4.799682551 | AU14: 37.55911866 | AV14: 85.1518523 | AW14: 23403.89688 | AX14: 165.3359001 | AY14: 8738.80835 | AZ14: 37980.67909 | BA14: 0 | BB14: -29241.87074 | BC14: 40144.78195 | BD14: -3955.507 | BE14: 67.19309 | BF14: 300.62432 | BG14: 621.3631 | BH14: 7335.33608 | BI14: 4333.46672 | BJ14: 0 | BK14: 3001.86936 | BL14: 20.30061 | BM14: 0 | BN14: -14.19812 | BO14: 0 | BP14: 3007.97185 | BQ14: 81278.18029 | BR14: 7925.73718 | BS14: 11474.10257 | BT14: 647.0046 | BU14: 436.56251 | BV14: 0 | BW14: -1290.30598 | BX14: 0 | BY14: 0 | BZ14: -2464.79828 | CA14: 9009.26446 | CB14: 7861.74283 | CC14: 1147.52163 | CD14: 0 | CE14: 389.38769 | CF14: 139 | CG14: 9052 | CH14: 5.4 | CI14: 4.806600521 | CJ14: 34.4060896 | CK14: 86.56777031 | CL14: 22072.6785 | CM14: 168.8351274 | CN14: 8125.71312 | CO14: 38128.54211 | CP14: 0 | CQ14: -30002.82899 | CR14: 40327.00691 | CS14: -4672.054 | CT14: 52.34532 | CU14: 333.31551 | CV14: 1412.64454 | CW14: 6783.79827 | CX14: 6113.55166 | CY14: 0 | CZ14: 670.24661 | DA14: 6.17315 | DB14: 0 | DC14: -6.17315 | DD14: 0 | DE14: 670.24661 | DF14: 81991.62122 | DG14: 6639.93909 | DH14: 6696.43159 | DI14: 388.3 | DJ14: 202.85348 | DK14: 0 | DL14: 1147.38041 | DM14: 0 | DN14: 5.3097 | DO14: 534.66098 | DP14: 7729.89447 | DQ14: 6761.66975 | DR14: 968.22472 | DS14: 0 | DT14: 493.65753 | DU14: 142 | DW14: 5.43875 | DX14: -0.00011 | DY14: -0.00011 | EE14: 335
A15: 52 | B15: Evijärvi | C15: 2346 | D15: 22.5 | E15: 2.415952865 | F15: 58.25562518 | G15: 38.28217525 | H15: 9033.63626 | I15: 113.7357197 | J15: 8343.43816 | K15: 26272.49016 | L15: 2.49411 | M15: -17926.55789 | N15: 9163.04283 | O15: 10579.25332 | P15: 77.59028 | Q15: 99.76199 | R15: -129.23061 | S15: 1664.33594 | T15: 1230.63534 | U15: 0 | V15: 433.7006 | W15: -11.981 | X15: 6.47602 | Y15: 0.93764 | Z15: 6.03542 | AA15: 422.21664 | AB15: 1829.79594 | AC15: 1632.10255 | AD15: -1529.55798 | AE15: 198.09233 | AF15: 1.48452 | AG15: 15.36544 | AH15: -630.42524 | AI15: 5307.40695 | AJ15: -4300 | AK15: 302.12142 | AL15: 13191.64461 | AM15: 7132.51838 | AN15: 6059.12623 | AO15: 24.32737 | AP15: 1071.98937 | AQ15: 166 | AR15: 2292 | AS15: 9.86 | AT15: 3.137226551 | AU15: 83.82354825 | AV15: 50.03375075 | AW15: 8163.36049 | AX15: 238.2405635 | AY15: 2734.39614 | AZ15: 10080.97401 | BA15: 0 | BB15: -7346.57787 | BC15: 5217.23935 | BD15: 4359.48991 | BE15: 69.79239 | BF15: 258.09943 | BG15: 242.62289 | BH15: 2284.46724 | BI15: 1012.39067 | BJ15: 0 | BK15: 1272.07657 | BL15: -6.72 | BM15: 4.9012 | BN15: 0 | BO15: -0.00815 | BP15: 1260.44722 | BQ15: 3175.91472 | BR15: 2267.39701 | BS15: 1372.75055 | BT15: 55 | BU15: -3.49787 | BV15: 49.61545 | BW15: -552.35102 | BX15: 0 | BY15: -700 | BZ15: 946.14859 | CA15: 8848.25318 | CB15: 3822.85318 | CC15: 5025.4 | CD15: 0 | CE15: 1378.09603 | CF15: 79 | CG15: 2272 | CH15: 9.8 | CI15: 2.813903328 | CJ15: 77.67406249 | CK15: 56.43102139 | CL15: 8880.2006 | CM15: 277.9239416 | CN15: 2720.3047 | CO15: 10201.76023 | CP15: 0 | CQ15: -7481.45553 | CR15: 5540.49762 | CS15: 4102.62201 | CT15: 59.94541 | CU15: 281.99318 | CV15: 128.40559 | CW15: 2068.02192 | CX15: 871.48376 | CY15: 0 | CZ15: 1196.53816 | DA15: -2.9 | DB15: 4.18494 | DC15: 0 | DD15: 1.22103 | DE15: 1192.76672 | DF15: 4293.48333 | DG15: 2065.92945 | DH15: 497.13689 | DI15: 55 | DJ15: 4.19442 | DK15: 27.75108 | DL15: 553.15104 | DM15: 0 | DN15: 0 | DO15: 1627.98698 | DP15: 8322.85322 | DQ15: 3295.79656 | DR15: 5027.05666 | DS15: 0 | DT15: 1255.46936 | DU15: 87 | DW15: 42.92637 | DX15: 44.60617 | DY15: 44.60617 | EE15: 0
A16: 61 | B16: Forssa | C16: 16459 | D16: 20.5 | E16: 1.438571028 | F16: 56.69829636 | G16: 44.01435117 | H16: 33218.85805 | I16: 55.50497195 | J16: 80565.29578 | K16: 193987.1966 | L16: 1.98248 | M16: -113419.9183 | N16: 66370.21545 | O16: 55692.83933 | P16: 70.0217 | Q16: 721.31898 | R16: 272.31429 | S16: 8264.1535 | T16: 9608.28089 | U16: 0 | V16: -1344.12739 | W16: 5.47852 | X16: 4.90004 | Y16: 12.7458 | Z16: 112.30109 | AA16: -1218.50202 | AB16: 25801.77676 | AC16: 8178.46231 | AD16: -18199.11131 | AE16: 773.75 | AF16: 1282.42339 | AG16: 5.27707 | AH16: -5524.79074 | AI16: 5632.23762 | AJ16: 1354.2129 | AK16: -7964.47561 | AL16: 85309.39111 | AM16: 68817.30779 | AN16: 16492.08332 | AO16: 14.55278 | AP16: 9895.39378 | AQ16: 226 | AR16: 16469 | AS16: 7.86 | AT16: 1.761824133 | AU16: 95.66509205 | AV16: 54.42927202 | AW16: 22006.92214 | AX16: 89.78063399 | AY16: 30564.3748 | AZ16: 68946.99745 | BA16: 0.01554 | BB16: -38382.60711 | BC16: 35750.10859 | BD16: 18727.17104 | BE16: 85.42439 | BF16: 733.93774 | BG16: 153.33165 | BH16: 15599.49082 | BI16: 9758.71343 | BJ16: 0 | BK16: 5840.77739 | BL16: 1.7595 | BM16: 46.42236 | BN16: 23.29397 | BO16: 114.33144 | BP16: 5933.73994 | BQ16: 31809.52973 | BR16: 15434.44176 | BS16: 11097.28788 | BT16: 466.14 | BU16: 210.31117 | BV16: 0 | BW16: -8536.81083 | BX16: 1687.8 | BY16: 2581.50242 | BZ16: 5013.60505 | CA16: 67593.53784 | CB16: 53918.87659 | CC16: 13674.66125 | CD16: 0 | CE16: 7763.61748 | CF16: 91 | CG16: 16478 | CH16: 8.2 | CI16: 1.659577238 | CJ16: 91.17712989 | CK16: 57.21697286 | CL16: 26083.61104 | CM16: 107.5072258 | CN16: 29686.71038 | CO16: 72283.7352 | CP16: -3.92615 | CQ16: -42600.95097 | CR16: 35695.91773 | CS16: 16167.02073 | CT16: 330.73044 | CU16: 759.76129 | CV16: 167.06401 | CW16: 9000.02065 | CX16: 9715.02977 | CY16: 0 | CZ16: -715.00912 | DA16: 16.39044 | DB16: 111.96756 | DC16: 12.5578 | DD16: 118.57493 | DE16: -623.46973 | DF16: 31371.46165 | DG16: 7701.28196 | DH16: 10225.32226 | DI16: 385.19402 | DJ16: 14235.98956 | DK16: 0 | DL16: 5121.12314 | DM16: 673.1 | DN16: -2459.76998 | DO16: 12097.14328 | DP16: 60685.74472 | DQ16: 49470.85345 | DR16: 11214.89127 | DS16: 0 | DT16: 8658.5554 | DU16: 210 | DW16: 1104.71367 | DX16: 1079.64412 | DY16: 995.61914 | EE16: 105
A17: 69 | B17: Haapajärvi | C17: 6687 | D17: 22.5 | E17: 0.6165503126 | F17: 84.16110673 | G17: 23.66157217 | H17: 20587.06021 | I17: 63.77781684 | J17: 46976.45164 | K17: 95662.69077 | L17: -104.27178 | M17: -48790.51091 | N17: 27210.67466 | O17: 26782.003 | P17: 3.0125 | Q17: 436.77889 | R17: -1133.25108 | S17: 3635.14928 | T17: 4892.18058 | U17: 0 | V17: -1257.0313 | W17: -28.28417 | X17: 4.84983 | Y17: -0.1155 | Z17: -8.47373 | AA17: -1298.75453 | AB17: 1967.43879 | AC17: 3348.93815 | AD17: -13492.67686 | AE17: 39.17432 | AF17: 671.10212 | AG17: -249.6851 | AH17: -6167.594 | AI17: 17085.53448 | AJ17: -6970.08476 | AK17: -9433.46227 | AL17: 68291.52028 | AM17: 60054.73918 | AN17: 8236.7811 | AO17: 0.41627 | AP17: 1194.558 | AQ17: 217 | AR17: 6558 | AS17: 9.86 | AT17: 0.6523584529 | AU17: 208.5910534 | AV17: 22.51400467 | AW17: 24408.92861 | AX17: 156.3935246 | AY17: 16008.58544 | AZ17: 34261.43931 | BA17: -21.78301 | BB17: -18274.63688 | BC17: 16127.46361 | BD17: 6982.895 | BE17: 60.33766 | BF17: 938.38414 | BG17: 379.96912 | BH17: 4337.64437 | BI17: 4585.81252 | BJ17: 0 | BK17: -248.16815 | BL17: -330.02266 | BM17: 1.01492 | BN17: 0 | BO17: 147.93082 | BP17: -431.27491 | BQ17: 1719.41211 | BR17: 4241.02351 | BS17: 14745.76349 | BT17: 297.18954 | BU17: 275.50479 | BV17: 507.864 | BW17: -7149.23776 | BX17: 16392.52078 | BY17: 5539.68004 | BZ17: -9932.04565 | CA17: 72188.87517 | CB17: 57774.75669 | CC17: 14414.11848 | CD17: 0 | CE17: 664.642 | CF17: 193 | CG17: 6492 | CH17: 10.2 | CI17: 0.8939395781 | CJ17: 191.1921052 | CK17: 27.76961384 | CL17: 17821.714 | CM17: 115.5155575 | CN17: 17141.8312 | CO17: 33268.21314 | CP17: 0 | CQ17: -16126.38194 | CR17: 17631.94657 | CS17: 5452.707 | CT17: 100.00122 | CU17: 1798.01729 | CV17: 2158.52471 | CW17: 7418.78027 | CX17: 4513.03158 | CY17: 0 | CZ17: 2905.74869 | DA17: 0 | DB17: 11.83728 | DC17: -84.3397 | DD17: -2.9845 | DE17: 2812.50585 | DF17: 4064.17455 | DG17: 7250.01651 | DH17: 10575.06554 | DI17: 23.55235 | DJ17: 1384.14531 | DK17: 0 | DL17: 8512.2965 | DM17: 10567.74217 | DN17: -5777.97218 | DO17: -1917.35137 | DP17: 68466.34866 | DQ17: 59429.15336 | DR17: 9037.1953 | DS17: 0 | DT17: 664.22496 | DU17: 35 | DW17: 2733.35704 | DX17: 1107.6626 | DY17: 2342.59577 | EB17: 535 | EC17: 328 | EE17: 5902
A18: 71 | B18: Haapavesi | C18: 6591 | D18: 22 | E18: 0.8019102005 | F18: 80.16228542 | G18: 18.03849118 | H18: 16638.52901 | I18: 57.22007058 | J18: 37075.50847 | K18: 88306.35581 | L18: -61.83979 | M18: -51292.68712 | N18: 23605.29029 | O18: 31317.58969 | P18: 21.52097 | Q18: 599.63288 | R18: -451.83353 | S18: 2600.24742 | T18: 3713.18718 | U18: 0 | V18: -1112.93977 | W18: -11.37245 | X18: 112.70806 | Y18: 33.1853 | Z18: 16.22626 | AA18: -1187.60872 | AB18: -432.13752 | AC18: 2430.73087 | AD18: -8758.73443 | AE18: 5.84889 | AF18: 599.39025 | AG18: 0 | AH18: -3390.6896 | AI18: 7295.77937 | AJ18: 917.2993 | AK18: -5722.76442 | AL18: 57921.72397 | AM18: 45908.27643 | AN18: 12013.44754 | AO18: 0.40617 | AP18: 1144.93119 | AQ18: 261 | AR18: 6473 | AS18: 9.36 | AT18: 1.215655308 | AU18: 141.1419301 | AV18: 23.712764 | AW18: 16023.0914 | AX18: 137.9306719 | AY18: 12435.01059 | AZ18: 34721.78865 | BA18: 0 | BB18: -22286.77805 | BC18: 13523.57451 | BD18: 13333.18121 | BE18: 170.19067 | BF18: 1058.5882 | BG18: 696.89971 | BH18: 4378.47985 | BI18: 2363.02989 | BJ18: 0 | BK18: 2015.44996 | BL18: 3.54888 | BM18: -14.40766 | BN18: 23.926 | BO18: 23.02875 | BP18: 2080.36125 | BQ18: 1281.09414 | BR18: 4449.47931 | BS18: 2509.98784 | BT18: 51.33552 | BU18: 223.81565 | BV18: 22.82093 | BW18: -3413.95267 | BX18: 6314.93797 | BY18: -1984.09554 | BZ18: 2214.64263 | CA18: 48216.89909 | CB18: 38192.5481 | CC18: 10024.35099 | CD18: 0 | CE18: 514.40809 | CF18: 186 | CG18: 6365 | CH18: 9.4 | CI18: 0.985388562 | CJ18: 146.5410385 | CK18: 24.53768211 | CL18: 17444.31061 | CM18: 142.0953974 | CN18: 15715.74309 | CO18: 34584.66304 | CP18: 0 | CQ18: -18868.91995 | CR18: 13832.42945 | CS18: 9283.584 | CT18: 282.29284 | CU18: 1068.43708 | CV18: 319.84453 | CW18: 3780.79379 | CX18: 2879.04311 | CY18: 0 | CZ18: 901.75068 | DA18: 3.02918 | DB18: 93.76574 | DC18: 40.2801 | DD18: 23.78925 | DE18: 921.96634 | DF18: 2203.06049 | DG18: 3913.95382 | DH18: 2328.39528 | DI18: 104.77007 | DJ18: 409.6753 | DK18: -2584.7775 | DL18: 3852.69866 | DM18: 3088.4402 | DN18: 2557.88784 | DO18: 2100.00391 | DP18: 50010.52847 | DQ18: 36744.10343 | DR18: 13266.42504 | DS18: 255.03557 | DT18: 509.247 | DU18: 194 | DW18: 1243.77697 | DX18: 1073.66279 | DY18: 1070.63361 | EE18: 236
A19: 72 | B19: Hailuoto | C19: 960 | D19: 20.5 | E19: 2.40970268 | F19: 63.85948938 | G19: 49.41959502 | H19: 977.92322 | I19: 23.54278368 | J19: 5737.41396 | K19: 13183.82498 | L19: -18.11668 | M19: -7464.52769 | N19: 4233.37881 | O19: 4303.1975 | P19: 4.66811 | Q19: 24.52038 | R19: 0.11289 | S19: 1052.30924 | T19: 815.33065 | U19: 0 | V19: 236.97859 | W19: -0.78065 | X19: 1.16768 | Y19: -0.03302 | Z19: -0.76601 | AA19: 234.23124 | AB19: 6536.58449 | AC19: 945.80464 | AD19: -1521.1285 | AE19: 1.7135 | AF19: 141.17175 | AG19: 0 | AH19: -422.35202 | AI19: 1028.05268 | AJ19: -121.58795 | AK19: -432.43861 | AL19: 5065.54362 | AM19: 4584.62012 | AN19: 480.9235 | AO19: 0.11899 | AP19: 92.03999 | AQ19: 63 | AR19: 948 | AS19: 7.86 | AT19: 2.28557749 | AU19: 73.70746663 | AV19: 63.67549651 | AW19: 906.21342 | AX19: 58.30358046 | AY19: 1937.96019 | AZ19: 4944.74437 | BA19: 0 | BB19: -3006.78417 | BC19: 2090.84208 | BD19: 1806.87784 | BE19: 9.44819 | BF19: 20.30367 | BG19: -3.42663 | BH19: 876.65364 | BI19: 846.33663 | BJ19: 0 | BK19: 30.31702 | BL19: 2.35241 | BM19: 0 | BN19: 0 | BO19: 0 | BP19: 32.66943 | BQ19: 6545.83257 | BR19: 877.07963 | BS19: 339.44039 | BT19: 35.37781 | BU19: 0 | BV19: 0 | BW19: -372.13864 | BX19: 0 | BY19: 0 | BZ19: 573.01705 | CA19: 1581.65163 | CB19: 1250.32583 | CC19: 331.3258 | CD19: 0 | CE19: 61.24941 | CF19: 98 | CG19: 927 | CH19: 7.9 | CI19: 0.9366215685 | CJ19: 73.73015802 | CK19: 62.49474747 | CL19: 647.69133 | CM19: 39.70456919 | CN19: 1911.11276 | CO19: 5135.28039 | CP19: 0 | CQ19: -3224.16763 | CR19: 2003.10797 | CS19: 1539.19639 | CT19: 11.33907 | CU19: 21.12912 | CV19: 0.64108 | CW19: 308.98776 | CX19: 580.05089 | CY19: 0 | CZ19: -271.06313 | DA19: -1.5381 | DB19: 0 | DC19: 0 | DD19: 0 | DE19: -272.60123 | DF19: 6268.59923 | DG19: 302.93412 | DH19: 465.78305 | DI19: 27.80869 | DJ19: 5.41042 | DK19: 0 | DL19: 331.3258 | DM19: 80 | DN19: 0 | DO19: -129.62982 | DP19: 1330.32584 | DQ19: 979.00004 | DR19: 351.3258 | DS19: 0 | DT19: 75.91751 | DU19: 262 | DW19: 69.53612 | DX19: 23.3859 | DY19: 29.55611 | EE19: 0
A20: 74 | B20: Halsua | C20: 1052 | D20: 23.5 | E20: 1.302477905 | F20: 89.30359941 | G20: 25.40303355 | H20: 2030.352 | I20: 34.42113696 | J20: 10747.60513 | K20: 19734.30169 | L20: 133.05368 | M20: -8853.64288 | N20: 4285.54642 | O20: 5598.17476 | P20: 17.1095 | Q20: 129.15422 | R20: 112.57919 | S20: 1030.61277 | T20: 931.77354 | U20: 0 | V20: 98.83923 | W20: 8.62546 | X20: 1.93112 | Y20: 2.35015 | Z20: -2.38186 | AA20: 105.50186 | AB20: 2356.315 | AC20: 978.69265 | AD20: -902.021 | AE20: 7.587 | AF20: 19.724 | AG20: 1.759 | AH20: -761.277 | AI20: 2001.939 | AJ20: -1167.348 | AK20: 103.98265 | AL20: 14207.191 | AM20: 10667.67 | AN20: 3539.521 | AO20: 1.759 | AP20: 440.00975 | AQ20: 82 | AR20: 1013 | AS20: 10.86 | AT20: 0.9873660354 | AU20: 190.2226568 | AV20: 28.51835241 | AW20: 1189.528 | AX20: 48.09955082 | AY20: 3530.62912 | AZ20: 7033.06414 | BA20: 48.65387 | BB20: -3453.78115 | BC20: 2572.47628 | BD20: 1902.91042 | BE20: 4.00738 | BF20: 384.01719 | BG20: 56.66879 | BH20: 698.26453 | BI20: 775.14657 | BJ20: -0.00355 | BK20: -76.88559 | BL20: 5.43835 | BM20: 3.62277 | BN20: 3.89313 | BO20: -2.39668 | BP20: -73.57356 | BQ20: 2258.52 | BR20: 681.86521 | BS20: 782.785 | BT20: 0 | BU20: 12.13 | BV20: 0 | BW20: -712.113 | BX20: 330.945 | BY20: -131.227 | BZ20: -88.78979 | CA20: 12649.133 | CB20: 9332.864 | CC20: 3316.269 | CD20: 0 | CE20: 86.098 | CF20: 183 | CG20: 985 | CH20: 10.8 | CI20: 1.397631182 | CJ20: 172.3190637 | CK20: 31.35880801 | CL20: 1367.596 | CM20: 54.61188914 | CN20: 3830.30812 | CO20: 7095.23524 | CP20: 1.6158 | CQ20: -3263.31132 | CR20: 2496.41717 | CS20: 2019.25785 | CT20: 6.45205 | CU20: 436.05379 | CV20: 383.71087 | CW20: 1206.47283 | CX20: 778.75577 | CY20: 0 | CZ20: 427.71706 | DA20: 2.68068 | DB20: 7.30732 | DC20: 3.90296 | DD20: -1.44037 | DE20: 429.20667 | DF20: 2692.676 | DG20: 919.97517 | DH20: 395.196 | DI20: 3.502 | DJ20: 414.948 | DK20: 0 | DL20: 739.168 | DM20: 119.363 | DN20: -78.515 | DO20: 943.22917 | DP20: 11950.793 | DQ20: 8727.468 | DR20: 3223.325 | DS20: 0 | DT20: 5.792 | DU20: 27 | DW20: 665.472 | DX20: 658.077 | DY20: 660.849 | EE20: 997
A21: 75 | B21: Hamina | C21: 19549 | D21: 21 | E21: 0.7145397429 | F21: 71.80217566 | G21: 32.94459929 | H21: 22255.53072 | I21: 21.15829481 | J21: 193442.0303 | K21: 323924.9767 | L21: 2002.09752 | M21: -128480.8488 | N21: 101937.2324 | O21: 50784.33257 | P21: 119.48022 | Q21: 1805.01944 | R21: -8974.82072 | S21: 13580.35617 | T21: 19649.54391 | U21: 0 | V21: -6069.18774 | W21: 0 | X21: 107.91234 | Y21: -359.27659 | Z21: 12.02981 | AA21: -6524.34686 | AB21: 32082.60102 | AC21: 12283.43271 | AD21: -28658.70675 | AE21: 2732.31606 | AF21: 26191.78122 | AG21: -155.37526 | AH21: -19726.84882 | AI21: 9796.96976 | AJ21: 1183.91674 | AK21: 12548.82324 | AL21: 195889.9593 | AM21: 165470.5606 | AN21: 30419.39878 | AO21: 1181.40196 | AP21: 22609.462 | AQ21: 168 | AR21: 19534 | AS21: 8.36 | AT21: 0.9258840354 | AU21: 133.9250092 | AV21: 37.11065641 | AW21: 6829.69455 | AX21: 12.86112557 | AY21: 79738.75297 | AZ21: 133704.2006 | BA21: 685.24393 | BB21: -53280.20372 | BC21: 56999.11593 | BD21: 10592.55678 | BE21: 696.13935 | BF21: 4275.25698 | BG21: 6222.41254 | BH21: 16954.7639 | BI21: 17720.73522 | BJ21: 0 | BK21: -765.97132 | BL21: 0 | BM21: 149.32536 | BN21: -343.36776 | BO21: 5.27609 | BP21: -1253.38835 | BQ21: 33015.51998 | BR21: 13245.75256 | BS21: 30486.38669 | BT21: 166.07613 | BU21: 19899.6155 | BV21: 79.65675 | BW21: -18654.20294 | BX21: 6800.83458 | BY21: 9771.99198 | BZ21: 2825.0575 | CA21: 164928.4655 | CB21: 118266.412 | CC21: 46662.05356 | CD21: 1019.97521 | CE21: 12385.477 | CF21: 120 | CG21: 19311 | CH21: 9.4 | CI21: 1.378928731 | CJ21: 85.18062047 | CK21: 53.44226768 | CL21: 10952.89973 | CM21: 27.11189423 | CN21: 74057.07087 | CO21: 97302.54217 | CP21: 4390.42745 | CQ21: -18855.04385 | CR21: 54397.34811 | CS21: 4952.99167 | CT21: 177.90659 | CU21: 3235.04474 | CV21: 1964.74182 | CW21: 39402.8996 | CX21: 24787.13595 | CY21: 0 | CZ21: 14615.76365 | DA21: 0 | DB21: 0 | DC21: -48.35376 | DD21: 4.81512 | DE21: 14572.22501 | DF21: 47587.74498 | DG21: 5476.94973 | DH21: 16950.50575 | DI21: 525.33012 | DJ21: 28724.42349 | DK21: 50.31227 | DL21: 27686.01983 | DM21: 30586.99665 | DN21: -29567.05507 | DO21: 17776.19759 | DP21: 98148.47346 | DQ21: 78104.27842 | DR21: 20044.19504 | DS21: 985.03603 | DT21: 16376.64 | DU21: 3 | DW21: 860.6117 | DX21: 860.6117 | DY21: 860.6117 | EE21: 42219
A22: 77 | B22: Hankasalmi | C22: 4601 | D22: 22 | E22: 2.001892038 | F22: 45.91420462 | G22: 41.3298204 | H22: 5022.96092 | I22: 31.25489891 | J22: 20277.78453 | K22: 56002.22861 | L22: 0 | M22: -35724.44408 | N22: 16757.17824 | O22: 21497.55461 | P22: 80.34766 | Q22: 156.68552 | R22: 305.31661 | S22: 2759.26752 | T22: 3102.34141 | U22: 181.70203 | V22: -161.37186 | W22: 0.73803 | X22: 0 | Y22: 41.01797 | Z22: 2.06661 | AA22: -117.54925 | AB22: 136.07022 | AC22: 2911.88371 | AD22: -1175.05284 | AE22: 42.11202 | AF22: 98.7997 | AG22: 0 | AH22: -1299.91303 | AI22: 743.08 | AJ22: 55.9637 | AK22: 1877.74259 | AL22: 18431.39168 | AM22: 16918.68447 | AN22: 1512.70721 | AO22: 0 | AP22: 24706.04491 | AQ22: 205 | AR22: 4549 | AS22: 9.36 | AT22: 3.518839281 | AU22: 43.37711016 | AV22: 63.80898276 | AW22: 4459.28394 | AX22: 70.18735192 | AY22: 7974.31233 | AZ22: 20819.07621 | BA22: 0 | BB22: -12844.76388 | BC22: 9733.65586 | BD22: 6453.33945 | BE22: 124.12555 | BF22: 182.27888 | BG22: 230.60774 | BH22: 3514.68584 | BI22: 2264.52092 | BJ22: 0 | BK22: 1250.16492 | BL22: -0.47372 | BM22: 0 | BN22: 42.06119 | BO22: 10.06894 | BP22: 1301.82133 | BQ22: 1431.85301 | BR22: 3533.72675 | BS22: 1080.71334 | BT22: 121.4 | BU22: 5.33259 | BV22: -8.89596 | BW22: -868.34163 | BX22: 0 | BY22: -126.5929 | BZ22: 2579.746 | CA22: 7028.62725 | CB22: 6093.08562 | CC22: 935.54163 | CD22: 0 | CE22: 27630.68423 | CF22: 156 | CG22: 4509 | CH22: 9.4 | CI22: 2.544262399 | CJ22: 39.00013963 | CK22: 68.58759954 | CL22: 4250.92468 | CM22: 64.71414242 | CN22: 8009.03353 | CO22: 20946.86602 | CP22: 0 | CQ22: -12937.83249 | CR22: 10110.92058 | CS22: 5434.80535 | CT22: 115.09932 | CU22: 184.98624 | CV22: 227.18602 | CW22: 2765.19254 | CX22: 2436.63459 | CY22: -200.97758 | CZ22: 228.06916 | DA22: 0.47301 | DB22: 0 | DC22: 70.99234 | DD22: -6.32451 | DE22: 293.21 | DF22: 1725.06297 | DG22: 2793.37785 | DH22: 1641.72509 | DI22: 12.585 | DJ22: 23.25883 | DK22: -0.7 | DL22: 974.55563 | DM22: 0 | DN22: -25.15 | DO22: 1187.49659 | DP22: 6040.88563 | DQ22: 5123.53 | DR22: 917.35563 | DS22: 0 | DT22: 19627.63293 | DU22: 185 | DW22: 1047.28412 | DX22: 1047.73905 | DY22: 1047.26604 | EE22: 339
A23: 78 | B23: Hanko | C23: 7832 | D23: 21.75 | E23: 1.750016264 | F23: 67.75975583 | G23: 47.0590696 | H23: 11664.15951 | I23: 35.04018442 | J23: 60192.91699 | K23: 106555.2825 | L23: -31.34571 | M23: -46393.71122 | N23: 43550.23852 | O23: 15557.41 | P23: 38.01682 | Q23: 536.77854 | R23: 82.98779 | S23: 12298.16337 | T23: 6712.40934 | U23: 0 | V23: 5585.75403 | W23: 841.77347 | X23: 304.17514 | Y23: -64.4828 | Z23: 19.39176 | AA23: 6078.26132 | AB23: 33000.94757 | AC23: 11565.7563 | AD23: -7504.5839 | AE23: 32.8886 | AF23: 1388.79132 | AG23: 21.91219 | AH23: -6797.40582 | AI23: 1149.86904 | AJ23: -1356.23305 | AK23: 5482.85232 | AL23: 62533.48639 | AM23: 26097.22162 | AN23: 36436.26477 | AO23: 308.41374 | AP23: 7300.272 | AQ23: 18 | AR23: 7721 | AS23: 9.11 | AT23: 1.99066355 | AU23: 111.5450854 | AV23: 53.89773138 | AW23: 13699.78934 | AX23: 87.19250236 | AY23: 31157.14463 | AZ23: 42681.58972 | BA23: 0 | BB23: -11524.44509 | BC23: 24747.07092 | BD23: 70.19466 | BE23: 346.83603 | BF23: 786.84726 | BG23: 98.67576 | BH23: 12951.48502 | BI23: 7633.43442 | BJ23: 0 | BK23: 5318.0506 | BL23: 2.85559 | BM23: 102.99525 | BN23: 2.90129 | BO23: 0.63003 | BP23: 5221.44226 | BQ23: 37475.42995 | BR23: 12059.3927 | BS23: 7187.58389 | BT23: 342.2725 | BU23: 861.42966 | BV23: -453.28244 | BW23: -6114.53609 | BX23: 167.47044 | BY23: 6322.98166 | BZ23: 6075.51097 | CA23: 54506.84302 | CB23: 12047.48065 | CC23: 42459.36237 | CD23: 287.03969 | CE23: 4601.721 | CF23: 7 | CG23: 7702 | CH23: 9.1 | CI23: 1.392939952 | CJ23: 116.7740415 | CK23: 56.2532566 | CL23: 16353.7546 | CM23: 108.5329224 | CN23: 30677.2519 | CO23: 42138.71095 | CP23: 0 | CQ23: -11461.45905 | CR23: 22787.46164 | CS23: -1541.855 | CT23: 502.31669 | CU23: 953.52973 | CV23: 91.76918 | CW23: 9424.70373 | CX23: 7107.96383 | CY23: 0 | CZ23: 2316.7399 | DA23: 1.42308 | DB23: 468.05158 | DC23: -39.42654 | DD23: 1.97888 | DE23: 2046.68953 | DF23: 50185.24446 | DG23: 8291.76796 | DH23: 5317.17002 | DI23: 95.4452 | DJ23: 960.97827 | DK23: 15.26718 | DL23: 6497.06672 | DM23: 14791.86145 | DN23: -10141.8057 | DO23: 4031.02141 | DP23: 52996.62393 | DQ23: 22677.06674 | DR23: 30319.55719 | DS23: 274.82595 | DT23: 4687.63 | DU23: 28 | DW23: 11322.96711 | DX23: 11809.08192 | DY23: 1380.00739 | EE23: 201
A24: 79 | B24: Harjavalta | C24: 6753 | D24: 21.5 | E24: 1.482604875 | F24: 38.30622607 | G24: 40.81817774 | H24: 5829.74727 | I24: 20.68634345 | J24: 40943.56677 | K24: 91638.97261 | L24: 79.97779 | M24: -50615.42805 | N24: 41299.76127 | O24: 16086.55567 | P24: 6.08336 | Q24: 133.10374 | R24: 53.07887 | S24: 6696.94738 | T24: 3712.94405 | U24: 0 | V24: 2984.00333 | W24: -1500 | X24: 16.85402 | Y24: -17.64793 | Z24: -14.1423 | AA24: 1435.35908 | AB24: 9344.82475 | AC24: 6387.82856 | AD24: -6543.69043 | AE24: 13.61532 | AF24: 455.00051 | AG24: 1.49204 | AH24: -4473.68748 | AI24: 3303.13499 | AJ24: -2420 | AK24: 312.75396 | AL24: 23976.14636 | AM24: 17855.57799 | AN24: 6120.56837 | AO24: 0 | AP24: 1840.505 | AQ24: 80 | AR24: 6703 | AS24: 8.86 | AT24: 0.9898245308 | AU24: 84.80598169 | AV24: 48.86859015 | AW24: 3904.99492 | AX24: 36.53619911 | AY24: 8222.61675 | AZ24: 28674.89426 | BA24: 56.25698 | BB24: -20396.02053 | BC24: 23440.67341 | BD24: 1529.13074 | BE24: 38.93806 | BF24: 435.78511 | BG24: 78.03355 | BH24: 4254.97012 | BI24: 3487.56648 | BJ24: -1.58887 | BK24: 765.81477 | BL24: 0 | BM24: 15.47603 | BN24: -18.26706 | BO24: -8.99946 | BP24: 723.07222 | BQ24: 11561.81034 | BR24: 4191.32126 | BS24: 5518.63165 | BT24: 98.4292 | BU24: 525.97982 | BV24: -0.72353 | BW24: -4303.19143 | BX24: 3500 | BY24: 3000 | BZ24: -702.90137 | CA24: 23118.65778 | CB24: 14804.41843 | CC24: 8314.23935 | CD24: 0 | CE24: 198.844 | CF24: 197 | CG24: 6647 | CH24: 8.9 | CI24: 0.315632249 | CJ24: 103.6382578 | CK24: 42.63347433 | CL24: 5858.02677 | CM24: 51.28070577 | CN24: 8274.32492 | CO24: 30500.91209 | CP24: 41.98297 | CQ24: -22184.6042 | CR24: 22494.92094 | CS24: 1149.57633 | CT24: 57.64371 | CU24: 745.49403 | CV24: 56.80005 | CW24: 828.8428 | CX24: 3596.10715 | CY24: 25.07616 | CZ24: -2754.72627 | DA24: 0 | DB24: 31.95232 | DC24: 15.3594 | DD24: -1.53582 | DE24: -2756.87885 | DF24: 8979.72217 | DG24: 1795.2419 | DH24: 6146.82553 | DI24: 190.372 | DJ24: 1138.15026 | DK24: -3.17853 | DL24: 4242.38929 | DM24: 7000 | DN24: 2500 | DO24: -3023.06137 | DP24: 28376.26848 | DQ24: 17288.2198 | DR24: 11088.04868 | DS24: 0 | DT24: 171.376 | DU24: 280 | DW24: 411.74988 | DX24: 410.6108 | DY24: 410.6108 | EE24: 450
A25: 81 | B25: Hartola | C25: 2574 | D25: 21.5 | E25: 0.9419400693 | F25: 67.48833288 | G25: 20.81465038 | H25: 3931.11332 | I25: 32.36524663 | J25: 21180.33823 | K25: 40763.96662 | L25: -9.5511 | M25: -19593.17949 | N25: 11203.45216 | O25: 9868.167 | P25: 19.29576 | Q25: 209.91957 | R25: 181.05362 | S25: 1468.86948 | T25: 2666.03455 | U25: 111.53768 | V25: -1085.62739 | W25: 3.02307 | X25: 0 | Y25: 0 | Z25: -37.57936 | AA25: -1120.18368 | AB25: 1250.65124 | AC25: 1850.2436 | AD25: -1725.36596 | AE25: 105.81598 | AF25: 1880.17893 | AG25: 59.0011 | AH25: -1572.3478 | AI25: 3808.78601 | AJ25: -6631.7115 | AK25: 2110.87255 | AL25: 22931.39001 | AM25: 20322.03278 | AN25: 2609.35723 | AO25: -638.33537 | AP25: 827.028 | AQ25: 213 | AR25: 2531 | AS25: 8.86 | AT25: 0.6883019112 | AU25: 191.0052409 | AV25: 22.50835064 | AW25: 1166.84187 | AX25: 31.81205746 | AY25: 3772.83407 | AZ25: 9257.10402 | BA25: 0 | BB25: -5484.26995 | BC25: 6404.29191 | BD25: 696.664 | BE25: 322.80699 | BF25: 569.27227 | BG25: 59.25096 | BH25: 1429.47164 | BI25: 1232.90332 | BJ25: -746.19103 | BK25: -549.62271 | BL25: -0.25402 | BM25: 0 | BN25: 0 | BO25: 0.53417 | BP25: -549.34256 | BQ25: 1316.04816 | BR25: 677.82277 | BS25: 1167.68835 | BT25: 0.10037 | BU25: 738.61792 | BV25: 0 | BW25: -2334.60447 | BX25: 2.69076 | BY25: 972.47156 | BZ25: 248.85271 | CA25: 18854.93945 | CB25: 15820.2679 | CC25: 3034.67155 | CD25: 33.99953 | CE25: 27.17379 | CF25: 221 | CG25: 2482 | CH25: 8.9 | CI25: 1.079349373 | CJ25: 188.0498535 | CK25: 23.47530915 | CL25: 1800.56477 | CM25: 56.56543503 | CN25: 4175.41834 | CO25: 8459.62312 | CP25: 0 | CQ25: -4284.20478 | CR25: 6696.69927 | CS25: 322.331 | CT25: 58.03376 | CU25: 682.54821 | CV25: 60.65575 | CW25: 2170.96679 | CX25: 1742.65294 | CY25: -0.7484 | CZ25: 427.93965 | DA25: -0.24053 | DB25: 0 | DC25: 0 | DD25: -0.19876 | DE25: 427.50036 | DF25: 1684.46711 | DG25: 1639.2517 | DH25: 454.49615 | DI25: 120.95963 | DJ25: -43.72329 | DK25: 35.68608 | DL25: 1961.18798 | DM25: 2000 | DN25: -61.61178 | DO25: 1261.99189 | DP25: 18832.11287 | DQ25: 15815.64284 | DR25: 3016.47003 | DS25: 33.99953 | DT25: 23.78562 | DU25: 97 | DW25: 575.59611 | DX25: 0 | DY25: 0 | EC25: 380 | EE25: 168
A26: 82 | B26: Hattula | C26: 9359 | D26: 20.75 | E26: 0.5743219425 | F26: 77.26043328 | G26: 29.6082767 | H26: 7757.69974 | I26: 28.16016622 | J26: 27297.84539 | K26: 83239.39724 | L26: 0.36273 | M26: -55941.18912 | N26: 43053.82391 | O26: 17005.19086 | P26: 209.40689 | Q26: 308.1357 | R26: 150.23728 | S26: 4169.33412 | T26: 4016.48162 | U26: -8.06451 | V26: 144.78799 | W26: 17.89952 | X26: 0.05125 | Y26: 57.56349 | Z26: -0.00411 | AA26: 220.19564 | AB26: 9265.2231 | AC26: 3914.85905 | AD26: -9389.65363 | AE26: 42.5 | AF26: 1043.91341 | AG26: 5.06641 | AH26: -7487.96173 | AI26: 8759.9519 | AJ26: 6394.90887 | AK26: -4388.38117 | AL26: 56010.9252 | AM26: 43734.39885 | AN26: 12276.52635 | AO26: 4121.65299 | AP26: 2841.66 | AQ26: 247 | AR26: 9371 | AS26: 8.11 | AT26: 1.388477756 | AU26: 108.4213797 | AV26: 38.75989829 | AW26: 3211.21881 | AX26: 29.72475972 | AY26: 7263.45973 | AZ26: 33114.9547 | BA26: 0 | BB26: -25851.49497 | BC26: 24195.18058 | BD26: 8634.03587 | BE26: 209.66803 | BF26: 1216.34503 | BG26: 118.67953 | BH26: 6089.72401 | BI26: 2858.2184 | BJ26: 0 | BK26: 3231.50561 | BL26: 0.7875 | BM26: 0.01404 | BN26: 12.33839 | BO26: 0.01179 | BP26: 3244.62925 | BQ26: 12626.79636 | BR26: 6034.9233 | BS26: 936.03947 | BT26: 55.9 | BU26: 324.36109 | BV26: 0 | BW26: -4045.58229 | BX26: 4126.2 | BY26: -4119.06244 | BZ26: 5479.14492 | CA26: 37783.35614 | CB26: 29804.56943 | CC26: 7978.78671 | CD26: 4096.32 | CE26: 1394.94579 | CF26: 194 | CG26: 9361 | CH26: 8.1 | CI26: 1.122969501 | CJ26: 110.825916 | CK26: 40.88891722 | CL26: 4424.798 | CM26: 40.54797141 | CN26: 7002.72815 | CO26: 32789.4845 | CP26: 0 | CQ26: -25786.75635 | CR26: 23872.35443 | CS26: 7131.23847 | CT26: 221.0688 | CU26: 1227.28959 | CV26: 150.36586 | CW26: 4360.98162 | CX26: 2759.3795 | CY26: 0 | CZ26: 1601.60212 | DA26: 1.11563 | DB26: 0 | DC26: -1.53045 | DD26: 0.87814 | DE26: 1602.06544 | DF26: 14228.86195 | DG26: 4149.42565 | DH26: 1914.44631 | DI26: 80 | DJ26: 358.6281 | DK26: 0 | DL26: 3749.04432 | DM26: 6660 | DN26: -4177.6269 | DO26: 2673.60744 | DP26: 36516.68492 | DQ26: 32365.58447 | DR26: 4151.10045 | DS26: 4096.32 | DT26: 1060.42745 | DU26: 233 | DW26: 16.64631 | DX26: 13.48971 | DY26: 12.37408 | EE26: 7794
A27: 86 | B27: Hausjärvi | C27: 8031 | D27: 21.5 | E27: 0.9 | F27: 56.7 | G27: 35.7 | H27: 8407.74527 | I27: 35.80861586 | J27: 26331 | K27: 74875 | L27: 0.31618 | M27: -48544 | N27: 35860.036 | O27: 16384.637 | P27: 3.50672 | Q27: 272.02551 | R27: 187 | S27: 3619 | T27: 3270 | U27: 0 | V27: 384 | W27: 2.11108 | X27: 8 | Y27: 0 | Z27: -0.00759 | AA27: 342 | AB27: 10582 | AC27: 3495 | AD27: -6594 | AE27: 40 | AF27: 120 | AG27: 17.26016 | AH27: -4119 | AI27: 6329 | AJ27: 0 | AK27: -2939 | AL27: 34383.99486 | AM27: 25104.6954 | AN27: 9279.29946 | AO27: 72.70149 | AP27: 693.26643 | AQ27: 243 | AR27: 7998 | AS27: 8.86 | AT27: 1.53617333 | AU27: 93.87653279 | AV27: 43.85153645 | AW27: 4040.59865 | AX27: 41.80564766 | AY27: 5920.22289 | AZ27: 26051.47061 | BA27: 0 | BB27: -20131.24772 | BC27: 19081.573 | BD27: 6254.071 | BE27: 3.36941 | BF27: 417.47456 | BG27: 20.48845 | BH27: 4810.77958 | BI27: 3621.32613 | BJ27: -556.81011 | BK27: 632.64334 | BL27: 0.678 | BM27: 11.17952 | BN27: 0 | BO27: 0.01671 | BP27: 622.15853 | BQ27: 11296.00328 | BR27: 4032.9172 | BS27: 5802.58666 | BT27: 8.65592 | BU27: 2163.382 | BV27: 15.36888 | BW27: -2985.95267 | BX27: 5000 | BY27: 0 | BZ27: 402.36846 | CA27: 26124.005 | CB27: 16635.98218 | CC27: 9488.02282 | CD27: 45.8 | CE27: 413.0208 | CF27: 208 | CG27: 7901 | CH27: 8.9 | CI27: 1.025986714 | CJ27: 100.8307427 | CK27: 45.38162853 | CL27: 3269.63297 | CM27: 33.34205586 | CN27: 6676.186 | CO27: 25551.9 | CP27: 0 | CQ27: -18875.714 | CR27: 18859.584 | CS27: 4348.057 | CT27: 24.91451 | CU27: 803.1358 | CV27: 37.37364 | CW27: 3591.07935 | CX27: 2806.78565 | CY27: 2603.7715 | CZ27: 2086.17945 | DA27: 0.9605 | DB27: 19.22424 | DC27: 0 | DD27: 0.76619 | DE27: 2078.29402 | DF27: 13478.44137 | DG27: 4693.94434 | DH27: 5903.27545 | DI27: 0 | DJ27: 197.54164 | DK27: -4.04951 | DL27: 3479.78043 | DM27: 5000 | DN27: -1000 | DO27: -1011.78947 | DP27: 26644.22459 | DQ27: 17834.85709 | DR27: 8809.3675 | DS27: 27.2 | DT27: 298.9423 | DU27: 240 | DW27: 2.55183 | DX27: 1.87383 | DY27: 0.91333 | EE27: 2309
A28: 111 | B28: Heinola | C28: 18131 | D28: 20.5 | E28: 0.7953532525 | F28: 71.22055142 | G28: 47.23019806 | H28: 116090.546 | I28: 145.7817145 | J28: 119318.4 | K28: 234537.761 | L28: -50.673 | M28: -115270.034 | N28: 76371.279 | O28: 53805.487 | P28: 43.761 | Q28: 685.014 | R28: -1875.832 | S28: 12389.647 | T28: 11174.104 | U28: -33.279 | V28: 1182.264 | W28: -22.422 | X28: -0.001 | Y28: -111.224 | Z28: 8.521 | AA28: 1057.14 | AB28: 60636.99 | AC28: 13368.677 | AD28: -30609.389 | AE28: 1725.731 | AF28: 8930.947 | AG28: 33.992 | AH28: -15753.796 | AI28: 24430.58 | AJ28: 3000 | AK28: -6584.034 | AL28: 140511.935 | AM28: 100073.947 | AN28: 40437.988 | AO28: 1691.293 | AP28: 39153.101 | AQ28: 176 | AR28: 17953 | AS28: 7.86 | AT28: 1.104862476 | AU28: 173.4020466 | AV28: 54.57496905 | AW28: 109235.496 | AX28: 392.8307887 | AY28: 25741.145 | AZ28: 65202.108 | BA28: 689.432 | BB28: -38771.531 | BC28: 40860.84 | BD28: 11921.143 | BE28: 331.639 | BF28: 1935.616 | BG28: 4695.085 | BH28: 17101.56 | BI28: 11886.612 | BJ28: -5.41 | BK28: 5209.538 | BL28: -14.049 | BM28: 0 | BN28: -95.973 | BO28: 8.516 | BP28: 5108.032 | BQ28: 65673.295 | BR28: 15440.8 | BS28: 14368.964 | BT28: 344.059 | BU28: 5993.928 | BV28: 21.259 | BW28: -15294.742 | BX28: 15000 | BY28: -6000 | BZ28: 7409.823 | CA28: 122445.079 | CB28: 89195.822 | CC28: 33249.257 | CD28: 1673.187 | CE28: 3127.996 | CF28: 88 | CG28: 17829 | CH28: 8.2 | CI28: 1.281585213 | CJ28: 166.5337242 | CK28: 57.06452559 | CL28: 118039.2973 | CM28: 441.1040266 | CN28: 20446.06066 | CO28: 65070.36132 | CP28: 75.01329 | CQ28: -44549.28737 | CR28: 42329.77393 | CS28: 15462.65443 | CT28: 282.68762 | CU28: 2488.96787 | CV28: 7925.63182 | CW28: 18962.49258 | CX28: 10811.41024 | CY28: -7.3915 | CZ28: 8147.38658 | DA28: -2.3755 | DB28: 43.92392 | DC28: -4.68885 | DD28: -12.62465 | DE28: 8105.73562 | DF28: 73778.20752 | DG28: 17964.56497 | DH28: 7630.30208 | DI28: 10.1473 | DJ28: 1373.45134 | DK28: -8.4924 | DL28: 14249.25619 | DM28: 18000 | DN28: -9000 | DO28: 11717.86153 | DP28: 117195.8213 | DQ28: 91198.42114 | DR28: 25997.40011 | DS28: 1861.55347 | DT28: 4437.46594 | DU28: 43 | DW28: 15138.864 | DX28: 15137.317 | DY28: 15137.31725 | EE28: 647
A29: 90 | B29: Heinävesi | C29: 3061 | D29: 21.5 | E29: 6.882639664 | F29: 39.5622933 | G29: 42.71521905 | H29: 4916.529 | I29: 38.76447375 | J29: 18959.61794 | K29: 44181.35221 | L29: -1.78506 | M29: -25223.51933 | N29: 14082.10355 | O29: 13394.793 | P29: 63.89092 | Q29: 69.5831 | R29: 283.23739 | S29: 2530.92243 | T29: 1841.01729 | U29: 0 | V29: 689.90514 | W29: 3.49661 | X29: 0.00436 | Y29: -1.37646 | Z29: 2.76531 | AA29: 694.78624 | AB29: 5022.83125 | AC29: 2778.63206 | AD29: -1608.66228 | AE29: 214.14335 | AF29: 415.78344 | AG29: 6.91342 | AH29: -308.25239 | AI29: 751.30263 | AJ29: -2952.4404 | AK29: 1799.89657 | AL29: 11632.6921 | AM29: 11278.94533 | AN29: 353.74677 | AO29: 10.76658 | AP29: 9302.75557 | AQ29: 127 | AR29: 3001 | AS29: 8.86 | AT29: 17.3691391 | AU29: 83.46010033 | AV29: 52.3635217 | AW29: 4055.17309 | AX29: 107.3831804 | AY29: 5757.58731 | AZ29: 12322.94198 | BA29: 0 | BB29: -6565.35467 | BC29: 7732.02553 | BD29: 653.779 | BE29: 78.36615 | BF29: 52.71743 | BG29: 314.31384 | BH29: 2160.41242 | BI29: 1517.40744 | BJ29: 0 | BK29: 643.00498 | BL29: -17.71889 | BM29: 0 | BN29: 0 | BO29: 0 | BP29: 625.28609 | BQ29: 5247.52246 | BR29: 2030.28783 | BS29: 993.84573 | BT29: 145 | BU29: 112.84953 | BV29: 3.68 | BW29: -74.69993 | BX29: 203.1269 | BY29: 0.9876 | BZ29: 1294.29163 | CA29: 9680.14765 | CB29: 9571.15136 | CC29: 108.99629 | CD29: 7 | CE29: 8104.48866 | CF29: 175 | CG29: 2929 | CH29: 8.8 | CI29: 8.090960826 | CJ29: 90.84467796 | CK29: 52.15211677 | CL29: 4878.1755 | CM29: 127.6920554 | CN29: 6078.32818 | CO29: 12592.9597 | CP29: 0 | CQ29: -6514.63152 | CR29: 7531.43849 | CS29: 91.94 | CT29: 101.15832 | CU29: 83.87703 | CV29: 309.80103 | CW29: 1435.82929 | CX29: 1548.10785 | CY29: 0 | CZ29: -112.27856 | DA29: -15.23034 | DB29: 0 | DC29: 0 | DD29: 0 | DE29: -127.5089 | DF29: 5120.01356 | DG29: 700.66233 | DH29: 846.38056 | DI29: 44.1 | DJ29: 144.255 | DK29: 0 | DL29: 103.95064 | DM29: 0 | DN29: 897.83522 | DO29: 42.63677 | DP29: 10478.03382 | DQ29: 9490.82042 | DR29: 987.2134 | DS29: 7 | DT29: 8054.79657 | DU29: 225 | DW29: 258.92701 | DX29: 246.87568 | DY29: 246.21613 | EE29: 0
A30: 91 | B30: Helsinki | C30: 664028 | D30: 18 | E30: 3.87532236 | F30: 93.62169529 | G30: 58.33510039 | H30: 1807552.79 | I30: 59.72275735 | J30: 4846847.033 | K30: 7915194.978 | L30: -13297.26474 | M30: -3081645.211 | N30: 4091577.98 | O30: 378400.85 | P30: 21046.59769 | Q30: 59089.22882 | R30: 9973.196 | S30: 1360264.184 | T30: 911314.1785 | U30: 2139.02798 | V30: 451089.0336 | W30: -135.86678 | X30: 19635.35504 | Y30: -7721.28743 | Z30: 6932.97314 | AA30: 430529.4975 | AB30: 6967132.686 | AC30: 1272888.754 | AD30: -2704550.234 | AE30: 61556.91669 | AF30: 698965.7716 | AG30: -36520.0325 | AH30: -307165.0544 | AI30: 904174.7031 | AJ30: 28557.69703 | AK30: -671138.7915 | AL30: 6516414.708 | AM30: 6057380.106 | AN30: 459034.6021 | AO30: 524517.897 | AP30: 1040170.478 | AQ30: 8 | AR30: 674500 | AS30: 5.36 | AT30: 3.034762047 | AU30: 133.6006386 | AV30: 59.28816994 | AW30: 1516708.319 | AX30: 71.50401032 | AY30: 4201356.562 | AZ30: 4973162.752 | BA30: -600.68183 | BB30: -772406.872 | BC30: 2020104.397 | BD30: 200909.289 | BE30: 65556.13613 | BF30: 169454.7058 | BG30: 50519.73139 | BH30: 1395227.975 | BI30: 968698.4354 | BJ30: 278.31525 | BK30: 426807.8553 | BL30: -2678.85045 | BM30: 18147.55194 | BN30: 987.33639 | BO30: 4141.4725 | BP30: 411110.2618 | BQ30: 7425407.427 | BR30: 1246249.344 | BS30: 2187098.114 | BT30: 28663.4884 | BU30: 333652.5978 | BV30: -6507.69629 | BW30: -346131.906 | BX30: 1248671.398 | BY30: -118329.1566 | BZ30: -578532.6834 | CA30: 7203562.505 | CB30: 6729073.19 | CC30: 474489.3157 | CD30: 499619.6836 | CE30: 972541.8259 | CF30: 4 | CG30: 684018 | CH30: 5.3 | CI30: 3.06193541 | CJ30: 148.499571 | CK30: 59.63200601 | CL30: 1310415.398 | CM30: 62.21040995 | CN30: 4018382.83 | CO30: 4717811.01 | CP30: 410.55758 | CQ30: -699017.6226 | CR30: 1845894.029 | CS30: 302967.894 | CT30: 78319.45727 | CU30: 190939.579 | CV30: 27797.74359 | CW30: 1365021.922 | CX30: 947170.6498 | CY30: 700.0526 | CZ30: 418201.2983 | DA30: -6652.66621 | DB30: 35280.3029 | DC30: 1665.61025 | DD30: 4355.17721 | DE30: 399929.2681 | DF30: 7829756.267 | DG30: 1305184.973 | DH30: 2419792.657 | DI30: 16684.73944 | DJ30: 90874.51723 | DK30: -859.41698 | DL30: 317223.1653 | DM30: 1126989.601 | DN30: 22251.70314 | DO30: -1007048.427 | DP30: 8035580.644 | DQ30: 7474373.49 | DR30: 561207.1536 | DS30: 500480.0247 | DT30: 1375525.34 | DU30: 4 | DW30: 1916044.897 | DX30: 1870973.951 | DY30: 1886191.615 | EE30: 346490
A31: 97 | B31: Hirvensalmi | C31: 2091 | D31: 20 | E31: 2.879554135 | F31: 39.23271812 | G31: 48.78520861 | H31: 13013.07051 | I31: 130.899361 | J31: 19277.55868 | K31: 34370.72724 | L31: 1.00912 | M31: -15092.15944 | N31: 8821.79085 | O31: 7419.906 | P31: 4.3329 | Q31: 71.29136 | R31: 367.40649 | S31: 1449.98544 | T31: 1141.70343 | U31: 11.11407 | V31: 319.39608 | W31: 0 | X31: 0 | Y31: -12.032 | Z31: 0 | AA31: 307.36408 | AB31: 6468.88827 | AC31: 2073.96588 | AD31: -1365.89942 | AE31: 95.35774 | AF31: 183.31665 | AG31: -0.11149 | AH31: -457.01154 | AI31: 493.73095 | AJ31: 0.03299 | AK31: 986.74085 | AL31: 7915.15041 | AM31: 7296.53335 | AN31: 618.61706 | AO31: 240.02027 | AP31: 1700.25827 | AQ31: 171 | AR31: 2062 | AS31: 7.36 | AT31: 4.637822791 | AU31: 68.56505311 | AV31: 67.43614839 | AW31: 12021.03502 | AX31: 511.814774 | AY31: 3177.12982 | AZ31: 7465.58423 | BA31: 0 | BB31: -4288.45441 | BC31: 5528.23831 | BD31: 367.466 | BE31: 4.2748 | BF31: 90.69835 | BG31: 295.62924 | BH31: 1816.45559 | BI31: 706.26612 | BJ31: 0 | BK31: 1110.18947 | BL31: 0 | BM31: 0 | BN31: -0.4 | BO31: 0 | BP31: 1109.78947 | BQ31: 7211.54194 | BR31: 785.41664 | BS31: 400.35356 | BT31: 68.3582 | BU31: 55.68386 | BV31: 0 | BW31: -320.51916 | BX31: 0 | BY31: 0 | BZ31: 509.10514 | CA31: 3266.40598 | CB31: 2829.07546 | CC31: 437.33052 | CD31: 0 | CE31: 1794.05052 | CF31: 114 | CG31: 2059 | CH31: 7.4 | CI31: 2.867597131 | CJ31: 68.8147943 | CK31: 69.10161714 | CL31: 12284.39528 | CM31: 476.5657981 | CN31: 3221.3562 | CO31: 7877.15603 | CP31: 0 | CQ31: -4655.79983 | CR31: 5246.9105 | CS31: 57.007 | CT31: 19.5179 | CU31: 100.79289 | CV31: 579.3274 | CW31: 1146.17008 | CX31: 655.72922 | CY31: 0 | CZ31: 490.44086 | DA31: 0 | DB31: 0 | DC31: -3.74 | DD31: 0 | DE31: 486.70086 | DF31: 7698.2428 | DG31: 836.02326 | DH31: 517.244 | DI31: 77.81378 | DJ31: 326 | DK31: 12 | DL31: 334.05305 | DM31: 0 | DN31: 0 | DO31: 722.59304 | DP31: 2932.35293 | DQ31: 2489.32312 | DR31: 443.02981 | DS31: 0 | DT31: 1467.37658 | DU31: 206 | DW31: 1721.63346 | DX31: 1710.6534 | DY31: 1710.6534 | EE31: 610
A32: 98 | B32: Hollola | C32: 22943 | D32: 21 | E32: 2.467079306 | F32: 35.28395014 | G32: 55.19534924 | H32: 26660.90394 | I32: 35.186328 | J32: 111705.2391 | K32: 247635.0592 | L32: -57.53202 | M32: -135987.3521 | N32: 103272.316 | O32: 53511.80118 | P32: 14.80581 | Q32: 374.80052 | R32: 1097.07325 | S32: 21533.84352 | T32: 13211.17832 | U32: -33.03238 | V32: 8289.63282 | W32: -1.24716 | X32: 2.84928 | Y32: -98.45582 | Z32: 0.54882 | AA32: 8187.62938 | AB32: 56606.36461 | AC32: 23042.47484 | AD32: -19985.07647 | AE32: 305.85517 | AF32: 1662.5583 | AG32: 49.44744 | AH32: -8505.59663 | AI32: 9930.02316 | AJ32: -5283.90371 | AK32: 5025.81185 | AL32: 55581.57076 | AM32: 48194.96656 | AN32: 7386.6042 | AO32: 1447.86293 | AP32: 23840.2679 | AQ32: 89 | AR32: 22885 | AS32: 8.36 | AT32: 3.350235703 | AU32: 57.05584376 | AV32: 67.61144303 | AW32: 32774.01882 | AX32: 121.3177315 | AY32: 21946.86229 | AZ32: 82611.03132 | BA32: 0 | BB32: -60664.16903 | BC32: 55793.98797 | BD32: 26651.14279 | BE32: 64.9191 | BF32: 656.37264 | BG32: 563.72864 | BH32: 21753.23682 | BI32: 11333.60556 | BJ32: -5.36993 | BK32: 10414.26133 | BL32: -2.49043 | BM32: 1.05426 | BN32: 89.51562 | BO32: -0.02934 | BP32: 10500.20291 | BQ32: 66810.52967 | BR32: 21115.88631 | BS32: 8741.12627 | BT32: 1.36815 | BU32: 6555.90635 | BV32: 9.78135 | BW32: -6032.59239 | BX32: 667.78195 | BY32: -817.18117 | BZ32: 18932.03453 | CA32: 35938.2354 | CB32: 31138.9649 | CC32: 4799.2705 | CD32: 1426.93882 | CE32: 31743.11724 | CF32: 90 | CG32: 22849 | CH32: 8.3 | CI32: 2.935761237 | CJ32: 56.17989677 | CK32: 70.10316659 | CL32: 25144.14153 | CM32: 84.97405974 | CN32: 22737.14522 | CO32: 84735.39162 | CP32: 0 | CQ32: -61998.2464 | CR32: 52217.84769 | CS32: 23532.32172 | CT32: 118.3024 | CU32: 618.35636 | CV32: 903.99043 | CW32: 14155.85948 | CX32: 9343.25323 | CY32: -7.3375 | CZ32: 4808.9375 | DA32: -2.35815 | DB32: 8.01622 | DC32: -20.72153 | DD32: -4.66748 | DE32: 4777.18223 | DF32: 71587.7119 | DG32: 13502.59352 | DH32: 17197.98157 | DI32: 378.84458 | DJ32: 582.963 | DK32: -135 | DL32: 4414.14276 | DM32: 0 | DN32: -740.68716 | DO32: -2733.58047 | DP32: 30783.40549 | DQ32: 27300.88499 | DR32: 3482.5205 | DS32: 1561.93882 | DT32: 23048.0319 | DU32: 184 | DW32: 71.95838 | DX32: 71.95838 | DY32: 71.95838 | EE32: 1565
A33: 102 | B33: Huittinen | C33: 9745 | D33: 21 | E33: 0.9422023323 | F33: 45.39200293 | G33: 49.95367162 | H33: 9427.42627 | I33: 32.69691352 | J33: 25375.13189 | K33: 93850.2719 | L33: 19.62154 | M33: -68455.51847 | N33: 37802.16156 | O33: 34222.29045 | P33: 4.32546 | Q33: 183.23013 | R33: 102.03182 | S33: 3492.06069 | T33: 4653.66117 | U33: 3550.01319 | V33: 2388.41271 | W33: -15.9484 | X33: 1.58532 | Y33: 0.11155 | Z33: -0.20334 | AA33: 2370.7872 | AB33: 11593.96766 | AC33: 3659.12289 | AD33: -7415.52239 | AE33: 21.90836 | AF33: 3567.92905 | AG33: -4.75072 | AH33: -3717.51464 | AI33: 863.4665 | AJ33: 0 | AK33: -166.56209 | AL33: 26840.20086 | AM33: 23294.95782 | AN33: 3545.24304 | AO33: 0 | AP33: 7221.75664 | AQ33: 266 | AR33: 9646 | AS33: 8.36 | AT33: 2.098842066 | AU33: 84.68569771 | AV33: 53.6223909 | AW33: 7068.89664 | AX33: 43.50020926 | AY33: 11316.38444 | AZ33: 39664.26509 | BA33: 16.35762 | BB33: -28331.52303 | BC33: 21374.35804 | BD33: 15120.09521 | BE33: 9.8366 | BF33: 397.15746 | BG33: 146.50255 | BH33: 7922.11191 | BI33: 4411.73479 | BJ33: 6.91354 | BK33: 3517.29066 | BL33: -7.06578 | BM33: 0.03659 | BN33: 0 | BO33: 0.3704 | BP33: 3510.55869 | BQ33: 14596.04838 | BR33: 7784.85788 | BS33: 15510.16817 | BT33: 150 | BU33: 498.54688 | BV33: -28.76684 | BW33: -3566.58498 | BX33: 11000 | BY33: 226.93862 | BZ33: -7076.76341 | CA33: 32104.76302 | CB33: 28185.08905 | CC33: 3919.67397 | CD33: 0 | CE33: 3058.74462 | CF33: 135 | CG33: 9555 | CH33: 9 | CI33: 1.216918104 | CJ33: 90.91972873 | CK33: 52.85740204 | CL33: 7399.60337 | CM33: 52.62853093 | CN33: 11268.15038 | CO33: 40080.16223 | CP33: 68.50652 | CQ33: -28743.50533 | CR33: 21550.03592 | CS33: 12941.29307 | CT33: 68.84753 | CU33: 728.06253 | CV33: 112.69224 | CW33: 5201.3009 | CX33: 5176.775 | CY33: 0.75188 | CZ33: 24.90184 | DA33: 20.6276 | DB33: 1.04044 | DC33: 0 | DD33: 1.14925 | DE33: 46.15847 | DF33: 14461.95039 | DG33: 5349.38742 | DH33: 6250.12527 | DI33: 5 | DJ33: 86.59489 | DK33: -3.7992 | DL33: 4144.37992 | DM33: 7000 | DN33: 0 | DO33: -809.14296 | DP33: 34951.91927 | DQ33: 30816.03193 | DR33: 4135.88734 | DS33: -1.4992 | DT33: 2852.64642 | DU33: 211 | DW33: 650.18746 | DX33: 649.88349 | DY33: 650.59328 | EE33: 314
A34: 103 | B34: Humppila | C34: 2161 | D34: 22 | E34: 0.6645591122 | F34: 52.49121029 | G34: 46.81552024 | H34: 1643.68433 | I34: 35.4586455 | J34: 1301.07122 | K34: 15449.97118 | L34: 0.13762 | M34: -14148.76234 | N34: 8168.12399 | O34: 6764.671 | P34: 7.20154 | Q34: 68.02978 | R34: 31.38834 | S34: 754.59275 | T34: 737.23512 | U34: 0 | V34: 17.35763 | W34: 3.59451 | X34: 10.9842 | Y34: -2.046 | Z34: -0.04938 | AA34: 7.87256 | AB34: 479.29853 | AC34: 696.60605 | AD34: -555.87634 | AE34: 12.4 | AF34: 71.25191 | AG34: 396.66781 | AH34: -1169.81726 | AI34: 71.30195 | AJ34: -9.55862 | AK34: 224.38162 | AL34: 6099.26571 | AM34: 3354.55304 | AN34: 2744.71267 | AO34: 302.68444 | AP34: 365.44 | AQ34: 267 | AR34: 2125 | AS34: 9.36 | AT34: 0.363807862 | AU34: 69.14364637 | AV34: 54.54947343 | AW34: 752.72533 | AX34: 26.01893881 | AY34: 1936.88615 | AZ34: 8606.44135 | BA34: 0 | BB34: -6669.5552 | BC34: 4742.89005 | BD34: 2536.12466 | BE34: 24.10213 | BF34: 106.84914 | BG34: 12.43908 | BH34: 539.15158 | BI34: 641.49547 | BJ34: 0 | BK34: -102.34389 | BL34: 3.698 | BM34: 21.18802 | BN34: 4.4578 | BO34: 0.00297 | BP34: -115.37314 | BQ34: 401.95581 | BR34: 512.90108 | BS34: 481.69955 | BT34: 0 | BU34: 1.85055 | BV34: 333.07646 | BW34: -1668.8154 | BX34: -93.59632 | BY34: -1 | BZ34: 33.05208 | CA34: 4481.2869 | CB34: 2560.77238 | CC34: 1920.51452 | CD34: 293.32386 | CE34: 105.275 | CF34: 272 | CG34: 2094 | CH34: 9.3 | CI34: 0.01917523053 | CJ34: 74.97922716 | CK34: 50.90449253 | CL34: 988.53331 | CM34: 34.63375135 | CN34: 1953.9533 | CO34: 8829.54254 | CP34: 0 | CQ34: -6875.58924 | CR34: 4782.3686 | CS34: 2085.00522 | CT34: 26.30585 | CU34: 103.59687 | CV34: 0.55003 | CW34: -84.95641 | CX34: 607.89191 | CY34: -1514.53668 | CZ34: -1450.11666 | DA34: 0.2805 | DB34: 26.28558 | DC34: 2.6356 | DD34: 0.22376 | DE34: -1460.11959 | DF34: -510.33611 | DG34: -109.6251 | DH34: 922.79316 | DI34: 135.75 | DJ34: 893.35462 | DK34: 359.13618 | DL34: 868.51452 | DM34: -248.61776 | DN34: 497.3 | DO34: -3.31364 | DP34: 4845.21066 | DQ34: 2450.53902 | DR34: 2394.67164 | DS34: 285.29349 | DT34: 0 | DU34: 284 | DW34: 577.86757 | DX34: 644.49321 | DY34: 723.15168 | EE34: 28
A35: 105 | B35: Hyrynsalmi | C35: 2094 | D35: 21.75 | E35: 3.541065616 | F35: 42.34722497 | G35: 41.80035751 | H35: 5821.12839 | I35: 52.52117275 | J35: 19172.63943 | K35: 37417.80886 | L35: 0 | M35: -18245.16943 | N35: 8743.64652 | O35: 12598.597 | P35: 6.40048 | Q35: 90.11369 | R35: -45.66997 | S35: 2967.69091 | T35: 1506.33236 | U35: 332.98542 | V35: 1794.34397 | W35: 1.51005 | X35: 0 | Y35: 0 | Z35: 0 | AA35: 1795.85402 | AB35: 904.87061 | AC35: 2847.30762 | AD35: -2091.06947 | AE35: 101.98101 | AF35: 417.79393 | AG35: 0 | AH35: -773.41298 | AI35: 8.97544 | AJ35: 507.17678 | AK35: 1276.01309 | AL35: 12013.7527 | AM35: 8378.9159 | AN35: 3634.8368 | AO35: 0 | AP35: 484.73639 | AQ35: 28 | AR35: 2063 | AS35: 9.11 | AT35: 4.684798419 | AU35: 60.74022791 | AV35: 62.15037068 | AW35: 3888.80345 | AX35: 119.9990369 | AY35: 4837.85748 | AZ35: 10366.61992 | BA35: 0 | BB35: -5528.76244 | BC35: 4968.77501 | BD35: 2476.288 | BE35: 10.64832 | BF35: 167.75942 | BG35: -1.82922 | BH35: 1757.36025 | BI35: 1091.91043 | BJ35: 0 | BK35: 665.44982 | BL35: 2.16445 | BM35: -0.63411 | BN35: 0 | BO35: 0 | BP35: 668.24838 | BQ35: 3165.4613 | BR35: 1759.58528 | BS35: 1052.81903 | BT35: 0 | BU35: 77.34055 | BV35: 0 | BW35: -243.16961 | BX35: 0 | BY35: -132.91329 | BZ35: 784.1068 | CA35: 5009.49891 | CB35: 1829.26708 | CC35: 3180.23183 | CD35: 0 | CE35: 85.14816 | CF35: 126 | CG35: 2002 | CH35: 9 | CI35: 7.033356019 | CJ35: 46.9767798 | CK35: 69.31260776 | CL35: 3320.01467 | CM35: 106.532536 | CN35: 4048.94122 | CO35: 10188.06745 | CP35: 0 | CQ35: -6139.12623 | CR35: 5621.28508 | CS35: 2699.915 | CT35: 27.38018 | CU35: 172.16596 | CV35: -1.3471 | CW35: 2035.94097 | CX35: 1097.92252 | CY35: 0 | CZ35: 938.01845 | DA35: 4.18909 | DB35: -0.00672 | DC35: 0 | DD35: 0 | DE35: 942.2109 | DF35: 4087.41882 | DG35: 2000.66108 | DH35: 873.87749 | DI35: 17.62667 | DJ35: 56.3931 | DK35: -0.43327 | DL35: 141.78188 | DM35: 0 | DN35: -1323.0796 | DO35: 1200.80336 | DP35: 3545.0707 | DQ35: 1687.91847 | DR35: 1857.15223 | DS35: 0 | DT35: 86.81824 | DU35: 52 | DW35: 1633.55641 | DX35: 3.7633 | DY35: 19.82759 | EA35: 385 | EE35: 2451
A36: 106 | B36: Hyvinkää | C36: 46797 | D36: 20.25 | E36: 1.901249268 | F36: 61.28464205 | G36: 36.07170827 | H36: 51633.17958 | I36: 28.06668671 | J36: 332796.4679 | K36: 589396.1682 | L36: 199.11356 | M36: -256400.5867 | N36: 239879.9057 | O36: 70346.784 | P36: 52.31116 | Q36: 3242.18165 | R36: 494.18731 | S36: 51130.41977 | T36: 34966.48647 | U36: 0 | V36: 16163.9333 | W36: 0 | X36: 543.88158 | Y36: -133.53905 | Z36: -149.03315 | AA36: 15337.47952 | AB36: 71823.58196 | AC36: 39005.68491 | AD36: -53023.38665 | AE36: 1158.58503 | AF36: 11397.43958 | AG36: 162.05283 | AH36: -25356.1733 | AI36: 23490.61289 | AJ36: -10239.13856 | AK36: -1461.67713 | AL36: 292993.2103 | AM36: 269277.896 | AN36: 23715.31429 | AO36: 1675.496 | AP36: 39647.03418 | AQ36: 66 | AR36: 46901 | AS36: 7.61 | AT36: 2.014054197 | AU36: 131.4105496 | AV36: 43.22287021 | AW36: 41635.19746 | AX36: 60.78257609 | AY36: 92490.96143 | AZ36: 174306.9337 | BA36: 251.98083 | BB36: -81563.99144 | BC36: 123398.4823 | BD36: 21067.14348 | BE36: 1104.08653 | BF36: 6804.39911 | BG36: 199.51046 | BH36: 57400.83222 | BI36: 31940.73503 | BJ36: 0 | BK36: 25460.09719 | BL36: 10.66118 | BM36: 523.10342 | BN36: 332.90441 | BO36: -68.08645 | BP36: 25212.47291 | BQ36: 96463.67858 | BR36: 53503.97543 | BS36: 43634.74695 | BT36: 1686.547 | BU36: 5352.12414 | BV36: 76.435 | BW36: -25074.20248 | BX36: 17486.04361 | BY36: -122.06031 | BZ36: 16907.89962 | CA36: 251350.168 | CB36: 228435.749 | CC36: 22914.41904 | CD36: 1603.912 | CE36: 13923.83255 | CF36: 39 | CG36: 47031 | CH36: 7.6 | CI36: 0.8595008473 | CJ36: 137.2056666 | CK36: 44.98116158 | CL36: 42371.30516 | CM36: 59.43337206 | CN36: 91246.18312 | CO36: 175822.0828 | CP36: 498.60438 | CQ36: -84077.2953 | CR36: 115408.8962 | CS36: 11851.049 | CT36: 1221.24207 | CU36: 7545.68705 | CV36: 277.57223 | CW36: 37135.77715 | CX36: 34494.72091 | CY36: 0 | CZ36: 2641.05624 | DA36: 5.313 | DB36: 1215.11456 | DC36: 145.22734 | DD36: -46.24737 | DE36: 2137.79193 | DF36: 98601.47053 | DG36: 34049.32558 | DH36: 32131.18378 | DI36: 196.011 | DJ36: 3030.55104 | DK36: 136.584 | DL36: 44439.67671 | DM36: 34314.28572 | DN36: 0 | DO36: 5144.70384 | DP36: 241224.777 | DQ36: 207239.0952 | DR36: 33985.68184 | DS36: 1467.328 | DT36: 11028.47249 | DU36: 123 | DW36: 4163.25527 | DX36: 4108.51809 | DY36: 4103.20509 | EE36: 2426
A37: 108 | B37: Hämeenkyrö | C37: 10257 | D37: 22 | E37: 2.895041881 | F37: 65.81576619 | G37: 34.12675125 | H37: 15987.36311 | I37: 50.42236395 | J37: 43138.66521 | K37: 106473.6779 | L37: 80.02639 | M37: -63254.98633 | N37: 43779.38439 | O37: 29545.2919 | P37: 29.1846 | Q37: 687.46193 | R37: 75.83041 | S37: 9487.24304 | T37: 6835.54787 | U37: 0 | V37: 2651.69517 | W37: 0.27073 | X37: 105.74162 | Y37: -2.93787 | Z37: -155.82596 | AA37: 2387.46044 | AB37: 9271.96012 | AC37: 8714.73118 | AD37: -5479.64823 | AE37: 45.604 | AF37: 1444.59809 | AG37: 2.652 | AH37: -2827.0658 | AI37: 1284.66 | AJ37: -3549.05645 | AK37: 4725.28505 | AL37: 58958.45492 | AM37: 54178.10657 | AN37: 4780.34835 | AO37: 13.00899 | AP37: 10095.67942 | AQ37: 95 | AR37: 10319 | AS37: 9.36 | AT37: 3.443585667 | AU37: 113.3611792 | AV37: 42.03549653 | AW37: 11942.98563 | AX37: 84.9819111 | AY37: 11441.47396 | AZ37: 40276.08591 | BA37: 3.28448 | BB37: -28831.32747 | BC37: 24055.11951 | BD37: 13237.7744 | BE37: 246.051 | BF37: 959.35429 | BG37: 192.52211 | BH37: 7940.78526 | BI37: 5456.37571 | BJ37: 0 | BK37: 2484.40955 | BL37: 0.1365 | BM37: 23.83362 | BN37: 97.80226 | BO37: 20.9563 | BP37: 2579.47099 | BQ37: 10218.47568 | BR37: 7651.0895 | BS37: 8242.33769 | BT37: 34.4 | BU37: 701.19793 | BV37: 0 | BW37: -1625.20158 | BX37: 3094.32574 | BY37: -2303.20306 | BZ37: 144.34974 | CA37: 46645.06543 | CB37: 45364.28343 | CC37: 1280.782 | CD37: 0 | CE37: 8112.29807 | CF37: 158 | CG37: 10348 | CH37: 9.4 | CI37: 2.525026046 | CJ37: 113.754243 | CK37: 41.91567178 | CL37: 11042.6569 | CM37: 76.19768971 | CN37: 11648.46211 | CO37: 41852.57491 | CP37: 0.72075 | CQ37: -30203.39205 | CR37: 24440.44385 | CS37: 12706.36117 | CT37: 151.09199 | CU37: 1150.25389 | CV37: 170.79162 | CW37: 6115.04269 | CX37: 6442.88912 | CY37: 0 | CZ37: -327.84643 | DA37: 0.1365 | DB37: 57.2802 | DC37: 132.45293 | DD37: -12.5246 | DE37: -236.4217 | DF37: 9541.99083 | DG37: 5989.30729 | DH37: 7995.5381 | DI37: 184.14646 | DJ37: 435.52034 | DK37: 0 | DL37: 1727.06161 | DM37: 3006.7274 | DN37: -2.86211 | DO37: -1386.56401 | DP37: 47927.0809 | DQ37: 46661.49018 | DR37: 1265.59072 | DS37: 0 | DT37: 6971.66647 | DU37: 195 | DW37: 339.33557 | DX37: 338.98634 | DY37: 338.84984 | EE37: 0
A38: 109 | B38: Hämeenlinna | C38: 68043 | D38: 21 | E38: 1.174180773 | F38: 91.62210035 | G38: 34.1194175 | H38: 175894.1466 | I38: 80.12033566 | J38: 265937.3367 | K38: 651912.3093 | L38: -987.00962 | M38: -386961.9822 | N38: 327303.4133 | O38: 119344.806 | P38: 797.63482 | Q38: 7941.18841 | R38: 1093.93231 | S38: 53636.61574 | T38: 50954.85055 | U38: 0 | V38: 2681.76519 | W38: -95.66752 | X38: 217.17807 | Y38: -55.69612 | Z38: -424.73014 | AA38: 1888.49334 | AB38: 8356.32549 | AC38: 61670.06365 | AD38: -86374.02582 | AE38: 917.12813 | AF38: 2516.73162 | AG38: 39.29473 | AH38: -44502.0176 | AI38: 74959.80238 | AJ38: -35476.15536 | AK38: -21270.10242 | AL38: 533826.7072 | AM38: 494262.2503 | AN38: 39564.45688 | AO38: 777.13247 | AP38: 79159.31396 | AQ38: 135 | AR38: 68319 | AS38: 8.36 | AT38: 2.049627917 | AU38: 144.0153994 | AV38: 40.87149726 | AW38: 142328.5228 | AX38: 135.6003224 | AY38: 113984.4538 | AZ38: 264095.1845 | BA38: 1597.76149 | BB38: -148512.9692 | BC38: 185155.7613 | BD38: 42050.39678 | BE38: 1424.45567 | BF38: 7570.60977 | BG38: 6671.09117 | BH38: 79218.12594 | BI38: 45538.14896 | BJ38: -2061.84904 | BK38: 31618.12794 | BL38: -17216.90364 | BM38: 291.81301 | BN38: -25.63971 | BO38: 47.22724 | BP38: 14130.99882 | BQ38: 24451.90532 | BR38: 74495.94853 | BS38: 69930.59606 | BT38: 1390.811 | BU38: 3604.66458 | BV38: 198.05182 | BW38: -34773.0444 | BX38: 37868.75497 | BY38: 2446.01795 | BZ38: 9560.82805 | CA38: 428377.0674 | CB38: 383914.7124 | CC38: 44462.35498 | CD38: 384.04509 | CE38: 82517.44773 | CF38: 49 | CG38: 68433 | CH38: 8.4 | CI38: 2.494243501 | CJ38: 152.6905229 | CK38: 43.80671689 | CL38: 164604.7783 | CM38: 140.9760352 | CN38: 120399.3341 | CO38: 267954.6576 | CP38: 1052.1285 | CQ38: -146503.195 | CR38: 179891.4598 | CS38: 42892.89896 | CT38: 1857.77778 | CU38: 8129.6575 | CV38: 7397.21893 | CW38: 77406.503 | CX38: 49930.17816 | CY38: 0 | CZ38: 27476.32483 | DA38: -8227.17825 | DB38: 619.7082 | DC38: -195.8977 | DD38: -273.72764 | DE38: 18469.66714 | DF38: 42762.9953 | DG38: 67974.14482 | DH38: 116525.5547 | DI38: 1249.773 | DJ38: 39167.2895 | DK38: -6.14284 | DL38: 26163.77073 | DM38: 51001.752 | DN38: 8612.67024 | DO38: -8134.34741 | DP38: 461827.7188 | DQ38: 408535.8355 | DR38: 53291.8833 | DS38: 390.18793 | DT38: 102671.7211 | DU38: 40 | DW38: 75457.90168 | DX38: 92098.61005 | DY38: 100408.6597 | EE38: 15888
A39: 139 | B39: Ii | C39: 9853 | D39: 21.5 | E39: 0.5874490252 | F39: 73.6843811 | G39: 27.14615469 | H39: 12148.22539 | I39: 27.19402626 | J39: 67594.30766 | K39: 135982.6145 | L39: -79.73904 | M39: -68468.04586 | N39: 38859.89998 | O39: 36034.34966 | P39: 22.08042 | Q39: 539.57792 | R39: 15.92152 | S39: 5924.6278 | T39: 7593.77729 | U39: 0 | V39: -1669.14949 | W39: 5.66687 | X39: 6.41191 | Y39: 31.33121 | Z39: -27.8491 | AA39: -1666.41242 | AB39: 10800.04313 | AC39: 5599.4062 | AD39: -15860.06448 | AE39: 101.78432 | AF39: 1010.83845 | AG39: 595.0785 | AH39: -10464.28019 | AI39: 15205.9 | AJ39: -3181.47913 | AK39: -9148.03551 | AL39: 71695.85506 | AM39: 62520.90301 | AN39: 9174.95205 | AO39: 286.65341 | AP39: 1366.33261 | AQ39: 204 | AR39: 9766 | AS39: 8.86 | AT39: 0.9042478232 | AU39: 108.201665 | AV39: 37.31966815 | AW39: 9157.64639 | AX39: 45.68720158 | AY39: 22966.57551 | AZ39: 51194.17654 | BA39: 4.33401 | BB39: -28223.26702 | BC39: 23037.79624 | BD39: 17312.63308 | BE39: 515.10892 | BF39: 1162.53658 | BG39: 529.54127 | BH39: 12009.27591 | BI39: 7552.96408 | BJ39: 0 | BK39: 4456.31183 | BL39: 74.71422 | BM39: 0 | BN39: 59.32954 | BO39: -0.93902 | BP39: 4589.41657 | BQ39: 14998.8321 | BR39: 8418.69674 | BS39: 6871.11496 | BT39: 3.88163 | BU39: 11510.36515 | BV39: 600.4485 | BW39: -13404.05916 | BX39: 2254.2 | BY39: 5412.99088 | BZ39: 13061.82856 | CA39: 49652.04907 | CB39: 35631.84576 | CC39: 14020.20331 | CD39: 286 | CE39: 48.63 | CF39: 38 | CG39: 9806 | CH39: 8.9 | CI39: 0.7870587115 | CJ39: 121.0896404 | CK39: 36.78621528 | CL39: 6714.85972 | CM39: 35.11947679 | CN39: 18987.72153 | CO39: 51357.16843 | CP39: 13.55225 | CQ39: -32355.89465 | CR39: 22779.85822 | CS39: 16098.24521 | CT39: 80.47977 | CU39: 1369.11064 | CV39: 291.43212 | CW39: 5525.01003 | CX39: 6345.74481 | CY39: 0 | CZ39: -820.73478 | DA39: 562.15536 | DB39: 0 | DC39: -11.47919 | DD39: -6.85387 | DE39: -276.91248 | DF39: 14716.7238 | DG39: 5289.05475 | DH39: 9305.21583 | DI39: 405.34758 | DJ39: 300.12448 | DK39: 520.0785 | DL39: 7390.23675 | DM39: 1600 | DN39: 7410.15168 | DO39: -3310.68902 | DP39: 52022.51802 | DQ39: 30562.54859 | DR39: 21459.96943 | DS39: 286 | DT39: 66.4841 | DU39: 201 | DW39: 2477.02307 | DX39: 2184.14874 | DY39: 1623.19138 | EE39: 286
A40: 140 | B40: Iisalmi | C40: 20801 | D40: 20.5 | E40: 1.490354428 | F40: 57.41421909 | G40: 43.47141175 | H40: 44749.95114 | I40: 51.59232482 | J40: 125659.1225 | K40: 270611.585 | L40: 414.23915 | M40: -144538.2234 | N40: 84766.9991 | O40: 79840.35122 | P40: 59.53252 | Q40: 894.0596 | R40: 689.24035 | S40: 19923.84023 | T40: 16185.84312 | U40: 371.20725 | V40: 4109.20436 | W40: -954.46412 | X40: 50.96814 | Y40: -63.42523 | Z40: -3.5474 | AA40: 3036.79947 | AB40: 53454.27534 | AC40: 18843.125 | AD40: -30432.86628 | AE40: 28.29135 | AF40: 1109.84935 | AG40: -7.3695 | AH40: -13074.36257 | AI40: 13025.24199 | AJ40: 5369.3191 | AK40: -10451.60058 | AL40: 126578.0677 | AM40: 106169.9263 | AN40: 20408.14144 | AO40: 9.17623 | AP40: 8795.54413 | AQ40: 86 | AR40: 20618 | AS40: 7.86 | AT40: 1.469918786 | AU40: 95.6395122 | AV40: 49.36479387 | AW40: 25734.27208 | AX40: 48.50284226 | AY40: 54265.65099 | AZ40: 118125.5345 | BA40: 1.41748 | BB40: -63858.466 | BC40: 45400.5951 | BD40: 37937.72323 | BE40: 132.0796 | BF40: 2247.31122 | BG40: 1594.85916 | BH40: 18959.47987 | BI40: 12969.94311 | BJ40: 163.36933 | BK40: 6152.90609 | BL40: 1267.32426 | BM40: 63.00509 | BN40: -106.51706 | BO40: -4.62411 | BP40: 7246.08409 | BQ40: 58770.67895 | BR40: 20523.70216 | BS40: 59495.49792 | BT40: 386.71879 | BU40: 12035.69856 | BV40: -15.86886 | BW40: -12179.87434 | BX40: 27421.41575 | BY40: 3262.92199 | BZ40: -26549.37841 | CA40: 107498.4807 | CB40: 90502.79735 | CC40: 16995.68336 | CD40: 6.93182 | CE40: 7810.41955 | CF40: 102 | CG40: 20463 | CH40: 7.9 | CI40: 1.722724239 | CJ40: 94.3798032 | CK40: 51.68886133 | CL40: 28333.15418 | CM40: 73.24460007 | CN40: 54946.73265 | CO40: 113260.8624 | CP40: 389.95443 | CQ40: -57924.17531 | CR40: 42858.5763 | CS40: 36548.09118 | CT40: 282.02911 | CU40: 2508.40376 | CV40: 1972.11555 | CW40: 21228.23307 | CX40: 13388.3354 | CY40: 15.09426 | CZ40: 7847.4448 | DA40: -2170.2638 | DB40: 218.4646 | DC40: -67.77142 | DD40: -7.1633 | DE40: 5493.01398 | DF40: 64255.67078 | DG40: 20002.84494 | DH40: 12173.59368 | DI40: 226.80888 | DJ40: 267.45462 | DK40: -7.56 | DL40: 11270.1432 | DM40: -176.06775 | DN40: 6905.75787 | DO40: 8323.51476 | DP40: 102958.0276 | DQ40: 79416.5864 | DR40: 23541.44123 | DS40: 6.93182 | DT40: 5838 | DU40: 46 | DW40: 16053.00862 | DX40: 14965.83386 | DY40: 17141.5646 | EE40: 1070
A41: 142 | B41: Iitti | C41: 6504 | D41: 21.25 | E41: 3.091415447 | F41: 32.0811396 | G41: 52.2886552 | H41: 9928.707 | I41: 45.40748647 | J41: 33533.47915 | K41: 74522.97002 | L41: -12.46318 | M41: -41001.95405 | N41: 27267.44503 | O41: 19166.135 | P41: 21.23398 | Q41: 81.18965 | R41: 140.54664 | S41: 5512.21695 | T41: 4351.96122 | U41: 0 | V41: 1160.25573 | W41: 0 | X41: 0.00018 | Y41: -40.02873 | Z41: 0.40518 | AA41: 1120.632 | AB41: 6363.44167 | AC41: 5978.68286 | AD41: -3167.15721 | AE41: 89.47403 | AF41: 256.9447 | AG41: -220.84867 | AH41: -1728.14549 | AI41: 1250.145 | AJ41: 0 | AK41: 3157.94438 | AL41: 15776.66052 | AM41: 14298.92386 | AN41: 1477.73666 | AO41: 6.86128 | AP41: 18024.808 | AQ41: 123 | AR41: 6444 | AS41: 8.61 | AT41: 2.513929992 | AU41: 63.9162905 | AV41: 61.45205931 | AW41: 10873.698 | AX41: 140.1167673 | AY41: 7470.069 | AZ41: 23236.183 | BA41: 0 | BB41: -15766.114 | BC41: 15512.535 | BD41: 3999.184 | BE41: 243.63 | BF41: 173.008 | BG41: 126.448 | BH41: 3942.675 | BI41: 3411.721 | BJ41: 0 | BK41: 530.954 | BL41: 0 | BM41: 0 | BN41: -23.44 | BO41: 0 | BP41: 507.514 | BQ41: 6637.699 | BR41: 3814.197 | BS41: 3024.064 | BT41: 15 | BU41: 824.901 | BV41: -301.813 | BW41: -1464.143 | BX41: 0 | BY41: 0 | BZ41: 1630.034 | CA41: 10777.679 | CB41: 9342.016 | CC41: 1435.663 | CD41: 0 | CE41: 6623.968 | CF41: 205 | CG41: 6401 | CH41: 8.6 | CI41: 2.375629832 | CJ41: 61.32445057 | CK41: 63.36292542 | CL41: 7580.064 | CM41: 79.1778463 | CN41: 7382.878 | CO41: 23700.814 | CP41: 0 | CQ41: -16317.936 | CR41: 15300.583 | CS41: 3886.349 | CT41: 219.362 | CU41: 277.605 | CV41: 228.981 | CW41: 3039.734 | CX41: 2362.374 | CY41: 0 | CZ41: 677.36 | DA41: 0 | DB41: 0 | DC41: 0 | DD41: 0 | DE41: 677.36 | DF41: 7315.053 | DG41: 2261.334 | DH41: 9556.09 | DI41: 84.05 | DJ41: 3141.639 | DK41: 262.274 | DL41: 1118.799 | DM41: 1484.947 | DN41: 0 | DO41: -4069.067 | DP41: 10411.878 | DQ41: 9375.553 | DR41: 1036.325 | DS41: 0 | DT41: 5897.659 | DU41: 232 | DW41: 183.34379 | DX41: 182.687 | DY41: 182.687 | EE41: 493
A42: 143 | B42: Ikaalinen | C42: 6804 | D42: 22 | E42: 1.518810748 | F42: 66.80014146 | G42: 30.91788778 | H42: 8757.40986 | I42: 31.39214015 | J42: 38827.41404 | K42: 89309.46825 | L42: 75.86743 | M42: -50406.18678 | N42: 27519.33761 | O42: 28486.01988 | P42: 19.80559 | Q42: 344.74825 | R42: 99.7776 | S42: 5374.00565 | T42: 4853.69126 | U42: 0 | V42: 520.31439 | W42: -1.63996 | X42: 103.47976 | Y42: -32.34266 | Z42: -183.37253 | AA42: 199.47948 | AB42: 7401.29761 | AC42: 4951.41622 | AD42: -8558.93407 | AE42: 0 | AF42: 375.12885 | AG42: 0 | AH42: -3420.53581 | AI42: 1654.41444 | AJ42: 1426.67104 | AK42: -3232.389 | AL42: 45819.34387 | AM42: 30532.49265 | AN42: 15286.85122 | AO42: 12.11948 | AP42: 8532.431 | AQ42: 134 | AR42: 6850 | AS42: 9.36 | AT42: 1.60358768 | AU42: 103.7284251 | AV42: 37.29432926 | AW42: 6125.35793 | AX42: 48.68622166 | AY42: 23002.52915 | AZ42: 38242.12159 | BA42: 6.13722 | BB42: -15233.45522 | BC42: 16134.83885 | BD42: 3842.757 | BE42: 67.47039 | BF42: 833.19656 | BG42: 116.92282 | BH42: 4095.33728 | BI42: 3065.26419 | BJ42: 0 | BK42: 1030.07309 | BL42: -0.0394 | BM42: 45.79114 | BN42: -47.75671 | BO42: -18.37442 | BP42: 918.11142 | BQ42: 7210.32011 | BR42: 3784.68544 | BS42: 4489.24596 | BT42: 0 | BU42: 18.37169 | BV42: 0 | BW42: -2240.24551 | BX42: 1000 | BY42: 1652.1564 | BZ42: -686.18883 | CA42: 38137.76183 | CB42: 22011.59657 | CC42: 16126.16526 | CD42: 0 | CE42: 4526.95648 | CF42: 210 | CG42: 6758 | CH42: 9.4 | CI42: 3.994389017 | CJ42: 103.2847678 | CK42: 39.44123444 | CL42: 6608.22267 | CM42: 62.28937077 | CN42: 11536.1704 | CO42: 34097.13162 | CP42: 1.33606 | CQ42: -22559.62516 | CR42: 16716.90416 | CS42: 12277.87508 | CT42: 54.35015 | CU42: 1105.98435 | CV42: 21.10661 | CW42: 5404.62649 | CX42: 3726.70498 | CY42: 0 | CZ42: 1677.92151 | DA42: 0.1106 | DB42: 89.15734 | DC42: 30.66353 | DD42: -25.34521 | DE42: 1638.77176 | DF42: 6933.07981 | DG42: 5391.52311 | DH42: 2974.34057 | DI42: 48.198 | DJ42: 36.35113 | DK42: 0 | DL42: 523.95475 | DM42: 100.18228 | DN42: -1586.12165 | DO42: 2501.73167 | DP42: 33476.19439 | DQ42: 17455.40675 | DR42: 16020.78764 | DS42: 0 | DT42: 4086.73883 | DU42: 120 | DW42: 817.96412 | DX42: 729.96243 | DY42: 729.14542 | EC42: 514 | EE42: 0
A43: 145 | B43: Ilmajoki | C43: 12369 | D43: 21 | E43: 0.7592385093 | F43: 74.8391109 | G43: 22.20281537 | H43: 7015.76658 | I43: 15.26601059 | J43: 72263.76793 | K43: 150649.3091 | L43: 8.99237 | M43: -78376.54881 | N43: 47789.53491 | O43: 35262.73 | P43: 5.30441 | Q43: 615.47484 | R43: 194.13724 | S43: 4259.68291 | T43: 6419.90357 | U43: 0 | V43: -2160.22066 | W43: 91.50289 | X43: 1.60204 | Y43: 3.38061 | Z43: 21.76537 | AA43: -2045.17383 | AB43: 1847.46491 | AC43: 3199.9887 | AD43: -10173.38414 | AE43: 123.88846 | AF43: 626.38525 | AG43: -200.73889 | AH43: -5805.64012 | AI43: 6178.02759 | AJ43: 3732.054 | AK43: -6223.12173 | AL43: 88250.24897 | AM43: 79714.96338 | AN43: 8535.28559 | AO43: 158.142 | AP43: 3453.04983 | AQ43: 269 | AR43: 12343 | AS43: 8.36 | AT43: 0.8806039404 | AU43: 151.8997466 | AV43: 26.94782154 | AW43: 4433.62985 | AX43: 24.31543563 | AY43: 16977.93366 | AZ43: 50575.86753 | BA43: 0 | BB43: -33597.93387 | BC43: 26165.0722 | BD43: 15829.194 | BE43: 26.56176 | BF43: 1595.92957 | BG43: 85.66943 | BH43: 6912.63395 | BI43: 6328.9622 | BJ43: 0 | BK43: 583.67175 | BL43: 3.9885 | BM43: 1.97776 | BN43: 0 | BO43: 0.11891 | BP43: 585.8014 | BQ43: 2818.79285 | BR43: 6992.10871 | BS43: 6125.45123 | BT43: 70.32894 | BU43: 182.82371 | BV43: 75.92285 | BW43: -8066.26149 | BX43: 9902.83357 | BY43: -1060.43191 | BZ43: 1119.81013 | CA43: 78198.85634 | CB43: 70804.46845 | CC43: 7394.38789 | CD43: 173.266 | CE43: 1685.01816 | CF43: 223 | CG43: 12429 | CH43: 8.4 | CI43: 0.8315606303 | CJ43: 153.2538629 | CK43: 27.78707972 | CL43: 3046.89887 | CM43: 17.39869889 | CN43: 17845.39454 | CO43: 49376.11813 | CP43: 0 | CQ43: -31530.72359 | CR43: 25857.66912 | CS43: 13766.195 | CT43: 15.52249 | CU43: 1905.74484 | CV43: 182.4524 | CW43: 6385.37058 | CX43: 5644.04712 | CY43: 0 | CZ43: 741.32346 | DA43: -0.39854 | DB43: -3.95552 | DC43: 0 | DD43: -0.12698 | DE43: 742.7757 | DF43: 3477.64256 | DG43: 6134.77272 | DH43: 4350.49349 | DI43: 81.85707 | DJ43: 401.46865 | DK43: 144.4415 | DL43: 8064.80345 | DM43: 5475.41258 | DN43: -513.8903 | DO43: 2267.60495 | DP43: 76858.08494 | DQ43: 69912.03993 | DR43: 6946.04501 | DS43: 119.87135 | DT43: 1510.64683 | DU43: 219 | DW43: 920.7477 | DX43: 913.44147 | DY43: 831.25911 | EE43: 3905
A44: 146 | B44: Ilomantsi | C44: 4492 | D44: 21 | E44: 1.781791113 | F44: 35.39565126 | G44: 44.35896483 | H44: 13872.28123 | I44: 61.85221617 | J44: 38493.48616 | K44: 77326.18863 | L44: -8.17418 | M44: -38840.87665 | N44: 19051.13723 | O44: 23419.857 | P44: 32.65574 | Q44: 240.38697 | R44: 52.8539 | S44: 3475.24025 | T44: 2749.94177 | U44: -55.07015 | V44: 670.22833 | W44: 7.61849 | X44: 56.30349 | Y44: -60.98593 | Z44: 35.18068 | AA44: 595.73808 | AB44: 3283.13583 | AC44: 4120.46107 | AD44: -2096.0817 | AE44: 32.94984 | AF44: 116.13796 | AG44: -3.24947 | AH44: -1844.9457 | AI44: 1463.53134 | AJ44: -333.61715 | AK44: 2173.46717 | AL44: 18646.90995 | AM44: 16629.78 | AN44: 2017.12995 | AO44: 0.18947 | AP44: 3650.61113 | AQ44: 141 | AR44: 4406 | AS44: 8.36 | AT44: 2.184466521 | AU44: 75.53165966 | AV44: 58.29050161 | AW44: 12444.50646 | AX44: 195.2278222 | AY44: 8254.01002 | AZ44: 19379.99128 | BA44: -1.03725 | BB44: -11127.01851 | BC44: 10518.5068 | BD44: 4989.3 | BE44: 51.6034 | BF44: 400.8621 | BG44: 497.90676 | BH44: 4529.43635 | BI44: 2164.44598 | BJ44: 4.30535 | BK44: 2369.29572 | BL44: -12.53896 | BM44: 119.2278 | BN44: 0 | BO44: -12.33513 | BP44: 2225.19383 | BQ44: 3768.24239 | BR44: 4338.23459 | BS44: 1131.24568 | BT44: 0 | BU44: 137.31756 | BV44: -0.25655 | BW44: -1856.11845 | BX44: 0 | BY44: 2.38537 | BZ44: 3344.30647 | CA44: 14183.71303 | CB44: 12269.93095 | CC44: 1913.78208 | CD44: 0 | CE44: 1218.18869 | CF44: 73 | CG44: 4382 | CH44: 8.4 | CI44: 1.850047703 | CJ44: 70.50735068 | CK44: 62.51288068 | CL44: 13761.88897 | CM44: 216.606038 | CN44: 6666.10009 | CO44: 19424.34198 | CP44: 0.88532 | CQ44: -12757.35657 | CR44: 10599.9568 | CS44: 5902.97318 | CT44: 79.96401 | CU44: 578.49393 | CV44: 471.77725 | CW44: 3718.82074 | CX44: 1772.31099 | CY44: 9.11338 | CZ44: 1951.06644 | DA44: 1.52895 | DB44: 141.75246 | DC44: -5.89616 | DD44: 35.54785 | DE44: 1911.37085 | DF44: 5715.88725 | DG44: 3715.01376 | DH44: 963.71688 | DI44: 0.17882 | DJ44: 32.82713 | DK44: -7.33 | DL44: 1744.31897 | DM44: 0 | DN44: 0 | DO44: 2784.30283 | DP44: 12437.00869 | DQ44: 10992.93281 | DR44: 1444.07588 | DS44: 0 | DT44: 3221.01326 | DU44: 108 | DW44: 1442.01968 | DX44: 1591.80024 | DY44: 1633.37656 | EE44: 907
A45: 153 | B45: Imatra | C45: 25208 | D45: 20 | E45: 0.7755816453 | F45: 83.81379421 | G45: 28.22304117 | H45: 21125.98122 | I45: 19.22721089 | J45: 166021.3326 | K45: 337836.4827 | L45: -169.05767 | M45: -171984.2077 | N45: 111808.6619 | O45: 83673.14862 | P45: 650.44519 | Q45: 2421.06268 | R45: -182.09336 | S45: 21544.89195 | T45: 23191.84141 | U45: 0 | V45: -1646.94946 | W45: 0.56277 | X45: 273.17673 | Y45: -74.59172 | Z45: -13.2957 | AA45: -2007.45084 | AB45: 45889.49846 | AC45: 17395.11287 | AD45: -31985.17538 | AE45: 1398.06223 | AF45: 151.87779 | AG45: -282.24595 | AH45: -28479.55852 | AI45: 29095.225 | AJ45: 10559.13241 | AK45: -13040.12249 | AL45: 253727.1389 | AM45: 219560.5633 | AN45: 34166.57557 | AO45: 8795.39222 | AP45: 111.7714 | AQ45: 121 | AR45: 24919 | AS45: 7.36 | AT45: 1.295339921 | AU45: 190.2296659 | AV45: 30.18681171 | AW45: 9843.39684 | AX45: 21.12448064 | AY45: 49997.3862 | AZ45: 112413.3019 | BA45: -128.25326 | BB45: -62544.16895 | BC45: 58573.59153 | BD45: 36119.21504 | BE45: 812.56721 | BF45: 5210.063 | BG45: 258.21186 | BH45: 28009.35369 | BI45: 23266.81927 | BJ45: 0 | BK45: 4742.53442 | BL45: 50.25964 | BM45: 198.37315 | BN45: 53.8026 | BO45: 59.24337 | BP45: 4707.46688 | BQ45: 51513.10657 | BR45: 28355.05971 | BS45: 31743.87402 | BT45: 5191.73589 | BU45: 643.25427 | BV45: -18.725 | BW45: -20435.26465 | BX45: 34793.88822 | BY45: -5057.58091 | BZ45: 2446.17585 | CA45: 247797.6515 | CB45: 221073.3595 | CC45: 26724.29202 | CD45: 8502.87475 | CE45: 29546.16766 | CF45: 56 | CG45: 24724 | CH45: 8.6 | CI45: 0.9190308609 | CJ45: 190.3856578 | CK45: 31.52556666 | CL45: 8083.45554 | CM45: 16.37208084 | CN45: 48130.77704 | CO45: 113692.1253 | CP45: 387.6176 | CQ45: -65173.73068 | CR45: 63388.76743 | CS45: 30802.97814 | CT45: 958.46663 | CU45: 5488.54487 | CV45: 700.61639 | CW45: 25188.55304 | CX45: 19817.2524 | CY45: 0 | CZ45: 5371.30064 | DA45: 9.82531 | DB45: 142.2264 | DC45: -84.467 | DD45: 20.92304 | DE45: 5246.46879 | DF45: 56800.02368 | DG45: 24722.56173 | DH45: 31021.80851 | DI45: 2472.84649 | DJ45: 1060.07426 | DK45: -1288.54614 | DL45: 27891.28949 | DM45: 18145.764 | DN45: 0 | DO45: -2766.32603 | DP45: 242806.553 | DQ45: 215283.6307 | DR45: 27522.92233 | DS45: 9791.42089 | DT45: 26166.78162 | DU45: 51 | DW45: 1515.67172 | DX45: 1475.03321 | DY45: 1354.84221 | EE45: 3982
A46: 148 | B46: Inari | C46: 7047 | D46: 19 | E46: 3.854775607 | F46: 75.47556208 | G46: 49.79583562 | H46: 14816.68599 | I46: 49.25756901 | J46: 41446.05733 | K46: 89694.97618 | L46: 0 | M46: -48248.91885 | N46: 31957.63185 | O46: 27756.711 | P46: 58.92219 | Q46: 526.4182 | R46: -4.78723 | S46: 10993.14076 | T46: 9143.93104 | U46: 0 | V46: 1849.20972 | W46: 24.02201 | X46: 204.0171 | Y46: -68.3759 | Z46: -102.0531 | AA46: 1498.78563 | AB46: 34185.38145 | AC46: 10214.12412 | AD46: -17071.90935 | AE46: 184.8187 | AF46: 5132.10779 | AG46: 0 | AH46: -2461.96819 | AI46: 5110.37961 | AJ46: -3355.26534 | AK46: -1540.85874 | AL46: 44548.97838 | AM46: 38499.41196 | AN46: 6049.56642 | AO46: 260.12809 | AP46: 26275.098 | AQ46: 19 | AR46: 7127 | AS46: 6.36 | AT46: 3.22683997 | AU46: 114.508889 | AV46: 54.72806109 | AW46: 13086.81882 | AX46: 76.65929192 | AY46: 26947.74997 | AZ46: 45266.71538 | BA46: 7.47903 | BB46: -18311.48638 | BC46: 18491.71531 | BD46: 10145.673 | BE46: 201.14867 | BF46: 941.17695 | BG46: -5.7241 | BH46: 9580.14955 | BI46: 7488.29326 | BJ46: 0 | BK46: 2091.85629 | BL46: 117.50596 | BM46: 190.36417 | BN46: 49 | BO46: -164.38598 | BP46: 1903.6121 | BQ46: 35826.60094 | BR46: 8386.04844 | BS46: 13789.07339 | BT46: 0 | BU46: 5910.42862 | BV46: 260.12809 | BW46: -2319.38961 | BX46: 2637 | BY46: -2044.80853 | BZ46: 507.40367 | CA46: 36398.26554 | CB46: 30354.49336 | CC46: 6043.77218 | CD46: 0 | CE46: 36201.96449 | CF46: 27 | CG46: 7224 | CH46: 6.4 | CI46: 3.532162164 | CJ46: 113.1858823 | CK46: 55.51110232 | CL46: 13187.6933 | CM46: 77.40396361 | CN46: 27775.91107 | CO46: 46545.442 | CP46: 22.95563 | CQ46: -18746.5753 | CR46: 17756.37593 | CS46: 11374.16041 | CT46: 196.8818 | CU46: 1119.64592 | CV46: 182.9277 | CW46: 9644.12462 | CX46: 7775.69881 | CY46: 0 | CZ46: 1868.42581 | DA46: 2.49771 | DB46: 542.03596 | DC46: -73.02964 | DD46: -161.63315 | DE46: 1365.24275 | DF46: 35660.56642 | DG46: 8811.36982 | DH46: 12411.11205 | DI46: 358.796 | DJ46: 3269.75192 | DK46: 0 | DL46: 1927.71432 | DM46: 2900 | DN46: -2567.65639 | DO46: 28.80569 | DP46: 34802.89483 | DQ46: 29505.74009 | DR46: 5297.15474 | DS46: 0 | DT46: 41352.258 | DU46: 17 | DW46: 6907.68478 | DX46: 6785.15793 | DY46: 6782.66022 | EE46: 46074
A47: 149 | B47: Inkoo | C47: 5384 | D47: 20.75 | E47: 1.506059203 | F47: 64.71358674 | G47: 37.36835757 | H47: 4532.91128 | I47: 24.05805253 | J47: 19410.03878 | K47: 53799.20024 | L47: -17.12861 | M47: -34406.29007 | N47: 29460.20599 | O47: 8647.38568 | P47: 4.19889 | Q47: 167.53713 | R47: 9.91699 | S47: 3547.88035 | T47: 2773.86307 | U47: 0 | V47: 774.01728 | W47: 0 | X47: 0.76157 | Y47: -0.82534 | Z47: 1.3624 | AA47: 773.79277 | AB47: 14596.3107 | AC47: 3199.16643 | AD47: -12451.42457 | AE47: 128.14129 | AF47: 535.63946 | AG47: 4.44437 | AH47: -2299.44257 | AI47: 10613.9215 | AJ47: 70.16731 | AK47: -8588.47739 | AL47: 27085.24006 | AM47: 23799.06195 | AN47: 3286.17811 | AO47: 119.8918 | AP47: 4781.88 | AQ47: 190 | AR47: 5379 | AS47: 8.11 | AT47: 0.7784323164 | AU47: 166.7895134 | AV47: 35.05803269 | AW47: 1770.8998 | AX47: 16.62138761 | AY47: 4410.48462 | AZ47: 20229.15078 | BA47: 0 | BB47: -15818.66616 | BC47: 16306.53272 | BD47: 2546.16255 | BE47: 12.70723 | BF47: 752.02065 | BG47: 9.24118 | BH47: 2303.95687 | BI47: 2619.85367 | BJ47: 0 | BK47: -315.8968 | BL47: 1.2469 | BM47: 0.00019 | BN47: 0 | BO47: 0 | BP47: -314.65009 | BQ47: 14289.78639 | BR47: 2206.34507 | BS47: 14724.15315 | BT47: 898.5228 | BU47: 107.71857 | BV47: 6.67939 | BW47: -3173.78954 | BX47: 8000 | BY47: 2949.53781 | BZ47: -11511.56671 | CA47: 30852.56326 | CB47: 23874.38332 | CC47: 6978.17994 | CD47: 113.21241 | CE47: 587.326 | CF47: 251 | CG47: 5402 | CH47: 8.1 | CI47: 0.5038584065 | CJ47: 162.6448374 | CK47: 32.98508855 | CL47: 402.02 | CM47: 4.508896931 | CN47: 5565.64882 | CO47: 21438.15387 | CP47: 672.02031 | CQ47: -15200.48474 | CR47: 15275.7556 | CS47: 2554.47044 | CT47: 46.1597 | CU47: 1210.29733 | CV47: 8.89103 | CW47: 1474.4947 | CX47: 3685.45252 | CY47: 0 | CZ47: -2210.95782 | DA47: 0.62139 | DB47: 0 | DC47: 0 | DD47: 0 | DE47: -2210.33643 | DF47: 12079.44995 | DG47: -3.03391 | DH47: 5658.4362 | DI47: 471.02559 | DJ47: -303.01784 | DK47: -69.58221 | DL47: 4118.16796 | DM47: 3000 | DN47: 5000 | DO47: -5493.46236 | DP47: 34734.39531 | DQ47: 23096.2044 | DR47: 11638.19091 | DS47: 109.39562 | DT47: 583.387 | DU47: 266 | DW47: 17.72239 | DX47: 12.54655 | DY47: 11.92516 | EE47: 1010
A48: 151 | B48: Isojoki | C48: 1852 | D48: 22.5 | E48: 3.541860406 | F48: 23.33623369 | G48: 57.00994949 | H48: 4575.46728 | I48: 49.11116524 | J48: 17394.68108 | K48: 32876.70341 | L48: 1.62997 | M48: -15480.39236 | N48: 8126.87794 | O48: 9104.79821 | P48: 0 | Q48: 36.9553 | R48: 11.98335 | S48: 1726.31184 | T48: 924.45796 | U48: 0 | V48: 801.85388 | W48: -2.29039 | X48: 0 | Y48: 0.61277 | Z48: 3.94665 | AA48: 804.12291 | AB48: 2984.64529 | AC48: 1700.33847 | AD48: -603.03192 | AE48: 31.7754 | AF48: 27.2541 | AG48: 24.9024 | AH48: -460.88113 | AI48: 4.1225 | AJ48: -124.4503 | AK48: 1156.33605 | AL48: 3290.40813 | AM48: 2952.55691 | AN48: 337.85122 | AO48: 17.51653 | AP48: 2399.14342 | AQ48: 93 | AR48: 1814 | AS48: 9.86 | AT48: 21.86651838 | AU48: 23.85069607 | AV48: 76.58542851 | AW48: 3620.08833 | AX48: 158.395755 | AY48: 2135.24929 | AZ48: 7395.74769 | BA48: 97.02421 | BB48: -5163.47419 | BC48: 5091.68311 | BD48: 1675.54845 | BE48: 0 | BF48: 17.39011 | BG48: 1.84291 | BH48: 1588.21017 | BI48: 1527.34228 | BJ48: -51.89021 | BK48: 8.97768 | BL48: -1.99998 | BM48: 0 | BN48: -0.73183 | BO48: 0 | BP48: 6.24587 | BQ48: 3722.88673 | BR48: 1624.75524 | BS48: 870.94956 | BT48: 1.2 | BU48: 581.14293 | BV48: 18 | BW48: -56.03723 | BX48: 0 | BY48: 0 | BZ48: 1336.14861 | CA48: 752.02323 | CB48: 719.07873 | CC48: 32.9445 | CD48: 0 | CE48: 56.88283 | CF48: 115 | CG48: 1794 | CH48: 9.8 | CI48: 19.45755619 | CJ48: 22.24129464 | CK48: 77.9141208 | CL48: 5193.50227 | CM48: 237.1379995 | CN48: 2072.85044 | CO48: 7466.57126 | CP48: 25.86568 | CQ48: -5367.85514 | CR48: 5552.67815 | CS48: 1357.26379 | CT48: 59.08298 | CU48: 23.09507 | CV48: 1.57111 | CW48: 1579.64582 | CX48: 673.75433 | CY48: 44.3636 | CZ48: 928.07329 | DA48: 2.64979 | DB48: 0 | DC48: -0.45734 | DD48: -4.73636 | DE48: 925.52938 | DF48: 4652.28033 | DG48: 1549.62135 | DH48: 403.76368 | DI48: 34.03961 | DJ48: 39.5 | DK48: -17.55 | DL48: 59.27606 | DM48: 0 | DN48: 0 | DO48: 1219.39728 | DP48: 708.03051 | DQ48: 661.09051 | DR48: 46.94 | DS48: 35.55 | DT48: 98.04861 | DU48: 95 | DW48: 1399.63197 | DX48: 1396.75364 | DY48: 1388.27873 | EE48: 246
A49: 152 | B49: Isokyrö | C49: 4406 | D49: 21.5 | E49: 3.644985057 | F49: 43.43632057 | G49: 56.66156685 | H49: 4279.6194 | I49: 31.58455831 | J49: 14591.96858 | K49: 43428.95416 | L49: 40.72701 | M49: -28796.25857 | N49: 17476.48457 | O49: 15339.9238 | P49: 9.59349 | Q49: 95.78918 | R49: 64.0779 | S49: 3998.03201 | T49: 2792.75485 | U49: 0 | V49: 1205.27716 | W49: -92.36348 | X49: 0 | Y49: 0 | Z49: 9.21932 | AA49: 1122.133 | AB49: 16388.95374 | AC49: 3891.07639 | AD49: -4800.59569 | AE49: 33.40573 | AF49: 86.09752 | AG49: -14.04832 | AH49: -1027.34881 | AI49: 138.52264 | AJ49: 1614.8175 | AK49: -790.01605 | AL49: 12021.80529 | AM49: 9409.14028 | AN49: 2612.66501 | AO49: 161.85746 | AP49: 5510.97288 | AQ49: 101 | AR49: 4357 | AS49: 8.86 | AT49: 3.98945803 | AU49: 64.05563739 | AV49: 68.1707288 | AW49: 2642.84153 | AX49: 43.90431758 | AY49: 5340.41218 | AZ49: 16254.81374 | BA49: 18.46491 | BB49: -10895.93665 | BC49: 9334.23566 | BD49: 5187.70103 | BE49: 10.35269 | BF49: 182.89064 | BG49: 22.24287 | BH49: 3475.70496 | BI49: 2318.6609 | BJ49: 0 | BK49: 1157.04406 | BL49: -0.70549 | BM49: 0 | BN49: 0 | BO49: 0 | BP49: 1156.33857 | BQ49: 17580.19311 | BR49: 3461.82396 | BS49: 4732.96716 | BT49: 8.16318 | BU49: 38.57795 | BV49: 26.98133 | BW49: -734.17518 | BX49: 1749.2 | BY49: 4.55 | BZ49: -1224.40207 | CA49: 8051.47908 | CB49: 7304.5639 | CC49: 746.91518 | CD49: 131.11613 | CE49: 206.076 | CF49: 142 | CG49: 4319 | CH49: 9.5 | CI49: 4.009480844 | CJ49: 63.27279288 | CK49: 68.98318983 | CL49: 3525.84257 | CM49: 61.8030731 | CN49: 5836.04858 | CO49: 16254.40839 | CP49: 19.22905 | CQ49: -10399.13076 | CR49: 9802.0582 | CS49: 4615.90931 | CT49: 21.92216 | CU49: 301.72301 | CV49: 53.97352 | CW49: 3793.00942 | CX49: 2408.4248 | CY49: -3.3498 | CZ49: 1382.90972 | DA49: -0.04364 | DB49: 0 | DC49: 0 | DD49: 0 | DE49: 1382.86608 | DF49: 18958.80574 | DG49: 3783.54189 | DH49: 3432.54557 | DI49: 23.88023 | DJ49: 35.32542 | DK49: 35.12937 | DL49: 719.53949 | DM49: 1284.4 | DN49: -22.75 | DO49: 410.20197 | DP49: 8593.5896 | DQ49: 7733.32442 | DR49: 860.26518 | DS49: 95.98666 | DT49: 277.579 | DU49: 96 | DW49: 20.13399 | DX49: 20.11531 | DY49: 20.11531 | EE49: 658
A50: 165 | B50: Janakkala | C50: 16280 | D50: 21 | E50: 0.8914024652 | F50: 72.23296404 | G50: 31.83864427 | H50: 23672.72373 | I50: 48.58932465 | J50: 51833.12028 | K50: 149160.8424 | L50: 0.35833 | M50: -97327.3638 | N50: 71288.97616 | O50: 35737.5124 | P50: 11.35871 | Q50: 617.74284 | R50: 413.02245 | S50: 9505.76308 | T50: 9399.53597 | U50: 0 | V50: 106.22711 | W50: 26.48032 | X50: 53.82242 | Y50: 7.86409 | Z50: -2.39928 | AA50: 84.34982 | AB50: 8309.36864 | AC50: 9021.06104 | AD50: -17255.34267 | AE50: 371.83061 | AF50: 2282.97114 | AG50: 7.73438 | AH50: -10739.08678 | AI50: 21012.71177 | AJ50: -187.07406 | AK50: -5579.47988 | AL50: 89342.80709 | AM50: 80804.21107 | AN50: 8538.59602 | AO50: 38.67329 | AP50: 32720.71061 | AQ50: 211 | AR50: 16123 | AS50: 8.36 | AT50: 1.557836997 | AU50: 105.0326356 | AV50: 39.43192959 | AW50: 15384.81448 | AX50: 66.43326583 | AY50: 21327.92367 | AZ50: 61683.01396 | BA50: 0 | BB50: -40355.09029 | BC50: 38707.60034 | BD50: 16684.48719 | BE50: 104.90289 | BF50: 1376.96098 | BG50: 146.81554 | BH50: 13911.75469 | BI50: 9042.73795 | BJ50: 0 | BK50: 4869.01674 | BL50: 1.44299 | BM50: 9.51475 | BN50: 1.77828 | BO50: 0.96187 | BP50: 4863.68513 | BQ50: 13424.48436 | BR50: 13685.55026 | BS50: 12883.89628 | BT50: 1546.6593 | BU50: 334.16442 | BV50: 0.09616 | BW50: -8437.10538 | BX50: 10000 | BY50: -134.49848 | BZ50: 2682.4777 | CA50: 66909.72285 | CB50: 58004.01489 | CC50: 8905.70796 | CD50: 0 | CE50: 49047.0936 | CF50: 122 | CG50: 16015 | CH50: 8.4 | CI50: 1.112654729 | CJ50: 101.6375356 | CK50: 42.15943996 | CL50: 2513.34359 | CM50: 9.952731759 | CN50: 21960.1345 | CO50: 62922.67957 | CP50: 0 | CQ50: -40962.54507 | CR50: 38133.19085 | CS50: 14343.04066 | CT50: 117.00728 | CU50: 1795.48927 | CV50: 386.30797 | CW50: 10221.51242 | CX50: 7517.72828 | CY50: 0 | CZ50: 2703.78414 | DA50: 2.04424 | DB50: 28.78074 | DC50: -1.17 | DD50: 9.56309 | DE50: 2699.8311 | DF50: 16089.20348 | DG50: 9983.67491 | DH50: 18063.44061 | DI50: 72 | DJ50: 361.08057 | DK50: 0 | DL50: 9004.80787 | DM50: 5000 | DN50: 60.20487 | DO50: -7646.68513 | DP50: 62965.11985 | DQ50: 53876.84951 | DR50: 9088.27034 | DS50: 0 | DT50: 47874.56864 | DU50: 178 | DW50: 29.77804 | DX50: 24.71813 | DY50: 22.67389 | EE50: 19
A51: 167 | B51: Joensuu | C51: 77513 | D51: 20.5 | E51: 0.9918496201 | F51: 73.56840722 | G51: 33.16929025 | H51: 177808.0692 | I51: 63.6047903 | J51: 394704.6954 | K51: 877432.3624 | L51: -193.26718 | M51: -482920.9341 | N51: 313083.3308 | O51: 230630.9975 | P51: 705.39711 | Q51: 4229.18717 | R51: -5517.68034 | S51: 51751.9237 | T51: 72468.60131 | U51: 0 | V51: -20716.67761 | W51: 352.47822 | X51: 815.8965 | Y51: -96.93671 | Z51: -52.62308 | AA51: -21329.65568 | AB51: 53814.30258 | AC51: 58729.87464 | AD51: -76219.9482 | AE51: 4296.9058 | AF51: 2837.09376 | AG51: -15.42946 | AH51: -52211.94033 | AI51: 64140.11766 | AJ51: -4531.7114 | AK51: -10356.074 | AL51: 558731.3445 | AM51: 505282.0846 | AN51: 53449.25993 | AO51: 2985.89722 | AP51: 164459.1692 | AQ51: 187 | AR51: 78062 | AS51: 7.86 | AT51: 1.768138155 | AU51: 119.7539037 | AV51: 39.53643828 | AW51: 149795.298 | AX51: 111.3509889 | AY51: 161265.1415 | AZ51: 358924.1799 | BA51: -367.70987 | BB51: -198026.7482 | BC51: 170737.8993 | BD51: 114322.0821 | BE51: 966.26817 | BF51: 8829.95197 | BG51: 6688.01722 | BH51: 85857.56659 | BI51: 56960.22727 | BJ51: 0 | BK51: 28897.33932 | BL51: -926.6792 | BM51: 803.91377 | BN51: -91.23921 | BO51: -225.50896 | BP51: 26849.99818 | BQ51: 79333.61134 | BR51: 90067.48216 | BS51: 71846.06678 | BT51: 3417.97124 | BU51: 1578.71016 | BV51: -6.12815 | BW51: -44722.15214 | BX51: 28846.19164 | BY51: 7991.62453 | BZ51: 23218.09678 | CA51: 461301.958 | CB51: 407240.9472 | CC51: 54061.0108 | CD51: 2982.46213 | CE51: 154297.5305 | CF51: 61 | CG51: 78741 | CH51: 7.9 | CI51: 1.319822359 | CJ51: 127.7222274 | CK51: 40.6730269 | CL51: 163122.0378 | CM51: 119.3121345 | CN51: 162814.6775 | CO51: 358479.1846 | CP51: 463.74842 | CQ51: -195200.7587 | CR51: 168476.219 | CS51: 99707.92119 | CT51: 1354.59309 | CU51: 11645.87667 | CV51: 8070.0715 | CW51: 70762.16942 | CX51: 64807.37921 | CY51: 0 | CZ51: 5954.79021 | DA51: 13.81881 | DB51: 1595.17614 | DC51: -134.94207 | DD51: -22.18093 | DE51: 5013.89795 | DF51: 84013.9114 | DG51: 58194.32051 | DH51: 70030.76617 | DI51: 2601.80001 | DJ51: 4287.64502 | DK51: 861.5883 | DL51: 50792.86405 | DM51: 78943.49142 | DN51: -7835.36149 | DO51: -4947.00063 | DP51: 481617.2239 | DQ51: 435149.7712 | DR51: 46467.45274 | DS51: 2116.26383 | DT51: 119145.6487 | DU51: 92 | DW51: 80109.41037 | DX51: 80476.59692 | DY51: 80920.51479 | EE51: 2232
A52: 169 | B52: Jokioinen | C52: 4990 | D52: 21.25 | E52: 0.8730779291 | F52: 35.65527053 | G52: 48.74461433 | H52: 1301.69778 | I52: 7.432978253 | J52: 26933.10391 | K52: 59361.85798 | L52: 0.15459 | M52: -32428.59948 | N52: 21548.18011 | O52: 12218.94082 | P52: 14.16036 | Q52: 124.66665 | R52: 126.69007 | S52: 1354.70523 | T52: 2419.1403 | U52: 5.44508 | V52: -1058.98999 | W52: 1.49457 | X52: -0.02686 | Y52: 0 | Z52: 11.48634 | AA52: -1045.98222 | AB52: 8571.80723 | AC52: 1353.12112 | AD52: -2858.99124 | AE52: 0 | AF52: 67.34255 | AG52: 1.41189 | AH52: -1569.76615 | AI52: 1251.2906 | AJ52: 1995.70371 | AK52: -1438.52757 | AL52: 14776.26769 | AM52: 9621.86272 | AN52: 5154.40497 | AO52: 5.97694 | AP52: 894.96505 | AQ52: 278 | AR52: 4916 | AS52: 8.61 | AT52: 1.699662973 | AU52: 73.25644039 | AV52: 57.16418368 | AW52: 1325.95752 | AX52: 21.92414232 | AY52: 5836.60373 | AZ52: 19044.88732 | BA52: 0 | BB52: -13208.28359 | BC52: 11363.53231 | BD52: 4493.53752 | BE52: 32.68887 | BF52: 334.69228 | BG52: 74.33056 | BH52: 2421.11339 | BI52: 2167.99565 | BJ52: 0 | BK52: 253.11774 | BL52: 0.48 | BM52: -1.27738 | BN52: 0 | BO52: 11.49506 | BP52: 266.37018 | BQ52: 9014.60014 | BR52: 2398.2317 | BS52: 1334.35533 | BT52: 0 | BU52: 5.72121 | BV52: 0 | BW52: -1286.69132 | BX52: 750 | BY52: 350 | BZ52: 1069.59758 | CA52: 12354.67546 | CB52: 6955.50208 | CC52: 5399.17338 | CD52: 1.22653 | CE52: 195.86697 | CF52: 234 | CG52: 4848 | CH52: 8.7 | CI52: 1.261225067 | CJ52: 73.26264393 | CK52: 57.77273775 | CL52: 1693.25201 | CM52: 25.53357297 | CN52: 5787.60664 | CO52: 19284.46932 | CP52: 0 | CQ52: -13496.86268 | CR52: 10817.38859 | CS52: 4623.88969 | CT52: 62.31337 | CU52: 425.0228 | CV52: 88.81536 | CW52: 1670.52153 | CX52: 2100.86146 | CY52: -2945.45028 | CZ52: -1903.06507 | DA52: 0.68 | DB52: -15.23202 | DC52: 0 | DD52: 27.29871 | DE52: -1867.47035 | DF52: 8006.07945 | DG52: 1561.95751 | DH52: 3155.07698 | DI52: 10 | DJ52: 2817.74633 | DK52: -15 | DL52: 1236.49217 | DM52: 1120 | DN52: -830 | DO52: 1234.62686 | DP52: 11572.05259 | DQ52: 6937.87919 | DR52: 4634.1734 | DS52: 15 | DT52: 180.6842 | DU52: 260 | DW52: 53.94125 | DX52: 51.54234 | DY52: 50.81675 | EE52: 1514
A53: 171 | B53: Joroinen | C53: 4540 | D53: 21.25 | E53: 0.8207904411 | F53: 66.43665708 | G53: 28.96851186 | H53: 16799.69411 | I53: 90.68548204 | J53: 30290.449 | K53: 60321.46533 | L53: 5.41749 | M53: -30025.59884 | N53: 19545.41281 | O53: 13611.358 | P53: 73.32299 | Q53: 203.44228 | R53: -155.6476 | S53: 2845.40508 | T53: 2088.73932 | U53: 20.45879 | V53: 777.12455 | W53: -1.78636 | X53: 0 | Y53: 0 | Z53: -0.01128 | AA53: 775.32691 | AB53: 2390.02822 | AC53: 2022.19646 | AD53: -3152.10905 | AE53: 34.62744 | AF53: 425.38263 | AG53: 301.78794 | AH53: -3511.08363 | AI53: 4953.83995 | AJ53: -3000 | AK53: -669.90252 | AL53: 32606.79949 | AM53: 28918.50955 | AN53: 3688.28994 | AO53: 161.28157 | AP53: 1708.34354 | AQ53: 199 | AR53: 4590 | AS53: 8.61 | AT53: 0.7224362311 | AU53: 133.9700323 | AV53: 40.4493354 | AW53: 10603.76266 | AX53: 174.5705112 | AY53: 5486.78038 | AZ53: 16212.77341 | BA53: 8.21745 | BB53: -10717.77558 | BC53: 10566.80191 | BD53: 2635.019 | BE53: 93.0381 | BF53: 508.57441 | BG53: 289.1631 | BH53: 2357.67212 | BI53: 1353.02971 | BJ53: 0 | BK53: 1004.64241 | BL53: 70.82874 | BM53: 0 | BN53: 0 | BO53: 6.8596 | BP53: 1082.33075 | BQ53: 3366.72204 | BR53: 2471.17357 | BS53: 1252.62206 | BT53: 119 | BU53: 328.95 | BV53: -136.21933 | BW53: -3458.89899 | BX53: -242.307 | BY53: 0 | BZ53: 1666.50151 | CA53: 22319.39608 | CB53: 19142.40976 | CC53: 3176.98632 | CD53: 591.79258 | CE53: 183.328 | CF53: 230 | CG53: 4552 | CH53: 8.6 | CI53: 0.8459840875 | CJ53: 127.5982775 | CK53: 42.35469817 | CL53: 11289.41699 | CM53: 185.3026337 | CN53: 5651.50504 | CO53: 16183.52184 | CP53: -4.19415 | CQ53: -10536.21095 | CR53: 10546.74293 | CS53: 2681.931 | CT53: 76.16448 | CU53: 555.41315 | CV53: 388.9231 | CW53: 2602.13741 | CX53: 1195.27489 | CY53: 0 | CZ53: 1406.86252 | DA53: 25.36399 | DB53: 0 | DC53: 0 | DD53: 16.54752 | DE53: 1448.77403 | DF53: 4021.0588 | DG53: 2485.85601 | DH53: 1209.01707 | DI53: 4.90361 | DJ53: 313.74798 | DK53: 49.9 | DL53: 3176.98632 | DM53: 2500 | DN53: 0 | DO53: 1595.49053 | DP53: 21642.40976 | DQ53: 18341.82544 | DR53: 3300.58432 | DS53: 539.54258 | DT53: 152.349 | DU53: 198 | DW53: 284.9387 | DX53: 267.88864 | DY53: 267.88864 | EE53: 549
A54: 172 | B54: Joutsa | C54: 4171 | D54: 21 | E54: 1.120472715 | F54: 77.88471838 | G54: 19.50838822 | H54: 3477.09862 | I54: 23.45642898 | J54: 16279.30627 | K54: 48296.8059 | L54: 16.18114 | M54: -32001.31849 | N54: 16151.12651 | O54: 18372.55212 | P54: 16.05001 | Q54: 476.52773 | R54: 382.87392 | S54: 2444.75634 | T54: 2744.61664 | U54: 185.86795 | V54: -113.99235 | W54: 0.71309 | X54: 11.70657 | Y54: -10.95817 | Z54: 22.59882 | AA54: -113.34518 | AB54: 1540.45417 | AC54: 2228.30822 | AD54: -3186.50115 | AE54: 10.74639 | AF54: 91.35964 | AG54: 0 | AH54: -2130.66121 | AI54: 211.92833 | AJ54: 3391.76668 | AK54: -856.0869 | AL54: 31952.9943 | AM54: 15418.11513 | AN54: 16534.87917 | AO54: 521.11334 | AP54: 521.407 | AQ54: 210 | AR54: 4079 | AS54: 8.36 | AT54: 5.072816423 | AU54: 131.0457979 | AV54: 28.69861778 | AW54: 2446.96605 | AX54: 47.81284518 | AY54: 6830.24502 | AZ54: 16959.66542 | BA54: 19.53854 | BB54: -10109.88186 | BC54: 9369.06199 | BD54: 3530.59905 | BE54: 26.1913 | BF54: 602.36713 | BG54: 239.72739 | BH54: 2453.33074 | BI54: 2138.82387 | BJ54: 18.8727 | BK54: 333.37957 | BL54: -0.45773 | BM54: 16.66976 | BN54: -13.01541 | BO54: 4.20586 | BP54: 307.44253 | BQ54: 2995.58719 | BR54: 2436.17514 | BS54: 876.41204 | BT54: 0 | BU54: 54.48066 | BV54: 0 | BW54: 0 | BX54: 12763.15535 | BY54: -13438.02677 | BZ54: 1614.24376 | CA54: 22229.17558 | CB54: 19365.68984 | CC54: 2863.48574 | CD54: 0 | CE54: 733.34519 | CF54: 209 | CG54: 4099 | CH54: 9 | CI54: 2.133187996 | CJ54: 111.074119 | CK54: 33.65121619 | CL54: 2892.69306 | CM54: 51.24081629 | CN54: 7676.17223 | CO54: 17506.50298 | CP54: 16.64555 | CQ54: -9813.6852 | CR54: 9586.64263 | CS54: 4327.05247 | CT54: 16.61066 | CU54: 618.09147 | CV54: 203.31285 | CW54: 3701.84194 | CX54: 3368.84816 | CY54: -11.75976 | CZ54: 327.1139 | DA54: 0.45703 | DB54: 32.14156 | DC54: -38.85443 | DD54: 13.10652 | DE54: 285.75224 | DF54: 4451.80528 | DG54: 3724.54611 | DH54: 863.72197 | DI54: 0 | DJ54: 12.24964 | DK54: -6.66667 | DL54: 1407.01528 | DM54: 0 | DN54: -549.16667 | DO54: 2873.07378 | DP54: 20279.66031 | DQ54: 17954.73857 | DR54: 2324.92174 | DS54: 0 | DT54: 590.541 | DU54: 89 | DW54: 2436.61107 | DX54: 2439.78813 | DY54: 2160.48974 | EE54: 399
A55: 176 | B55: Juuka | C55: 4352 | D55: 20.75 | E55: 1.967960756 | F55: 36.11849414 | G55: 49.4401821 | H55: 10849.71353 | I55: 48.84212534 | J55: 41949.49468 | K55: 75819.25727 | L55: -4.29843 | M55: -33874.06102 | N55: 15372.45105 | O55: 22133.221 | P55: 98.28824 | Q55: 112.23721 | R55: 310.10808 | S55: 3927.77014 | T55: 2955.12844 | U55: 0 | V55: 972.6417 | W55: 8.23644 | X55: 0.01049 | Y55: -3.31452 | Z55: 6.65887 | AA55: 984.212 | AB55: 12293.77362 | AC55: 4067.84744 | AD55: -3124.3993 | AE55: 32.73857 | AF55: 85.44726 | AG55: 40.57652 | AH55: -1940.65299 | AI55: 8579.1406 | AJ55: -4630.23527 | AK55: 1061.63397 | AL55: 18051.39726 | AM55: 15780.23906 | AN55: 2271.1582 | AO55: 2628.81348 | AP55: 2073.317 | AQ55: 103 | AR55: 4259 | AS55: 8.11 | AT55: 3.284835788 | AU55: 62.54898772 | AV55: 68.27455752 | AW55: 8904.18695 | AX55: 158.8424624 | AY55: 9008.10262 | AZ55: 17675.43585 | BA55: 0 | BB55: -8667.33323 | BC55: 8466.71731 | BD55: 3248.513 | BE55: 240.0277 | BF55: 29.66087 | BG55: 403.10352 | BH55: 3661.36743 | BI55: 2060.70671 | BJ55: 0 | BK55: 1600.66072 | BL55: -10.38942 | BM55: 0 | BN55: 0 | BO55: 0 | BP55: 1590.2713 | BQ55: 13651.18928 | BR55: 3440.54686 | BS55: 1258.29287 | BT55: 0 | BU55: 487.09254 | BV55: -0.21257 | BW55: -1093.996 | BX55: -230 | BY55: -357.13 | BZ55: 2669.34653 | CA55: 8705.31199 | CB55: 7381.31599 | CC55: 1323.996 | CD55: 2628.605 | CE55: 5.812 | CF55: 125 | CG55: 4160 | CH55: 8.5 | CI55: 3.946756056 | CJ55: 54.51935488 | CK55: 72.29154711 | CL55: 9420.88404 | CM55: 174.8216299 | CN55: 8955.4938 | CO55: 17539.11126 | CP55: 0 | CQ55: -8583.61746 | CR55: 8880.14817 | CS55: 2086.219 | CT55: 253.53564 | CU55: 41.26508 | CV55: 434.71348 | CW55: 3029.73375 | CX55: 1970.29914 | CY55: 0 | CZ55: 1059.43461 | DA55: 1.26684 | DB55: 4.57302 | DC55: 0 | DD55: 0 | DE55: 1058.41494 | DF55: 14510.92709 | DG55: 2991.72125 | DH55: 917.38871 | DI55: 15.14817 | DJ55: 41.20554 | DK55: 0 | DL55: 736.842 | DM55: -240 | DN55: -347.154 | DO55: 2130.68625 | DP55: 7381.31599 | DQ55: 6404.47399 | DR55: 976.842 | DS55: 2628.605 | DT55: 0 | DU55: 146 | DW55: 319.45177 | DX55: 285.48895 | DY55: 313.22211 | EE55: 528
A56: 177 | B56: Juupajoki | C56: 1768 | D56: 21 | E56: 1.820332152 | F56: 44.05389202 | G56: 51.83881192 | H56: 3830.5651 | I56: 65.13820369 | J56: 8561.71188 | K56: 19716.8941 | L56: 1.57673 | M56: -11153.60549 | N56: 8080.56567 | O56: 4759.124 | P56: 15.9306 | Q56: 52.94015 | R56: 37.98271 | S56: 1687.05734 | T56: 1178.32071 | U56: 0 | V56: 508.73663 | W56: 10.63975 | X56: 19.02639 | Y56: -1.27421 | Z56: 54.04559 | AA56: 553.12137 | AB56: 3926.44498 | AC56: 1602.30898 | AD56: -767.50885 | AE56: 0 | AF56: 93.57646 | AG56: 21.63467 | AH56: -902.92798 | AI56: 288.44 | AJ56: -211.87683 | AK56: 928.37659 | AL56: 6578.53714 | AM56: 5553.15605 | AN56: 1025.38109 | AO56: 3.11326 | AP56: 759.581 | AQ56: 87 | AR56: 1708 | AS56: 8.36 | AT56: 2.520302399 | AU56: 58.17329197 | AV56: 66.01733317 | AW56: 2692.1139 | AX56: 125.99584 | AY56: 2713.96615 | AZ56: 7171.12287 | BA56: -17.27484 | BB56: -4474.43156 | BC56: 4280.81204 | BD56: 870.71 | BE56: 58.25138 | BF56: 87.62494 | BG56: 40.35467 | BH56: 688.07159 | BI56: 672.45179 | BJ56: 0 | BK56: 15.6198 | BL56: 10.60763 | BM56: 0.33244 | BN56: 0 | BO56: 88.64505 | BP56: 114.54004 | BQ56: 3572.72515 | BR56: 704.62066 | BS56: 296.58471 | BT56: 0 | BU56: 0.82333 | BV56: 19 | BW56: -220.15421 | BX56: 2.6373 | BY56: -519.6373 | BZ56: 408.85928 | CA56: 3108.42604 | CB56: 2801.23606 | CC56: 307.18998 | CD56: 0 | CE56: 58.875 | CF56: 255 | CG56: 1668 | CH56: 8.4 | CI56: 3.496589817 | CJ56: 50.24832418 | CK56: 68.66010608 | CL56: 3214.977 | CM56: 144.907637 | CN56: 2659.88502 | CO56: 7295.07064 | CP56: 14.11781 | CQ56: -4621.06781 | CR56: 4541.6865 | CS56: 1124.75 | CT56: 65.85963 | CU56: 83.31089 | CV56: 34.99183 | CW56: 1062.90926 | CX56: 935.69839 | CY56: 0 | CZ56: 127.21087 | DA56: 0.0364 | DB56: 0.14224 | DC56: 0 | DD56: -2.14752 | DE56: 125.02863 | DF56: 3804.33826 | DG56: 1049.18 | DH56: 455.15813 | DI56: 48 | DJ56: 5.29808 | DK56: 17 | DL56: 244.49998 | DM56: 33 | DN56: -100 | DO56: 647.31995 | DP56: 2813.63105 | DQ56: 2601.73107 | DR56: 211.89998 | DS56: 0 | DT56: 47.487 | DU56: 180 | DW56: 4.17916 | DX56: 4.03184 | DY56: 3.90544 | EE56: 273
A57: 178 | B57: Juva | C57: 5769 | D57: 20.75 | E57: 1.154603955 | F57: 50.96573095 | G57: 50.30081167 | H57: 5000.17296 | I57: 20.42111713 | J57: 39608.77163 | K57: 82894.80515 | L57: -14.93303 | M57: -43300.96655 | N57: 22013.65017 | O57: 24053.9 | P57: 9.16412 | Q57: 295.14278 | R57: 693.21293 | S57: 3173.81789 | T57: 3525.30787 | U57: 29.1689 | V57: -322.32109 | W57: 0 | X57: 0 | Y57: 65.04818 | Z57: 0.18505 | AA57: -257.08786 | AB57: 4403.12432 | AC57: 2277.02355 | AD57: -3387.37923 | AE57: 100.07106 | AF57: 528.82903 | AG57: -18.51416 | AH57: -2709.31659 | AI57: 1047.79842 | AJ57: 82.57384 | AK57: -481.45559 | AL57: 32878.24538 | AM57: 19872.48392 | AN57: 13005.76146 | AO57: 154.41909 | AP57: 14806.999 | AQ57: 215 | AR57: 5734 | AS57: 8.11 | AT57: 0.8860130539 | AU57: 115.8428858 | AV57: 59.21361882 | AW57: 1622.61045 | AX57: 20.70835394 | AY57: 8171.82287 | AZ57: 22802.3341 | BA57: 73.23043 | BB57: -14557.2808 | BC57: 11925.41309 | BD57: 3901.14042 | BE57: 49.0205 | BF57: 519.55854 | BG57: 975.01532 | BH57: 1773.74999 | BI57: 2693.94822 | BJ57: 0 | BK57: -920.19823 | BL57: 0 | BM57: 11.26528 | BN57: 21.15269 | BO57: 0.65857 | BP57: -909.65225 | BQ57: 2686.67703 | BR57: 1618.07312 | BS57: 1796.30939 | BT57: 46.9 | BU57: 216.33983 | BV57: -437.7 | BW57: -2068.78767 | BX57: 0 | BY57: 2238.03764 | BZ57: 85.00356 | CA57: 23851.49554 | CB57: 8714.49503 | CC57: 15137.00051 | CD57: 576.21909 | CE57: 18821.418 | CF57: 267 | CG57: 5674 | CH57: 8.1 | CI57: 1.253687045 | CJ57: 127.8747897 | CK57: 56.94817511 | CL57: 3869.37513 | CM57: 47.8054787 | CN57: 7982.01283 | CO57: 21821.03101 | CP57: 15.69634 | CQ57: -13823.32184 | CR57: 11954.6974 | CS57: 4140.34749 | CT57: 58.95126 | CU57: 664.08792 | CV57: 1454.33009 | CW57: 3120.91648 | CX57: 2681.25906 | CY57: 0 | CZ57: 439.65742 | DA57: 0 | DB57: 57.4392 | DC57: 0.15281 | DD57: 0.01342 | DE57: 411.10405 | DF57: 3097.78118 | DG57: 2980.91751 | DH57: 3248.63821 | DI57: 47.65962 | DJ57: 151.12743 | DK57: 55.5 | DL57: 2355.01036 | DM57: 6197.59103 | DN57: -1495.03955 | DO57: -68.93365 | DP57: 26199.03666 | DQ57: 11788.68676 | DR57: 14410.3499 | DS57: 520.71909 | DT57: 16236.078 | DU57: 208 | DW57: 975.00828 | DX57: 963.33256 | DY57: 1008.49492 | EE57: 1282
A58: 179 | B58: Jyväskylä | C58: 145887 | D58: 20 | E58: 1.186350389 | F58: 90.79065032 | G58: 28.86455362 | H58: 76132.68511 | I58: 15.25175287 | J58: 723500.4008 | K58: 1483154.964 | L58: 2452.6051 | M58: -757201.958 | N58: 601778.3713 | O58: 320192.7891 | P58: 1195.29746 | Q58: 15615.41688 | R58: 2109.48378 | S58: 152458.5667 | T58: 139829.6366 | U58: 56501.63187 | V58: 69130.56199 | W58: 18.00044 | X58: 11566.04461 | Y58: -398.58458 | Z58: -304.68228 | AA58: 56879.25096 | AB58: 159722.4978 | AC58: 121981.6109 | AD58: -194904.2499 | AE58: 1758.22881 | AF58: 124424.9347 | AG58: 2969.4267 | AH58: -126057.7222 | AI58: 54019.377 | AJ58: 49537.29873 | AK58: 53260.52458 | AL58: 1167523.377 | AM58: 965332.743 | AN58: 202190.6335 | AO58: 513.0524 | AP58: 166749.1664 | AQ58: 73 | AR58: 147746 | AS58: 7.36 | AT58: 1.45845634 | AU58: 117.851187 | AV58: 37.73008776 | AW58: 30620.78862 | AX58: 11.12939444 | AY58: 427935.2248 | AZ58: 724101.4599 | BA58: 2107.96908 | BB58: -294058.266 | BC58: 330982.0547 | BD58: 161423.0624 | BE58: 2110.67462 | BF58: 21593.08605 | BG58: 1848.74741 | BH58: 180713.1871 | BI58: 117234.4978 | BJ58: 0 | BK58: 63478.68928 | BL58: 338.02453 | BM58: 9091.0904 | BN58: -973.57494 | BO58: -397.89598 | BP58: 53354.15249 | BQ58: 234403.968 | BR58: 178531.8165 | BS58: 139557.9853 | BT58: 3223.1482 | BU58: 16285.5432 | BV58: -13.13511 | BW58: -117119.5155 | BX58: 167402.1537 | BY58: -73078.78176 | BZ58: 58482.52259 | CA58: 887933.5231 | CB58: 793101.7448 | CC58: 94831.77832 | CD58: 533.80487 | CE58: 140334.312 | CF58: 40 | CG58: 149194 | CH58: 8 | CI58: 3.082999823 | CJ58: 123.3242383 | CK58: 39.03260101 | CL58: 33187.17416 | CM58: 12.79179761 | CN58: 417606.8378 | CO58: 735823.9966 | CP58: 222.53983 | CQ58: -317994.619 | CR58: 338934.2104 | CS58: 138483.5485 | CT58: 3126.05609 | CU58: 25467.9466 | CV58: 3131.63165 | CW58: 140212.881 | CX58: 117658.3324 | CY58: 0 | CZ58: 22554.54861 | DA58: 35.82553 | DB58: 4415.67242 | DC58: -482.47609 | DD58: -906.27968 | DE58: 18993.78216 | DF58: 253123.4437 | DG58: 130684.9658 | DH58: 154264.0725 | DI58: 1506.41214 | DJ58: 17678.32503 | DK58: 2.691 | DL58: 28272.18871 | DM58: 92403.89159 | DN58: -37972.47138 | DO58: -4394.36953 | DP58: 914073.9376 | DQ58: 748864.7579 | DR58: 165209.1797 | DS58: 531.11387 | DT58: 140573.328 | DU58: 78 | DW58: 39107.58614 | DX58: 28851.67346 | DY58: 28761.95069 | EE58: 24911
A59: 181 | B59: Jämijärvi | C59: 1683 | D59: 22.5 | E59: 0.5158067048 | F59: 73.32229216 | G59: 14.75458111 | H59: 1115.85168 | I59: 13.80014522 | J59: 10718.36644 | K59: 22011.12562 | L59: 0 | M59: -11292.75918 | N59: 6580.51948 | O59: 5706.02 | P59: 0.85667 | Q59: 117.00301 | R59: -32.72712 | S59: 844.90684 | T59: 1237.38052 | U59: 0 | V59: -392.47368 | W59: 0 | X59: 0.49541 | Y59: 0.04093 | Z59: 0.04911 | AA59: -392.87904 | AB59: -717.16817 | AC59: 611.68528 | AD59: -5579.95685 | AE59: 118.28 | AF59: 126.78938 | AG59: 0.19212 | AH59: -1747.86195 | AI59: 205.52452 | AJ59: 896.69449 | AK59: -4723.20218 | AL59: 13431.43449 | AM59: 9782.15561 | AN59: 3649.27888 | AO59: 50 | AP59: 1086.86937 | AQ59: 227 | AR59: 1682 | AS59: 9.86 | AT59: 1.441679738 | AU59: 178.8511691 | AV59: 17.23819426 | AW59: 702.11314 | AX59: 36.18434473 | AY59: 878.32807 | AZ59: 5469.87031 | BA59: 0 | BB59: -4591.54224 | BC59: 3915.78434 | BD59: 2398.28875 | BE59: 0.22082 | BF59: 406.51968 | BG59: 24.67276 | BH59: 1340.90475 | BI59: 974.22352 | BJ59: 0 | BK59: 366.68123 | BL59: 0 | BM59: 0 | BN59: -0.7 | BO59: -3e-05 | BP59: 365.9812 | BQ59: -330.58041 | BR59: 1303.6232 | BS59: 328.6689 | BT59: 0 | BU59: 36.11423 | BV59: -47.09317 | BW59: -805.55564 | BX59: -18.34948 | BY59: -123.60629 | BZ59: 1011.06853 | CA59: 11703.26147 | CB59: 8271.81141 | CC59: 3431.45006 | CD59: 97 | CE59: 0 | CF59: 143 | CG59: 1658 | CH59: 9.9 | CI59: 0.8140842107 | CJ59: 162.6051427 | CK59: 19.54015261 | CL59: 786.25295 | CM59: 35.11093744 | CN59: 1482.44408 | CO59: 5602.88784 | CP59: 0 | CQ59: -4120.44376 | CR59: 4029.53924 | CS59: 1813.63 | CT59: 2.55322 | CU59: 487.1525 | CV59: 35.70673 | CW59: 1273.83293 | CX59: 968.39722 | CY59: -1.49826 | CZ59: 304.68658 | DA59: 0 | DB59: 0 | DC59: -1.92 | DD59: -0.0209 | DE59: 302.74568 | DF59: -116.2467 | DG59: 1113.90431 | DH59: 336.75099 | DI59: 14.8 | DJ59: 167.8 | DK59: -35.09317 | DL59: 1675.99648 | DM59: 0 | DN59: 740.40626 | DO59: 959.75332 | DP59: 10767.67125 | DQ59: 6728.12636 | DR59: 4039.54489 | DS59: 132 | DT59: 0 | DU59: 131 | DW59: 85.5438 | DX59: 85.5438 | DY59: 85.5438 | EB59: 180 | EE59: 1795
A60: 182 | B60: Jämsä | C60: 19347 | D60: 21 | E60: 0.5613319558 | F60: 36.06220181 | G60: 52.23860453 | H60: 11073.74549 | I60: 16.30853381 | J60: 77874.52892 | K60: 226383.1323 | L60: -51.18518 | M60: -148559.7886 | N60: 91105.82872 | O60: 62794.03014 | P60: -69.66378 | Q60: 508.70514 | R60: -1016.83991 | S60: 3744.86143 | T60: 13516.76537 | U60: 0 | V60: -9771.90394 | W60: 4.30394 | X60: 43.95743 | Y60: -2.95798 | Z60: -80.19671 | AA60: -9894.71212 | AB60: 2897.33292 | AC60: 3238.28073 | AD60: -12388.8129 | AE60: 22.035 | AF60: 3017.0382 | AG60: 50.16904 | AH60: -7068.92611 | AI60: 2313.7 | AJ60: 652.14746 | AK60: -6111.45897 | AL60: 50246.39844 | AM60: 42944.64217 | AN60: 7301.75627 | AO60: 342.44074 | AP60: 15421.868 | AQ60: 282 | AR60: 19182 | AS60: 8.36 | AT60: 2.271285953 | AU60: 51.98150429 | AV60: 61.36652787 | AW60: 12532.46821 | AX60: 41.35760974 | AY60: 40706.00934 | AZ60: 95103.01574 | BA60: 0 | BB60: -54397.0064 | BC60: 47344.07751 | BD60: 23026.74867 | BE60: 41.44053 | BF60: 978.22163 | BG60: 174.53553 | BH60: 15211.57421 | BI60: 12200.67902 | BJ60: 0 | BK60: 3010.89519 | BL60: -2.71784 | BM60: 24.69414 | BN60: 0 | BO60: 1.99667 | BP60: 2985.47988 | BQ60: 4530.322 | BR60: 13623.42782 | BS60: 7759.23605 | BT60: 260.2 | BU60: 3326.23455 | BV60: 7938.64872 | BW60: -6149.809 | BX60: 370 | BY60: -530.81376 | BZ60: 9450.62632 | CA60: 37105.61543 | CB60: 30810.95317 | CC60: 6294.66226 | CD60: 363.93109 | CE60: 12799.274 | CF60: 145 | CG60: 19116 | CH60: 9.4 | CI60: 1.844745796 | CJ60: 49.27671138 | CK60: 63.04167705 | CL60: 16020.17181 | CM60: 54.52513879 | CN60: 37109.4771 | CO60: 91708.06848 | CP60: 0 | CQ60: -54598.59138 | CR60: 50716.10334 | CS60: 18828.65026 | CT60: 73.79298 | CU60: 1064.82098 | CV60: -312.98746 | CW60: 13642.14676 | CX60: 12395.39677 | CY60: 0 | CZ60: 1246.74999 | DA60: 2.71369 | DB60: 222.38674 | DC60: 0 | DD60: -2.53071 | DE60: 1135.7396 | DF60: 5885.45029 | DG60: 15934.52469 | DH60: 7452.52173 | DI60: 556.649 | DJ60: 338.63366 | DK60: 22.31324 | DL60: 6907.53368 | DM60: 2191.66797 | DN60: -4735.75742 | DO60: 9377.28562 | DP60: 33268.41933 | DQ60: 28009.25589 | DR60: 5259.16344 | DS60: 319.93462 | DT60: 13548.703 | DU60: 148 | DW60: 14037.94419 | DX60: 14041.53788 | DY60: 14037.826 | EB60: 1100 | EE60: 2213
A61: 186 | B61: Järvenpää | C61: 45630 | D61: 20.25 | E61: 1.50207464 | F61: 98.62536862 | G61: 16.22814559 | H61: 29630.82436 | I61: 17.25024117 | J61: 273893.7485 | K61: 530525.2477 | L61: -447.80678 | M61: -257079.306 | N61: 229938.9116 | O61: 61162.18531 | P61: 120.01977 | Q61: 3246.16804 | R61: 623.33566 | S61: 31518.97833 | T61: 35599.63768 | U61: 0 | V61: -4080.65935 | W61: 0 | X61: 103.08629 | Y61: 156.22381 | Z61: 6.67791 | AA61: -4020.84392 | AB61: 1719.35721 | AC61: 18150.93901 | AD61: -73346.1708 | AE61: 301.14939 | AF61: 15314.617 | AG61: 0.36375 | AH61: -19898.58486 | AI61: 14531.81528 | AJ61: 42958.38598 | AK61: -39579.4654 | AL61: 471994.3802 | AM61: 401844.9557 | AN61: 70149.42453 | AO61: 0 | AP61: 60118 | AQ61: 173 | AR61: 46490 | AS61: 7.61 | AT61: 1.744939356 | AU61: 223.2383266 | AV61: 18.1817936 | AW61: 16297.22976 | AX61: 23.67618671 | AY61: 64412.10698 | AZ61: 168406.5767 | BA61: 10.25303 | BB61: -103984.2167 | BC61: 122725.7655 | BD61: 34960.94606 | BE61: 630.89966 | BF61: 11697.43891 | BG61: 2079.89304 | BH61: 44715.84866 | BI61: 35159.04686 | BJ61: 0 | BK61: 9556.8018 | BL61: 8.92383 | BM61: 76.69436 | BN61: 48.39534 | BO61: 0 | BP61: 9537.42661 | BQ61: 10934.08741 | BR61: 37100.43735 | BS61: 48427.41089 | BT61: 613.37142 | BU61: 10035.76795 | BV61: 2.89655 | BW61: -20632.2162 | BX61: 74083.80634 | BY61: -49701.51494 | BZ61: -677.83417 | CA61: 450159.2297 | CB61: 425964.5203 | CC61: 24194.70949 | CD61: 0 | CE61: 37596.35362 | CF61: 85 | CG61: 46871 | CH61: 7.6 | CI61: 0.4200168167 | CJ61: 235.3157492 | CK61: 17.8784667 | CL61: 17246.91971 | CM61: 19.23379469 | CN61: 65365.74445 | CO61: 168637.3736 | CP61: 574.56589 | CQ61: -102697.0633 | CR61: 117212.5031 | CS61: 29264.97487 | CT61: 1870.2517 | CU61: 14347.55113 | CV61: 1501.4771 | CW61: 32804.59238 | CX61: 34462.3177 | CY61: 0 | CZ61: -1657.72532 | DA61: 4.42981 | DB61: 14.14884 | DC61: -45.53521 | DD61: 0 | DE61: -1705.90514 | DF61: 9227.68563 | DG61: 28496.59472 | DH61: 44893.61153 | DI61: 801.5919 | DJ61: 8366.32967 | DK61: 54.46651 | DL61: 97914.96225 | DM61: 78886.59246 | DN61: 21877.04898 | DO61: -7229.09524 | DP61: 453021.7623 | DQ61: 405762.9774 | DR61: 47258.78486 | DS61: 0 | DT61: 34269.11115 | DU61: 152 | DW61: 110.54133 | DX61: 78.14772 | DY61: 73.7179 | EE61: 7549
A62: 202 | B62: Kaarina | C62: 35848 | D62: 20.25 | E62: 2.118397554 | F62: 67.94146489 | G62: 34.07912139 | H62: 41160.2421 | I62: 44.60742885 | J62: 93621.98627 | K62: 291066.6854 | L62: -29.27799 | M62: -197473.9771 | N62: 177589.9842 | O62: 46742.06384 | P62: 81.55787 | Q62: 2656.95556 | R62: 135.12665 | S62: 24417.79991 | T62: 16782.89588 | U62: 0 | V62: 7634.90403 | W62: 0 | X62: 11.90495 | Y62: -128.86723 | Z62: 9.64086 | AA62: 7503.77271 | AB62: 36149.67797 | AC62: 22511.40496 | AD62: -32760.34691 | AE62: 605.60693 | AF62: 2238.08601 | AG62: 0 | AH62: -10123.81612 | AI62: 28353.95612 | AJ62: -12199.99823 | AK62: -7405.24901 | AL62: 146805.4536 | AM62: 123652.9708 | AN62: 23152.48285 | AO62: 0 | AP62: 6041 | AQ62: 178 | AR62: 36339 | AS62: 7.61 | AT62: 3.521159395 | AU62: 127.7666119 | AV62: 38.25424702 | AW62: 35249.43386 | AX62: 71.56715657 | AY62: 33366.21691 | AZ62: 128760.7412 | BA62: -128.73233 | BB62: -95523.25664 | BC62: 90607.96813 | BD62: 29847.20674 | BE62: 1097.7567 | BF62: 3988.57039 | BG62: 210.53443 | BH62: 22251.63897 | BI62: 14319.35335 | BJ62: 0 | BK62: 7932.28562 | BL62: 0 | BM62: -0.86004 | BN62: 4.18677 | BO62: 42.03533 | BP62: 7979.36776 | BQ62: 49248.7 | BR62: 21998.20901 | BS62: 39296.973 | BT62: 168.75 | BU62: 954.25204 | BV62: -4055.4084 | BW62: -3463.58 | BX62: 0 | BY62: 21870.16156 | BZ62: -16175.76195 | CA62: 147606.1366 | CB62: 106127.5205 | CC62: 41478.61604 | CD62: 0 | CE62: 0 | CF62: 204 | CG62: 36551 | CH62: 7.6 | CI62: 3.363287938 | CJ62: 131.4387753 | CK62: 38.27784665 | CL62: 11307.34666 | CM62: 21.45023389 | CN62: 34529.60075 | CO62: 132030.1477 | CP62: 14.95688 | CQ62: -97485.5901 | CR62: 88575.45613 | CS62: 30848.24251 | CT62: 593.80267 | CU62: 3935.37306 | CV62: 281.00716 | CW62: 18877.54531 | CX62: 13579.5125 | CY62: 0 | CZ62: 5298.03281 | DA62: 0 | DB62: 4.4369 | DC62: 1.37048 | DD62: 38.12444 | DE62: 5335.30928 | DF62: 53768.5385 | DG62: 16483.02139 | DH62: 53313.22092 | DI62: 889.94861 | DJ62: 2980.28021 | DK62: 155.4084 | DL62: 2847.54853 | DM62: 45000 | DN62: -33000 | DO62: -32959.97071 | DP62: 155978.8222 | DQ62: 146000.2062 | DR62: 9978.61604 | DS62: 0 | DT62: 4804 | DU62: 218 | DW62: 1379.44445 | DX62: 1238.71742 | DY62: 1333.04624 | EE62: 24189
A63: 204 | B63: Kaavi | C63: 2689 | D63: 22 | E63: 2.549136962 | F63: 64.96896001 | G63: 29.51820742 | H63: 3470.48262 | I63: 29.45400207 | J63: 14611.86761 | K63: 37211.25573 | L63: 9.37443 | M63: -22590.01369 | N63: 10945.93044 | O63: 12944.37107 | P63: 1.81884 | Q63: 203.00141 | R63: 178.41483 | S63: 1277.52008 | T63: 1562.88301 | U63: -0.78839 | V63: -286.15132 | W63: 0.93534 | X63: 2.13321 | Y63: -0.22509 | Z63: -1.21917 | AA63: -288.79344 | AB63: 2070.99671 | AC63: 1145.13782 | AD63: -5205.9812 | AE63: 5.07782 | AF63: 59.15518 | AG63: 8.89494 | AH63: -377.79182 | AI63: 2096.89317 | AJ63: 2306.1843 | AK63: -3996.61038 | AL63: 19846.37082 | AM63: 14719.4159 | AN63: 5126.95492 | AO63: 0.87562 | AP63: 902.47 | AQ63: 239 | AR63: 2628 | AS63: 9.36 | AT63: 1.886502436 | AU63: 138.39975 | AV63: 36.72374096 | AW63: 651.62434 | AX63: 21.9865541 | AY63: 2546.74559 | AZ63: 9253.47455 | BA63: 61.43263 | BB63: -6645.29633 | BC63: 6241.01944 | BD63: 782.17407 | BE63: 5.27543 | BF63: 280.69431 | BG63: 180.01364 | BH63: 282.49194 | BI63: 855.74715 | BJ63: 0 | BK63: -573.25521 | BL63: 0.43151 | BM63: 0.22936 | BN63: 0 | BO63: 0 | BP63: -573.05306 | BQ63: 1103.00183 | BR63: 512.50044 | BS63: 1085.6289 | BT63: 0 | BU63: 200.63727 | BV63: 7.59144 | BW63: -17.84029 | BX63: 4574.70352 | BY63: -4649.0335 | BZ63: -372.49119 | CA63: 11092.70231 | CB63: 10186.78061 | CC63: 905.9217 | CD63: 0.66145 | CE63: 154.76006 | CF63: 277 | CG63: 2589 | CH63: 9.8 | CI63: 2.322134114 | CJ63: 140.2147125 | CK63: 35.38232898 | CL63: 1007.86574 | CM63: 38.87039724 | CN63: 2419.14127 | CO63: 8540.86957 | CP63: 7.97551 | CQ63: -6113.75279 | CR63: 6491.10241 | CS63: 246.18492 | CT63: 0.49697 | CU63: 360.86303 | CV63: 277.10916 | CW63: 540.27764 | CX63: 1145.89665 | CY63: 1.44034 | CZ63: -604.89885 | DA63: 2.63136 | DB63: 1.59242 | DC63: 0 | DD63: 0 | DE63: -603.0637 | DF63: 459.18226 | DG63: 254.04174 | DH63: 257.99556 | DI63: 5.98406 | DJ63: 297.20601 | DK63: 0 | DL63: 27.2027 | DM63: 1034.06833 | DN63: -378.7189 | DO63: 299.23624 | DP63: 11720.84904 | DQ63: 10201.9873 | DR63: 1518.86174 | DS63: 0.66145 | DT63: 290.589 | DU63: 274 | DW63: 231.7919 | DX63: 214.39881 | DY63: 214.35801 | EB63: 220 | EC63: 250 | EE63: 517
A64: 205 | B64: Kajaani | C64: 36297 | D64: 21 | E64: 2.242322047 | F64: 147.6980984 | G64: 23.70226732 | H64: 273340.9029 | I64: 159.8605678 | J64: 303897.6384 | K64: 512041.7314 | L64: -200.06731 | M64: -208344.1603 | N64: 153797.5099 | O64: 139395.0961 | P64: 689.67876 | Q64: 3496.60659 | R64: -9997.0034 | S64: 72044.51437 | T64: 50792.63761 | U64: 4035.524 | V64: 25287.40076 | W64: 216.16333 | X64: 918.48645 | Y64: -4552.63126 | Z64: -1.01443 | AA64: 20031.43195 | AB64: 128296.439 | AC64: 72721.86228 | AD64: -56659.61094 | AE64: 725.19201 | AF64: 2291.24066 | AG64: 93.39574 | AH64: -30192.18538 | AI64: 34235.68434 | AJ64: 17518.37774 | AK64: 19078.68401 | AL64: 671971.1287 | AM64: 602154.7069 | AN64: 69816.42183 | AO64: 0 | AP64: 14160.49933 | AQ64: 10 | AR64: 36513 | AS64: 8.36 | AT64: 1.615375006 | AU64: 225.2823308 | AV64: 25.89002558 | AW64: 221784.3807 | AX64: 215.4288658 | AY64: 189449.7269 | AZ64: 275114.2598 | BA64: 203.53618 | BB64: -85460.99672 | BC64: 80529.49533 | BD64: 63096.849 | BE64: 1709.61878 | BF64: 15891.66952 | BG64: 9739.53919 | BH64: 53722.83606 | BI64: 46239.21143 | BJ64: 0 | BK64: 7483.62463 | BL64: 43.06506 | BM64: 1347.27165 | BN64: -3056.96474 | BO64: 0.20337 | BP64: 3122.65667 | BQ64: 122102.2235 | BR64: 50740.26404 | BS64: 47819.36635 | BT64: 1588.83763 | BU64: 453.95209 | BV64: 56.00506 | BW64: -27203.28076 | BX64: 28430.72567 | BY64: -16728.61892 | BZ64: 4963.68741 | CA64: 577360.2466 | CB64: 531592.9031 | CC64: 45767.34356 | CD64: 0 | CE64: 10780.6345 | CF64: 14 | CG64: 36433 | CH64: 8.4 | CI64: 2.013576555 | CJ64: 242.9174102 | CK64: 27.03304621 | CL64: 203822.4141 | CM64: 220.6454188 | CN64: 149930.4937 | CO64: 239920.7643 | CP64: 409.05352 | CQ64: -89581.21708 | CR64: 83892.69557 | CS64: 66883.41246 | CT64: 2710.45724 | CU64: 15463.88386 | CV64: 10461.48101 | CW64: 58902.94534 | CX64: 44936.65792 | CY64: 0 | CZ64: 13966.28742 | DA64: 70.41437 | DB64: 364.91916 | DC64: -2824.70436 | DD64: 8.78804 | DE64: 11038.32589 | DF64: 129380.3245 | DG64: 57383.04446 | DH64: 49956.86358 | DI64: 104.70336 | DJ64: 2198.68037 | DK64: 128.77568 | DL64: 21468.82128 | DM64: 21268.17768 | DN64: -10569.28594 | DO64: 9729.56461 | DP64: 566590.3172 | DQ64: 527661.1816 | DR64: 38929.13555 | DS64: 0 | DT64: 9683.05062 | DU64: 8 | DW64: 1712.18402 | DX64: 1745.50876 | DY64: 2441.31939 | EE64: 545
A65: 208 | B65: Kalajoki | C65: 12335 | D65: 21 | E65: 2.025603673 | F65: 68.85903485 | G65: 45.58292556 | H65: 27527.23753 | I65: 69.93772855 | J65: 44294.55887 | K65: 125197.3095 | L65: 317.16466 | M65: -80585.58593 | N65: 54948.04063 | O65: 36376.31366 | P65: -31.23407 | Q65: 306.41753 | R65: 930.21916 | S65: 11331.33592 | T65: 9229.69944 | U65: 0 | V65: 2101.63648 | W65: 2.5318 | X65: 4.58889 | Y65: -8.92461 | Z65: -10.72617 | AA65: 2079.92861 | AB65: 28125.91797 | AC65: 11162.94981 | AD65: -11431.09027 | AE65: 252.13982 | AF65: 1356.24435 | AG65: 60.26489 | AH65: -5438.90847 | AI65: 9038.01739 | AJ65: -4830.23607 | AK65: 1340.24371 | AL65: 63518.65499 | AM65: 47059.28673 | AN65: 16459.36826 | AO65: 71.93378 | AP65: 29857.37547 | AQ65: 96 | AR65: 12372 | AS65: 8.36 | AT65: 2.226984478 | AU65: 92.00075203 | AV65: 54.52731206 | AW65: 24914.85642 | AX65: 117.2489748 | AY65: 25236.71766 | AZ65: 61220.44133 | BA65: 95.92418 | BB65: -35887.79949 | BC65: 32437.20065 | BD65: 19185.56369 | BE65: 156.28725 | BF65: 1088.19997 | BG65: 649.1719 | BH65: 15452.22403 | BI65: 9484.61071 | BJ65: -0.00459 | BK65: 5967.60873 | BL65: 11.19458 | BM65: -33.09966 | BN65: 3.47267 | BO65: -29.5701 | BP65: 5985.80554 | BQ65: 34076.8396 | BR65: 15190.51344 | BS65: 8258.81331 | BT65: 989.37471 | BU65: 323.63561 | BV65: 20.88713 | BW65: -6339.07407 | BX65: 655.0002 | BY65: -2956.5132 | BZ65: 8244.71045 | CA65: 49765.67309 | CB65: 36509.96641 | CC65: 13255.70668 | CD65: 0.46537 | CE65: 28406.886 | CF65: 37 | CG65: 12271 | CH65: 8.3 | CI65: 2.116603008 | CJ65: 89.25244199 | CK65: 57.71748088 | CL65: 26593.11583 | CM65: 102.3678023 | CN65: 27795.98557 | CO65: 61938.44613 | CP65: -48.27795 | CQ65: -34190.73851 | CR65: 33009.28996 | CS65: 17423.57846 | CT65: 372.29415 | CU65: 1563.07557 | CV65: 1770.31353 | CW65: 16821.66202 | CX65: 8303.09917 | CY65: 0 | CZ65: 8518.56285 | DA65: 7.01902 | DB65: -89.1071 | DC65: -4.81982 | DD65: 14.35989 | DE65: 8579.67549 | DF65: 42656.5151 | DG65: 12331.30454 | DH65: 21425.00536 | DI65: 3672.88934 | DJ65: 3975.25703 | DK65: 4487.41703 | DL65: 7122.88846 | DM65: 4404.96468 | DN65: 3286.5386 | DO65: -1445.55445 | DP65: 49419.26705 | DQ65: 34433.51687 | DR65: 14985.75018 | DS65: 0 | DT65: 27379.65007 | DU65: 16 | DW65: 10502.98594 | DX65: 10403.50322 | DY65: 10399.39645 | EE65: 5483
A66: 211 | B66: Kangasala | C66: 32959 | D66: 21 | E66: 1.245311271 | F66: 68.69259869 | G66: 40.2168673 | H66: 70874.58926 | I66: 65.48709391 | J66: 134635.0562 | K66: 313405.6331 | L66: 143.78174 | M66: -178626.7952 | N66: 152907.3411 | O66: 49879.43667 | P66: 226.27376 | Q66: 1421.30342 | R66: -131.67787 | S66: 22833.27507 | T66: 22332.94429 | U66: 0 | V66: 500.33078 | W66: 0.72102 | X66: 424.77362 | Y66: -28.57971 | Z66: -358.68737 | AA66: -310.9889 | AB66: 92773.67877 | AC66: 21067.71515 | AD66: -50744.18077 | AE66: 912.74236 | AF66: 1789.95596 | AG66: -11.5772 | AH66: -18055.41622 | AI66: 44962.52944 | AJ66: -141.21355 | AK66: -26973.7673 | AL66: 163101.6218 | AM66: 144038.1161 | AN66: 19063.50568 | AO66: 41.63448 | AP66: 16361.799 | AQ66: 172 | AR66: 33473 | AS66: 8.36 | AT66: 1.400998893 | AU66: 132.7460911 | AV66: 43.32765793 | AW66: 60685.0406 | AX66: 111.3701991 | AY66: 43709.57081 | AZ66: 126163.5074 | BA66: 20.03058 | BB66: -82433.90601 | BC66: 83744.48845 | BD66: 23590.26113 | BE66: 364.10306 | BF66: 2723.5969 | BG66: 3215.25106 | BH66: 25756.60079 | BI66: 21971.55672 | BJ66: 0 | BK66: 3785.04407 | BL66: 0.37982 | BM66: 335.92155 | BN66: 155.18645 | BO66: 12.24141 | BP66: 3616.9302 | BQ66: 92530.0566 | BR66: 24431.16127 | BS66: 49174.95291 | BT66: 1472.50045 | BU66: 2888.19099 | BV66: 4.17563 | BW66: -17604.89717 | BX66: 40850 | BY66: -306.68539 | BZ66: -20383.1002 | CA66: 156812.428 | CB66: 138731.3736 | CC66: 18081.05431 | CD66: 0 | CE66: 9062.53199 | CF66: 159 | CG66: 33951 | CH66: 9.4 | CI66: 1.0989881 | CJ66: 151.0216973 | CK66: 40.97064905 | CL66: 63489.64194 | CM66: 111.2942815 | CN66: 44423.70884 | CO66: 125115.7721 | CP66: -38.04106 | CQ66: -80730.10432 | CR66: 88675.94626 | CS66: 19901.17176 | CT66: 256.51956 | CU66: 4541.95615 | CV66: 2166.57058 | CW66: 25728.14769 | CX66: 19597.26337 | CY66: 359.84724 | CZ66: 6310.80794 | DA66: 0.37982 | DB66: 585.72258 | DC66: 35.84751 | DD66: 8.95378 | DE66: 6063.12776 | DF66: 98593.18437 | DG66: 24611.05378 | DH66: 53275.30045 | DI66: 0 | DJ66: 2474.30781 | DK66: -54.30862 | DL66: 23001.65769 | DM66: 55308 | DN66: -381.37306 | DO66: -26189.93886 | DP66: 188737.3971 | DQ66: 168377.2131 | DR66: 20360.18404 | DS66: 0 | DT66: 14270.79027 | DU66: 138 | DW66: 1043.3997 | DX66: 887.07604 | DY66: 886.69623 | EE66: 22444
A67: 213 | B67: Kangasniemi | C67: 5154 | D67: 21.5 | E67: -1.511478864 | F67: 41.9848965 | G67: 37.42986908 | H67: 2166.11095 | I67: 11.06210778 | J67: 31779.70784 | K67: 70822.1077 | L67: -49.55378 | M67: -39091.95364 | N67: 21570.57866 | O67: 19852.613 | P67: 12.45009 | Q67: 169.82633 | R67: 304.06411 | S67: 2477.92589 | T67: 3052.51268 | U67: 21.33254 | V67: -553.25425 | W67: -0.01399 | X67: 0 | Y67: 0 | Z67: 35.40501 | AA67: -517.86323 | AB67: 584.96141 | AC67: 3790.6449 | AD67: -2349.50982 | AE67: 42.42983 | AF67: 835.76088 | AG67: 115.35816 | AH67: -1921.58898 | AI67: 841.2608 | AJ67: -2865.49078 | AK67: 2319.32579 | AL67: 21700.89295 | AM67: 15617.51159 | AN67: 6083.38136 | AO67: 298.62663 | AP67: 1279.597 | AQ67: 236 | AR67: 5114 | AS67: 8.86 | AT67: 1.143123558 | AU67: 83.01257813 | AV67: 50.02145305 | AW67: 1087.78454 | AX67: 18.84412358 | AY67: 5005.87251 | AZ67: 17747.47749 | BA67: -0.617 | BB67: -12742.22198 | BC67: 12932.30195 | BD67: 1977.48723 | BE67: 21.7984 | BF67: 408.20438 | BG67: 268.9049 | BH67: 2050.06612 | BI67: 1502.01271 | BJ67: 0 | BK67: 548.05341 | BL67: -6.11997 | BM67: 0 | BN67: 0 | BO67: 0 | BP67: 541.93344 | BQ67: 250.36658 | BR67: 1887.63572 | BS67: 902.90262 | BT67: 0 | BU67: 178.96496 | BV67: 142.16664 | BW67: -1742.281 | BX67: 0 | BY67: 1526.61534 | BZ67: 1163.69806 | CA67: 13813.14863 | CB67: 6512.83592 | CC67: 7300.31271 | CD67: 250.96 | CE67: 294.946 | CF67: 256 | CG67: 5062 | CH67: 9.4 | CI67: 1.483881933 | CJ67: 72.70824534 | CK67: 53.79368659 | CL67: 809.36221 | CM67: 13.89108571 | CN67: 5109.72865 | CO67: 17494.38405 | CP67: 25.73209 | CQ67: -12358.92331 | CR67: 13005.61034 | CS67: 1762.61993 | CT67: 4.16948 | CU67: 470.85749 | CV67: 507.62296 | CW67: 2450.24191 | CX67: 2101.71202 | CY67: 0 | CZ67: 348.52989 | DA67: 6.44325 | DB67: 0 | DC67: 0 | DD67: 0 | DE67: 354.97314 | DF67: 605.32599 | DG67: 2409.34784 | DH67: 1296.11565 | DI67: 0 | DJ67: 145 | DK67: 18 | DL67: 1497.69495 | DM67: 0 | DN67: -576.81507 | DO67: 1258.23219 | DP67: 11726.99612 | DQ67: 5033.14098 | DR67: 6693.85514 | DS67: 168.95999 | DT67: 150.487 | DU67: 230 | DW67: 42.98942 | DX67: 431.07122 | DY67: 431.07122 | EE67: 1154
A68: 214 | B68: Kankaanpää | C68: 12528 | D68: 21.75 | E68: 0.7313554241 | F68: 73.5267665 | G68: 25.1030761 | H68: 10236.68689 | I68: 19.01208659 | J68: 82517.81123 | K68: 159395.2213 | L68: -52.47732 | M68: -76929.88736 | N68: 50044.24247 | O68: 37714.949 | P68: 16.48514 | Q68: 636.36106 | R68: 1099.57142 | S68: 11308.99961 | T68: 10194.45867 | U68: 498.17268 | V68: 1612.71362 | W68: 0 | X68: 2.87338 | Y68: -130.47068 | Z68: 17.42395 | AA68: 1496.79351 | AB68: 18557.11135 | AC68: 11789.1677 | AD68: -20609.59597 | AE68: 549.37798 | AF68: 5662.82049 | AG68: -64.19773 | AH68: -15696.82015 | AI68: 13262.81672 | AJ68: 1086.51023 | AK68: -2608.2298 | AL68: 79650.96303 | AM68: 62211.45503 | AN68: 17439.508 | AO68: 0 | AP68: 19525.62141 | AQ68: 102 | AR68: 12394 | AS68: 9.11 | AT68: 1.022465378 | AU68: 136.3114508 | AV68: 28.32355382 | AW68: 6680.91059 | AX68: 25.86633203 | AY68: 39883.90991 | AZ68: 64898.64708 | BA68: -334.29399 | BB68: -25349.03116 | BC68: 29036.6742 | BD68: 10839.329 | BE68: 18.14815 | BF68: 1181.57865 | BG68: 1071.46416 | BH68: 14435.0057 | BI68: 9543.0454 | BJ68: 0 | BK68: 4891.9603 | BL68: 0 | BM68: -0.00042 | BN68: -199.56256 | BO68: 38.90124 | BP68: 4731.2994 | BQ68: 23107.33618 | BR68: 14522.44346 | BS68: 13028.7056 | BT68: 145.78608 | BU68: 256.67416 | BV68: -2.10096 | BW68: -14091.88164 | BX68: 16221.79503 | BY68: -712.42957 | BZ68: 1896.1981 | CA68: 76540.61347 | CB68: 61421.99976 | CC68: 15118.61371 | CD68: 0 | CE68: 867.75224 | CF68: 48 | CG68: 12478 | CH68: 9.1 | CI68: 0.5391405797 | CJ68: 143.4783643 | CK68: 29.9479116 | CL68: 7504.53833 | CM68: 25.59413942 | CN68: 41763.0195 | CO68: 69657.83586 | CP68: -9.97501 | CQ68: -27904.79137 | CR68: 28523.96409 | CS68: 9297.329 | CT68: 46.91603 | CU68: 1468.91593 | CV68: 763.71072 | CW68: 9258.21254 | CX68: 11505.5832 | CY68: 0 | CZ68: -2247.37066 | DA68: 0 | DB68: 9.46622 | DC68: 36.76964 | DD68: 639.99437 | DE68: -1575.33976 | DF68: 21190.35931 | DG68: 9565.78094 | DH68: 16694.97098 | DI68: 509.09104 | DJ68: 1810.73996 | DK68: -9.56473 | DL68: 18427.8028 | DM68: 14913.2374 | DN68: 9310.77946 | DO68: -4809.35904 | DP68: 82336.82754 | DQ68: 63242.62927 | DR68: 19094.19827 | DS68: 0 | DT68: 1696.84669 | DU68: 143 | DW68: 5429.98235 | DX68: 5303.62869 | DY68: 5172.87693 | EE68: 1486
A69: 216 | B69: Kannonkoski | C69: 1269 | D69: 21.5 | E69: 1.9 | F69: 63.7 | G69: 32.4 | H69: 5974.452 | I69: 72 | J69: 18832 | K69: 29502 | L69: 90 | M69: -10579 | N69: 4958 | O69: 6449 | P69: 6.2844 | Q69: 98.33782 | R69: 129 | S69: 865 | T69: 1564 | U69: 100 | V69: -599 | W69: 2 | X69: 0 | Y69: -5 | Z69: -9 | AA69: -611 | AB69: 6903 | AC69: 1165 | AD69: -403 | AE69: 7 | AF69: 29 | AG69: 0 | AH69: -405 | AI69: 388 | AJ69: -5 | AK69: 798 | AL69: 15002 | AM69: 7695 | AN69: 7307 | AO69: 0 | AP69: 1064.18786 | AQ69: 177 | AR69: 1217 | AS69: 8.86 | AT69: 1.284711742 | AU69: 93.10491686 | AV69: 44.49432459 | AW69: 4245.3667 | AX69: 131.2124887 | AY69: 7282.74798 | AZ69: 10802.61782 | BA69: -0.33565 | BB69: -3520.20549 | BC69: 2907.5331 | BD69: 1144.604 | BE69: 5.67921 | BF69: 305.46437 | BG69: 102.14527 | BH69: 334.29172 | BI69: 1516.25605 | BJ69: -1 | BK69: -1182.96433 | BL69: 1.52599 | BM69: 0 | BN69: -2.73773 | BO69: 7.0822 | BP69: -1177.09387 | BQ69: 5724.30405 | BR69: 305.96332 | BS69: 402.69168 | BT69: 17.91485 | BU69: 20.25807 | BV69: 59.59571 | BW69: -192.512 | BX69: 0 | BY69: -320 | BZ69: -58.55544 | CA69: 8766.165 | CB69: 2050.653 | CC69: 6715.512 | CD69: 0 | CE69: 2274.91968 | CF69: 271 | CG69: 1186 | CH69: 9.2 | CI69: 2.699428992 | CJ69: 91.78264793 | CK69: 45.94873982 | CL69: 4524.59696 | CM69: 143.6758653 | CN69: 6963.98362 | CO69: 10471.89063 | CP69: -1.37734 | CQ69: -3509.28435 | CR69: 2979.272 | CS69: 1351.286 | CT69: 3.77676 | CU69: 208.18636 | CV69: 256.60636 | CW69: 873.47041 | CX69: 1054.59374 | CY69: 0 | CZ69: -181.12333 | DA69: 1.65277 | DB69: 0 | DC69: -2.06395 | DD69: 6.22927 | DE69: -175.30524 | DF69: 5702.55817 | DG69: 873.47041 | DH69: 365.27442 | DI69: 158.96249 | DJ69: 22.01702 | DK69: 4.10666 | DL69: 192.512 | DM69: 0 | DN69: 0 | DO69: 689.1755 | DP69: 8573.653 | DQ69: 1858.141 | DR69: 6715.512 | DS69: 0 | DT69: 2275.01896 | DU69: 144 | DW69: 0.52384 | DX69: 0.64417 | DY69: 0.50944 | EC69: 243 | EE69: 88
A70: 217 | B70: Kannus | C70: 5352 | D70: 21.5 | E70: 0.9932245884 | F70: 63.8090045 | G70: 33.06845124 | H70: 6572.90611 | I70: 28.6358182 | J70: 36483.07411 | K70: 75443.41914 | L70: 594.56519 | M70: -38365.77984 | N70: 20804.98864 | O70: 19407.74007 | P70: 10.69059 | Q70: 156.12205 | R70: 61.13922 | S70: 1762.65663 | T70: 3506.30737 | U70: 0 | V70: -1743.65074 | W70: 25.87765 | X70: 19.35565 | Y70: 11.96665 | Z70: -40.91001 | AA70: -1766.07209 | AB70: 11399.34403 | AC70: 1555.87474 | AD70: -6371.58328 | AE70: 22.2936 | AF70: 92.19193 | AG70: 5.1007 | AH70: -1775.74583 | AI70: 3816.1 | AJ70: 1463.17057 | AK70: -4701.22301 | AL70: 31294.52127 | AM70: 14560.68926 | AN70: 16733.83201 | AO70: 5.44 | AP70: 1180.23284 | AQ70: 271 | AR70: 5246 | AS70: 8.86 | AT70: 1.780789399 | AU70: 133.7307726 | AV70: 34.51027244 | AW70: 4428.54826 | AX70: 38.43101848 | AY70: 14019.94208 | AZ70: 30141.12837 | BA70: 223.50278 | BB70: -15897.68351 | BC70: 13105.59603 | BD70: 7187.63948 | BE70: 14.53071 | BF70: 986.85301 | BG70: 110.09983 | BH70: 3533.32953 | BI70: 3218.63118 | BJ70: 0 | BK70: 314.69835 | BL70: 15.98057 | BM70: 1.27024 | BN70: 6.16509 | BO70: 16.31879 | BP70: 351.89256 | BQ70: 11669.31592 | BR70: 3515.47065 | BS70: 9271.5369 | BT70: 0 | BU70: 356.00003 | BV70: 10.2144 | BW70: -1551.44969 | BX70: 9602.1 | BY70: -2610.37084 | BZ70: -5400.06622 | CA70: 33500.14663 | CB70: 19568.84298 | CC70: 13931.30365 | CD70: 0 | CE70: 401.004 | CF70: 189 | CG70: 5264 | CH70: 8.9 | CI70: 2.414744131 | CJ70: 150.5688174 | CK70: 34.50819919 | CL70: 6760.02104 | CM70: 55.21018842 | CN70: 16750.2591 | CO70: 30202.66527 | CP70: 490.27382 | CQ70: -12962.13235 | CR70: 13314.57696 | CS70: 4495.394 | CT70: 19.42356 | CU70: 1317.02407 | CV70: 1477.23429 | CW70: 5027.47239 | CX70: 3172.03891 | CY70: 0 | CZ70: 1855.43348 | DA70: 1057.36683 | DB70: 7.57304 | DC70: -27.44212 | DD70: -7.87712 | DE70: 2873.69455 | DF70: 14517.15308 | DG70: 4535.3735 | DH70: 9334.37743 | DI70: 10.28972 | DJ70: 1221.44652 | DK70: -1040.09482 | DL70: 1310.37499 | DM70: 845.83333 | DN70: 7872.30788 | DO70: -3567.26769 | DP70: 40907.91286 | DQ70: 18583.70486 | DR70: 22324.208 | DS70: 1049.48966 | DT70: 464.491 | DU70: 74 | DW70: 5070.68797 | DX70: 5045.48 | DY70: 4013.97029 | EE70: 1430
A71: 218 | B71: Karijoki | C71: 1200 | D71: 22.5 | E71: 1.875668922 | F71: 27.88271801 | G71: 54.02090194 | H71: 3683.51789 | I71: 65.41844268 | J71: 10448.93719 | K71: 19818.67327 | L71: 0.19781 | M71: -9369.53827 | N71: 4272.35939 | O71: 5925.74467 | P71: 0.28016 | Q71: 26.80669 | R71: 4.76798 | S71: 806.80724 | T71: 545.52309 | U71: 0 | V71: 261.28415 | W71: 0 | X71: 1.79929 | Y71: 1.25882 | Z71: 2.0709 | AA71: 262.81458 | AB71: 2784.29546 | AC71: 802.62501 | AD71: -279.79377 | AE71: 7.38286 | AF71: 9.64725 | AG71: 0.21015 | AH71: -417.62885 | AI71: 30.09686 | AJ71: 56.44793 | AK71: 539.86135 | AL71: 3024.90087 | AM71: 2612.56877 | AN71: 412.3321 | AO71: 10.82045 | AP71: 964.623 | AQ71: 185 | AR71: 1188 | AS71: 9.86 | AT71: 3.395879494 | AU71: 41.44057194 | AV71: 74.58199648 | AW71: 2794.24265 | AX71: 190.3201564 | AY71: 1319.96718 | AZ71: 4431.79092 | BA71: -1.96916 | BB71: -3113.7929 | BC71: 2645.18784 | BD71: 1461.86448 | BE71: 0.00267 | BF71: 34.49324 | BG71: 7.35608 | BH71: 966.12493 | BI71: 408.39856 | BJ71: -31.13373 | BK71: 526.59264 | BL71: 0 | BM71: 7.84187 | BN71: 1.34862 | BO71: 0.00227 | BP71: 520.10166 | BQ71: 3273.38019 | BR71: 929.66809 | BS71: 625.05378 | BT71: 1.76549 | BU71: 346.95439 | BV71: 0 | BW71: -260.16332 | BX71: 19.7767 | BY71: 0.98405 | BZ71: 653.33419 | CA71: 1517.89765 | CB71: 1349.17396 | CC71: 168.72369 | CD71: 0 | CE71: 37.51046 | CF71: 137 | CG71: 1159 | CH71: 9.8 | CI71: 2.817260079 | CJ71: 37.91570264 | CK71: 76.3517469 | CL71: 3048.26242 | CM71: 203.2929752 | CN71: 1448.14283 | CO71: 4732.73633 | CP71: -0.73516 | CQ71: -3285.32866 | CR71: 2595.54964 | CS71: 1279.78105 | CT71: 0.26655 | CU71: 36.19739 | CV71: 6.96923 | CW71: 561.04042 | CX71: 428.67284 | CY71: 26.61818 | CZ71: 145.67667 | DA71: 0 | DB71: -1.61556 | DC71: 0.74997 | DD71: 0 | DE71: 147.23442 | DF71: 3421.94427 | DG71: 574.99063 | DH71: 521.2692 | DI71: 0.9905 | DJ71: 86.46835 | DK71: 44.88 | DL71: 175.79504 | DM71: 15.7448 | DN71: -1.92542 | DO71: 141.18028 | DP71: 1355.98301 | DQ71: 1215.79556 | DR71: 140.18745 | DS71: 0 | DT71: 38.16337 | DU71: 229 | DW71: 629.98152 | DX71: 649.98152 | DY71: 629.98153 | EE71: 65
A72: 224 | B72: Karkkila | C72: 8603 | D72: 21.25 | E72: 0.7563624169 | F72: 63.99078297 | G72: 13.55503393 | H72: 9953.49887 | I72: 28.62683348 | J72: 62631.55246 | K72: 113355.0555 | L72: -35.40374 | M72: -50758.90679 | N72: 35387.7415 | O72: 22198.173 | P72: 50.30522 | Q72: 284.26448 | R72: 122.01863 | S72: 6715.06709 | T72: 4118.8936 | U72: 0 | V72: 2596.17349 | W72: -1.77566 | X72: 4.98548 | Y72: -1.77135 | Z72: 1.50963 | AA72: 2589.15063 | AB72: 3988.95514 | AC72: 6361.01555 | AD72: -4120.95022 | AE72: 14.76866 | AF72: 543.54781 | AG72: 7.27996 | AH72: -8969.67439 | AI72: 1317.6 | AJ72: 3520.13978 | AK72: 2798.3818 | AL72: 60670.58375 | AM72: 31656.89339 | AN72: 29013.69036 | AO72: 0 | AP72: 5046.82532 | AQ72: 136 | AR72: 8581 | AS72: 8.61 | AT72: 0.9940172552 | AU72: 144.2647775 | AV72: 16.86471828 | AW72: 3112.68306 | AX72: 28.98532901 | AY72: 11757.22477 | AZ72: 29743.73339 | BA72: 0 | BB72: -17986.50862 | BC72: 18698.66875 | BD72: 5647.386 | BE72: 245.02639 | BF72: 1290.73816 | BG72: 65.26535 | BH72: 5379.09971 | BI72: 3059.53217 | BJ72: 0 | BK72: 2319.56754 | BL72: 2.27069 | BM72: 0.0026 | BN72: 0 | BO72: 0 | BP72: 2321.83563 | BQ72: 6055.77312 | BR72: 3663.9711 | BS72: 2677.72174 | BT72: 0 | BU72: 729.43195 | BV72: 0 | BW72: -5419.24382 | BX72: 0 | BY72: 204.72571 | BZ72: 1715.68131 | CA72: 46817.90792 | CB72: 17901.66992 | CC72: 28916.238 | CD72: 0 | CE72: 131.65767 | CF72: 198 | CG72: 8440 | CH72: 8.6 | CI72: 0.7649300743 | CJ72: 138.9430488 | CK72: 18.97256779 | CL72: 2265.8208 | CM72: 20.40070477 | CN72: 10388.00063 | CO72: 30188.01396 | CP72: 0 | CQ72: -19800.01333 | CR72: 19044.96781 | CS72: 6214.72 | CT72: 221.08443 | CU72: 1663.93801 | CV72: 81.18319 | CW72: 4098.0041 | CX72: 3188.04408 | CY72: 0 | CZ72: 909.96002 | DA72: 1.1316 | DB72: 0 | DC72: 0 | DD72: 0 | DE72: 911.09162 | DF72: 7068.39798 | DG72: 3622.81043 | DH72: 2737.18451 | DI72: 0 | DJ72: 484.49325 | DK72: 0 | DL72: 5868.70099 | DM72: 10000 | DN72: -6447.37 | DO72: 1370.11917 | DP72: 44501.83693 | DQ72: 22032.81592 | DR72: 22469.02101 | DS72: 0 | DT72: 491.3924 | DU72: 228 | DW72: 991.55746 | DX72: 981.40222 | DY72: 980.27062 | EE72: 142
A73: 226 | B73: Karstula | C73: 3665 | D73: 21.5 | E73: 6.192341396 | F73: 52.66051394 | G73: 30.2447992 | H73: 11633.62037 | I73: 57.69858568 | J73: 39930.66066 | K73: 67026.50706 | L73: 0 | M73: -27095.8464 | N73: 14232.79881 | O73: 17656.07673 | P73: 9.84664 | Q73: 157.52353 | R73: 128.96319 | S73: 4774.31544 | T73: 3072.18477 | U73: 194.93276 | V73: 1897.06343 | W73: 0.58872 | X73: 43.85658 | Y73: -8.5132 | Z73: -40.10516 | AA73: 1805.17721 | AB73: 3083.66275 | AC73: 4248.13145 | AD73: -5758.5478 | AE73: 17.66392 | AF73: 115.81618 | AG73: 47.93371 | AH73: -638.91818 | AI73: 166.74824 | AJ73: 19.79043 | AK73: -1376.93625 | AL73: 27075.7197 | AM73: 13589.31397 | AN73: 13486.40573 | AO73: 126.30382 | AP73: 19101.49651 | AQ73: 38 | AR73: 3625 | AS73: 8.86 | AT73: 4.782085853 | AU73: 97.98981096 | AV73: 46.61679406 | AW73: 8257.77262 | AX73: 139.8039628 | AY73: 6446.20825 | AZ73: 16438.22608 | BA73: 0 | BB73: -9992.01783 | BC73: 8278.75077 | BD73: 5243.8351 | BE73: 10.09599 | BF73: 540.33985 | BG73: 43.42367 | BH73: 3043.74785 | BI73: 2267.26488 | BJ73: -97.01994 | BK73: 679.46303 | BL73: -0.3779 | BM73: 54.49579 | BN73: -6.5666 | BO73: -22.73837 | BP73: 595.28437 | BQ73: 3829.71071 | BR73: 2679.97625 | BS73: 4328.24993 | BT73: 1674.18673 | BU73: 237.22948 | BV73: 22.43372 | BW73: -209.14224 | BX73: 10.00922 | BY73: -38.54701 | BZ73: 263.14253 | CA73: 17049.11026 | CB73: 3823.85293 | CC73: 13225.25733 | CD73: 94.69536 | CE73: 20373.70681 | CF73: 131 | CG73: 3573 | CH73: 8.8 | CI73: 3.497266966 | CJ73: 99.17301988 | CK73: 48.09449591 | CL73: 8546.99273 | CM73: 157.2236988 | CN73: 6730.41809 | CO73: 16738.8348 | CP73: 0 | CQ73: -10008.41671 | CR73: 8466.59505 | CS73: 4476.66899 | CT73: 88.05932 | CU73: 603.84135 | CV73: 46.6716 | CW73: 2465.7369 | CX73: 2423.84352 | CY73: 0 | CZ73: 41.89338 | DA73: 0.37732 | DB73: 63.55428 | DC73: -4.211 | DD73: 57.47981 | DE73: 63.76237 | DF73: 3861.58236 | DG73: 2447.18212 | DH73: 1970.01126 | DI73: 537.76381 | DJ73: 150.2 | DK73: -93.0404 | DL73: 273.86638 | DM73: 325.61607 | DN73: -358.82704 | DO73: 1165.13467 | DP73: 17116.75443 | DQ73: 3671.28805 | DR73: 13445.46638 | DS73: 65.86165 | DT73: 16735.88517 | DU73: 158 | DW73: 0 | DX73: 32.04201 | DY73: 44.64007 | EE73: 1101
A74: 230 | B74: Karvia | C74: 2240 | D74: 20.5 | E74: 2.469291632 | F74: 52.79878762 | G74: 46.05568442 | H74: 3562.74056 | I74: 32.89557681 | J74: 22539.18492 | K74: 36439.31633 | L74: 0 | M74: -13900.13141 | N74: 7472.54225 | O74: 9320.44011 | P74: 11.75495 | Q74: 69.31508 | R74: -539.48136 | S74: 2295.80946 | T74: 2834.38464 | U74: 0 | V74: -538.57518 | W74: 0 | X74: 9.20991 | Y74: -18.71242 | Z74: 14.86373 | AA74: -551.63378 | AB74: 15019.77238 | AC74: 2282.28823 | AD74: -1554.65335 | AE74: 4.59417 | AF74: -1622.35223 | AG74: 0 | AH74: -888.49991 | AI74: 270.99941 | AJ74: 342.61412 | AK74: -890.12318 | AL74: 7626.61182 | AM74: 5197.23456 | AN74: 2429.37726 | AO74: 0 | AP74: 1379.65093 | AQ74: 77 | AR74: 2216 | AS74: 7.86 | AT74: 2.531348935 | AU74: 113.8563103 | AV74: 45.75540455 | AW74: 2544.72427 | AX74: 46.26362513 | AY74: 10752.97027 | AZ74: 14866.55105 | BA74: 0 | BB74: -4113.58078 | BC74: 4169.38953 | BD74: 2254.58041 | BE74: 52.81556 | BF74: 205.66665 | BG74: -24.79996 | BH74: 2132.73811 | BI74: 2764.91166 | BJ74: -25.68591 | BK74: -657.85946 | BL74: 20.86573 | BM74: 3.47039 | BN74: -75.08398 | BO74: 30.23827 | BP74: -685.30983 | BQ74: 14420.15392 | BR74: 1934.50574 | BS74: 4303.86506 | BT74: 5.81691 | BU74: 430.91596 | BV74: -7.38 | BW74: -718.11147 | BX74: 2870.53088 | BY74: 267.60201 | BZ74: -1932.62645 | CA74: 8944.76883 | CB74: 6425.32234 | CC74: 2519.44649 | CD74: 0 | CE74: 185.18858 | CF74: 84 | CG74: 2170 | CH74: 8.9 | CI74: 1.189716284 | CJ74: 117.1306466 | CK74: 54.24170408 | CL74: 3729.68262 | CM74: 57.32134655 | CN74: 11255.3468 | CO74: 15377.33118 | CP74: 0 | CQ74: -4121.98438 | CR74: 4855.0351 | CS74: 2738.19831 | CT74: 71.48355 | CU74: 332.46381 | CV74: 235.87258 | CW74: 3446.14135 | CX74: 3077.80676 | CY74: 0 | CZ74: 368.33459 | DA74: -6.37206 | DB74: 20.32634 | DC74: 4.46607 | DD74: 262.99611 | DE74: 619.26154 | DF74: 15552.4352 | DG74: 3433.62661 | DH74: 4933.05151 | DI74: 32.70175 | DJ74: 8.41935 | DK74: 519.68953 | DL74: 2843.59187 | DM74: 5311.29111 | DN74: 0 | DO74: -1458.3038 | DP74: 11736.52164 | DQ74: 8024.3754 | DR74: 3712.14624 | DS74: 0 | DT74: 160.27493 | DU74: 9 | DW74: 1688.48294 | DX74: 1636.39619 | DY74: 1629.03509 | EC74: 111 | EE74: 225
A75: 231 | B75: Kaskinen | C75: 1256 | D75: 23 | E75: 1.363456527 | F75: 61.83354844 | G75: 39.35247806 | H75: 926.66113 | I75: 14.77037477 | J75: 11250.19371 | K75: 20633.69117 | L75: 0 | M75: -9383.49746 | N75: 7419.00876 | O75: 3184.91485 | P75: 13.83235 | Q75: 49.36752 | R75: -12.5481 | S75: 1172.34288 | T75: 1193.39435 | U75: 0 | V75: -21.05147 | W75: -15 | X75: 0 | Y75: 1.00465 | Z75: 0 | AA75: -35.04682 | AB75: 4081.29124 | AC75: 593.87176 | AD75: -1331.64982 | AE75: 22.65565 | AF75: 1694.74088 | AG75: 35 | AH75: -846.67161 | AI75: 538.6405 | AJ75: 680.81848 | AK75: 979.61847 | AL75: 10810.43401 | AM75: 7708.87758 | AN75: 3101.55643 | AO75: 0.43159 | AP75: 2921.76867 | AQ75: 92 | AR75: 1208 | AS75: 10.36 | AT75: 0.3627484855 | AU75: 145.436131 | AV75: 34.53916283 | AW75: 720.95969 | AX75: 19.38193844 | AY75: 5651.48974 | AZ75: 8980.91483 | BA75: 0 | BB75: -3329.42509 | BC75: 4486.12866 | BD75: -924.34615 | BE75: 9.58708 | BF75: 182.12801 | BG75: -4.01672 | BH75: 55.79977 | BI75: 1209.30655 | BJ75: 0 | BK75: -1153.50678 | BL75: -83.91282 | BM75: 41.31972 | BN75: 8.39418 | BO75: 0 | BP75: -1270.34514 | BQ75: 2912.19902 | BR75: -46.71877 | BS75: 3944.28716 | BT75: 0.06275 | BU75: 341.42705 | BV75: 0 | BW75: -473.77488 | BX75: 2758.80471 | BY75: -193.71847 | BZ75: -3649.51613 | CA75: 11399.71231 | CB75: 8623.52932 | CC75: 2776.18299 | CD75: 0 | CE75: 2605.81524 | CF75: 282 | CG75: 1241 | CH75: 10.3 | CI75: -0.4262123564 | CJ75: 149.7906494 | CK75: 27.9405874 | CL75: 930.81311 | CM75: 27.13780442 | CN75: 5002.19977 | CO75: 9578.35164 | CP75: 0 | CQ75: -4576.15187 | CR75: 4630.91556 | CS75: -546.8627 | CT75: 2.78574 | CU75: 344.24141 | CV75: 4.77267 | CW75: -828.78201 | CX75: 1130.20017 | CY75: 0 | CZ75: -1958.98218 | DA75: 0 | DB75: -54.7761 | DC75: 16.12577 | DD75: 0 | DE75: -1915.46836 | DF75: 871.69687 | DG75: -437.89517 | DH75: 1799.34048 | DI75: 20.50399 | DJ75: 924.23206 | DK75: 0 | DL75: 792.61113 | DM75: 2000.003 | DN75: 1490.29983 | DO75: -1292.4996 | DP75: 12599.70832 | DQ75: 8442.0071 | DR75: 4157.70122 | DS75: 0 | DT75: 899.36961 | DU75: 291 | DW75: 19.10215 | DX75: 15.71157 | DY75: 12.91157 | EA75: 250 | EC75: 242 | EE75: 2100
A76: 232 | B76: Kauhajoki | C76: 12750 | D76: 22 | E76: 1.123289821 | F76: 71.44095924 | G76: 27.48270079 | H76: 33491.74496 | I76: 59.5827067 | J76: 90649.68796 | K76: 182116.8575 | L76: 137.26591 | M76: -91329.90361 | N76: 51274.96557 | O76: 51865.67558 | P76: 24.66975 | Q76: 951.03262 | R76: 173.11125 | S76: 11057.48592 | T76: 9816.62671 | U76: 0 | V76: 1240.85921 | W76: -0.01596 | X76: 0 | Y76: -50.79985 | Z76: 5.95828 | AA76: 1196.00168 | AB76: 8907.19638 | AC76: 10783.47911 | AD76: -10946.35798 | AE76: 77.95125 | AF76: 247.27162 | AG76: 1.0494 | AH76: -9739.45733 | AI76: 8749.576 | AJ76: -2142.16079 | AK76: 162.344 | AL76: 107308.8665 | AM76: 90144.562 | AN76: 17164.30453 | AO76: 229.6221 | AP76: 10063.527 | AQ76: 116 | AR76: 12618 | AS76: 9.36 | AT76: 1.313186695 | AU76: 171.2760406 | AV76: 32.62631541 | AW76: 34934.21496 | AX76: 151.5231092 | AY76: 20484.31705 | AZ76: 57402.50188 | BA76: -28.22789 | BB76: -36946.41272 | BC76: 29242.39265 | BD76: 16053.38433 | BE76: 52.62876 | BF76: 2005.02899 | BG76: 4550.14445 | BH76: 10947.10848 | BI76: 8067.90336 | BJ76: 336.51478 | BK76: 3215.7199 | BL76: 0 | BM76: 0 | BN76: 107.27186 | BO76: -4.25568 | BP76: 3318.73608 | BQ76: 12701.84495 | BR76: 11252.09951 | BS76: 12180.38794 | BT76: 104.72738 | BU76: 3560.26841 | BV76: -8.4386 | BW76: -7858.10587 | BX76: 8380.2358 | BY76: 4036.1597 | BZ76: 2736.70736 | CA76: 98886.60131 | CB76: 79807.97195 | CC76: 19078.62936 | CD76: 86.52763 | CE76: 4033.398 | CF76: 121 | CG76: 12518 | CH76: 9.4 | CI76: 1.052934867 | CJ76: 153.5533347 | CK76: 35.24493897 | CL76: 31144.71856 | CM76: 152.2620352 | CN76: 21130.86902 | CO76: 58408.07808 | CP76: 83.40865 | CQ76: -37193.80041 | CR76: 29977.15309 | CS76: 16367.88698 | CT76: 67.83415 | CU76: 2098.71133 | CV76: 1515.57555 | CW76: 8635.93803 | CX76: 8403.5862 | CY76: 0 | CZ76: 232.35183 | DA76: 0 | DB76: 0 | DC76: 170.56058 | DD76: -1.83289 | DE76: 401.07952 | DF76: 13402.79184 | DG76: 8492.3319 | DH76: 4350.96445 | DI76: 27.32805 | DJ76: 568.04914 | DK76: -190 | DL76: 8096.26815 | DM76: 6719.51693 | DN76: -3986.44564 | DO76: 4736.74464 | DP76: 93519.62636 | DQ76: 78716.73491 | DR76: 14802.89145 | DS76: 276.52763 | DT76: 3544.47648 | DU76: 159 | DW76: 1736.00182 | DX76: 1803.58634 | DY76: 1845.64087 | EA76: 800 | EE76: 2499
A77: 233 | B77: Kauhava | C77: 15116 | D77: 21.75 | E77: 1.429351645 | F77: 94.15187774 | G77: 25.16048739 | H77: 36023.31683 | I77: 56.65852612 | J77: 82617.85674 | K77: 187765.896 | L77: -12.78572 | M77: -105160.825 | N77: 59012.64153 | O77: 64413.19323 | P77: 294.17734 | Q77: 990.81415 | R77: 159.47733 | S77: 17727.85028 | T77: 13277.84257 | U77: 0 | V77: 4450.00771 | W77: 144.77218 | X77: 317.26225 | Y77: 6.25321 | Z77: -286.4766 | AA77: 3997.29425 | AB77: 25596.65659 | AC77: 17168.79704 | AD77: -28151.51438 | AE77: 141.64899 | AF77: 413.01798 | AG77: -2303.72187 | AH77: -12105.0986 | AI77: 14813.51445 | AJ77: -2897.19406 | AK77: -10428.05037 | AL77: 161329.663 | AM77: 145587.4664 | AN77: 15742.19655 | AO77: 16.98768 | AP77: 55975.1029 | AQ77: 52 | AR77: 15165 | AS77: 9.11 | AT77: 1.078314032 | AU77: 178.2104788 | AV77: 31.41791327 | AW77: 33188.4132 | AX77: 112.6921961 | AY77: 30717.9888 | AZ77: 68217.00344 | BA77: -0.72947 | BB77: -37499.74411 | BC77: 33172.1309 | BD77: 23701.885 | BE77: 328.3615 | BF77: 3263.3232 | BG77: -41.44023 | BH77: 16397.86986 | BI77: 13242.88695 | BJ77: 536.16492 | BK77: 3691.14783 | BL77: 88.63175 | BM77: 200.48149 | BN77: 22.35453 | BO77: -140.51577 | BP77: 3461.13685 | BQ77: 35039.91721 | BR77: 16556.60024 | BS77: 21085.48324 | BT77: 146.5054 | BU77: 6005.59276 | BV77: 2938.98434 | BW77: -14969.94881 | BX77: 8766.93339 | BY77: 235.149 | BZ77: 1623.21516 | CA77: 137474.4001 | CB77: 121559.5907 | CC77: 15914.80934 | CD77: 0 | CE77: 489.18261 | CF77: 64 | CG77: 15050 | CH77: 9.1 | CI77: 1.485457629 | CJ77: 183.6852723 | CK77: 31.9818334 | CL77: 29274.2413 | CM77: 103.3333757 | CN77: 30954.87669 | CO77: 68313.341 | CP77: 20.84236 | CQ77: -37337.62195 | CR77: 36987.35541 | CS77: 18840.878 | CT77: 462.46164 | CU77: 3919.43695 | CV77: 205.40115 | CW77: 15239.0373 | CX77: 11559.72682 | CY77: 1770.602 | CZ77: 4564.61148 | DA77: 1008.90221 | DB77: 58.48432 | DC77: 40.56546 | DD77: -241.46162 | DE77: 5343.37537 | DF77: 35042.35143 | DG77: 16019.96617 | DH77: 20531.03889 | DI77: 490.68913 | DJ77: 1267.85581 | DK77: 1878.95162 | DL77: 8977.91796 | DM77: 19851.68035 | DN77: -8263.85 | DO77: -2752.52778 | DP77: 144659.2555 | DQ77: 133768.4816 | DR77: 10890.77397 | DS77: 0 | DT77: 712.2765 | DU77: 53 | DW77: 1643.26899 | DX77: 1415.21869 | DY77: 1375.69303 | EE77: 3410
A78: 235 | B78: Kauniainen | C78: 10284 | D78: 17 | E78: 20.69370983 | F78: 32.58622572 | G78: 71.55746598 | H78: 24790.49861 | I78: 67.48975633 | J78: 48822.10114 | K78: 117201.1432 | L78: -25.44362 | M78: -68404.48565 | N78: 87635.77097 | O78: 3926.40975 | P78: 232.345 | Q78: 380.14963 | R78: 63.98406 | S78: 23073.8745 | T78: 10304.01532 | U78: 0 | V78: 12769.85918 | W78: -10071.15523 | X78: 3.40616 | Y78: -19.10986 | Z78: -34.26661 | AA78: 2641.92132 | AB78: 64455.07086 | AC78: 22233.24372 | AD78: -15588.71206 | AE78: 186.12802 | AF78: 1012.17258 | AG78: 98.90468 | AH78: -753.23942 | AI78: 2736.56406 | AJ78: -25.79667 | AK78: 7842.83226 | AL78: 25334.66409 | AM78: 24050.95912 | AN78: 1283.70497 | AO78: 4886.70296 | AP78: 4693.205 | AQ78: 5 | AR78: 10270 | AS78: 4.36 | AT78: 9.846406632 | AU78: 38.23044515 | AV78: 79.97933202 | AW78: 24095.77041 | AX78: 116.8105489 | AY78: 25902.25527 | AZ78: 63044.76311 | BA78: 1.95197 | BB78: -37140.55587 | BC78: 31903.92985 | BD78: 18007.07608 | BE78: 685.86371 | BF78: 590.91209 | BG78: 130.35243 | BH78: 12995.75411 | BI78: 10319.29201 | BJ78: 0 | BK78: 2676.4621 | BL78: -10.95293 | BM78: -1.64121 | BN78: -3.27725 | BO78: -32.69563 | BP78: 2631.1775 | BQ78: 66800.54201 | BR78: 12410.28805 | BS78: 10737.50651 | BT78: 177.17241 | BU78: 652.78065 | BV78: 42 | BW78: -788.94827 | BX78: 537.64133 | BY78: -73.22159 | BZ78: 2502.7346 | CA78: 18045.58604 | CB78: 17064.37209 | CC78: 981.21395 | CD78: 4399.17498 | CE78: 1090.471 | CF78: 32 | CG78: 10253 | CH78: 4.4 | CI78: 7.459715773 | CJ78: 37.96970283 | CK78: 80.55273473 | CL78: 20174.73209 | CM78: 93.36353807 | CN78: 25393.78359 | CO78: 63997.88051 | CP78: 1.42564 | CQ78: -38602.67128 | CR78: 26534.27515 | CS78: 21541.089 | CT78: 923.5466 | CU78: 629.6261 | CV78: 131.25286 | CW78: 9897.86623 | CX78: 10609.30295 | CY78: 0 | CZ78: -711.43672 | DA78: 256.60497 | DB78: 6.0389 | DC78: 63.88262 | DD78: -29.5678 | DE78: -423.53638 | DF78: 66140.03064 | DG78: 8673.49223 | DH78: 13331.7091 | DI78: 354.38605 | DJ78: 1277.98194 | DK78: 119.30286 | DL78: 781.61967 | DM78: 615.756 | DN78: -233.39822 | DO78: -3025.84888 | DP78: 17676.66791 | DQ78: 16871.06377 | DR78: 805.60414 | DS78: 4280.27137 | DT78: 3235.178 | DU78: 71 | DW78: 188.12775 | DX78: 178.73081 | DY78: 177.65632 | EE78: 2810
A79: 236 | B79: Kaustinen | C79: 4198 | D79: 22 | E79: 0.455473897 | F79: 99.94341498 | G79: 21.005825 | H79: 4385.15119 | I79: 20.82335558 | J79: 32265.76416 | K79: 60473.44836 | L79: 306.1559 | M79: -27901.5283 | N79: 15866.27162 | O79: 17170.88146 | P79: 31.16666 | Q79: 403.00456 | R79: 254.5573 | S79: 5018.34418 | T79: 3782.15438 | U79: 0 | V79: 1236.1898 | W79: 23.95416 | X79: 2.86546 | Y79: 0 | Z79: -7.80193 | AA79: 1249.47657 | AB79: 5547.43185 | AC79: 4857.4896 | AD79: -4460.04471 | AE79: 24.96884 | AF79: 98.57603 | AG79: 7.38628 | AH79: -11499.65062 | AI79: 2659.2 | AJ79: 9637.98359 | AK79: 520.98976 | AL79: 53147.61578 | AM79: 39230.74521 | AN79: 13916.87057 | AO79: 306.51008 | AP79: 1300.63034 | AQ79: 49 | AR79: 4137 | AS79: 9.36 | AT79: 0.7470975154 | AU79: 208.6519863 | AV79: 21.92215749 | AW79: 4819.03049 | AX79: 52.24944686 | AY79: 11795.95505 | AZ79: 24535.10704 | BA79: 111.94664 | BB79: -12627.20535 | BC79: 8617.4449 | BD79: 8230.88118 | BE79: 11.91959 | BF79: 1138.58304 | BG79: 109.3335 | BH79: 3203.79078 | BI79: 3495.46313 | BJ79: 0 | BK79: -291.67235 | BL79: 10.39233 | BM79: 0 | BN79: 0 | BO79: -6.60393 | BP79: -287.88395 | BQ79: 5188.58897 | BR79: 3196.70917 | BS79: 2664.20377 | BT79: 102.92107 | BU79: 110.57557 | BV79: -516.549 | BW79: -4673.7423 | BX79: 11569.59925 | BY79: -5389.17488 | BZ79: 746.00204 | CA79: 52416.41516 | CB79: 44154.75533 | CC79: 8261.65983 | CD79: 253.41843 | CE79: 465.78291 | CF79: 154 | CG79: 4118 | CH79: 9.4 | CI79: 0.8515901466 | CJ79: 187.3780672 | CK79: 24.47764454 | CL79: 2198.20054 | CM79: 22.70621374 | CN79: 11796.49414 | CO79: 24620.89238 | CP79: 3.71776 | CQ79: -12820.68048 | CR79: 9089.4248 | CS79: 8310.00742 | CT79: 8.71686 | CU79: 1744.27996 | CV79: 858.95286 | CW79: 3702.1415 | CX79: 3497.68235 | CY79: 0 | CZ79: 204.45915 | DA79: -30.05943 | DB79: 2.41354 | DC79: 0 | DD79: -3.79556 | DE79: 169.39739 | DF79: 5510.99972 | DG79: 3044.14618 | DH79: 2655.26318 | DI79: 11.52449 | DJ79: 892.77833 | DK79: -744.47718 | DL79: 4651.31008 | DM79: 1178.8414 | DN79: -206.96802 | DO79: 1293.18582 | DP79: 48736.97841 | DQ79: 40682.2866 | DR79: 8054.69181 | DS79: 253.41843 | DT79: 478.10425 | DU79: 91 | DW79: 1540.97887 | DX79: 1538.26788 | DY79: 1547.16293 | EA79: 550 | EE79: 1404
A80: 239 | B80: Keitele | C80: 2029 | D80: 20.5 | E80: 6.615238407 | F80: 71.61613378 | G80: 31.13158354 | H80: 3368.16401 | I80: 43.85907337 | J80: 10285.32133 | K80: 25887.91775 | L80: 20.12628 | M80: -15582.47014 | N80: 8109.00143 | O80: 9161.32142 | P80: 4.46965 | Q80: 146.20997 | R80: 267.17721 | S80: 1813.2896 | T80: 1539.24686 | U80: 80.5866 | V80: 354.62934 | W80: 0.26079 | X80: 1.17847 | Y80: -1.22015 | Z80: -0.16454 | AA80: 352.32697 | AB80: 689.3257 | AC80: 1815.83255 | AD80: -1841.47054 | AE80: 34.10814 | AF80: 98.06098 | AG80: 0.83841 | AH80: -150 | AI80: 699.2286 | AJ80: -1213.36585 | AK80: 106.53113 | AL80: 14884.25357 | AM80: 10996.0964 | AN80: 3888.15717 | AO80: 0.47061 | AP80: 1001.16 | AQ80: 108 | AR80: 2035 | AS80: 7.86 | AT80: 0.9285427539 | AU80: 140.0523334 | AV80: 34.56725881 | AW80: 798.36037 | AX80: 26.80135722 | AY80: 2748.21634 | AZ80: 8675.05681 | BA80: 113.26736 | BB80: -5813.57311 | BC80: 4816.97203 | BD80: 1240.41616 | BE80: 7.62107 | BF80: 392.66376 | BG80: 259.69033 | BH80: 118.46272 | BI80: 974.52397 | BJ80: 5.90479 | BK80: -850.15646 | BL80: 0.34548 | BM80: 0.12327 | BN80: 0 | BO80: 1.70722 | BP80: -848.22703 | BQ80: -864.15343 | BR80: 269.93251 | BS80: 1387.43295 | BT80: 60.80674 | BU80: 54.26732 | BV80: 0.14052 | BW80: -157.79714 | BX80: 162.93192 | BY80: 498.8713 | BZ80: -1002.42638 | CA80: 10168.95731 | CB80: 6092.93484 | CC80: 4076.02247 | CD80: 0.35551 | CE80: 357.17418 | CF80: 281 | CG80: 1985 | CH80: 7.9 | CI80: 5.212762105 | CJ80: 92.83893208 | CK80: 46.02824201 | CL80: 1827.96781 | CM80: 64.13823323 | CN80: 2663.43172 | CO80: 8284.29597 | CP80: 86.34058 | CQ80: -5534.52367 | CR80: 7018.59872 | CS80: 1904.47424 | CT80: 15.82225 | CU80: 398.28342 | CV80: 313.08979 | CW80: 3319.17791 | CX80: 1117.58516 | CY80: 0.77412 | CZ80: 2201.97981 | DA80: 3.7639 | DB80: 2.34242 | DC80: 0 | DD80: -1.60278 | DE80: 2202.96972 | DF80: 1547.80414 | DG80: 3279.54247 | DH80: 1092.12834 | DI80: 27.23059 | DJ80: 385.69423 | DK80: 6.20082 | DL80: 314.86275 | DM80: 22.804 | DN80: -1000 | DO80: 2600.33895 | DP80: 8876.89856 | DQ80: 5796.74937 | DR80: 3080.14919 | DS80: 0.35551 | DT80: 438.84775 | DU80: 6 | DW80: 553.22714 | DX80: 506.83661 | DY80: 358.93859 | EE80: 869
A81: 240 | B81: Kemi | C81: 19499 | D81: 21.75 | E81: 0.6 | F81: 107.8 | G81: 18.5 | H81: 30808.42 | I81: 39 | J81: 86465 | K81: 218300 | L81: 116.66018 | M81: -131718 | N81: 90938.52328 | O81: 55631.24 | P81: 124.35818 | Q81: 1731.88135 | R81: -91 | S81: 13152 | T81: 16115 | U81: 2 | V81: -2960 | W81: 0 | X81: 304 | Y81: -404 | Z81: -24.34611 | AA81: -3729 | AB81: -8798 | AC81: 8939 | AD81: -48180.227 | AE81: 15358.064 | AF81: 1814.009 | AG81: 0 | AH81: -22347.794 | AI81: 67331.023 | AJ81: -6862.747 | AK81: -22068 | AL81: 216681 | AM81: 174714 | AN81: 41967 | AO81: -289.34996 | AP81: 3961 | AQ81: 184 | AR81: 19371 | AS81: 9.11 | AT81: 1.898881124 | AU81: 203.9108583 | AV81: 19.41445344 | AW81: 19383.70606 | AX81: 56.59616564 | AY81: 61207.13469 | AZ81: 90724.4961 | BA81: 64.39326 | BB81: -29452.96815 | BC81: 52824.20427 | BD81: 1601.079 | BE81: 71.89252 | BF81: 4222.72152 | BG81: 119.99153 | BH81: 20941.47765 | BI81: 15662.17436 | BJ81: -0.14502 | BK81: 5279.15827 | BL81: 0 | BM81: 586.22614 | BN81: -360.09385 | BO81: -11.2222 | BP81: 4321.61608 | BQ81: -4204.58864 | BR81: 18679.94344 | BS81: 20912.79313 | BT81: 327.17372 | BU81: 3105.4229 | BV81: 0 | BW81: -9029.39777 | BX81: 16127.37517 | BY81: -15384.2712 | BZ81: 1199.74693 | CA81: 203456.098 | CB81: 162536.9737 | CC81: 40919.12433 | CD81: 508.65004 | CE81: 0 | CF81: 65 | CG81: 19402 | CH81: 9.6 | CI81: 0.8474315863 | CJ81: 185.2121288 | CK81: 21.45643853 | CL81: 23704.76061 | CM81: 62.33514161 | CN81: 58973.13038 | CO81: 97099.83326 | CP81: -64.89032 | CQ81: -38191.5932 | CR81: 55686.12008 | CS81: 2335.06685 | CT81: 2084.581 | CU81: 5693.89128 | CV81: 131.42759 | CW81: 16351.71104 | CX81: 17155.8384 | CY81: 862.03968 | CZ81: -373.10752 | DA81: -23.304 | DB81: 263.05864 | DC81: -169.91539 | DD81: -30.55012 | DE81: -728.40635 | DF81: -2942.21415 | DG81: 16589.3807 | DH81: 15556.05358 | DI81: 7563.8688 | DJ81: 2654.14676 | DK81: 51.34497 | DL81: 20320.71884 | DM81: 18122.40855 | DN81: -9704.41924 | DO81: 11251.34268 | DP81: 191024.383 | DQ81: 166243.3013 | DR81: 24781.08169 | DS81: 0 | DT81: 327.84856 | DU81: 110 | DW81: 1036.6406 | DX81: 937.95993 | DY81: 118.20319 | EB81: 1100 | EE81: 5956
A82: 320 | B82: Kemijärvi | C82: 6996 | D82: 21.5 | E82: 1.805065734 | F82: 94.84812516 | G82: 33.14780015 | H82: 19081.05761 | I82: 47.89326181 | J82: 61798.34861 | K82: 114163.7086 | L82: 0 | M82: -52365.36001 | N82: 31107.50906 | O82: 33865.44995 | P82: 27.80388 | Q82: 817.42545 | R82: 6092.09315 | S82: 17910.07058 | T82: 9230.49868 | U82: 0.75447 | V82: 8680.32637 | W82: 40.03242 | X82: 238.6348 | Y82: -95.13798 | Z82: -108.9355 | AA82: 8277.65051 | AB82: 24192.1049 | AC82: 17292.27455 | AD82: -17500.46266 | AE82: 900.58837 | AF82: 374.75426 | AG82: -2383.81879 | AH82: -9557.54078 | AI82: 9749.092 | AJ82: 808.82874 | AK82: 1067.15452 | AL82: 74034.05999 | AM82: 65058.37013 | AN82: 8975.68986 | AO82: 100 | AP82: 2863.207 | AQ82: 4 | AR82: 7030 | AS82: 8.86 | AT82: 1.171716334 | AU82: 127.9021299 | AV82: 43.91165303 | AW82: 12306.33121 | AX82: 58.42150787 | AY82: 33871.00825 | AZ82: 47911.42825 | BA82: 0 | BB82: -14040.42 | BC82: 18978.35085 | BD82: 11162.70134 | BE82: 14.50078 | BF82: 840.10156 | BG82: 3006.24584 | BH82: 18281.27725 | BI82: 7657.21659 | BJ82: -0.05302 | BK82: 10624.00764 | BL82: 0 | BM82: 570.81735 | BN82: 0 | BO82: 660.59821 | BP82: 10713.7885 | BQ82: 33802.50863 | BR82: 17885.86736 | BS82: 9108.47821 | BT82: 757.23724 | BU82: 0 | BV82: -222.38732 | BW82: -15479.01788 | BX82: 6916.18754 | BY82: -924.56514 | BZ82: 9534.62639 | CA82: 48588.36634 | CB82: 40561.88419 | CC82: 8026.48215 | CD82: 0 | CE82: 383.95692 | CF82: 2 | CG82: 6954 | CH82: 8.9 | CI82: - | CJ82: - | CK82: - | CL82: - | CM82: - | CN82: - | CO82: - | CP82: - | CQ82: - | CR82: - | CS82: - | CT82: - | CU82: - | CV82: - | CW82: - | CX82: - | CY82: - | CZ82: - | DA82: - | DB82: - | DC82: - | DD82: - | DE82: - | DF82: - | DG82: - | DH82: - | DI82: - | DJ82: - | DL82: - | DM82: - | DN82: - | DO82: - | DP82: - | DQ82: - | DR82: - | DS82: - | DT82: 459.68281 | DU82: - | DW82: 1903.92552 | DX82: 354.25858 | DY82: - | EE82: 7589
A83: 241 | B83: Keminmaa | C83: 7771 | D83: 21.25 | E83: 1.272982526 | F83: 43.07253427 | G83: 49.57184389 | H83: 7822.775 | I83: 30.4666753 | J83: 34195.40189 | K83: 81973.88356 | L83: 0 | M83: -47778.48167 | N83: 39069.47225 | O83: 16188.481 | P83: 11.7837 | Q83: 170.86517 | R83: -1719.99949 | S83: 5600.39062 | T83: 4319.20541 | U83: 26.94061 | V83: 1308.12582 | W83: 0.56969 | X83: 0 | Y83: 103.15667 | Z83: 0.14725 | AA83: 1411.99943 | AB83: 12433.30724 | AC83: 4687.31654 | AD83: -4745.13354 | AE83: 424.77534 | AF83: 214.68659 | AG83: -399.15653 | AH83: -4362.7837 | AI83: 1041.92313 | AJ83: 761.36498 | AK83: 581.64493 | AL83: 22497.34414 | AM83: 17277.07693 | AN83: 5220.26721 | AO83: 20 | AP83: 4.39816 | AQ83: 162 | AR83: 7691 | AS83: 8.61 | AT83: 1.622107604 | AU83: 92.94089835 | AV83: 53.12718288 | AW83: 6542.93583 | AX83: 56.38123127 | AY83: 11570.88182 | AZ83: 30532.18581 | BA83: -51.83122 | BB83: -19013.13521 | BC83: 21990.51431 | BD83: 3011.443 | BE83: 65.41717 | BF83: 424.65272 | BG83: 93.24606 | BH83: 5722.83261 | BI83: 3871.99242 | BJ83: 234.90958 | BK83: 2085.74977 | BL83: -76.39949 | BM83: 0 | BN83: 194.9614 | BO83: 0.22086 | BP83: 2204.53254 | BQ83: 13807.1848 | BR83: 5676.47674 | BS83: 6841.59501 | BT83: 1024.25782 | BU83: 140.49779 | BV83: -242.33443 | BW83: -3365.1608 | BX83: 3960.67621 | BY83: 34.04893 | BZ83: -0.36266 | CA83: 21517.98818 | CB83: 17019.16781 | CC83: 4498.82037 | CD83: 212.13424 | CE83: 34.026 | CF83: 166 | CG83: 7604 | CH83: 8.6 | CI83: 1.790173729 | CJ83: 93.36176029 | CK83: 54.98176271 | CL83: 6445.43954 | CM83: 61.78970757 | CN83: 12001.21295 | CO83: 29242.54367 | CP83: -31.84914 | CQ83: -17273.17986 | CR83: 21322.0653 | CS83: 1684.391 | CT83: 78.07047 | CU83: 499.35974 | CV83: 99.92844 | CW83: 5411.91561 | CX83: 4118.4462 | CY83: 101.81838 | CZ83: 1344.3786 | DA83: -9.99706 | DB83: 0 | DC83: 26.70092 | DD83: 0.01771 | DE83: 1361.10017 | DF83: 14895.4796 | DG83: 5438.16814 | DH83: 4375.99303 | DI83: 281.615 | DJ83: 40.1782 | DK83: -672.5625 | DL83: 2802.70824 | DM83: 3627.65587 | DN83: -1082.93449 | DO83: 1383.96831 | DP83: 20622.43882 | DQ83: 17391.18418 | DR83: 3231.25464 | DS83: 20 | DT83: 55.785 | DU83: 149 | DW83: 4388.33081 | DX83: 4366.16739 | DY83: 4376.16447 | EE83: 310
A84: 322 | B84: Kemiönsaari | C84: 6549 | D84: 19.75 | E84: 2.108383492 | F84: 45.09238587 | G84: 51.15405426 | H84: 10132.18781 | I84: 44.30707547 | J84: 28911.18647 | K84: 73034.10743 | L84: -13.08742 | M84: -44136.00839 | N84: 26433.16905 | O84: 25120.847 | P84: 1.509 | Q84: 328.94946 | R84: 81.92984 | S84: 7172.49705 | T84: 5830.1071 | U84: 0 | V84: 1342.38995 | W84: 0 | X84: 0.18096 | Y84: 3.97054 | Z84: -5.19361 | AA84: 1341.34784 | AB84: 20583.28174 | AC84: 7179.44659 | AD84: -6852.88597 | AE84: 225.87521 | AF84: 46.72278 | AG84: 0 | AH84: -3228.96424 | AI84: 3953.75112 | AJ84: 701.39524 | AK84: 599.15861 | AL84: 24463.64156 | AM84: 20857.25151 | AN84: 3606.39005 | AO84: 0.8914 | AP84: 2940.668 | AQ84: 64 | AR84: 6462 | AS84: 7.11 | AT84: 1.741036822 | AU84: 59.47066525 | AV84: 66.27489754 | AW84: 9063 | AX84: 101.1990639 | AY84: 8033 | AZ84: 25036 | BA84: 0 | BB84: -17003 | BC84: 14153 | BD84: 9892 | BE84: 92 | BF84: 420 | BG84: 53 | BH84: 6767 | BI84: 3911 | BJ84: 21 | BK84: 2877 | BL84: -19 | BM84: 0 | BN84: -15 | BO84: -1 | BP84: 2840 | BQ84: 23389 | BR84: 6753 | BS84: 3471 | BT84: 203 | BU84: 66 | BW84: -3708 | BX84: 0 | BY84: 0 | BZ84: 3548 | CA84: 13575 | CB84: 12037 | CC84: 1538 | CD84: 0 | CE84: 192.59925 | CF84: 70 | CG84: 6371 | CH84: 7.1 | CI84: 2.483038061 | CJ84: 52.86144117 | CK84: 70.95324838 | CL84: 9264.4173 | CM84: 105.4660472 | CN84: 8181.37152 | CO84: 26254.31132 | CP84: 0 | CQ84: -18072.9398 | CR84: 14093.25474 | CS84: 9334.645 | CT84: 177.70364 | CU84: 437.37474 | CV84: 46.19634 | CW84: 5141.48518 | CX84: 4024.1914 | CY84: 0 | CZ84: 1117.29378 | DA84: 0 | DB84: -0.08576 | DC84: 4.79108 | DD84: 1.60358 | DE84: 1123.73132 | DF84: 24251.79066 | DG84: 5052.14273 | DH84: 3515.27247 | DI84: 3.84586 | DJ84: 406.87859 | DK84: 0 | DL84: 1809.41318 | DM84: 0 | DN84: 0 | DO84: 1947.59471 | DP84: 11718.38286 | DQ84: 10533.70427 | DR84: 1184.67859 | DS84: 0.8914 | DT84: 294.83838 | DU84: 117 | DW84: 1052.75424 | DX84: 956 | DY84: 1453.61193 | EE84: 1059
A85: 244 | B85: Kempele | C85: 19300 | D85: 20.5 | E85: 1.380248098 | F85: 73.84637562 | G85: 35.25305394 | H85: 14987.92016 | I85: 30.14281664 | J85: 40925.87394 | K85: 153089.412 | L85: -92.69062 | M85: -112256.2287 | N85: 86355.83447 | O85: 38910.39826 | P85: 23.49073 | Q85: 623.21849 | R85: 74.18838 | S85: 12484.4647 | T85: 9992.88625 | U85: 0 | V85: 2491.57845 | W85: 30.24189 | X85: 5.97422 | Y85: -71.56983 | Z85: -4.2783 | AA85: 2439.99799 | AB85: 24860.5083 | AC85: 9927.23978 | AD85: -18882.10677 | AE85: 40.96656 | AF85: 3000.97064 | AG85: 0 | AH85: -8873.39535 | AI85: 4850.53602 | AJ85: 5477.26646 | AK85: -5912.9298 | AL85: 91150.49837 | AM85: 77821.85131 | AN85: 13328.64706 | AO85: 0.60881 | AP85: 4602.23092 | AQ85: 194 | AR85: 19514 | AS85: 7.86 | AT85: 1.40941415 | AU85: 115.6000315 | AV85: 38.0175306 | AW85: 9323.7777 | AX85: 30.31341951 | AY85: 24909.40667 | AZ85: 81880.26435 | BA85: 0 | BB85: -56970.85768 | BC85: 46658.80398 | BD85: 21510.591 | BE85: 68.6423 | BF85: 786.72463 | BG85: 90.99881 | BH85: 10571.45378 | BI85: 8663.51253 | BJ85: 0 | BK85: 1907.94125 | BL85: 36.44234 | BM85: 0 | BN85: -86.64835 | BO85: 2.09139 | BP85: 1859.82663 | BQ85: 26625.41003 | BR85: 7407.97632 | BS85: 22236.3553 | BT85: 96 | BU85: 3641.69358 | BV85: 0 | BW85: -7272.06945 | BX85: 14000 | BY85: 1000 | BZ85: -11090.6854 | CA85: 82957.71897 | CB85: 69832.54095 | CC85: 13125.17802 | CD85: 0 | CE85: 2464.3905 | CF85: 226 | CG85: 19657 | CH85: 7.9 | CI85: 1.037909042 | CJ85: 131.0500302 | CK85: 35.00958385 | CL85: 8203.3157 | CM85: 26.81176891 | CN85: 18639.78075 | CO85: 83261.43265 | CP85: 0 | CQ85: -64621.6519 | CR85: 45179.49892 | CS85: 27744.15988 | CT85: 130.29835 | CU85: 1636.66254 | CV85: 142.73377 | CW85: 6938.37648 | CX85: 8619.65863 | CY85: 0 | CZ85: -1681.28215 | DA85: -236.50729 | DB85: 0 | DC85: -63.90588 | DD85: -0.9156 | DE85: -1982.61092 | DF85: 24642.79912 | DG85: 4738.76983 | DH85: 20009.21447 | DI85: 140.39462 | DJ85: 2322.15042 | DK85: 0 | DL85: 6625.17802 | DM85: 16000 | DN85: 5500 | DO85: -12807.8996 | DP85: 97832.54094 | DQ85: 78685.14536 | DR85: 19147.39558 | DS85: 0 | DT85: 49019.57282 | DU85: 259 | DW85: 6895.62764 | DX85: 6610.19779 | DY85: 6846.70508 | EE85: 598
A86: 245 | B86: Kerava | C86: 37676 | D86: 19.25 | E86: 0.8007335884 | F86: 78.9483612 | G86: 44.92858829 | H86: 24336.85131 | I86: 17.294424 | J86: 226620.0694 | K86: 431835.0401 | L86: -74.84361 | M86: -205289.8143 | N86: 178166.7804 | O86: 59829.01033 | P86: 174.14593 | Q86: 2044.34977 | R86: -11121.94475 | S86: 19713.82786 | T86: 36254.86205 | U86: 0 | V86: -16541.03419 | W86: -5.93218 | X86: 7.31417 | Y86: -544.70588 | Z86: 409.96914 | AA86: -16689.01728 | AB86: 123860.9532 | AC86: 17255.05721 | AD86: -41967.54087 | AE86: 205.50232 | AF86: 17036.55104 | AG86: 13.62986 | AH86: -25128.4552 | AI86: 8832.13283 | AJ86: 16719.13446 | AK86: -7470.4303 | AL86: 248602.2334 | AM86: 196053.1672 | AN86: 52549.06622 | AO86: 81.82972 | AP86: 32103.21448 | AQ86: 221 | AR86: 38211 | AS86: 6.61 | AT86: 2.447580856 | AU86: 113.4792809 | AV86: 47.24828689 | AW86: 23144.64797 | AX86: 25.80105857 | AY86: 168957.2055 | AZ86: 250793.8932 | BA86: 49.28785 | BB86: -81787.39985 | BC86: 90954.50255 | BD86: 36475.78363 | BE86: 926.53991 | BF86: 4304.46471 | BG86: 2270.81595 | BH86: 44535.77748 | BI86: 36179.53692 | BJ86: 0 | BK86: 8356.24056 | BL86: 7.586 | BM86: 302.81523 | BN86: -94.08786 | BO86: 100.96509 | BP86: 8067.88856 | BQ86: 131662.0916 | BR86: 42303.44457 | BS86: 54264.10625 | BT86: 268.859 | BU86: 3896.63361 | BV86: -113.58779 | BW86: -15650.0312 | BX86: 32864.58658 | BY86: -13178.77803 | BZ86: -7795.16907 | CA86: 233594.7699 | CB86: 190113.8829 | CC86: 43480.88703 | CD86: 60 | CE86: 25542.2249 | CF86: 47 | CG86: 38461 | CH86: 6.9 | CI86: 1.669975834 | CJ86: 124.0200863 | CK86: 46.33815341 | CL86: 21835.67618 | CM86: 22.93095047 | CN86: 168812.6434 | CO86: 251359.9296 | CP86: -258.28068 | CQ86: -82805.56688 | CR86: 87280.49086 | CS86: 32871.1216 | CT86: 1120.27156 | CU86: 5873.49875 | CV86: 2297.03389 | CW86: 34889.85228 | CX86: 34802.21964 | CY86: 0 | CZ86: 87.63264 | DA86: -3.14952 | DB86: 67.64204 | DC86: 26.80581 | DD86: -77.27568 | DE86: 0.19223 | DF86: 131662.2837 | DG86: 34084.36057 | DH86: 69499.62513 | DI86: 806.4531 | DJ86: 9541.28633 | DK86: 137.22786 | DL86: 18536.04671 | DM86: 38929.06159 | DN86: 4006.97001 | DO86: -25067.52513 | DP86: 257984.8438 | DQ86: 209941.6771 | DR86: 48043.16671 | DS86: 60 | DT86: 25757.2176 | DU86: 88 | DW86: 2914.71882 | DX86: 2882.78255 | DY86: 2885.93206 | EE86: 5932
A87: 249 | B87: Keuruu | C87: 9250 | D87: 21.75 | E87: 2.1 | F87: 93.7 | G87: 33.1 | H87: 7298.25 | I87: 19 | J87: 63421 | K87: 127003 | L87: 231 | M87: -63351 | N87: 39280 | O87: 34731 | P87: 109 | Q87: 643 | R87: 304 | S87: 10430 | T87: 11246 | U87: 411 | V87: -405 | W87: -68 | X87: 223 | Y87: -91 | Z87: 2 | AA87: -785 | AB87: 25331 | AC87: 10614 | AD87: -7689 | AE87: 148 | AF87: 323 | AG87: 617 | AH87: -4737 | AI87: 550 | AJ87: -420 | AK87: 3396 | AL87: 97379 | AM87: 50565 | AN87: 46814 | AO87: 0 | AP87: 38444 | AQ87: 59 | AR87: 9184 | AS87: 9.11 | AT87: 2.25041873 | AU87: 143.699132 | AV87: 37.94112319 | AW87: 8521.934 | AX87: 45.56325562 | AY87: 36170.666 | AZ87: 56941.58 | BA87: 279.261 | BB87: -20491.653 | BC87: 21721.241 | BD87: 10582 | BE87: 695.023 | BF87: 2192.536 | BG87: 111.12 | BH87: 10425.195 | BI87: 9944.563 | BJ87: 0 | BK87: 480.632 | BL87: 91.04 | BM87: 611.365 | BN87: -195.911 | BO87: 106.397 | BP87: -129.207 | BQ87: 22413.081 | BR87: 7878.215 | BS87: 5608.322 | BT87: 143.11 | BU87: 358.493 | BV87: 0 | BW87: -3414.301 | BX87: 3000 | BY87: -102.3 | BZ87: 2771.496 | CA87: 73413.751 | CB87: 27239.375 | CC87: 46174.376 | CD87: 0 | CE87: 0 | CF87: 52 | CG87: 9128 | CH87: 9.1 | CI87: 2.016239643 | CJ87: 143.1747575 | CK87: 39.06086556 | CL87: 6889.72916 | CM87: 36.60922759 | CN87: 33446.16179 | CO87: 56047.62465 | CP87: 188.17054 | CQ87: -22413.29232 | CR87: 21594.02498 | CS87: 10946.58052 | CT87: 338.53835 | CU87: 1817.30573 | CV87: 415.96458 | CW87: 9064.51038 | CX87: 9637.73328 | CY87: 0 | CZ87: -573.2229 | DA87: 35.27371 | DB87: 189.9716 | DC87: 148.80619 | DD87: 12.70162 | DE87: -471.42718 | DF87: 22208.32192 | DG87: 8763.83562 | DH87: 6831.05516 | DI87: -27.35422 | DJ87: 425.60768 | DK87: 476.15433 | DL87: 3579.77896 | DM87: 1633.13753 | DN87: 391.61979 | DO87: 2331.03392 | DP87: 71974.57648 | DQ87: 25285.13865 | DR87: 46689.43783 | DS87: 0 | DT87: 32767.734 | DU87: 59 | DW87: 2106 | DX87: 2120.71 | DY87: 2115.09912 | EE87: 587
A88: 250 | B88: Kihniö | C88: 1771 | D88: 21.5 | E88: 1.064994904 | F88: 53.9173557 | G88: 38.5052871 | H88: 3119.40827 | I88: 48.3561331 | J88: 7582.48946 | K88: 21138.70019 | L88: 21.22901 | M88: -13534.98172 | N88: 6708.21254 | O88: 7984.2872 | P88: 4.67557 | Q88: 114.47402 | R88: 31.0575 | S88: 1078.77707 | T88: 884.58298 | U88: 0 | V88: 194.19409 | W88: 0.06049 | X88: 17.94748 | Y88: -2.68278 | Z88: -32.72438 | AA88: 140.89994 | AB88: 815.7774 | AC88: 1223.47981 | AD88: -1256.00739 | AE88: 308.48939 | AF88: 68.05975 | AG88: 167.80519 | AH88: -1005.9549 | AI88: 441.23847 | AJ88: -11.25712 | AK88: 344.02156 | AL88: 9429.35163 | AM88: 8571.78024 | AN88: 857.57139 | AO88: 220.45082 | AP88: 819.249 | AQ88: 201 | AR88: 1749 | AS88: 8.86 | AT88: 0.1667935555 | AU88: 107.8330767 | AV88: 42.39881181 | AW88: 2147.42728 | AX88: 89.66387552 | AY88: 1806.16984 | AZ88: 7532.10802 | BA88: 2.04271 | BB88: -5723.89547 | BC88: 3825.38337 | BD88: 1998.25535 | BE88: 4.87818 | BF88: 167.15854 | BG88: 37.84911 | BH88: -24.688 | BI88: 598.88284 | BJ88: 0 | BK88: -623.57084 | BL88: 0.03004 | BM88: 0 | BN88: 6.82007 | BO88: 0.17472 | BP88: -616.54601 | BQ88: -141.25905 | BR88: -212.20566 | BS88: 317.52819 | BT88: 70.915 | BU88: 1.35544 | BV88: 163 | BW88: -687.01439 | BX88: 0 | BY88: 0 | BZ88: -457.46341 | CA88: 6157.80857 | CB88: 5514.22857 | CC88: 643.58 | CD88: 78.5 | CE88: 92.144 | CF88: 286 | CG88: 1703 | CH88: 8.9 | CI88: 1.082713455 | CJ88: 91.93037427 | CK88: 47.2127253 | CL88: 1472.77227 | CM88: 68.34661679 | CN88: 1757.8118 | CO88: 6641.46268 | CP88: 3.93398 | CQ88: -4879.7169 | CR88: 3755.36532 | CS88: 1955.64213 | CT88: 1.97242 | CU88: 171.74734 | CV88: 49.35354 | CW88: 710.86917 | CX88: 639.55718 | CY88: 0 | CZ88: 71.31199 | DA88: 0.03004 | DB88: 0.42764 | DC88: 0 | DD88: -0.15575 | DE88: 70.97246 | DF88: -70.28659 | DG88: 705.31787 | DH88: 356.57802 | DI88: 18.9 | DJ88: 32.86015 | DK88: 75.85336 | DL88: 643.44204 | DM88: 0 | DN88: 0.00522 | DO88: 400.5 | DP88: 5513.91953 | DQ88: 4870.56559 | DR88: 643.35394 | DS88: 2.59354 | DT88: 77.745 | DU88: 252 | DW88: 28.93285 | DX88: 28.75922 | DY88: 28.59121 | EC88: 260 | EE88: 3112
A89: 256 | B89: Kinnula | C89: 1554 | D89: 21.5 | E89: 2.485286379 | F89: 84.49711624 | G89: 38.48649107 | H89: 2053.20661 | I89: 32.93527857 | J89: 7954.79976 | K89: 20503.69879 | L89: -26.93937 | M89: -12575.8384 | N89: 5433.04866 | O89: 8321.53134 | P89: 43.54586 | Q89: 56.73571 | R89: 76.83508 | S89: 1242.38683 | T89: 1310.39972 | U89: 87.32282 | V89: 19.30993 | W89: -0.42945 | X89: 0 | Y89: 0 | Z89: -4.54236 | AA89: 14.33812 | AB89: 3375.07109 | AC89: 1077.93514 | AD89: -1721.74714 | AE89: 5.92367 | AF89: 39.77644 | AG89: 98.54935 | AH89: -465.98978 | AI89: 252.412 | AJ89: -135.592 | AK89: -598.11189 | AL89: 14398.61243 | AM89: 10678.68707 | AN89: 3719.92536 | AO89: 0 | AP89: 644.67425 | AQ89: 132 | AR89: 1523 | AS89: 8.86 | AT89: -45.09027391 | AU89: 115.9643228 | AV89: 47.25423208 | AW89: 1271.49996 | AX89: 46.5137959 | AY89: 3675.56508 | AZ89: 8737.81053 | BA89: -120.99809 | BB89: -5183.24354 | BC89: 2995.20365 | BD89: 2706.94027 | BE89: 43.27218 | BF89: 284.0041 | BG89: 26.31819 | BH89: 304.48665 | BI89: 1379.02109 | BJ89: 0 | BK89: -1074.53444 | BL89: -0.14814 | BM89: 0 | BN89: 0 | BO89: 4.34347 | BP89: -1070.33911 | BQ89: 2037.97027 | BR89: 583.39774 | BS89: 1226.55353 | BT89: 0 | BU89: 28.99008 | BV89: 0.4776 | BW89: 297.05549 | BX89: 0 | BY89: 500 | BZ89: -614.16571 | CA89: 9396.612 | CB89: 5461.02 | CC89: 3935.592 | CD89: 0 | CE89: 32.66677 | CF89: 273 | CG89: 1492 | CH89: 9.5 | CI89: 2.712404899 | CJ89: 101.434293 | CK89: 51.1251996 | CL89: 1949.99822 | CM89: 80.89914548 | CN89: 3121.97054 | CO89: 7575.6276 | CP89: -140.80925 | CQ89: -4594.46631 | CR89: 3573.08001 | CS89: 2996.20818 | CT89: 35.59528 | CU89: 304.57624 | CV89: -2.7812 | CW89: 1703.05972 | CX89: 1217.33125 | CY89: -474.0618 | CZ89: 248.69757 | DA89: -2.85209 | DB89: 40.98814 | DC89: 0 | DD89: -19.39336 | DE89: 205.95805 | DF89: 2383.61034 | DG89: 1585.88851 | DH89: 469.6539 | DI89: 67.53995 | DJ89: 11.38049 | DK89: -15.315 | DL89: 435.592 | DM89: 0 | DN89: -300 | DO89: 1195.15505 | DP89: 8661.02 | DQ89: 5025.428 | DR89: 3635.592 | DS89: 0 | DT89: 9.00942 | DU89: 36 | DW89: 1492.89861 | DX89: 1362.67505 | DY89: 1365.51278 | EB89: 110 | EC89: 150 | EE89: 160
A90: 257 | B90: Kirkkonummi | C90: 40722 | D90: 19.75 | E90: 1.607825325 | F90: 87.417931 | G90: 17.15593815 | H90: 92660.25173 | I90: 72.75326843 | J90: 163255.1022 | K90: 383198.4949 | L90: -99.70585 | M90: -220043.0985 | N90: 222929.3637 | O90: 44679.43888 | P90: 96.44737 | Q90: 1783.21182 | R90: -187.4164 | S90: 45691.52327 | T90: 32254.42678 | U90: 0 | V90: 13437.09649 | W90: -5.47857 | X90: 8.8102 | Y90: 117.04292 | Z90: 67.66665 | AA90: 13607.51729 | AB90: 17823.92687 | AC90: 27967.88912 | AD90: -51319.37769 | AE90: 268.63289 | AF90: 80930.50985 | AG90: 54.44239 | AH90: -27744.08468 | AI90: 9782.018 | AJ90: -8959.14909 | AK90: 57847.65417 | AL90: 300950.2514 | AM90: 251017.2064 | AN90: 49933.04507 | AO90: 636.11622 | AP90: 50165.23133 | AQ90: 60 | AR90: 41154 | AS90: 7.11 | AT90: 1.697280803 | AU90: 118.8331819 | AV90: 25.74084232 | AW90: 51435.23229 | AX90: 77.36949897 | AY90: 69352.25121 | AZ90: 185436.6568 | BA90: 24.26772 | BB90: -116060.1379 | BC90: 116183.5914 | BD90: 47257.37272 | BE90: 452.78216 | BF90: 1902.65573 | BG90: 480.77563 | BH90: 46411.72831 | BI90: 22775.33957 | BJ90: 0 | BK90: 23636.38874 | BL90: 7.00592 | BM90: 2.28818 | BN90: 107.7908 | BO90: 63.74104 | BP90: 23812.63832 | BQ90: 41394.62927 | BR90: 42568.2364 | BS90: 28268.75977 | BT90: 38.62092 | BU90: 3429.25161 | BV90: 636.11622 | BW90: -26563.10195 | BX90: 0 | BY90: -20443.19821 | BZ90: 17767.34916 | CA90: 232330.2438 | CB90: 206949.6751 | CC90: 25380.56869 | CD90: 0 | CE90: 36998.97242 | CF90: 54 | CG90: 41635 | CH90: 7.1 | CI90: 1.092987296 | CJ90: 118.7050898 | CK90: 28.75928515 | CL90: 17836.00708 | CM90: 23.62680639 | CN90: 72295.9508 | CO90: 193612.9481 | CP90: 4.95063 | CQ90: -121312.0467 | CR90: 105898.1134 | CS90: 46232.78229 | CT90: 1015.81926 | CU90: 2005.25055 | CV90: 697.69008 | CW90: 30527.10781 | CX90: 21535.00331 | CY90: 0 | CZ90: 8992.1045 | DA90: 3.4914 | DB90: 0 | DC90: 285.96191 | DD90: 64.23872 | DE90: 9345.79653 | DF90: 50740.42581 | DG90: 29683.66182 | DH90: 51465.25833 | DI90: 92.16238 | DJ90: 1038.76618 | DK90: 0 | DL90: 27759.3757 | DM90: 3145.28 | DN90: 9997.26306 | DO90: -20650.66795 | DP90: 217713.4111 | DQ90: 184419.5545 | DR90: 33293.85657 | DS90: 0 | DT90: 13845.10461 | DU90: 145 | DW90: 1632.82888 | DX90: 1601.45831 | DY90: 1597.96691 | EE90: 34101
A91: 260 | B91: Kitee | C91: 9727 | D91: 20.75 | E91: 3.199215819 | F91: 29.03966125 | G91: 56.16661851 | H91: 28424.26904 | I91: 67.37921978 | J91: 71531.40125 | K91: 145106.1365 | L91: -8.08751 | M91: -73582.82272 | N91: 34183.03451 | O91: 46855.79112 | P91: 105.38405 | Q91: 172.84625 | R91: 202.56987 | S91: 7591.11058 | T91: 5351.78629 | U91: 12.88078 | V91: 2252.20507 | W91: 15.61693 | X91: 42.50169 | Y91: -48.11819 | Z91: -1.79174 | AA91: 2175.41038 | AB91: 33161.20414 | AC91: 8687.8071 | AD91: -6205.24794 | AE91: 474.59734 | AF91: 141.35256 | AG91: -0.39225 | AH91: -2253.98497 | AI91: 4395.7789 | AJ91: -631.49134 | AK91: 3098.50906 | AL91: 22062.71309 | AM91: 19575.85451 | AN91: 2486.85858 | AO91: 62.13404 | AP91: 3842.44426 | AQ91: 137 | AR91: 9689 | AS91: 8.11 | AT91: 6.18747777 | AU91: 46.4517575 | AV91: 72.54311819 | AW91: 23853.24625 | AX91: 159.7013853 | AY91: 13064.17586 | AZ91: 39683.55348 | BA91: 0 | BB91: -26619.37762 | BC91: 18073.91444 | BD91: 17761.46509 | BE91: 529.77443 | BF91: 347.61426 | BG91: 441.12928 | BH91: 9839.29136 | BI91: 2603.80437 | BJ91: 10.57274 | BK91: 7246.05973 | BL91: -22.34634 | BM91: 0.41891 | BN91: 34.58508 | BO91: -73.80478 | BP91: 7184.07478 | BQ91: 40210.85322 | BR91: 10135.16607 | BS91: 12712.25585 | BT91: 284.10155 | BU91: 143.84754 | BV91: -33.6522 | BW91: -1298.76024 | BX91: 6150.99331 | BY91: 550 | BZ91: -2149.14069 | CA91: 13043.29651 | CB91: 11718.69479 | CC91: 1324.60172 | CD91: 61.74179 | CE91: 440.14293 | CF91: 76 | CG91: 9566 | CH91: 8.1 | CI91: 6.32948898 | CJ91: 42.97378485 | CK91: 76.66706738 | CL91: 22211.30106 | CM91: 166.4947026 | CN91: 13663.8004 | CO91: 38731.76936 | CP91: 0 | CQ91: -25067.96896 | CR91: 18371.67428 | CS91: 15657.24518 | CT91: 474.86469 | CU91: 493.68417 | CV91: 515.74329 | CW91: 9457.87431 | CX91: 5873.81326 | CY91: 0 | CZ91: 3584.06105 | DA91: 2.61547 | DB91: 8.54354 | DC91: 29.34363 | DD91: 253.40338 | DE91: 3865.15176 | DF91: 42146.00972 | DG91: 7336.62559 | DH91: 7854.04992 | DI91: 1959.15237 | DJ91: 40.80923 | DK91: 24.5545 | DL91: 1078.5689 | DM91: 16.26074 | DN91: 153.3561 | DO91: 1482.53727 | DP91: 12056.39392 | DQ91: 10735.84279 | DR91: 1320.55113 | DS91: 18.01293 | DT91: 464.79696 | DU91: 63 | DW91: 578.92617 | DX91: 3893.4155 | DY91: 500.40305 | EE91: 318
A92: 261 | B92: Kittilä | C92: 6637 | D92: 20.25 | E92: 5 | F92: 50.24444901 | G92: 55.1 | H92: 27009.23002 | I92: 74.39061957 | J92: 69840.95733 | K92: 105635.3127 | L92: 1278.922 | M92: -34515.43339 | N92: 35455.12821 | O92: 28815.37111 | P92: 20.49174 | Q92: 709.63016 | R92: -145 | S92: 28920 | T92: 10497.91468 | U92: 0 | V92: 18423 | W92: 51.58767 | X92: 865.13073 | Y92: -112.71421 | Z92: -1947.89454 | AA92: 15548 | AB92: 87658 | AC92: 28925.22994 | AD92: -20366.38464 | AE92: 205.90087 | AF92: 1368.74941 | AG92: 514.47353 | AH92: -5181.00307 | AI92: 3041.22053 | AJ92: 73.30619 | AK92: 10133.49558 | AL92: 46334.09638 | AM92: 40130.39438 | AN92: 6203.702 | AO92: 471.81514 | AP92: 1267 | AQ92: 1 | AR92: 6822 | AS92: 7.61 | AT92: 5.388066395 | AU92: 55.02545226 | AV92: 64.49929021 | AW92: 22901.18806 | AX92: 87.52200149 | AY92: 50798.44926 | AZ92: 67396.35959 | BA92: 1422.011 | BB92: -15175.89933 | BC92: 26253.56582 | BD92: 13822.30464 | BE92: 83.77951 | BF92: 1022.89851 | BG92: 551.06623 | BH92: 24511.91836 | BI92: 10280.3522 | BJ92: 0 | BK92: 14231.56616 | BL92: -468.62934 | BM92: 7.65492 | BN92: -717.01046 | BO92: -1410.25666 | BP92: 11628.01478 | BQ92: 98894.37019 | BR92: 26833.30117 | BS92: 22820.08669 | BT92: 563.43113 | BU92: 728.32669 | BV92: 739.31 | BW92: -3716.24444 | BX92: 1.53105 | BY92: -20.46828 | BZ92: 5304.9723 | CA92: 35465.30249 | CB92: 29788.92263 | CC92: 5676.37986 | CD92: 302.81514 | CE92: 220 | CF92: 1 | CG92: 6837 | CH92: 7.6 | CI92: 7.818973841 | CJ92: 59.00382631 | CK92: 70.81066984 | CL92: 21052.90023 | CM92: 67.82366012 | CN92: 54438.19878 | CO92: 72032.71652 | CP92: 1274.615 | CQ92: -16319.90274 | CR92: 26115.65602 | CS92: 15208.45001 | CT92: 199.45248 | CU92: 1171.35687 | CV92: 324.99584 | CW92: 24357.29474 | CX92: 11680.77424 | CY92: 0 | CZ92: 12676.5205 | DA92: -510.16991 | DB92: 1134.10766 | DC92: -334.08039 | DD92: -1794.29331 | DE92: 9470.92306 | DF92: 110417.0961 | DG92: 25722.92491 | DH92: 35772.12007 | DI92: 55.49246 | DJ92: 1134.07034 | DK92: -1029.85761 | DL92: 2093.60502 | DM92: 8593.15951 | DN92: 1152.86026 | DO92: -8859.63236 | DP92: 41222.92545 | DQ92: 35163.47712 | DR92: 6059.44833 | DS92: 48.25275 | DT92: 226 | DU92: 1 | DW92: 2633.73709 | DX92: 3103.67306 | DY92: 3593.3 | EE92: 17865
A93: 263 | B93: Kiuruvesi | C93: 7597 | D93: 21.75 | E93: 1.627869699 | F93: 57.48699566 | G93: 37.00199677 | H93: 17274.69872 | I93: 51.52586847 | J93: 51498.71255 | K93: 108901.4018 | L93: 149.78504 | M93: -57252.90418 | N93: 26563.12148 | O93: 38806.67173 | P93: 55.16607 | Q93: 440.65879 | R93: 907.16358 | S93: 8638.55989 | T93: 6737.98565 | U93: -0.65122 | V93: 1899.92302 | W93: 8.12214 | X93: 3.8915 | Y93: -76.39556 | Z93: 0.51309 | AA93: 1828.27119 | AB93: 10221.21872 | AC93: 8059.379 | AD93: -7428.48478 | AE93: 250.08603 | AF93: 682.72987 | AG93: 19.05296 | AH93: -5136.70326 | AI93: 3372.41217 | AJ93: 936.08397 | AK93: 1563.71012 | AL93: 53896.11162 | AM93: 32757.55775 | AN93: 21138.55387 | AO93: 19.84415 | AP93: 6083.57841 | AQ93: 56 | AR93: 7475 | AS93: 9.11 | AT93: 1.049996382 | AU93: 91.62180391 | AV93: 50.01760498 | AW93: 11314.40593 | AX93: 88.33937009 | AY93: 10882.27047 | AZ93: 35140.83239 | BA93: -66.34344 | BB93: -24324.90536 | BC93: 14652.29454 | BD93: 14469.00932 | BE93: 38.96199 | BF93: 891.11662 | BG93: 1502.99769 | BH93: 5447.24156 | BI93: 4818.19672 | BJ93: 55.10585 | BK93: 684.15069 | BL93: 0.13193 | BM93: 0.67132 | BN93: -35.06926 | BO93: 2.00172 | BP93: 650.54376 | BQ93: 10101.43445 | BR93: 6074.95159 | BS93: 4068.4019 | BT93: 319.50856 | BU93: 3513.0261 | BV93: 3.76522 | BW93: -5145.43578 | BX93: 756.57288 | BY93: -1568.23983 | BZ93: 5839.08435 | CA93: 30968.38828 | CB93: 14351.38498 | CC93: 16617.0033 | CD93: 16.2173 | CE93: 3738.249 | CF93: 171 | CG93: 7354 | CH93: 9.5 | CI93: 1.951835634 | CJ93: 83.80071236 | CK93: 53.23142356 | CL93: 11972.70962 | CM93: 105.9788472 | CN93: 10621.95201 | CO93: 34222.50291 | CP93: -27.92389 | CQ93: -23628.47479 | CR93: 15149.66198 | CS93: 13833.56367 | CT93: 46.07719 | CU93: 978.72472 | CV93: 1617.44203 | CW93: 6039.54536 | CX93: 5267.77102 | CY93: 4.21574 | CZ93: 773.88221 | DA93: 7.43395 | DB93: 18.53396 | DC93: 15.247 | DD93: 1.27085 | DE93: 788.56703 | DF93: 10898.49365 | DG93: 5839.17891 | DH93: 1799.3388 | DI93: 137.68348 | DJ93: 48.93974 | DK93: 22.41317 | DL93: 2617.0033 | DM93: 0 | DN93: -900 | DO93: 4226.46333 | DP93: 27451.38499 | DQ93: 12103.8153 | DR93: 15347.56969 | DS93: 1.93602 | DT93: 3654.37278 | DU93: 115 | DW93: 333.77236 | DX93: 301.21255 | DY93: 301.87278 | EE93: 10
A94: 265 | B94: Kivijärvi | C94: 1064 | D94: 21.75 | E94: 5.238610919 | F94: 53.29304664 | G94: 34.09420358 | H94: 4374.432 | I94: 74.06345828 | J94: 13226.97086 | K94: 20736.04222 | L94: 0 | M94: -7509.07136 | N94: 4480.17592 | O94: 5780.96118 | P94: 4.99771 | Q94: 73.95342 | R94: 56.14474 | S94: 2739.25477 | T94: 1046.32461 | U94: 86.14881 | V94: 1779.07897 | W94: 0.16438 | X94: 0 | Y94: 0 | Z94: 0 | AA94: 1779.24335 | AB94: 2124.43417 | AC94: 2734.03015 | AD94: -243.32894 | AE94: 5.84403 | AF94: 24.93661 | AG94: -15.58934 | AH94: -463.06073 | AI94: 0 | AJ94: -99.73564 | AK94: 2521.48185 | AL94: 10184.58861 | AM94: 9644.97955 | AN94: 539.60906 | AO94: 0 | AP94: 15.375 | AQ94: 3 | AR94: 1035 | AS94: 9.11 | AT94: 5.650374897 | AU94: 92.13457801 | AV94: 56.49174018 | AW94: 4529.10082 | AX94: 307.1856642 | AY94: 1709.83932 | AZ94: 4542.46607 | BA94: 0 | BB94: -2832.62675 | BC94: 2405.06558 | BD94: 1924.59089 | BE94: 3.32367 | BF94: 117.65164 | BG94: 17.95608 | BH94: 1400.65783 | BI94: 780.05306 | BJ94: 0 | BK94: 620.60477 | BL94: -0.10552 | BM94: 0 | BN94: 0 | BO94: 0 | BP94: 620.49925 | BQ94: 2970.27533 | BR94: 1375.65783 | BS94: 552.37533 | BT94: 154.144 | BU94: 334.451 | BV94: 0 | BW94: -151.05787 | BX94: 0 | BY94: -214.92506 | BZ94: 1311.8775 | CA94: 4891.14304 | CB94: 4566.45904 | CC94: 324.684 | CD94: 0 | CE94: 49.1939 | CF94: 24 | CG94: 1011 | CH94: 9.1 | CI94: 0.444361363 | CJ94: 47.32458317 | CK94: 72.61800731 | CL94: 2932.73132 | CM94: 135.7770903 | CN94: 1496.18199 | CO94: 4771.81864 | CP94: 0 | CQ94: -3275.63665 | CR94: 2475.561 | CS94: 2042.78054 | CT94: 5.8823 | CU94: 78.48316 | CV94: 25.46223 | CW94: 1195.56626 | CX94: 773.99524 | CY94: 0 | CZ94: 421.57102 | DA94: -2.13096 | DB94: 0 | DC94: -1.50328 | DD94: 0 | DE94: 417.93678 | DF94: 3195.81892 | DG94: 1195.56626 | DH94: 206.95127 | DI94: 12.16187 | DJ94: 0 | DK94: -12.47599 | DL94: 2788.664 | DM94: 0 | DN94: 0 | DO94: 1000.77686 | DP94: 2102.47904 | DQ94: 1988.57504 | DR94: 113.904 | DS94: 0 | DT94: 18.713 | DU94: 30 | DW94: 907.96161 | DX94: 1039.64087 | DY94: 1039.52556 | EE94: 1045
A95: 271 | B95: Kokemäki | C95: 6903 | D95: 21.75 | E95: 0.7321719391 | F95: 51.0980173 | G95: 28.2706309 | H95: 7628.24148 | I95: 26.12822864 | J95: 47140.22756 | K95: 95192.96634 | L95: 1.40083 | M95: -48051.33795 | N95: 28010.27893 | O95: 24997.08503 | P95: 6.7117 | Q95: 185.74454 | R95: 12.1571 | S95: 4789.15027 | T95: 4012.04453 | U95: 0 | V95: 777.10574 | W95: 18.84428 | X95: 129.49517 | Y95: 0.19811 | Z95: 0.01791 | AA95: 666.67087 | AB95: 6666.60267 | AC95: 4344.23504 | AD95: -4419.18323 | AE95: 230.02509 | AF95: 4684.4215 | AG95: 2184.23545 | AH95: -6608.96384 | AI95: 1323.56245 | AJ95: -1205.82987 | AK95: 4839.4984 | AL95: 34692.65216 | AM95: 21195.96581 | AN95: 13496.68635 | AO95: 24.53999 | AP95: 3035.591 | AQ95: 170 | AR95: 6766 | AS95: 9.11 | AT95: 1.70007023 | AU95: 93.96870495 | AV95: 36.20073683 | AW95: 4428.36196 | AX95: 41.70778722 | AY95: 12067.44851 | AZ95: 30175.6617 | BA95: 1.15453 | BB95: -18107.05866 | BC95: 16014.90483 | BD95: 8653.00751 | BE95: 25.8634 | BF95: 677.96167 | BG95: 111.51126 | BH95: 6020.26667 | BI95: 3590.51998 | BJ95: -97.18294 | BK95: 2332.56375 | BL95: 0 | BM95: 3.52064 | BN95: 0.692 | BO95: 0.47701 | BP95: 2330.21212 | BQ95: 12000.34767 | BR95: 5414.4198 | BS95: 4526.19506 | BT95: 0 | BU95: 996.15171 | BV95: -4.76494 | BW95: -3262.00988 | BX95: 724.07255 | BY95: -86.12049 | BZ95: 1884.37645 | CA95: 23870.75573 | CB95: 14728.95418 | CC95: 9141.80155 | CD95: 0 | CE95: 5054.876 | CF95: 112 | CG95: 6668 | CH95: 9.2 | CI95: 1.73037699 | CJ95: 93.35540157 | CK95: 37.03333474 | CL95: 2997.43425 | CM95: 30.1712625 | CN95: 11087.25612 | CO95: 29561.25622 | CP95: 0.27629 | CQ95: -18473.72381 | CR95: 15888.92547 | CS95: 7634.38737 | CT95: 20.51717 | CU95: 449.0624 | CV95: -12.65912 | CW95: 4608.38468 | CX95: 4645.88281 | CY95: -10.96232 | CZ95: -42.97929 | DA95: 0 | DB95: 8.60702 | DC95: 0 | DD95: -0.50524 | DE95: -47.78804 | DF95: 11952.5596 | DG95: 4557.48868 | DH95: 3789.42725 | DI95: 0 | DJ95: 57.08441 | DK95: 288.51329 | DL95: 2473.68051 | DM95: 9186.16602 | DN95: -9955.96864 | DO95: 825.14584 | DP95: 25967.27261 | DQ95: 22573.75548 | DR95: 3393.51713 | DS95: 0 | DT95: 5054.876 | DU95: 157 | DW95: 1830.94818 | DX95: 0 | DY95: -640 | EE95: 125
A96: 272 | B96: Kokkola | C96: 48006 | D96: 21.5 | E96: 1.182395315 | F96: 88.55314993 | G96: 31.5961999 | H96: 92612.66493 | I96: 47.48482579 | J96: 336087.3193 | K96: 610744.5157 | L96: 507.6806 | M96: -274149.5158 | N96: 219491.2584 | O96: 109212.431 | P96: 148.76942 | Q96: 4752.14955 | R96: 2226.33026 | S96: 52177.12376 | T96: 46574.44493 | U96: -10.2328 | V96: 5592.44603 | W96: -301.49051 | X96: 267.93149 | Y96: -75.76111 | Z96: -37.50082 | AA96: 4909.7621 | AB96: 118857.3043 | AC96: 41398.05111 | AD96: -52651.89267 | AE96: 1775.39726 | AF96: 18570.12905 | AG96: 528.16752 | AH96: -43395.26153 | AI96: 57515.48601 | AJ96: -10829.35806 | AK96: 9091.68475 | AL96: 450458.3388 | AM96: 385796.7017 | AN96: 64661.63708 | AO96: 344.78526 | AP96: 85104.617 | AQ96: 68 | AR96: 48295 | AS96: 8.86 | AT96: 1.196272519 | AU96: 137.8465939 | AV96: 35.94387083 | AW96: 63698.89407 | AX96: 58.2354661 | AY96: 193053.8776 | AZ96: 274785.6018 | BA96: 345.34644 | BB96: -81386.37774 | BC96: 123304.8168 | BD96: 32916.977 | BE96: 1316.23583 | BF96: 8363.75037 | BG96: -571.68246 | BH96: 67216.2191 | BI96: 60038.18148 | BJ96: 3.86905 | BK96: 7181.90667 | BL96: -65.29 | BM96: 3521.43711 | BN96: -504.998 | BO96: -38.79803 | BP96: 3051.38353 | BQ96: 121253.4117 | BR96: 62838.6087 | BS96: 61462.22952 | BT96: 39.89685 | BU96: 3445.17302 | BV96: -329.64019 | BW96: -54815.80803 | BX96: 61536.40561 | BY96: -20661.164 | BZ96: 4861.44905 | CA96: 394306.1127 | CB96: 316092.0151 | CC96: 78214.09767 | CD96: 441.84726 | CE96: 70078.466 | CF96: 21 | CG96: 48367 | CH96: 8.9 | CI96: 0.9730888413 | CJ96: 155.5704476 | CK96: 34.25190329 | CL96: 63117.07235 | CM96: 51.20772899 | CN96: 195306.5178 | CO96: 288710.9357 | CP96: 515.04497 | CQ96: -92889.37294 | CR96: 121445.5803 | CS96: 26307.538 | CT96: 1562.16407 | CU96: 10376.14885 | CV96: 1903.70927 | CW96: 47953.46984 | CX96: 43528.2278 | CY96: 115.34404 | CZ96: 4482.91406 | DA96: 127.5046 | DB96: 1555.24144 | DC96: -1498.92328 | DD96: -94.80235 | DE96: 2239.07231 | DF96: 122917.1628 | DG96: 45682.10504 | DH96: 98294.32847 | DI96: 925.75976 | DJ96: 3060.39765 | DK96: -818.957 | DL96: 49566.59863 | DM96: 113436.4799 | DN96: -17081.47966 | DO96: -48626.06602 | DP96: 441094.5144 | DQ96: 329378.1817 | DR96: 111716.3327 | DS96: 224.74726 | DT96: 66489.117 | DU96: 61 | DW96: 12913.62583 | DX96: 11906.8919 | DY96: 11775.83297 | EE96: 1551
B97: Koko maa (Manner-Suomi) | C97: 5533611 | D97: 20.01 | E97: 1.7 | F97: 82 | G97: 41 | H97: 10630066.73 | I97: 50 | J97: 31512266 | K97: 63470265 | L97: 40474 | M97: -31917405 | N97: 26707861 | O97: 11976772 | P97: 78764.06132 | Q97: 427835.8063 | R97: -55813 | S97: 6362342 | T97: 4937452 | U97: 207757 | V97: 1627855 | W97: -21823 | X97: 127840 | Y97: -49906 | Z97: -5663 | AA97: 1422621 | AB97: 17791840 | AC97: 5569402 | AD97: -9681016 | AE97: 216944 | AF97: 2537629 | AG97: -35163.22039 | AH97: -3611853 | AI97: 4919801 | AJ97: -21878 | AK97: -1206512 | AL97: 43538239 | AM97: 37118290 | AN97: 6419949 | AO97: 1130168 | AP97: 8422790.194 | AQ97: - | AR97: 5573310 | AS97: 7.32 | AT97: 1.853392115 | AU97: 130.8701987 | AV97: 46.07791671 | AW97: 8188603.326 | AX97: 71.87929967 | AY97: 16919176.56 | AZ97: 29260015.11 | BA97: 66903.97212 | BB97: -12273934.58 | BC97: 14382225.78 | BD97: 4916190.831 | BE97: 195304.223 | BF97: 827885.8903 | BG97: 304773.5542 | BH97: 6696673.917 | BI97: 4586979.275 | BJ97: -3875.05721 | BK97: 2105819.585 | BL97: -36090.31982 | BM97: 107491.2585 | BN97: -38025.8439 | BO97: -12460.72113 | BP97: 1911786.441 | BQ97: 19702940.47 | BR97: 6205283.803 | BS97: 7896284.909 | BT97: 161977.6939 | BU97: 1032857.185 | BV97: 26766.09815 | BW97: -3231999.629 | BX97: 4371507.12 | BY97: -269435.8794 | BZ97: -496169.2283 | CA97: 38834865.93 | CB97: 33266324.19 | CC97: 5568541.742 | CD97: 1090030.177 | CE97: 6119198.929 | CF97: - | CG97: 5605317 | CH97: 7.47 | CI97: 1.634878925 | CJ97: 138.2648676 | CK97: 47.16114228 | CL97: 7947855.589 | CM97: 68.93222083 | CN97: 16601235.46 | CO97: 29026603.9 | CP97: 90620.79527 | CQ97: -12334747.65 | CR97: 13857804.9 | CS97: 4761715.409 | CT97: 261124.4381 | CU97: 993890.558 | CV97: 307456.0521 | CW97: 5859462.59 | CX97: 4622384.996 | CY97: 261761.3807 | CZ97: 1367975.077 | DA97: -24637.52629 | DB97: 186496.0189 | DC97: -32300.44856 | DD97: -25863.71638 | DE97: 1191925.376 | DF97: 20814859.09 | DG97: 5416949.624 | DH97: 8514544.863 | DI97: 152263.6017 | DJ97: 948557.6652 | DK97: 17891.33671 | DL97: 3198073.168 | DM97: 5483080.286 | DN97: -366049.6662 | DO97: -1996773.972 | DP97: 40661813.98 | DQ97: 35028570.32 | DR97: 5633243.655 | DS97: 1074089.859 | DT97: 7257085.786 | DU97: - | DW97: 3738934.197 | DX97: 3724815.673 | DY97: 3746376.355 | EA97: 10000 | EB97: 10000 | EC97: 10000 | EE97: 1487603
A98: 273 | B98: Kolari | C98: 3999 | D98: 20.5 | E98: 7.822711768 | F98: 68.36554781 | G98: 44.89021281 | H98: 13219.27017 | I98: 87.24168121 | J98: 17665.16103 | K98: 47482.66144 | L98: 0 | M98: -29817.50041 | N98: 17760.30661 | O98: 17514.37904 | P98: 7.93533 | Q98: 200.82745 | R98: 432.24629 | S98: 5696.53941 | T98: 4010.24934 | U98: 0 | V98: 1686.29007 | W98: 0.18624 | X98: 9.39052 | Y98: 12.23262 | Z98: 1.74822 | AA98: 1691.06663 | AB98: 23559.79298 | AC98: 5227.54075 | AD98: -6879.84849 | AE98: 205.23794 | AF98: 1070.25651 | AG98: 24.97753 | AH98: -553.05011 | AI98: 4410.60975 | AJ98: 145.395 | AK98: -376.81329 | AL98: 19545.45239 | AM98: 18651.59133 | AN98: 893.86106 | AO98: 608.66342 | AP98: 159 | AQ98: 27 | AR98: 4011 | AS98: 7.86 | AT98: 4.212967873 | AU98: 104.2975184 | AV98: 53.21761718 | AW98: 12952.21563 | AX98: 172.7968546 | AY98: 9502.51113 | AZ98: 20848.62942 | BA98: 0 | BB98: -11346.11829 | BC98: 11870.21276 | BD98: 5242.43 | BE98: 36.93373 | BF98: 489.25194 | BG98: 46.96457 | BH98: 5361.17083 | BI98: 2772.50546 | BJ98: -24.45355 | BK98: 2564.21182 | BL98: -86.17429 | BM98: 4.58792 | BN98: 48.46588 | BO98: -0.01449 | BP98: 2521.901 | BQ98: 25932.53694 | BR98: 5039.12397 | BS98: 4577.70117 | BT98: 0 | BU98: 523.97267 | BV98: -156.27155 | BW98: -899.41822 | BX98: 1657.84391 | BY98: 0 | BZ98: 985.39547 | CA98: 15565.02142 | CB98: 14677.50644 | CC98: 887.51498 | CD98: 775.21297 | CE98: 0 | CF98: 28 | CG98: 3987 | CH98: 7.9 | CI98: 3.669485112 | CJ98: 105.0884634 | CK98: 55.16358275 | CL98: 15722.33732 | CM98: 218.998546 | CN98: 9858.29301 | CO98: 21531.54747 | CP98: 0 | CQ98: -11673.25446 | CR98: 11844.5167 | CS98: 5115.86196 | CT98: 123.28992 | CU98: 536.37382 | CV98: 74.10412 | CW98: 4948.14442 | CX98: 3304.29846 | CY98: -0.584 | CZ98: 1643.55396 | DA98: -3.68 | DB98: 26.6135 | DC98: 35.75667 | DD98: -6.60749 | DE98: 1655.71639 | DF98: 27588.2823 | DG98: 4752.17336 | DH98: 3103.78909 | DI98: 401.43189 | DJ98: 484.12564 | DK98: 196.53949 | DL98: 958.25501 | DM98: 0 | DN98: 0 | DO98: 2533.9418 | DP98: 14642.04441 | DQ98: 13738.41643 | DR98: 903.62798 | DS98: 600.65148 | DT98: 0 | DU98: 24 | DW98: 51.43029 | DX98: 47.63948 | DY98: 51.31948 | EE98: 3697
A99: 275 | B99: Konnevesi | C99: 2521 | D99: 22 | E99: 1.120665575 | F99: 110.2082368 | G99: 25.70691053 | H99: 1427.05775 | I99: 15.61424014 | J99: 9782.05258 | K99: 27987.16724 | L99: 0 | M99: -18205.11466 | N99: 9965.04532 | O99: 10949.96364 | P99: 20.2461 | Q99: 263.77858 | R99: 38.14625 | S99: 2504.50807 | T99: 1756.27571 | U99: 95.26126 | V99: 843.49362 | W99: -61.06087 | X99: 0 | Y99: 0 | Z99: 0 | AA99: 782.43275 | AB99: -554.59844 | AC99: 2531.814 | AD99: -2575.9267 | AE99: 37.80935 | AF99: 29.71429 | AG99: 1e-05 | AH99: -2206.43797 | AI99: 479.44437 | AJ99: -24.065 | AK99: 23.41094 | AL99: 28876.01086 | AM99: 24010.98629 | AN99: 4865.02457 | AO99: 17.23833 | AP99: 134.6775 | AQ99: 79 | AR99: 2499 | AS99: 9.36 | AT99: 0.9227653227 | AU99: 199.5359214 | AV99: 28.02233626 | AW99: 979.37128 | AX99: 26.18721346 | AY99: 3566.62494 | AZ99: 10082.36367 | BA99: 0 | BB99: -6515.73873 | BC99: 5437.67703 | BD99: 3439.03583 | BE99: 22.14514 | BF99: 705.16598 | BG99: 282.95832 | BH99: 1960.91161 | BI99: 1300.90523 | BJ99: 0 | BK99: 660.00638 | BL99: -7.75564 | BM99: 15.89729 | BN99: 0 | BO99: -1.05291 | BP99: 635.30054 | BQ99: 167.9491 | BR99: 1937.00447 | BS99: 396.02682 | BT99: 4 | BU99: 8.975 | BV99: 0 | BW99: -2184.06005 | BX99: 39.32676 | BY99: 1415.23311 | BZ99: 1553.95265 | CA99: 22707.52303 | CB99: 16653.80747 | CC99: 6053.71556 | CD99: 0 | CE99: 37.46795 | CF99: 149 | CG99: 2441 | CH99: 9.8 | CI99: 0.3579984292 | CJ99: 196.7406858 | CK99: 26.37307631 | CL99: 3226.14251 | CM99: 59.34458535 | CN99: 3859.81823 | CO99: 10282.77898 | CP99: 0.08139 | CQ99: -6422.87936 | CR99: 5848.29891 | CS99: 3334.86136 | CT99: 20.33292 | CU99: 797.29735 | CV99: 272.3315 | CW99: 2255.64798 | CX99: 1368.12751 | CY99: 0 | CZ99: 887.52047 | DA99: -2.20982 | DB99: 6.33508 | DC99: -17.1701 | DD99: 0 | DE99: 864.97301 | DF99: 298.70816 | DG99: 2250.57045 | DH99: 759.52267 | DI99: 159.78835 | DJ99: 1.6 | DK99: 0 | DL99: 7730.52032 | DM99: 10021 | DN99: -1324.31709 | DO99: 1652.43613 | DP99: 23652.69723 | DQ99: 18944.28715 | DR99: 4708.41008 | DS99: 0 | DT99: 43.683 | DU99: 84 | DW99: 390.96473 | DX99: 336.53062 | DY99: 388.39296 | EE99: 450
A100: 276 | B100: Kontiolahti | C100: 15157 | D100: 20.5 | E100: 0.9115963351 | F100: 76.46026385 | G100: 29.08295468 | H100: 21098.78114 | I100: 43.80613497 | J100: 61428.10865 | K100: 144135.0192 | L100: -158.38994 | M100: -82865.30053 | N100: 61635.17448 | O100: 29910.89993 | P100: 123.77618 | Q100: 1039.35472 | R100: 168.95227 | S100: 7934.14761 | T100: 8109.33179 | U100: 0 | V100: -175.18418 | W100: 150.64463 | X100: 31.748 | Y100: 1.55694 | Z100: 8.37883 | AA100: -46.35178 | AB100: 27991.16509 | AC100: 9555.18744 | AD100: -21696.84348 | AE100: 293.37402 | AF100: 876.96284 | AG100: -0.29455 | AH100: -8804.36885 | AI100: 22696.72978 | AJ100: -462.80534 | AK100: -10971.31918 | AL100: 97021.63989 | AM100: 86541.20492 | AN100: 10480.43497 | AO100: 20.36868 | AP100: 11514.294 | AQ100: 220 | AR100: 15136 | AS100: 7.86 | AT100: 1.156287226 | AU100: 137.961481 | AV100: 33.72014036 | AW100: 10689.63666 | AX100: 47.32177286 | AY100: 15613.71031 | AZ100: 57428.17063 | BA100: 0.31273 | BB100: -41814.14759 | BC100: 32486.09155 | BD100: 20886.0234 | BE100: 124.0155 | BF100: 1275.1853 | BG100: 286.90793 | BH100: 10693.70549 | BI100: 8808.82932 | BJ100: 0 | BK100: 1884.87617 | BL100: -17.58439 | BM100: 105.91013 | BN100: -1.73984 | BO100: 0.21078 | BP100: 1759.85259 | BQ100: 29760.32203 | BR100: 10112.32588 | BS100: 14384.33331 | BT100: 1098.35922 | BU100: 489.00614 | BV100: -0.23456 | BW100: -9075.95456 | BX100: 7656.79136 | BY100: -47.64724 | BZ100: -2684.64207 | CA100: 84725.24892 | CB100: 75459.28877 | CC100: 9265.96015 | CD100: 21.4 | CE100: 9575.866 | CF100: 177 | CG100: 15071 | CH100: 8.4 | CI100: 1.205732807 | CJ100: 129.0436748 | CK100: 36.23970753 | CL100: 9920.17159 | CM100: 50.67050134 | CN100: 16664.52901 | CO100: 57276.48558 | CP100: 26.41304 | CQ100: -40585.54353 | CR100: 33282.2337 | CS100: 18656.60176 | CT100: 208.15116 | CU100: 1732.11972 | CV100: 400.58 | CW100: 10229.90337 | CX100: 8987.19991 | CY100: 0 | CZ100: 1242.70346 | DA100: 2.06068 | DB100: 315.52294 | DC100: -3.925 | DD100: -0.11282 | DE100: 1082.96485 | DF100: 30735.15885 | DG100: 7418.85994 | DH100: 3860.96331 | DI100: 123.67449 | DJ100: 1136.28594 | DK100: 0 | DL100: 8188.83708 | DM100: 3832.142 | DN100: -258.47659 | DO100: 4817.85706 | DP100: 80110.07725 | DQ100: 71541.73972 | DR100: 8568.33753 | DS100: 21.4 | DT100: 8128.991 | DU100: 164 | DW100: 1200.09143 | DX100: 1155.95428 | DY100: 1187.95425 | EE100: 1053
A101: 280 | B101: Korsnäs | C101: 2024 | D101: 22 | E101: 4.654520171 | F101: 44.99108751 | G101: 42.40062732 | H101: 722.5421 | I101: 7.695852148 | J101: 16911.21779 | K101: 30854.87162 | L101: 0 | M101: -13943.65383 | N101: 7957.59125 | O101: 7519.076 | P101: 3.29402 | Q101: 76.76134 | R101: 41.15129 | S101: 1500.69739 | T101: 1407.75458 | U101: 0 | V101: 92.94281 | W101: 0 | X101: 0 | Y101: 0 | Z101: 0 | AA101: 92.94281 | AB101: 6360.71179 | AC101: 1486.32218 | AD101: -3059.99928 | AE101: 177.9421 | AF101: 44.65868 | AG101: 0 | AH101: -262.14765 | AI101: 3130.334 | AJ101: -2912.62263 | AK101: -1351.07632 | AL101: 9714.95101 | AM101: 7664.44967 | AN101: 2050.50134 | AO101: 1.02073 | AP101: 0 | AQ101: 156 | AR101: 2015 | AS101: 9.36 | AT101: 7.883255474 | AU101: 66.95458109 | AV101: 53.71699361 | AW101: 513.50617 | AX101: 18.03608293 | AY101: 3817.03415 | AZ101: 9101.24456 | BA101: 0 | BB101: -5284.21041 | BC101: 4550.81116 | BD101: 2774.338 | BE101: 17.13088 | BF101: 177.28662 | BG101: -6.98806 | BH101: 1873.79495 | BI101: 1244.60419 | BJ101: 0 | BK101: 629.19076 | BL101: 0 | BM101: 0 | BN101: 0 | BO101: 0 | BP101: 629.19076 | BQ101: 6990.80208 | BR101: 1875.53984 | BS101: 1034.93484 | BT101: 0.458 | BU101: -1.73489 | BV101: -2.55887 | BW101: -82.89543 | BX101: 237.572 | BY101: -530.11116 | BZ101: 839.32811 | CA101: 5907.72578 | CB101: 4490.27492 | CC101: 1417.45086 | CD101: 0 | CE101: 0 | CF101: 95 | CG101: 1986 | CH101: 9.3 | CI101: 5.023537746 | CJ101: 63.21605099 | CK101: 55.6558042 | CL101: 911.42462 | CM101: 30.51019031 | CN101: 3783.20979 | CO101: 9228.51913 | CP101: 0 | CQ101: -5445.30934 | CR101: 4702.97624 | CS101: 2857.447 | CT101: 18.85428 | CU101: 201.09554 | CV101: 1.29528 | CW101: 1934.16792 | CX101: 1077.71814 | CY101: 0 | CZ101: 856.44978 | DA101: 0 | DB101: 0 | DC101: 0 | DD101: 0 | DE101: 856.44978 | DF101: 7850.55012 | DG101: 1934.07263 | DH101: 1248.70354 | DI101: 21.96112 | DJ101: 0.09529 | DK101: 0 | DL101: 223.9562 | DM101: 1110 | DN101: -1182.11676 | DO101: 707.4255 | DP101: 5767.5121 | DQ101: 5369.68467 | DR101: 397.82743 | DS101: 0 | DT101: 0 | DU101: 68 | DW101: -5.25154 | DX101: 30.4862 | DY101: 30.4862 | EE101: 967
A102: 284 | B102: Koski tl | C102: 2227 | D102: 20 | E102: 2.543543493 | F102: 29.52637826 | G102: 62.14840792 | H102: 5396.60163 | I102: 66.33116769 | J102: 11104.34274 | K102: 27408.59993 | L102: 15.09909 | M102: -16289.1581 | N102: 7773.96886 | O102: 9272.974 | P102: 0.13956 | Q102: 40.56053 | R102: 24.36227 | S102: 741.72606 | T102: 1112.26116 | U102: 0 | V102: -370.5351 | W102: 0 | X102: 0.18772 | Y102: 0 | Z102: -1.23857 | AA102: -371.96139 | AB102: 6762.504 | AC102: 725.05138 | AD102: -1976.77033 | AE102: 38.73659 | AF102: 23.72044 | AG102: 0 | AH102: -266.99725 | AI102: 1283.04 | AJ102: 196.76295 | AK102: -1189.26192 | AL102: 2495.9146 | AM102: 1956.90816 | AN102: 539.00644 | AO102: 10.87911 | AP102: 0 | AQ102: 270 | AR102: 2207 | AS102: 7.36 | AT102: 41.15791213 | AU102: 24.09913515 | AV102: 82.23419853 | AW102: 8206.84266 | AX102: 278.2261466 | AY102: 5486.76176 | AZ102: 10045.34808 | BA102: 13.51538 | BB102: -4545.07094 | BC102: 4799.94434 | BD102: 4333.462 | BE102: 5.30819 | BF102: 10.26961 | BG102: 7.93199 | BH102: 4591.30597 | BI102: 756.96006 | BJ102: 5.517 | BK102: 3839.86291 | BL102: 0 | BM102: 0.0292 | BN102: 0 | BO102: 0 | BP102: 3839.83371 | BQ102: 10750.76866 | BR102: 4514.19944 | BS102: 601.32988 | BT102: 0 | BU102: 39.31327 | BV102: 0 | BW102: -101.53333 | BX102: 0 | BY102: 0 | BZ102: 3952.18283 | CA102: 229.13333 | CB102: 127.6 | CC102: 101.53333 | CD102: 1.43118 | CE102: 0 | CF102: 3 | CG102: 2186 | CH102: 7.4 | CI102: 23.19995994 | CJ102: 23.80097112 | CK102: 85.21364118 | CL102: 9647.02063 | CM102: 299.3080589 | CN102: 4658.55584 | CO102: 10960.90681 | CP102: 21.62568 | CQ102: -6280.72529 | CR102: 5084.18106 | CS102: 3562.561 | CT102: 136.86434 | CU102: 7.16249 | CV102: 18.85756 | CW102: 2514.57618 | CX102: 768.89821 | CY102: 0.6 | CZ102: 1745.97797 | DA102: 0 | DB102: 0.83026 | DC102: 0 | DD102: 0 | DE102: 1745.56284 | DF102: 12527.80241 | DG102: 2415.81041 | DH102: 675.88235 | DI102: 16.2 | DJ102: 43.93202 | DK102: 0 | DL102: 101.53333 | DM102: 0 | DN102: 0 | DO102: 1800.06008 | DP102: 127.6 | DQ102: 26.06667 | DR102: 101.53333 | DS102: 1.43118 | DT102: 0 | DU102: 34 | DW102: 638.88337 | DX102: 387.02819 | DY102: 12.76569 | EE102: 152
A103: 285 | B103: Kotka | C103: 50617 | D103: 22 | E103: 3.273852452 | F103: 75.36452544 | G103: 32.87663489 | H103: 62691.34876 | I103: 22.83465246 | J103: 528514.647 | K103: 840049.23 | L103: 801.60727 | M103: -310732.9757 | N103: 243335.2398 | O103: 149349.9984 | P103: 232.63448 | Q103: 5524.84078 | R103: -1467.94719 | S103: 75192.10905 | T103: 62559.99886 | U103: 3.13258 | V103: 12635.24277 | W103: 0 | X103: 3556.3592 | Y103: -734.61335 | Z103: -2369.08132 | AA103: 5975.1889 | AB103: 77328.21156 | AC103: 65973.50622 | AD103: -135278.3921 | AE103: 373.79786 | AF103: 21711.41214 | AG103: -87.30849 | AH103: -19130.19515 | AI103: 64510.00766 | AJ103: -8229.2642 | AK103: -47219.6759 | AL103: 536765.3542 | AM103: 301305.1862 | AN103: 235460.168 | AO103: 277.45111 | AP103: 209789.975 | AQ103: 24 | AR103: 50500 | AS103: 9.36 | AT103: 2.896580891 | AU103: 122.342806 | AV103: 36.98682788 | AW103: 31826.87543 | AX103: 22.37930818 | AY103: 294774.9747 | AZ103: 376367.8904 | BA103: 1764.45102 | BB103: -79828.46468 | BC103: 139650.0528 | BD103: 40428.69094 | BE103: 229.04987 | BF103: 10157.52309 | BG103: 549.67218 | BH103: 90871.47802 | BI103: 58728.97546 | BJ103: 0 | BK103: 32142.50256 | BL103: 0 | BM103: 3480.44166 | BN103: 93.27914 | BO103: -1600.89661 | BP103: 27154.44343 | BQ103: 112463.4918 | BR103: 85552.79655 | BS103: 107090.7996 | BT103: 1578.80722 | BU103: 5400.39843 | BV103: -150.52298 | BW103: -24721.1856 | BX103: 70532.13361 | BY103: -263.46616 | BZ103: -14558.7974 | CA103: 479149.664 | CB103: 268481.9956 | CC103: 210667.6683 | CD103: 257.9867 | CE103: 158241.13 | CF103: 5 | CG103: 50210 | CH103: 9.4 | CI103: 2.333831 | CJ103: 135.9599009 | CK103: 43.31306606 | CL103: 20822.34522 | CM103: 15.53717662 | CN103: 286224.0866 | CO103: 363306.6707 | CP103: 955.64833 | CQ103: -76126.93577 | CR103: 131597.915 | CS103: 23001.38161 | CT103: 819.971 | CU103: 16460.32745 | CV103: 492.93032 | CW103: 63324.93471 | CX103: 54156.22556 | CY103: 0 | CZ103: 9168.70915 | DA103: 0 | DB103: 4747.68216 | DC103: -267.14254 | DD103: -2170.14994 | DE103: 4357.57559 | DF103: 117337.9843 | DG103: 59627.39875 | DH103: 91149.15131 | DI103: 1803.88787 | DJ103: 1097.86284 | DK103: -8.04121 | DL103: 17726.06486 | DM103: 76510.43932 | DN103: -28913.12762 | DO103: -28620.00185 | DP103: 504020.9108 | DQ103: 310461.2413 | DR103: 193559.6695 | DS103: 257.9867 | DT103: 158767.454 | DU103: 22 | DW103: 10692.72648 | DX103: 10182.72649 | DY103: 9665.80953 | EE103: 220
A104: 286 | B104: Kouvola | C104: 79429 | D104: 21.25 | E104: 0.7218409748 | F104: 77.55283066 | G104: 27.53605394 | H104: 171584.2453 | I104: 48.17828784 | J104: 597024.2982 | K104: 1094041.758 | L104: 716.75108 | M104: -496300.7089 | N104: 378996.8678 | O104: 180435.025 | P104: 580.39483 | Q104: 5412.60072 | R104: -3161.88466 | S104: 55137.09335 | T104: 56460.88397 | U104: 0 | V104: -1323.79062 | W104: 0 | X104: 3619.18534 | Y104: 309.1292 | Z104: 269.73517 | AA104: -4364.11159 | AB104: 59346.5087 | AC104: 46386.11724 | AD104: -113703.2644 | AE104: 2752.4777 | AF104: 21407.01677 | AG104: -9.37078 | AH104: -78469.71711 | AI104: 107114.303 | AJ104: 111377.5616 | AK104: -43157.65265 | AL104: 668866.5159 | AM104: 420830.8333 | AN104: 248035.6827 | AO104: 5166.46831 | AP104: 51557.89901 | AQ104: 169 | AR104: 78880 | AS104: 8.61 | AT104: 1.183439665 | AU104: 107.6514263 | AV104: 37.98646136 | AW104: 65674.5151 | AX104: 38.57774707 | AY104: 318815.6164 | AZ104: 440827.6494 | BA104: 8279.17526 | BB104: -113732.8577 | BC104: 211075.1487 | BD104: 20813.18175 | BE104: 2044.42247 | BF104: 11839.6403 | BG104: 2322.45793 | BH104: 110682.7128 | BI104: 46109.88902 | BJ104: 0 | BK104: 64572.82379 | BL104: -5.04101 | BM104: 8522.32036 | BN104: -884.19774 | BO104: -820.68298 | BP104: 54340.5817 | BQ104: 124986.1854 | BR104: 92842.6667 | BS104: 74678.46013 | BT104: 462.22091 | BU104: 5847.65464 | BV104: 4.22024 | BW104: -91691.07337 | BX104: 100581.028 | BY104: -75614.21996 | BZ104: 24474.08212 | CA104: 442387.4555 | CB104: 356025.126 | CC104: 86362.32949 | CD104: 5151.46831 | CE104: 45694.9203 | CF104: 19 | CG104: 78386 | CH104: 8.9 | CI104: 1.643354788 | CJ104: 121.6539803 | CK104: 39.82395764 | CL104: 76792.02421 | CM104: 51.88324409 | CN104: 288362.3193 | CO104: 411676.6511 | CP104: 7183.31013 | CQ104: -116131.0217 | CR104: 204877.9061 | CS104: -2782.35996 | CT104: 2647.22924 | CU104: 14913.65069 | CV104: 4551.56951 | CW104: 78249.67253 | CX104: 48044.77281 | CY104: 0 | CZ104: 30204.89972 | DA104: -11.61399 | DB104: 10661.25464 | DC104: -1166.52536 | DD104: -1373.42941 | DE104: 22322.70364 | DF104: 147308.8891 | DG104: 67567.36156 | DH104: 67208.27361 | DI104: 640.413 | DJ104: 2890.6081 | DK104: -91.52351 | DL104: 41777.28658 | DM104: 91144.21793 | DN104: -21402.25243 | DO104: 3890.10905 | DP104: 470164.8404 | DQ104: 371851.9244 | DR104: 98312.91595 | DS104: 5136.49363 | DT104: 76666.86395 | DU104: 56 | DW104: 667.23643 | DX104: 672.27744 | DY104: 683.89142 | EA104: 1350 | EB104: 1250 | EE104: 9766
A105: 287 | B105: Kristiinankaupunki | C105: 6242 | D105: 21.5 | E105: 0.498524173 | F105: 69.64759782 | G105: 25.31974075 | H105: 10180.7552 | I105: 34.47163705 | J105: 45328.45567 | K105: 92971.17498 | L105: 0 | M105: -47642.71931 | N105: 27385.02734 | O105: 23560.598 | P105: 2.37242 | Q105: 396.45742 | R105: 21.94313 | S105: 2930.76416 | T105: 3708.86414 | U105: -55.34371 | V105: -833.44369 | W105: 7.75895 | X105: 4.76938 | Y105: -10.3496 | Z105: 7.4911 | AA105: -833.31262 | AB105: 7614.85072 | AC105: 2515.06055 | AD105: -7979.79829 | AE105: 489.16691 | AF105: 422.25906 | AG105: 0 | AH105: -6277.6855 | AI105: 10815.24496 | AJ105: -643.66014 | AK105: -4553.31177 | AL105: 49633.72461 | AM105: 43501.69853 | AN105: 6132.02608 | AO105: 2.52781 | AP105: 9093.48 | AQ105: 241 | AR105: 6199 | AS105: 8.86 | AT105: 1.058440021 | AU105: 125.2713965 | AV105: 32.17222615 | AW105: 2626.05837 | AX105: 21.79372251 | AY105: 12483.91371 | AZ105: 30629.89626 | BA105: 0.00654 | BB105: -18145.97601 | BC105: 15654.18398 | BD105: 8693.077 | BE105: 2.19212 | BF105: 302.404 | BG105: -261.53047 | BH105: 5639.54262 | BI105: 4027.28328 | BJ105: 0 | BK105: 1612.25934 | BL105: 0 | BM105: 0.3757 | BN105: 24.54957 | BO105: 5.65968 | BP105: 1642.09289 | BQ105: 9614.19128 | BR105: 4476.60773 | BS105: 7998.83558 | BT105: 998.00963 | BU105: 76.09028 | BV105: 1e-05 | BW105: -5311.46783 | BX105: 3320.33189 | BY105: 18.605 | BZ105: -2448.12794 | CA105: 38113.29942 | CB105: 33270.36437 | CC105: 4842.93505 | CD105: 0 | CE105: 524.731 | CF105: 106 | CG105: 6121 | CH105: 8.9 | CI105: 1.137436389 | CJ105: 121.3660847 | CK105: 33.47486908 | CL105: 5440.08473 | CM105: 48.06361824 | CN105: 12223.27026 | CO105: 30952.2109 | CP105: -0.00421 | CQ105: -18728.94485 | CR105: 16862.54957 | CS105: 8585.443 | CT105: 0.24514 | CU105: 754.78549 | CV105: -161.12547 | CW105: 5803.3819 | CX105: 4624.28544 | CY105: 0 | CZ105: 1179.09646 | DA105: 0 | DB105: 44.16516 | DC105: 41.799 | DD105: 12.22839 | DE105: 1211.04127 | DF105: 11054.27608 | DG105: 5608.29283 | DH105: 4755.72639 | DI105: 412.39517 | DJ105: 471.95791 | DK105: 179.21946 | DL105: 5010.95882 | DM105: 5216 | DN105: 55.10958 | DO105: 1736.91952 | DP105: 38376.76118 | DQ105: 33213.98436 | DR105: 5162.77682 | DS105: 0 | DT105: 572.39037 | DU105: 75 | DW105: 1031.28153 | DX105: 951.59154 | DY105: 938.61189 | EE105: 714
A106: 288 | B106: Kruunupyy | C106: 6405 | D106: 22 | E106: 1.595567833 | F106: 51.65852919 | G106: 36.4893951 | H106: 6819.496 | I106: 31.67445291 | J106: 30958.148 | K106: 70132.18 | L106: 18.715 | M106: -39155.317 | N106: 27015.896 | O106: 19539.308 | P106: 9.298 | Q106: 235.446 | R106: 422.698 | S106: 7596.437 | T106: 3322.251 | U106: 0 | V106: 4274.186 | W106: 32.016 | X106: 73.695 | Y106: -7.429 | Z106: -0.309 | AA106: 4224.769 | AB106: 17123.04744 | AC106: 7379.062 | AD106: -3510.65 | AE106: 2.685 | AF106: 212.731 | AG106: 0 | AH106: -4673.078 | AI106: 5300.103 | AJ106: -3042.669 | AK106: 4083.828 | AL106: 28288.00206 | AM106: 23291.55721 | AN106: 4996.44485 | AO106: 3.87 | AP106: 942.22 | AQ106: 50 | AR106: 6368 | AS106: 9.36 | AT106: 1.531336329 | AU106: 78.76054399 | AV106: 46.55586645 | AW106: 6331.19 | AX106: 59.21774113 | AY106: 15839.168 | AZ106: 31834.752 | BA106: 8.455 | BB106: -15987.129 | BC106: 15644.872 | BD106: 6673.345 | BE106: 34.304 | BF106: 277.324 | BG106: 180.616 | BH106: 6268.684 | BI106: 2710.151 | BJ106: 0 | BK106: 3558.533 | BL106: 23.904 | BM106: 65.546 | BN106: -6.872 | BO106: -0.261 | BP106: 3509.758 | BQ106: 20921.32 | BR106: 6350.247 | BS106: 2733.443 | BT106: 53.391 | BU106: 22.523 | BV106: 0 | BW106: -3997.379 | BX106: 24.098 | BY106: -476.778 | BZ106: 3692.718 | CA106: 20841.309 | CB106: 16750.262 | CC106: 4091.047 | CD106: 0 | CE106: 88.988 | CF106: 81 | CG106: 6342 | CH106: 8.9 | CI106: 1.627917287 | CJ106: 67.81890946 | CK106: 54.05836185 | CL106: 5457.33 | CM106: 51.20945869 | CN106: 15556.695 | CO106: 31828.165 | CP106: 3.838 | CQ106: -16267.632 | CR106: 14723.866 | CS106: 7517.549 | CT106: 28.417 | CU106: 235.876 | CV106: 214.541 | CW106: 5980.865 | CX106: 2721.545 | CY106: 0 | CZ106: 3259.32 | DA106: 22.979 | DB106: 119.238 | DC106: -8.442 | DD106: -0.15 | DE106: 3214.088 | DF106: 25155.532 | DG106: 5984.336 | DH106: 3008.79 | DI106: 194.612 | DJ106: 87.468 | DK106: -27.281 | DL106: 3582.955 | DM106: 15.447 | DN106: -338.49 | DO106: 3257.626 | DP106: 16818.673 | DQ106: 13180.795 | DR106: 3637.878 | DS106: 0 | DT106: 93.936 | DU106: 77 | DW106: 572.81212 | DX106: 558.446 | DY106: 559.067 | EE106: 6099
A107: 290 | B107: Kuhmo | C107: 7755 | D107: 22 | E107: 5.589113491 | F107: 64.74981473 | G107: 34.89388528 | H107: 45657.10516 | I107: 129.0897949 | J107: 59771.80046 | K107: 116753.6519 | L107: -6.42916 | M107: -56988.28062 | N107: 31942.85342 | O107: 36177.38125 | P107: 37.17834 | Q107: 351.25525 | R107: -600.82295 | S107: 10217.05419 | T107: 5568.67248 | U107: 948.77299 | V107: 5597.1547 | W107: 27.77628 | X107: 570.08707 | Y107: -246.51446 | Z107: -1374.46367 | AA107: 3433.86578 | AB107: 15034.6464 | AC107: 9704.25597 | AD107: -8506.95441 | AE107: 19.82801 | AF107: 595.33927 | AG107: 0 | AH107: -1539.61876 | AI107: 4576.50435 | AJ107: -59.96331 | AK107: 1812.46885 | AL107: 64778.83302 | AM107: 54435.86801 | AN107: 10342.96501 | AO107: 0 | AP107: 2109.83799 | AQ107: 36 | AR107: 7582 | AS107: 9.36 | AT107: 1.43275994 | AU107: 105.7907965 | AV107: 46.79418116 | AW107: 33827.57421 | AX107: 225.1048636 | AY107: 21161.07977 | AZ107: 40322.90894 | BA107: 0 | BB107: -19161.82917 | BC107: 18294.09747 | BD107: 7323.353 | BE107: 177.95672 | BF107: 722.50579 | BG107: 1006.90878 | BH107: 6917.98101 | BI107: 4852.03798 | BJ107: -115.7393 | BK107: 1950.20373 | BL107: 7.23977 | BM107: 109.49753 | BN107: -81.60012 | BO107: -592.653 | BP107: 1173.69285 | BQ107: 16111.81463 | BR107: 6844.61969 | BS107: 8187.75586 | BT107: 599.79864 | BU107: 5402.70117 | BV107: 0 | BW107: -4610.1997 | BX107: 2027.77351 | BY107: -4873.28923 | BZ107: 4659.36363 | CA107: 39142.83019 | CB107: 34708.01657 | CC107: 4434.81362 | CD107: 0 | CE107: 5846.33353 | CF107: 104 | CG107: 7483 | CH107: 9.4 | CI107: 1.507413339 | CJ107: 99.87083757 | CK107: 54.391317 | CL107: 36360.21642 | CM107: 257.0236176 | CN107: 20245.39085 | CO107: 39998.93997 | CP107: 0 | CQ107: -19753.54912 | CR107: 18541.99766 | CS107: 8297.974 | CT107: 123.92974 | CU107: 1346.21099 | CV107: 1623.34672 | CW107: 7487.48801 | CX107: 4308.88459 | CY107: 0 | CZ107: 3178.60342 | DA107: 14.01193 | DB107: 384.73858 | DC107: -159.34303 | DD107: -202.00137 | DE107: 2638.90166 | DF107: 19302.97157 | DG107: 7897.37536 | DH107: 4152.79388 | DI107: 115.0737 | DJ107: 251.78478 | DK107: 0 | DL107: 4513.95939 | DM107: 2493.41222 | DN107: 39.96996 | DO107: 4111.43996 | DP107: 37162.25298 | DQ107: 32620.68368 | DR107: 4541.5693 | DS107: 0 | DT107: 5725.84547 | DU107: 55 | DW107: 11977.9093 | DX107: 11970.66953 | DY107: 12024.40232 | EE107: 432
A108: 291 | B108: Kuhmoinen | C108: 2119 | D108: 21.75 | E108: 0.4943320749 | F108: 53.92031468 | G108: 54.25903901 | H108: 7057.132 | I108: 92.37314931 | J108: 5938.34295 | K108: 26193.98499 | L108: -3.76512 | M108: -20259.40716 | N108: 9874.18911 | O108: 10549.26181 | P108: 110.16944 | Q108: 120.60588 | R108: -13.70599 | S108: 139.90132 | T108: 1460.24407 | U108: 0 | V108: -1320.34275 | W108: 0.00889 | X108: 116.33194 | Y108: -0.35268 | Z108: -9.52739 | AA108: -1446.54588 | AB108: 4829.76077 | AC108: 23.69722 | AD108: -1124.47071 | AE108: 0 | AF108: 2273.94579 | AG108: 0.17567 | AH108: -406.38238 | AI108: 85.095 | AJ108: 35.34354 | AK108: 1173.1723 | AL108: 10670.9573 | AM108: 3797.07606 | AN108: 6873.88124 | AO108: 4.31211 | AP108: 0 | AQ108: 284 | AR108: 2092 | AS108: 9.11 | AT108: 3.093545084 | AU108: 79.15638768 | AV108: 61.61760339 | AW108: 5302.90279 | AX108: 150.1957008 | AY108: 3661.63983 | AZ108: 11131.59991 | BA108: 0 | BB108: -7469.96008 | BC108: 5973.66614 | BD108: 3432.37068 | BE108: 77.63307 | BF108: 309.14713 | BG108: 18.98674 | BH108: 1723.54942 | BI108: 1439.91559 | BJ108: -0.12888 | BK108: 283.50495 | BL108: 0.04426 | BM108: 6.09203 | BN108: 0 | BO108: -6.6903 | BP108: 270.76688 | BQ108: 4997.36697 | BR108: 1612.23933 | BS108: 1079.25352 | BT108: 0.01484 | BU108: 203.86166 | BV108: 0 | BW108: -347.92962 | BX108: 0 | BY108: -969.64733 | BZ108: 736.86231 | CA108: 8591.74905 | CB108: 2748.78473 | CC108: 5842.96432 | CD108: 3.4504 | CE108: 39.80513 | CF108: 134 | CG108: 2038 | CH108: 9.1 | CI108: 4.173025262 | CJ108: 78.12657937 | CK108: 62.47293093 | CL108: 6440.95101 | CM108: 183.7297513 | CN108: 4988.52799 | CO108: 11270.76704 | CP108: 0 | CQ108: -6282.23905 | CR108: 5971.59626 | CS108: 2539.181 | CT108: 64.6654 | CU108: 323.02587 | CV108: -58.68383 | CW108: 1911.49391 | CX108: 1467.32272 | CY108: -0.1761 | CZ108: 444.08314 | DA108: 0.04426 | DB108: -3.6914 | DC108: 9 | DD108: 111.6903 | DE108: 566.6634 | DF108: 5785.09362 | DG108: 1909.45645 | DH108: 1048.12928 | DI108: 0.02733 | DJ108: 5.55511 | DK108: 0 | DL108: 212.44172 | DM108: 400 | DN108: -230.5226 | DO108: 866.90961 | DP108: 8548.78472 | DQ108: 2807.65587 | DR108: 5741.12885 | DS108: 3.4504 | DT108: 0 | DU108: 79 | DW108: 465.1793 | DX108: 465.15102 | DY108: 465.10675 | EE108: 316
A109: 297 | B109: Kuopio | C109: 122594 | D109: 20.75 | E109: 1.4866183 | F109: 99.97441716 | G109: 25.86343354 | H109: 252011.4865 | I109: 52.6708294 | J109: 683191.0309 | K109: 1383682.507 | L109: 4922.84288 | M109: -695568.6331 | N109: 549550.649 | O109: 318671.0026 | P109: 511.86621 | Q109: 13139.65394 | R109: 3384.80605 | S109: 163410.0369 | T109: 128587.0794 | U109: 63.59155 | V109: 34886.549 | W109: 194.03221 | X109: 4792.50608 | Y109: -2098.24575 | Z109: -541.25658 | AA109: 27648.5728 | AB109: 128848.9541 | AC109: 143435.4253 | AD109: -242937.8829 | AE109: 4226.43903 | AF109: 46097.44212 | AG109: 125.65396 | AH109: -105619.6072 | AI109: 193815.2127 | AJ109: -4431.18198 | AK109: -49178.57651 | AL109: 1212090.866 | AM109: 1106563.435 | AN109: 105527.4306 | AO109: 630.97345 | AP109: 196129.061 | AQ109: 33 | AR109: 124021 | AS109: 8.11 | AT109: 1.266949225 | AU109: 130.6464488 | AV109: 30.11533162 | AW109: 157948.8706 | AX109: 55.92775961 | AY109: 465196.072 | AZ109: 732385.8708 | BA109: 2292.74798 | BB109: -264897.0507 | BC109: 308069.0068 | BD109: 116889.61 | BE109: 4542.25907 | BF109: 18653.33544 | BG109: -82.15766 | BH109: 145868.332 | BI109: 108389.6115 | BJ109: 0 | BK109: 37478.72051 | BL109: 15.22357 | BM109: 2212.99141 | BN109: -3233.90127 | BO109: -1417.16161 | BP109: 30629.88979 | BQ109: 142082.0854 | BR109: 144466.3556 | BS109: 168650.1038 | BT109: 5819.78487 | BU109: 21151.55007 | BV109: 61.36663 | BW109: -111203.2241 | BX109: 89014.928 | BY109: -873.34247 | BZ109: 2787.58679 | CA109: 924003.9114 | CB109: 834056.1388 | CC109: 89947.7726 | CD109: 618.85507 | CE109: 161018.062 | CF109: 46 | CG109: 125666 | CH109: 8.1 | CI109: 1.294129481 | CJ109: 140.0181746 | CK109: 32.92957854 | CL109: 208156.047 | CM109: 72.80573783 | CN109: 474027.285 | CO109: 737319.0502 | CP109: 1154.71813 | CQ109: -262137.0471 | CR109: 302566.9179 | CS109: 111935.5564 | CT109: 6364.75307 | CU109: 22763.90146 | CV109: 6826.9393 | CW109: 142793.2181 | CX109: 113266.3647 | CY109: 81.49938 | CZ109: 29567.60312 | DA109: 148.70856 | DB109: 4598.90236 | DC109: -2458.41729 | DD109: -2014.56067 | DE109: 22943.88254 | DF109: 164916.5148 | DG109: 128089.789 | DH109: 171473.599 | DI109: 6357.70416 | DJ109: 28256.48793 | DK109: 568.96658 | DL109: 105165.4302 | DM109: 193005.6191 | DN109: 501.94166 | DO109: -8769.61796 | DP109: 1012346.042 | DQ109: 896502.2768 | DR109: 115843.7651 | DS109: 117.42742 | DT109: 196479.8628 | DU109: 39 | DW109: 9339.68928 | DX109: 9718.7188 | DY109: 9716.41018 | EE109: 8601
A110: 300 | B110: Kuortane | C110: 3437 | D110: 21 | E110: 2.768157432 | F110: 38.5358683 | G110: 46.44959914 | H110: 3259.42436 | I110: 17.86047323 | J110: 37483.90996 | K110: 62402.38143 | L110: -21.6668 | M110: -24940.13827 | N110: 12236.26798 | O110: 16764.7034 | P110: 25.79278 | Q110: 162.84218 | R110: 96.28183 | S110: 4020.06554 | T110: 2252.88677 | U110: 0 | V110: 1767.17877 | W110: 44.87179 | X110: 0 | Y110: -21.88729 | Z110: 10.16087 | AA110: 1800.32414 | AB110: 8520.9036 | AC110: 3896.01074 | AD110: -2624.03385 | AE110: 377.20113 | AF110: 107.12055 | AG110: -1.96716 | AH110: -1348.23796 | AI110: 628.75604 | AJ110: -394.33896 | AK110: 1756.29857 | AL110: 19405.37076 | AM110: 13207.86317 | AN110: 6197.50759 | AO110: 1574.42068 | AP110: 3969.51 | AQ110: 54 | AR110: 3381 | AS110: 8.36 | AT110: 1.659970525 | AU110: 78.02118547 | AV110: 58.99944512 | AW110: 2225.20847 | AX110: 39.98976763 | AY110: 4958.82419 | AZ110: 16358.97857 | BA110: -29.63138 | BB110: -11429.78576 | BC110: 6899.89736 | BD110: 7525.20853 | BE110: 54.57466 | BF110: 319.17571 | BG110: 0.14825 | BH110: 2730.86733 | BI110: 1640.74849 | BJ110: -124.85054 | BK110: 965.2683 | BL110: 7.18032 | BM110: 0 | BN110: 15.56725 | BO110: 0 | BP110: 988.01587 | BQ110: 9420.66523 | BR110: 2581.45566 | BS110: 2033.99706 | BT110: -43.72952 | BU110: 1429.63609 | BV110: -33.85536 | BW110: -1518.23224 | BX110: 822.16215 | BY110: -1152.46214 | BZ110: 1933.36517 | CA110: 11926.72155 | CB110: 7494.84104 | CC110: 4431.88051 | CD110: 1614.13204 | CE110: 5039.713 | CF110: 138 | CG110: 3335 | CH110: 8.4 | CI110: 3.108778373 | CJ110: 78.33302573 | CK110: 59.74744026 | CL110: 1963.14296 | CM110: 33.79897623 | CN110: 5080.68088 | CO110: 16550.33182 | CP110: -33.95138 | CQ110: -11503.60232 | CR110: 6885.1231 | CS110: 7809.88725 | CT110: 54.79914 | CU110: 345.58507 | CV110: 56.19363 | CW110: 2956.81573 | CX110: 1622.85336 | CY110: 0 | CZ110: 1333.96237 | DA110: -24.40742 | DB110: 0 | DC110: 16.00956 | DD110: 0 | DE110: 1325.56451 | DF110: 10785.18982 | DG110: 2989.07895 | DH110: 2800.99893 | DI110: 25.24596 | DJ110: 1.98916 | DK110: -681.73006 | DL110: 716.69741 | DM110: 0.98043 | DN110: 994.85574 | DO110: 215.31514 | DP110: 12199.85075 | DQ110: 6789.12406 | DR110: 5410.72669 | DS110: 2302.2861 | DT110: 4331.46945 | DU110: 93 | DW110: 22.62088 | DX110: 307.9083 | DY110: 307.50922 | EE110: 1627
A111: 301 | B111: Kurikka | C111: 19890 | D111: 21 | E111: 1.086016581 | F111: 84.6717401 | G111: 32.84786224 | H111: 62708.1645 | I111: 75.32098159 | J111: 100163.6324 | K111: 246255.1892 | L111: 1.23208 | M111: -146090.3247 | N111: 72215.2875 | O111: 80317.75332 | P111: 199.07073 | Q111: 1067.28354 | R111: 11434.91954 | S111: 17009.42281 | T111: 15869.79593 | U111: 0 | V111: 1139.62688 | W111: -2e-05 | X111: 19.09078 | Y111: -118.13642 | Z111: 39.86889 | AA111: 1042.26855 | AB111: 13482.8356 | AC111: 16282.24752 | AD111: -40644.04598 | AE111: 361.75523 | AF111: 664.65946 | AG111: 107.62187 | AH111: -15577.67996 | AI111: 42833.54396 | AJ111: 3600.70907 | AK111: -23335.38377 | AL111: 164921.1726 | AM111: 131312.9504 | AN111: 33608.22214 | AO111: 190.70436 | AP111: 5758.03459 | AQ111: 119 | AR111: 19759 | AS111: 8.36 | AT111: 1.248040165 | AU111: 159.6234584 | AV111: 37.65583161 | AW111: 52170.85728 | AX111: 115.1301242 | AY111: 47342.69707 | AZ111: 101503.7845 | BA111: -17.26282 | BB111: -54178.35021 | BC111: 40198.50737 | BD111: 24592.1662 | BE111: 549.17059 | BF111: 3165.81883 | BG111: 13191.35114 | BH111: 21187.02626 | BI111: 14511.92594 | BJ111: 0 | BK111: 6675.10032 | BL111: 68.4 | BM111: 21.32994 | BN111: -38.04857 | BO111: 6.36381 | BP111: 6690.48562 | BQ111: 18362.28075 | BR111: 20910.57979 | BS111: 31034.22409 | BT111: 688.75985 | BU111: 140.4539 | BV111: -53.592 | BW111: -16347.05085 | BX111: 34790.08515 | BY111: -13996.02677 | BZ111: -9294.43055 | CA111: 149252.5659 | CB111: 131019.7708 | CC111: 18232.79508 | CD111: 78.192 | CE111: 1775.14478 | CF111: 66 | CG111: 19509 | CH111: 8.4 | CI111: 0.9295422357 | CJ111: 170.6541564 | CK111: 37.04889924 | CL111: 55827.07498 | CM111: 121.6782084 | CN111: 50965.4765 | CO111: 106509.9599 | CP111: -44.94143 | CQ111: -55589.42486 | CR111: 41019.2046 | CS111: 20397.06708 | CT111: 509.37242 | CU111: 3820.89128 | CV111: 13106.25017 | CW111: 15621.57813 | CX111: 14449.46393 | CY111: 0 | CZ111: 1172.1142 | DA111: 0 | DB111: 35.61024 | DC111: -35.74821 | DD111: -3.67156 | DE111: 1114.88931 | DF111: 22204.16018 | DG111: 17190.61818 | DH111: 26811.95208 | DI111: 129.76844 | DJ111: 1533.76371 | DK111: -112.3 | DL111: 17095.28516 | DM111: 29478.40627 | DN111: -300.34375 | DO111: -7957.80175 | DP111: 161335.3433 | DQ111: 143787.7468 | DR111: 17547.59643 | DS111: 199.192 | DT111: 1264.07935 | DU111: 119 | DW111: 1546.29492 | DX111: 1546.29492 | DY111: 1546.29492 | EE111: 26297
A112: 304 | B112: Kustavi | C112: 950 | D112: 18 | E112: 0.9977561673 | F112: 50.86371967 | G112: 53.63983412 | H112: 1823.06 | I112: 43.63754061 | J112: 5833.481 | K112: 13168.341 | L112: -2.698 | M112: -7337.558 | N112: 5651.946 | O112: 2372.773 | P112: 0.018 | Q112: 57.015 | R112: 11.836 | S112: 642 | T112: 716.619 | U112: 223.962 | V112: 149.343 | W112: -202.016 | X112: 0 | Y112: 0 | Z112: -0.787 | AA112: -53.46 | AB112: 3879.328 | AC112: 630.395 | AD112: -1379.168 | AE112: 24.597 | AF112: 28.482 | AG112: 0 | AH112: -643.572 | AI112: 1594.968 | AJ112: 129.821 | AK112: -695.694 | AL112: 5285.863 | AM112: 4571.994 | AN112: 713.869 | AO112: 0 | AP112: 431.86335 | AQ112: 181 | AR112: 949 | AS112: 5.36 | AT112: 0.417376789 | AU112: 99.09989269 | AV112: 61.89518299 | AW112: 599.418 | AX112: 37.86610146 | AY112: 1618.761 | AZ112: 4319.58 | BA112: 0 | BB112: -2700.819 | BC112: 3251.639 | BD112: -354.494 | BE112: 0 | BF112: 54.587 | BG112: 1.453 | BH112: 143.192 | BI112: 528.233 | BJ112: 0 | BK112: -385.041 | BL112: 39.52 | BM112: 0 | BN112: 0 | BO112: 0 | BP112: -345.521 | BQ112: 3462.878 | BR112: 138.083 | BS112: 983.032 | BT112: 34.02 | BU112: 1.145 | BV112: 0 | BW112: -419.275 | BX112: 0 | BY112: 500 | BZ112: -809.784 | CA112: 3965.535 | CB112: 3101.26 | CC112: 864.275 | CD112: 0 | CE112: 112.106 | CF112: 276 | CG112: 970 | CH112: 5.3 | CI112: 0.8891394816 | CJ112: 115.8844652 | CK112: 55.82345299 | CL112: 271.246 | CM112: 13.93586322 | CN112: 1887.775 | CO112: 4437.357 | CP112: 0 | CQ112: -2549.582 | CR112: 3277.575 | CS112: -225.67 | CT112: 3.75 | CU112: 97.923 | CV112: 3.283 | CW112: 411.433 | CX112: 508.718 | CY112: 0 | CZ112: -97.285 | DA112: 7.861 | DB112: 0 | DC112: 0 | DD112: 0 | DE112: -89.424 | DF112: 4393.78202 | DG112: 379.387 | DH112: 2090.813 | DI112: 56.7 | DJ112: 123.131 | DK112: 0 | DL112: 474.941 | DM112: 1900 | DN112: -371.032 | DO112: -1531.595 | DP112: 5019.5613 | DQ112: 4453.15166 | DR112: 566.40964 | DS112: 0 | DT112: 39.44283 | DU112: 250 | DW112: 1063.283 | DX112: 1021.954 | DY112: 0 | EE112: 1313
A113: 305 | B113: Kuusamo | C113: 15146 | D113: 20 | E113: 0.817744423 | F113: 61.02483443 | G113: 45.13941418 | H113: 21455.90468 | I113: 37.91186132 | J113: 58453.68902 | K113: 159746.6076 | L113: -105.96229 | M113: -101398.8809 | N113: 58885.98058 | O113: 54345.022 | P113: 14.1513 | Q113: 618.84092 | R113: -999.25465 | S113: 10228.1774 | T113: 9105.58855 | U113: 0 | V113: 1122.58885 | W113: 1102.0435 | X113: 19.41638 | Y113: 28.57493 | Z113: -1.98532 | AA113: 2231.80558 | AB113: 27878.12949 | AC113: 6178.18601 | AD113: -31818.75064 | AE113: 241.28678 | AF113: 4085.07642 | AG113: 15.62472 | AH113: -12645.71707 | AI113: 21987.35424 | AJ113: -9.16573 | AK113: -21314.20143 | AL113: 76100.73209 | AM113: 67452.27373 | AN113: 8648.45836 | AO113: 478.312 | AP113: 1993.8012 | AQ113: 183 | AR113: 15019 | AS113: 7.36 | AT113: 1.116449106 | AU113: 123.7636919 | AV113: 47.66947455 | AW113: 23122.68668 | AX113: 80.96040613 | AY113: 25738.34537 | AZ113: 66456.88986 | BA113: 78.40017 | BB113: -40640.14432 | BC113: 33812.63618 | BD113: 17208.199 | BE113: 43.06152 | BF113: 1523.65073 | BG113: 767.49627 | BH113: 9667.59792 | BI113: 8035.11638 | BJ113: 0 | BK113: 1632.48154 | BL113: 911.11837 | BM113: 5.13344 | BN113: 13.00712 | BO113: 19.43867 | BP113: 2570.91226 | BQ113: 30097.78929 | BR113: 9354.79269 | BS113: 26997.42659 | BT113: 1983.44402 | BU113: 250.89761 | BV113: 15.62474 | BW113: -8500.31596 | BX113: 31988.798 | BY113: 0 | BZ113: -15408.29227 | CA113: 81522.7911 | CB113: 71179.59411 | CC113: 10343.19699 | CD113: 356.7649 | CE113: 773.6857 | CF113: 196 | CG113: 14876 | CH113: 7.4 | CI113: 0.782484839 | CJ113: 133.9011652 | CK113: 45.49563274 | CL113: 26607.24531 | CM113: 92.92546143 | CN113: 27754.86657 | CO113: 67132.21212 | CP113: 49.85207 | CQ113: -39327.49348 | CR113: 34297.87504 | CS113: 14827.459 | CT113: 19.27567 | CU113: 2117.64421 | CV113: 681.13504 | CW113: 8380.60706 | CX113: 9982.20799 | CY113: 0 | CZ113: -1601.60093 | DA113: 764.34062 | DB113: 60.73164 | DC113: 142.056 | DD113: -4.48232 | DE113: -730.05245 | DF113: 28868.8504 | DG113: 6696.8838 | DH113: 23280.14646 | DI113: 4722.45293 | DJ113: 10312.61742 | DK113: 0 | DL113: 11298.91129 | DM113: 18723.4995 | DN113: 0 | DO113: -1548.19231 | DP113: 89895.61436 | DQ113: 78444.68047 | DR113: 11450.93389 | DS113: 1304.99995 | DT113: 1270.72313 | DU113: 202 | DW113: 6555.54632 | DX113: 5367.66913 | DY113: 4603.32852 | EE113: 1535
A114: 312 | B114: Kyyjärvi | C114: 1196 | D114: 22.5 | E114: 5.605481776 | F114: 90.50400977 | G114: 10.70300156 | H114: 8134.41991 | I114: 141.6537257 | J114: 11207.62342 | K114: 20135.31846 | L114: 0 | M114: -8927.69504 | N114: 5530.52536 | O114: 5050.248 | P114: 21.42601 | Q114: 60.81384 | R114: -92.81445 | S114: 1520.87604 | T114: 351.62879 | U114: 67.0357 | V114: 1236.28295 | W114: -16.14118 | X114: 0 | Y114: 0 | Z114: 6.88926 | AA114: 1227.03103 | AB114: -2865.48944 | AC114: 1595.16189 | AD114: -404.88427 | AE114: 4.54746 | AF114: 77.59813 | AG114: 0 | AH114: -221.35457 | AI114: 89.68 | AJ114: -798.60547 | AK114: 1272.42321 | AL114: 17010.99528 | AM114: 6049.96646 | AN114: 10961.02882 | AO114: 0 | AP114: 4122.84216 | AQ114: 42 | AR114: 1174 | AS114: 9.86 | AT114: 2.341085271 | AU114: 211.8387508 | AV114: 15.86568084 | AW114: 7153 | AX114: 398.5414441 | AY114: 1920 | AZ114: 5401 | BA114: 0 | BB114: -3481 | BC114: 3270 | BD114: 1086 | BE114: 15 | BF114: 423 | BG114: 318 | BH114: 785 | BI114: 511 | BJ114: -17 | BK114: 257 | BL114: 3 | BM114: 0 | BN114: 0 | BO114: 7 | BP114: 267 | BQ114: -2798 | BR114: 767 | BS114: 316 | BT114: 0 | BU114: 64 | BV114: 0 | BW114: -93 | BX114: 0 | BY114: -500 | BZ114: 515 | CA114: 12584 | CB114: 2289 | CC114: 10295 | CD114: 0 | CE114: 2504.44161 | CF114: 191 | CG114: 1155 | CH114: 9.9 | CI114: 1.752588361 | CJ114: 204.666434 | CK114: 20.52625252 | CL114: 7713.23013 | CM114: 364.2180628 | CN114: 1863.41555 | CO114: 5485.83123 | CP114: 0 | CQ114: -3622.41568 | CR114: 3408.10871 | CS114: 719.82112 | CT114: 20.63239 | CU114: 479.44432 | CV114: 1094.82913 | CW114: 1141.53135 | CX114: 510.2687 | CY114: 0 | CZ114: 631.26265 | DA114: 0.13131 | DB114: 0.037 | DC114: 0 | DD114: 7.15673 | DE114: 638.53219 | DF114: -2159.40877 | DG114: 1438.18066 | DH114: 224.22543 | DI114: 3.35886 | DJ114: 141.75419 | DK114: 0 | DL114: 445.4595 | DM114: 0 | DN114: -502.366 | DO114: 1359.06828 | DP114: 11635.24921 | DQ114: 1875.22667 | DR114: 9760.02254 | DS114: 0 | DT114: 2620.87964 | DU114: 64 | DW114: -201.50912 | DX114: 16 | DY114: 16.40025 | EB114: 266 | EC114: 59 | EE114: 78
A115: 316 | B115: Kärkölä | C115: 4198 | D115: 22 | E115: 1.039895165 | F115: 56.83673398 | G115: 30.82803622 | H115: 3832.81491 | I115: 22.01183469 | J115: 29628.31736 | K115: 56141.56578 | L115: -14.70442 | M115: -26527.95284 | N115: 18072.2328 | O115: 10062.70415 | P115: 2.28291 | Q115: 91.52585 | R115: 226.60731 | S115: 1744.34849 | T115: 1739.69072 | U115: -4.19095 | V115: 0.46682 | W115: -0.15999 | X115: 4.52202 | Y115: 0.81199 | Z115: -4.12255 | AA115: -7.52575 | AB115: 4930.60436 | AC115: 2379.43913 | AD115: -5622.43187 | AE115: 2.96149 | AF115: 52.34975 | AG115: 9.42112 | AH115: -1673.9159 | AI115: 1047.6 | AJ115: 3499.62288 | AK115: -3187.68149 | AL115: 25333.36004 | AM115: 17080.2533 | AN115: 8253.10674 | AO115: 23.97185 | AP115: 10277.15839 | AQ115: 254 | AR115: 4114 | AS115: 9.36 | AT115: 0.9751889756 | AU115: 160.1397249 | AV115: 33.97252028 | AW115: 2421.15931 | AX115: 43.50563523 | AY115: 3271.23386 | AZ115: 14037.38103 | BA115: -0.64985 | BB115: -10766.79702 | BC115: 10596.0227 | BD115: 2397.59504 | BE115: 7.97456 | BF115: 501.35716 | BG115: 85.68959 | BH115: 1819.1277 | BI115: 1594.91729 | BJ115: -0.68889 | BK115: 223.52153 | BL115: -0.31949 | BM115: 0 | BN115: 0 | BO115: 9.50185 | BP115: 232.7039 | BQ115: 5146.34047 | BR115: 1789.64661 | BS115: 3810.24934 | BT115: 0.0793 | BU115: 1317.79992 | BV115: 0 | BW115: -1878.16611 | BX115: 6700 | BY115: -4512.84209 | BZ115: -702.72351 | CA115: 22000.77775 | CB115: 17815.85475 | CC115: 4184.923 | CD115: 18.44285 | CE115: 4078.26243 | CF115: 248 | CG115: 4093 | CH115: 9.4 | CI115: 1.020769562 | CJ115: 151.5596722 | CK115: 30.97988896 | CL115: 1253.8606 | CM115: 22.43856505 | CN115: 3849.31832 | CO115: 14246.59588 | CP115: 1.01754 | CQ115: -10396.26002 | CR115: 11142.4566 | CS115: 2013.70496 | CT115: 21.48229 | CU115: 615.31758 | CV115: 77.01652 | CW115: 2243.08277 | CX115: 4225.50069 | CY115: -0.9413 | CZ115: -1982.88858 | DA115: -0.30252 | DB115: 0 | DC115: 0 | DD115: -3.77512 | DE115: -1986.96622 | DF115: 3159.37424 | DG115: 2192.57741 | DH115: 3272.24267 | DI115: 198.38931 | DJ115: 26.024 | DK115: 0 | DL115: 2184.923 | DM115: 4800 | DN115: -2000 | DO115: -855.25194 | DP115: 22615.85475 | DQ115: 20430.93175 | DR115: 2184.923 | DS115: 18.44285 | DT115: 3691.39812 | DU115: 209 | DW115: 0 | DX115: 0 | DY115: 0 | EB115: 210 | EE115: 805
A116: 317 | B116: Kärsämäki | C116: 2474 | D116: 21.5 | E116: 1.445779961 | F116: 72.44922624 | G116: 32.27627137 | H116: 12605.586 | I116: 88.37848054 | J116: 23633.95679 | K116: 42581.08816 | L116: -38.61069 | M116: -18985.74206 | N116: 8671.84101 | O116: 13208.50267 | P116: 25.52796 | Q116: 205.1741 | R116: -341.37462 | S116: 2373.58086 | T116: 2054.08772 | U116: 0 | V116: 319.49314 | W116: -7.58067 | X116: 2.58889 | Y116: 0.00125 | Z116: -1.63254 | AA116: 307.69229 | AB116: 9493.25358 | AC116: 2300.20036 | AD116: -6582.1102 | AE116: 243.58967 | AF116: 1591.76414 | AG116: -580.83694 | AH116: -1578.46866 | AI116: 3767.59472 | AJ116: -738.97059 | AK116: -2446.55603 | AL116: 26029.13386 | AM116: 23314.99378 | AN116: 2714.14008 | AO116: 124.8536 | AP116: 56.618 | AQ116: 85 | AR116: 2440 | AS116: 8.86 | AT116: 0.771083668 | AU116: 148.9161725 | AV116: 40.59060533 | AW116: 1025.47304 | AX116: 21.43048595 | AY116: 3978.23587 | AZ116: 12349.76367 | BA116: 0 | BB116: -8371.5278 | BC116: 4371.88534 | BD116: 5933.76059 | BE116: 92.40756 | BF116: 566.1659 | BG116: 493.57005 | BH116: 1953.92984 | BI116: 1674.30911 | BJ116: 0 | BK116: 279.62073 | BL116: 1.5141 | BM116: 0.28276 | BN116: -0.05982 | BO116: 0 | BP116: 280.79225 | BQ116: 9735.95255 | BR116: 1966.10066 | BS116: 1354.07794 | BT116: 52.1715 | BU116: 284.18019 | BV116: 1391.16306 | BW116: -2702.0861 | BX116: 0 | BY116: 638.99494 | BZ116: 948.37441 | CA116: 18674.20034 | CB116: 15502.91019 | CC116: 3171.29015 | CD116: 110.2 | CE116: 27.988 | CF116: 141 | CG116: 2373 | CH116: 9.5 | CI116: 1.197334079 | CJ116: 142.006697 | CK116: 42.38485317 | CL116: 1058.98043 | CM116: 24.50219672 | CN116: 4049.78527 | CO116: 12331.99176 | CP116: 0 | CQ116: -8282.20649 | CR116: 4846.88534 | CS116: 5440.70187 | CT116: 45.51597 | CU116: 612.78791 | CV116: 400.11886 | CW116: 1838.22764 | CX116: 1615.222 | CY116: 0 | CZ116: 223.00564 | DA116: 1.5803 | DB116: 0.73096 | DC116: -0.33898 | DD116: 0 | DE116: 223.88148 | DF116: 10142.48768 | DG116: 1804.73815 | DH116: 996.06145 | DI116: 184.91846 | DJ116: 42.56985 | DK116: 51.16306 | DL116: 1434.2728 | DM116: 110 | DN116: 705.8578 | DO116: 1036.16501 | DP116: 18055.78434 | DQ116: 12278.63739 | DR116: 5777.14695 | DS116: 95.8 | DT116: 83.059 | DU116: 128 | DW116: 728.97798 | DX116: 622.28993 | DY116: 622.28993 | EE116: 1908
A117: 398 | B117: Lahti | C117: 120175 | D117: 20.75 | E117: 2.453868923 | F117: 99.74663695 | G117: 33.92681189 | H117: 334418.7414 | I117: 72.82527819 | J117: 719319.9012 | K117: 1332564.445 | L117: -487.15474 | M117: -613731.699 | N117: 543182.6273 | O117: 284217.1393 | P117: 2029.10521 | Q117: 16765.87152 | R117: -2692.58044 | S117: 196238.7209 | T117: 117214.3312 | U117: -208.25382 | V117: 78816.13586 | W117: -181.97741 | X117: 7437.4044 | Y117: -2368.31614 | Z117: -763.07999 | AA117: 68065.35792 | AB117: 374464.7521 | AC117: 158461.7143 | AD117: -236268.2284 | AE117: 2762.3534 | AF117: 190400.6476 | AG117: -40.46252 | AH117: -70037.70238 | AI117: 63956.339 | AJ117: -31.03627 | AK117: 115356.4869 | AL117: 1233791.974 | AM117: 1129338.781 | AN117: 104453.1933 | AO117: 19596.97528 | AP117: 452304.6229 | AQ117: 17 | AR117: 120693 | AS117: 8.11 | AT117: 1.577327246 | AU117: 154.8399889 | AV117: 38.0147102 | AW117: 297281.5669 | AX117: 115.1148835 | AY117: 437846.7573 | AZ117: 678682.7518 | BA117: -415.2309 | BB117: -241251.2253 | BC117: 303358.1703 | BD117: 131527.6345 | BE117: 10507.46202 | BF117: 23435.57974 | BG117: 736.44516 | BH117: 181442.9069 | BI117: 115901.1302 | BJ117: 554.03457 | BK117: 66095.81127 | BL117: -276.29477 | BM117: 3288.13106 | BN117: -2046.87066 | BO117: -232.98821 | BP117: 60251.52657 | BQ117: 438465.9552 | BR117: 154523.4054 | BS117: 133295.3452 | BT117: 680.30836 | BU117: 29570.90561 | BV117: 554.47619 | BW117: -106454.072 | BX117: 75505.85 | BY117: -1223.06223 | BZ117: 51479.27418 | CA117: 1136756.457 | CB117: 1044626.296 | CC117: 92130.16128 | CD117: 19068.954 | CE117: 284543.9465 | CF117: 13 | CG117: 121337 | CH117: 8.1 | CI117: 1.490048874 | CJ117: 149.8282685 | CK117: 41.43784341 | CL117: 249464.7065 | CM117: 95.68072122 | CN117: 431582.6108 | CO117: 676459.3807 | CP117: -415.71306 | CQ117: -245292.4829 | CR117: 286664.4766 | CS117: 118602.7593 | CT117: 12054.81676 | CU117: 26383.57978 | CV117: 3648.6748 | CW117: 149294.6647 | CX117: 111521.287 | CY117: 0 | CZ117: 37773.37771 | DA117: 67.47616 | DB117: 7503.86182 | DC117: -4264.35385 | DD117: -1187.22972 | DE117: 28637.33939 | DF117: 471994.4605 | DG117: 136597.9163 | DH117: 153641.5719 | DI117: 1510.5281 | DJ117: 51005.33161 | DK117: 522.03918 | DL117: 91517.41495 | DM117: 6650 | DN117: -476.41699 | DO117: 35472.20408 | DP117: 1051410.371 | DQ117: 993582.3023 | DR117: 57828.06862 | DS117: 18520.45991 | DT117: 301947.8922 | DU117: 26 | DW117: 12622.73944 | DX117: 12433.10235 | DY117: 12398.47662 | EE117: 0
A118: 399 | B118: Laihia | C118: 7817 | D118: 21.75 | E118: 0.9113277331 | F118: 61.28699811 | G118: 25.03834326 | H118: 4405.09385 | I118: 16.35519812 | J118: 39344.70312 | K118: 89862.74004 | L118: 0 | M118: -50518.03692 | N118: 34539.97284 | O118: 19482.513 | P118: 8.53934 | Q118: 245.99742 | R118: 207.29046 | S118: 3474.2813 | T118: 3352.8828 | U118: 0 | V118: 121.3985 | W118: 0 | X118: 0 | Y118: -61.73392 | Z118: 7.93031 | AA118: 67.59489 | AB118: 426.58089 | AC118: 3466.71378 | AD118: -4264.74843 | AE118: 111.639 | AF118: 14.3419 | AG118: 30.84061 | AH118: -3836.26474 | AI118: 1782.9827 | AJ118: 1839.4158 | AK118: -672.05375 | AL118: 42586.14794 | AM118: 28923.76096 | AN118: 13662.38698 | AO118: 13.21481 | AP118: 8615 | AQ118: 248 | AR118: 7682 | AS118: 9.11 | AT118: 1.139155222 | AU118: 123.1641265 | AV118: 29.97910028 | AW118: 2520 | AX118: 27.46655518 | AY118: 7242 | AZ118: 27485 | BA118: 0 | BB118: -20243 | BC118: 18835 | BD118: 5679 | BE118: 25 | BF118: 923 | BG118: 100 | BH118: 3473 | BI118: 3583 | BJ118: 0 | BK118: -110 | BL118: 0 | BM118: 19 | BN118: 24 | BO118: 99 | BP118: 31 | BQ118: 702 | BR118: 3473 | BS118: 2044 | BT118: 51 | BU118: 0 | BV118: 0 | BW118: -2936 | BX118: 3303 | BY118: -472 | BZ118: 1480 | CA118: 33343 | CB118: 20708 | CC118: 12635 | CD118: 11 | CE118: 0 | CF118: 245 | CG118: 7656 | CH118: 9.6 | CI118: 2.504615831 | CJ118: 132.0861099 | CK118: 28.92615198 | CL118: 3079.63121 | CM118: 35.89495459 | CN118: 7386.06942 | CO118: 27577.05836 | CP118: 0 | CQ118: -20190.98894 | CR118: 18821.20663 | CS118: 4333.862 | CT118: 22.18816 | CU118: 1225.12611 | CV118: 82.2024 | CW118: 1843.34414 | CX118: 3058.88994 | CY118: 0 | CZ118: -1215.5458 | DA118: 0 | DB118: -8.85346 | DC118: -36.21612 | DD118: -22.96501 | DE118: -1270.3002 | DF118: -887.4892 | DG118: 1847.77087 | DH118: 2431.02791 | DI118: 0 | DJ118: 0 | DK118: 0 | DL118: 0 | DM118: 5046.6705 | DN118: -3699.6782 | DO118: -583.25704 | DP118: 35790.1458 | DQ118: 26854.94413 | DR118: 8935.20167 | DS118: 17.21043 | DT118: 195.321 | DU118: 271 | DW118: 1457.96285 | DX118: 1458 | DY118: 1774.35105 | EE118: 20
A119: 400 | B119: Laitila | C119: 8366 | D119: 20.75 | E119: 4.580386033 | F119: 63.94201991 | G119: 38.67933267 | H119: 4265.76865 | I119: 14.26898654 | J119: 43148.43821 | K119: 95280.13458 | L119: 587.00028 | M119: -51544.69609 | N119: 33378.05092 | O119: 25784.567 | P119: 14.06305 | Q119: 414.38085 | R119: 104.87602 | S119: 7322.48006 | T119: 5856.61598 | U119: -2.8403 | V119: 1463.02378 | W119: 0 | X119: 3.32048 | Y119: -8.18325 | Z119: 14.94558 | AA119: 1466.46563 | AB119: 11208.41805 | AC119: 6821.49993 | AD119: -11885.152 | AE119: 157.56621 | AF119: 942.48164 | AG119: 32.23618 | AH119: -1274.74772 | AI119: 9802.41446 | AJ119: -8245.11414 | AK119: -3963.60422 | AL119: 46686.13076 | AM119: 36683.99472 | AN119: 10002.13604 | AO119: 424.6122 | AP119: 3737.35424 | AQ119: 114 | AR119: 8441 | AS119: 8.11 | AT119: 6.451580813 | AU119: 105.6941456 | AV119: 46.26512366 | AW119: 2886.91818 | AX119: 23.10637932 | AY119: 13896.76806 | AZ119: 36760.65642 | BA119: -17.1581 | BB119: -22881.04646 | BC119: 18416.47749 | BD119: 12853.475 | BE119: 18.26441 | BF119: 833.09064 | BG119: 150.6241 | BH119: 7724.70389 | BI119: 4487.535 | BJ119: -5.48633 | BK119: 3231.68257 | BL119: 0 | BM119: 0 | BN119: -14.30917 | BO119: 17.22295 | BP119: 3234.59634 | BQ119: 13318.32074 | BR119: 7775.75058 | BS119: 7363.21764 | BT119: 0 | BU119: 41.8624 | BV119: 21.77391 | BW119: -493.37411 | BX119: 0 | BY119: -1035.78291 | BZ119: 454.39534 | CA119: 36651.19072 | CB119: 26932.90448 | CC119: 9718.28624 | CD119: 314.62361 | CE119: 74.072 | CF119: 103 | CG119: 8479 | CH119: 8.1 | CI119: 6.242855983 | CJ119: 101.6969914 | CK119: 50.1832933 | CL119: 3963.67595 | CM119: 34.10938878 | CN119: 14457.07656 | CO119: 36245.64746 | CP119: 335.09265 | CQ119: -21453.47826 | CR119: 18116.53417 | CS119: 12396.982 | CT119: 42.06712 | CU119: 933.42311 | CV119: 82.68846 | CW119: 8251.37039 | CX119: 4900.53094 | CY119: -1852.11828 | CZ119: 2424.7803 | DA119: 0 | DB119: 8.01988 | DC119: 9.16536 | DD119: 18.15838 | DE119: 2448.0941 | DF119: 15756.90041 | DG119: 7898.658 | DH119: 4615.18078 | DI119: 0 | DJ119: 126.26567 | DK119: 10.37064 | DL119: 537.82555 | DM119: 5000 | DN119: -6204.7712 | DO119: 3409.74289 | DP119: 34908.59397 | DQ119: 27879.07893 | DR119: 7029.51504 | DS119: 304.25297 | DT119: 42.67235 | DU119: 69 | DW119: 1715.7063 | DX119: 1701.637 | DY119: 1701.637 | EE119: 1805
A120: 407 | B120: Lapinjärvi | C120: 2518 | D120: 21.5 | E120: 0.6225075786 | F120: 52.04370487 | G120: 43.58909065 | H120: 3382.57265 | I120: 37.59129035 | J120: 11700.03311 | K120: 28979.58345 | L120: -8.65949 | M120: -17288.20983 | N120: 10065.65061 | O120: 8502.307 | P120: 15.68627 | Q120: 103.29373 | R120: 653.5569 | S120: 1845.69722 | T120: 1450.28385 | U120: 0 | V120: 395.41337 | W120: 0 | X120: 0.26143 | Y120: 3.9886 | Z120: -0.00279 | AA120: 399.13775 | AB120: 3426.73742 | AC120: 1907.77887 | AD120: -1101.00778 | AE120: 3.79565 | AF120: 54.27202 | AG120: 0.03015 | AH120: -3027.57731 | AI120: 836.1395 | AJ120: -2995.7655 | AK120: 864.83876 | AL120: 11606.16837 | AM120: 10395.21038 | AN120: 1210.95799 | AO120: 0 | AP120: 1282.40298 | AQ120: 159 | AR120: 2449 | AS120: 8.86 | AT120: 1.059884378 | AU120: 85.21979946 | AV120: 53.66691462 | AW120: 1702.79285 | AX120: 45.00843022 | AY120: 3579.80701 | AZ120: 11009.98881 | BA120: 0 | BB120: -7430.1818 | BC120: 5294.15702 | BD120: 2735.275 | BE120: 48.59743 | BF120: 233.74322 | BG120: 788.73775 | BH120: 1202.84218 | BI120: 1210.02263 | BJ120: 0 | BK120: -7.18045 | BL120: 0.54091 | BM120: 0.03006 | BN120: 0 | BO120: 0 | BP120: -6.6696 | BQ120: 3649.22133 | BR120: 1266.45603 | BS120: 654.81141 | BT120: 0 | BU120: 64.94762 | BV120: 0 | BW120: -1121.67387 | BX120: 0 | BY120: 0 | BZ120: 676.59224 | CA120: 8098.02946 | CB120: 7185.5754 | CC120: 912.45406 | CD120: 0 | CE120: 226.41289 | CF120: 235 | CG120: 2429 | CH120: 8.9 | CI120: 1.701170607 | CJ120: 76.94007718 | CK120: 58.90818155 | CL120: 2123.26547 | CM120: 55.98709235 | CN120: 3182.94934 | CO120: 10503.3159 | CP120: 0 | CQ120: -7320.36656 | CR120: 5492.32385 | CS120: 2665.676 | CT120: 47.94241 | CU120: 251.08459 | CV120: 1381.12861 | CW120: 2015.61972 | CX120: 1176.17868 | CY120: 0 | CZ120: 839.44104 | DA120: 0.26956 | DB120: 0 | DC120: 0 | DD120: 0 | DE120: 839.7106 | DF120: 4729.66169 | DG120: 2015.256 | DH120: 625.4491 | DI120: 20 | DJ120: 0.405 | DK120: 0 | DL120: 1081.35338 | DM120: 0 | DN120: -13.60069 | DO120: 1410.2119 | DP120: 7003.07519 | DQ120: 6139.22182 | DR120: 863.85337 | DS120: 0 | DT120: 162.69112 | DU120: 112 | DW120: 1705.50095 | DX120: 1700.90554 | DY120: 1701.61265 | EE120: 130
A121: 402 | B121: Lapinlahti | C121: 9099 | D121: 21.25 | E121: 0.824910598 | F121: 74.04920753 | G121: 30.02793001 | H121: 8275.90786 | I121: 25.1020929 | J121: 43151.06234 | K121: 107246.5377 | L121: 223.47927 | M121: -63871.99612 | N121: 33164.98027 | O121: 33561.326 | P121: 26.71643 | Q121: 547.43735 | R121: 1219.88062 | S121: 3553.46985 | T121: 6403.76844 | U121: -4.85189 | V121: -2855.15048 | W121: 9.24636 | X121: 3.10872 | Y121: -39.76758 | Z121: 105.57198 | AA121: -2783.20844 | AB121: -1637.96011 | AC121: 3068.53392 | AD121: -8096.38534 | AE121: 152.24443 | AF121: 152.88041 | AG121: 4.10779 | AH121: -4423.89798 | AI121: 8079.45931 | AJ121: -701.53181 | AK121: -4722.72658 | AL121: 65052.57886 | AM121: 57722.41422 | AN121: 7330.16464 | AO121: 2.29709 | AP121: 2375.404 | AQ121: 262 | AR121: 8975 | AS121: 8.61 | AT121: 1.583531446 | AU121: 113.6107444 | AV121: 38.21011876 | AW121: 4205.03377 | AX121: 29.93239261 | AY121: 18859.13441 | AZ121: 41277.29696 | BA121: 983.96629 | BB121: -21434.19626 | BC121: 17949.18363 | BD121: 11225.07194 | BE121: 18.49801 | BF121: 1169.50857 | BG121: 908.35657 | BH121: 7497.40532 | BI121: 5584.68638 | BJ121: 35.41296 | BK121: 1948.1319 | BL121: 0.11823 | BM121: 0.64828 | BN121: 24.16493 | BO121: 42.65147 | BP121: 2014.41825 | BQ121: 375.02291 | BR121: 6343.01444 | BS121: 3609.63583 | BT121: 140.84995 | BU121: 356.49558 | BV121: 0.68573 | BW121: -4303.64696 | BX121: 3963.06912 | BY121: -475.4369 | BZ121: 3230.72414 | CA121: 47019.58237 | CB121: 39424.72547 | CC121: 7594.8569 | CD121: 0 | CE121: 3153.009 | CF121: 132 | CG121: 8865 | CH121: 9.4 | CI121: 1.383116991 | CJ121: 124.7421002 | CK121: 39.64134507 | CL121: 7321.46728 | CM121: 56.24548284 | CN121: 15366.51249 | CO121: 36589.46621 | CP121: 165.7781 | CQ121: -21057.17562 | CR121: 19605.39816 | CS121: 8460.0225 | CT121: 30.80178 | CU121: 1318.54419 | CV121: 1516.26153 | CW121: 7236.76416 | CX121: 5754.12921 | CY121: 3.77928 | CZ121: 1484.52459 | DA121: 9.73785 | DB121: 46.64606 | DC121: 13.83046 | DD121: 3.84721 | DE121: 1488.61708 | DF121: 1829.45073 | DG121: 7002.94527 | DH121: 3219.0122 | DI121: 50.57977 | DJ121: 147.91388 | DK121: 0 | DL121: 4866.98343 | DM121: 5003.26 | DN121: 75.88086 | DO121: 3982.42672 | DP121: 47232.20515 | DQ121: 39550.00534 | DR121: 7682.19981 | DS121: 1.73558 | DT121: 228.206 | DU121: 116 | DW121: 3061.01901 | DX121: 1421.54075 | DY121: 1416.65897 | EB121: 550 | EE121: 2449
A122: 403 | B122: Lappajärvi | C122: 2820 | D122: 22 | E122: 2.063838859 | F122: 64.90509583 | G122: 40.02074061 | H122: 3720.79448 | I122: 33.31196905 | J122: 12655.48537 | K122: 35160.04946 | L122: 6.15702 | M122: -22498.40707 | N122: 10236.64175 | O122: 14344.78162 | P122: 15.92054 | Q122: 147.81703 | R122: 71.46968 | S122: 2022.58949 | T122: 2132.46435 | U122: -1e-05 | V122: -109.87487 | W122: 42 | X122: 8.31938 | Y122: 1.25734 | Z122: -17.26407 | AA122: -92.20098 | AB122: 2578.45963 | AC122: 1933.13832 | AD122: -2559.88335 | AE122: 430.55 | AF122: 46.6682 | AG122: 0.82568 | AH122: -903.81862 | AI122: 4457.60631 | AJ122: -3992.18456 | AK122: -149.52683 | AL122: 20032.38233 | AM122: 12759.97641 | AN122: 7272.40592 | AO122: 163.30272 | AP122: 271.87045 | AQ122: 163 | AR122: 2789 | AS122: 9.36 | AT122: 2.441302253 | AU122: 108.2022713 | AV122: 45.37725556 | AW122: 3948.21785 | AX122: 91.19773703 | AY122: 6483.23003 | AZ122: 13888.91689 | BA122: 54.27763 | BB122: -7351.40923 | BC122: 6004.59881 | BD122: 3817.411 | BE122: 41.1853 | BF122: 356.98497 | BG122: -139.61181 | BH122: 2015.1891 | BI122: 1695.99351 | BJ122: 0 | BK122: 319.19559 | BL122: 0 | BM122: 7.32578 | BN122: 0 | BO122: 30.63218 | BP122: 342.50199 | BQ122: 2982.89561 | BR122: 2243.22394 | BS122: 1080.9329 | BT122: 123.2588 | BU122: 238.01631 | BV122: 0 | BW122: -614.69892 | BX122: 95.38456 | BY122: -687.56912 | BZ122: 1523.56615 | CA122: 14559.84067 | CB122: 8227.86117 | CC122: 6331.9795 | CD122: 160 | CE122: 22.22616 | CF122: 174 | CG122: 2758 | CH122: 9.4 | CI122: 2.490643645 | CJ122: 102.1985669 | CK122: 56.00287863 | CL122: 3552.24621 | CM122: 80.57149434 | CN122: 4770.65431 | CO122: 13585.32408 | CP122: 91.31438 | CQ122: -8723.35539 | CR122: 6095.11999 | CS122: 5208.09662 | CT122: 43.73686 | CU122: 530.5415 | CV122: 44.53436 | CW122: 2137.59094 | CX122: 1557.33159 | CY122: 0 | CZ122: 580.25935 | DA122: 0 | DB122: 15.45542 | DC122: 0 | DD122: 11.09273 | DE122: 583.62437 | DF122: 3566.51438 | DG122: 1875.87492 | DH122: 1391.0454 | DI122: -3.88402 | DJ122: 356.50205 | DK122: 160 | DL122: 540.72072 | DM122: 45.38456 | DN122: -397.00657 | DO122: 837.44755 | DP122: 13955.06706 | DQ122: 7687.19445 | DR122: 6267.87261 | DS122: 0 | DT122: 26.53009 | DU122: 127 | DW122: 0 | DX122: 0 | DY122: 0 | EB122: 160 | EE122: 5270
A123: 405 | B123: Lappeenranta | C123: 72650 | D123: 21 | E123: 3.841250775 | F123: 75.6771047 | G123: 41.42132051 | H123: 73984.59613 | I123: 30.44695561 | J123: 408765.7059 | K123: 799637.7595 | L123: 900.67625 | M123: -389971.3774 | N123: 330480.3228 | O123: 147587.6937 | P123: 196.44711 | Q123: 4616.70774 | R123: 1320.57108 | S123: 84996.94952 | T123: 53529.30033 | U123: 7.04179 | V123: 31474.69098 | W123: 1.30054 | X123: 1805.77607 | Y123: -2112.76389 | Z123: 341.25716 | AA123: 27898.70872 | AB123: 176465.6418 | AC123: 71181.21436 | AD123: -63174.8734 | AE123: 586.32855 | AF123: 6252.20477 | AG123: -479.26445 | AH123: -18712.58329 | AI123: 8566.28407 | AJ123: -45978.98987 | AK123: 14844.87428 | AL123: 451127.0345 | AM123: 424943.1201 | AN123: 26183.91436 | AO123: 11505.65393 | AP123: 13847.013 | AQ123: 53 | AR123: 72988 | AS123: 8.36 | AT123: 1.261420113 | AU123: 129.9782662 | AV123: 45.76471735 | AW123: 78906.54611 | AX123: 57.85300642 | AY123: 222283.1565 | AZ123: 354186.2995 | BA123: 180.90646 | BB123: -131722.2366 | BC123: 187196.2918 | BD123: 42610.6561 | BE123: 2719.9008 | BF123: 9871.8296 | BG123: 728.2188 | BH123: 91661.00134 | BI123: 62806.22557 | BJ123: 0 | BK123: 28854.77577 | BL123: 69.2991 | BM123: 251.01497 | BN123: -1091.69 | BO123: 236.84072 | BP123: 27818.21062 | BQ123: 206220.1189 | BR123: 90677.06084 | BS123: 62381.87067 | BT123: 444.24382 | BU123: 4908.02161 | BV123: 334.21909 | BW123: -70619.0631 | BX123: 34941.393 | BY123: 40332.93512 | BZ123: 33647.4556 | CA123: 422068.6295 | CB123: 356560.1295 | CC123: 65508.49996 | CD123: 10829.66749 | CE123: 8472.667 | CF123: 33 | CG123: 73327 | CH123: 8.3 | CI123: 1.508612869 | CJ123: 127.5358345 | CK123: 47.75719098 | CL123: 68240.8832 | CM123: 47.76198555 | CN123: 232406.831 | CO123: 357679.5344 | CP123: -415.06516 | CQ123: -125687.7686 | CR123: 183723.9388 | CS123: 39427.18666 | CT123: 3226.21985 | CU123: 11403.15219 | CV123: 1099.52538 | CW123: 90385.94984 | CX123: 50694.41173 | CY123: 0 | CZ123: 39691.53811 | DA123: 20.76248 | DB123: 4853.97326 | DC123: 922.62052 | DD123: -988.7431 | DE123: 37219.19138 | DF123: 244695.7989 | DG123: 87314.547 | DH123: 95249.93915 | DI123: 1523.67742 | DJ123: 902.03701 | DK123: 271.42275 | DL123: 56068.83091 | DM123: 61052.8383 | DN123: -8016.83802 | DO123: -5509.67772 | DP123: 419035.7991 | DQ123: 361544.1371 | DR123: 57491.66194 | DS123: 10549.00474 | DT123: 8498.378 | DU123: 25 | DW123: 3675.76685 | DX123: 3073.79433 | DY123: 3053.03186 | EE123: 13468
A124: 408 | B124: Lapua | C124: 14099 | D124: 21.5 | E124: 1.204546679 | F124: 97.69577846 | G124: 26.7096161 | H124: 12543.10279 | I124: 26.84777261 | J124: 56174.1638 | K124: 142320.0438 | L124: -33.00148 | M124: -86178.88145 | N124: 56624.03677 | O124: 43729.599 | P124: 68.58333 | Q124: 888.1506 | R124: 536.36759 | S124: 13891.55464 | T124: 11604.03157 | U124: 0 | V124: 2287.52307 | W124: 0 | X124: 160.13046 | Y124: -180.32203 | Z124: 10.57611 | AA124: 1957.64669 | AB124: 25459.74199 | AC124: 13604.93615 | AD124: -15082.05299 | AE124: 318.5772 | AF124: 302.33665 | AG124: -536.932 | AH124: -11381.7809 | AI124: 8164.5622 | AJ124: 3157.88866 | AK124: -856.20299 | AL124: 118198.7051 | AM124: 85449.46542 | AN124: 32749.23965 | AO124: 12.272 | AP124: 950.66841 | AQ124: 81 | AR124: 14024 | AS124: 8.86 | AT124: 1.281701552 | AU124: 162.5808052 | AV124: 32.3978955 | AW124: 8310.20141 | AX124: 37.09340129 | AY124: 27004.57522 | AZ124: 58653.03529 | BA124: -4.27606 | BB124: -31652.73613 | BC124: 31585.30016 | BD124: 15933.67 | BE124: 16.70443 | BF124: 1533.8218 | BG124: -154.20528 | BH124: 14194.91138 | BI124: 9545.35541 | BJ124: 0 | BK124: 4649.55597 | BL124: 0 | BM124: 26.11189 | BN124: -39.60724 | BO124: -24.71676 | BP124: 4559.12008 | BQ124: 30289.21732 | BR124: 14078.19736 | BS124: 10716.07677 | BT124: 77.16585 | BU124: 279.9477 | BV124: 457.5 | BW124: -10737.93769 | BX124: 8109.89995 | BY124: -392.4416 | BZ124: 3719.23414 | CA124: 99042.67753 | CB124: 69061.12614 | CC124: 29981.55139 | CD124: 0 | CE124: 335.19438 | CF124: 78 | CG124: 14028 | CH124: 8.9 | CI124: 0.8085915423 | CJ124: 167.8366338 | CK124: 32.46707605 | CL124: 7149.53992 | CM124: 29.10071735 | CN124: 27646.59227 | CO124: 60660.20294 | CP124: 32.74495 | CQ124: -32980.86572 | CR124: 31214.11818 | CS124: 13891.193 | CT124: 8.36197 | CU124: 2889.00864 | CV124: 543.93478 | CW124: 9787.73357 | CX124: 9287.41136 | CY124: 0 | CZ124: 500.32221 | DA124: 0 | DB124: 167.83116 | DC124: 11.08918 | DD124: -40.07968 | DE124: 387.41613 | DF124: 30394.93874 | DG124: 9567.24871 | DH124: 11792.45178 | DI124: 191.60964 | DJ124: 188.87836 | DK124: 0 | DL124: 12788.5511 | DM124: 9833.49995 | DN124: 4531.17718 | DO124: -1844.71507 | DP124: 100620.8091 | DQ124: 66568.08053 | DR124: 34052.72857 | DS124: 0 | DT124: 274.37927 | DU124: 154 | DW124: 321.11147 | DX124: 381.92886 | DY124: 381.92886 | EE124: 857
A125: 410 | B125: Laukaa | C125: 18775 | D125: 21.5 | E125: 2.579327515 | F125: 106.434982 | G125: 12.60920958 | H125: 7222.80208 | I125: 13.53835691 | J125: 50364.29752 | K125: 175708.9105 | L125: 0 | M125: -125344.613 | N125: 78602.9909 | O125: 55230.42036 | P125: 13.37382 | Q125: 519.38043 | R125: 412.96977 | S125: 8395.76141 | T125: 11537.08511 | U125: 509.82415 | V125: -2631.49955 | W125: -430.50807 | X125: 0 | Y125: 104.5778 | Z125: 0 | AA125: -2957.42982 | AB125: -6895.43202 | AC125: 8351.52048 | AD125: -15462.62824 | AE125: 128.85565 | AF125: 774.24225 | AG125: 705.4739 | AH125: -2937.00182 | AI125: 0 | AJ125: 6051.03068 | AK125: -6208.00986 | AL125: 165946.9006 | AM125: 105343.0043 | AN125: 60603.89625 | AO125: 103.98785 | AP125: 39187.23736 | AQ125: 246 | AR125: 18762 | AS125: 8.86 | AT125: 0.5189334039 | AU125: 158.3624592 | AV125: 16.30881644 | AW125: 4898.92988 | AX125: 15.17811592 | AY125: 22626.3258 | AZ125: 79637.344 | BA125: 0 | BB125: -57011.0182 | BC125: 44327.1894 | BD125: 28575.25609 | BE125: 29.26015 | BF125: 2361.8209 | BG125: 351.5535 | BH125: 13910.42004 | BI125: 9653.44357 | BJ125: 0 | BK125: 4256.97647 | BL125: -2.11622 | BM125: 1.29951 | BN125: -58.82565 | BO125: 0 | BP125: 4194.73509 | BQ125: -4202.55252 | BR125: 13372.80959 | BS125: 6462.4039 | BT125: 125.6 | BU125: 623.1902 | BV125: 799.35295 | BW125: -28995.26812 | BX125: 963.26071 | BY125: 27716.98347 | BZ125: 7659.19589 | CA125: 138897.0301 | CB125: 51840.37856 | CC125: 87056.6515 | CD125: 59.2069 | CE125: 37737.81559 | CF125: 167 | CG125: 18878 | CH125: 9.9 | CI125: 0.544579224 | CJ125: 161.1583771 | CK125: 15.81496693 | CL125: 5665.48271 | CM125: 18.80291582 | CN125: 22291.8585 | CO125: 81145.11931 | CP125: 0 | CQ125: -58853.26081 | CR125: 46766.63193 | CS125: 23871.73441 | CT125: 87.75845 | CU125: 3394.62156 | CV125: 226.86726 | CW125: 8705.10968 | CX125: 10150.99545 | CY125: 0 | CZ125: -1445.88577 | DA125: 2.11299 | DB125: 0 | DC125: -12.51444 | DD125: 0 | DE125: -1456.28722 | DF125: -5661.95413 | DG125: 8405.54359 | DH125: 6351.6795 | DI125: 108.25852 | DJ125: 430.10802 | DK125: 888.20649 | DL125: 18823.87431 | DM125: 15040.99979 | DN125: 814.71682 | DO125: 2592.23063 | DP125: 134931.0501 | DQ125: 46611.59157 | DR125: 88319.45853 | DS125: 63.75056 | DT125: 48195.72327 | DU125: 238 | DW125: 2940.84361 | DX125: 2839.82577 | DY125: 2828.62996 | EA125: 1000 | EB125: 400 | EE125: 4388
A126: 416 | B126: Lemi | C126: 2886 | D126: 22 | E126: 0.5511359789 | F126: 42.37865667 | G126: 28.78174056 | H126: 1622.7767 | I126: 15.80137485 | J126: 15885.85254 | K126: 34334.00507 | L126: -12.34175 | M126: -18460.49428 | N126: 11797.71729 | O126: 7535.80113 | P126: 0.47967 | Q126: 111.69628 | R126: 19.32321 | S126: 781.13074 | T126: 975.92617 | U126: 0 | V126: -194.79543 | W126: -0.21606 | X126: 1.70075 | Y126: -21.55755 | Z126: 0 | AA126: -218.26979 | AB126: -672.41635 | AC126: 1140.6268 | AD126: -1489.83208 | AE126: 13.65337 | AF126: 99.59876 | AG126: -31.91198 | AH126: -1508.27965 | AI126: 914.0864 | AJ126: 400 | AK126: -235.95315 | AL126: 10992.53374 | AM126: 9427.37901 | AN126: 1565.15473 | AO126: 227.06756 | AP126: 4405.06765 | AQ126: 279 | AR126: 2862 | AS126: 9.36 | AT126: 1.61897473 | AU126: 87.29283284 | AV126: 39.43967764 | AW126: 942.10125 | AX126: 30.94983933 | AY126: 2710.05881 | AZ126: 9548.8179 | BA126: -24.92851 | BB126: -6863.6876 | BC126: 6640.34368 | BD126: 2302.12936 | BE126: 0.00431 | BF126: 169.93801 | BG126: 19.99466 | BH126: 1928.8464 | BI126: 854.21109 | BJ126: 0 | BK126: 1074.63531 | BL126: 2.56963 | BM126: 0.0665 | BN126: -20.393 | BO126: 0 | BP126: 1056.74544 | BQ126: 548.85533 | BR126: 1941.15977 | BS126: 245.2812 | BT126: 17.84236 | BU126: 17.38928 | BV126: 5 | BW126: -1126.42837 | BX126: 367.98949 | BY126: -200 | BZ126: 1731.11021 | CA126: 8623.6807 | CB126: 7567.29788 | CC126: 1056.38282 | CD126: 195.15558 | CE126: 3112.41311 | CF126: 188 | CG126: 2849 | CH126: 9.9 | CI126: 1.828107517 | CJ126: 79.96216837 | CK126: 44.31634812 | CL126: 1452.21103 | CM126: 49.40342001 | CN126: 2452.96739 | CO126: 9429.63458 | CP126: -2.69642 | CQ126: -6979.36361 | CR126: 7207.02582 | CS126: 1699.78834 | CT126: 0.28496 | CU126: 205.97423 | CV126: 17.86859 | CW126: 1739.62987 | CX126: 851.38911 | CY126: 0 | CZ126: 888.24076 | DA126: 0.76988 | DB126: 5.96552 | DC126: -0.47397 | DD126: 0 | DE126: 885.55391 | DF126: 1349.11566 | DG126: 1800.02265 | DH126: 210.1011 | DI126: 15.14791 | DJ126: 3.69077 | DK126: -0.46 | DL126: 858.29802 | DM126: 0 | DN126: -199.70495 | DO126: 1608.76023 | DP126: 7565.67773 | DQ126: 6724.87004 | DR126: 840.80769 | DS126: 195.15558 | DT126: 2584.03545 | DU126: 188 | DW126: 37.79365 | DX126: 35.2758 | DY126: 34.50592 | EB126: 350 | EE126: 2278
